Workbook

Sheet MP4-31 (hidden)
B2: Gathering Prices & Parts for the Class X McLaren MP4-31 (#0xB8) - Asphalt 8 Airborne
B3: UPGRADE | F3: PRO KITS
B4: Acc | C4: Spd | D4: Hnd | E4: Ntr | F4: Tires | M4: Suspension | T4: Drivetrain | AA4: Exhaust
B5: Cost | F5: Cost | G5: Part | H5: Early | I5: Init | J5: Mid | K5: Adv | L5: Engn | M5: Cost | N5: Part | O5: Early | P5: Init | Q5: Mid | R5: Adv | S5: Engn | T5: Cost | U5: Part | V5: Early | W5: Init | X5: Mid | Y5: Adv | Z5: Engn | AA5: Cost | AB5: Part | AC5: Early | AD5: Init | AE5: Mid | AF5: Adv | AG5: Engn
A6: TO L1 → | F6: 12.05 | G6: 1 | L6: 1 | M6: 8.88 | N6: 1 | S6: 1 | T6: 12.05 | U6: 1 | Z6: 1 | AA6: 9.525 | AB6: 1 | AG6: 1
A7: TO L2 → | F7: 15.075 | G7: 1 | L7: 1 | M7: 11.1 | N7: 1 | S7: 1 | T7: 15.075 | U7: 1 | Z7: 1 | AA7: 11.9 | AB7: 1 | AG7: 1
A8: TO L3 → | F8: 18.85 | G8: 2 | J8: 1 | L8: 1 | M8: 13.875 | N8: 2 | Q8: 1 | S8: 1 | T8: 18.85 | U8: 2 | X8: 1 | Z8: 1 | AA8: 14.875 | AB8: 2 | AE8: 1 | AG8: 1
A9: TO L4 → | F9: 23.575 | G9: 2 | J9: 1 | L9: 1 | M9: 17.35 | N9: 2 | Q9: 1 | S9: 1 | T9: 23.575 | U9: 2 | X9: 1 | Z9: 1 | AA9: 18.6 | AB9: 2 | AE9: 1 | AG9: 1
A10: TO L5 → | F10: 29.475 | G10: 2 | J10: 2 | L10: 1 | M10: 21.7 | N10: 2 | Q10: 2 | S10: 1 | T10: 29.475 | U10: 2 | X10: 2 | Z10: 1 | AA10: 23.25 | AB10: 2 | AE10: 2 | AG10: 1
A11: TO L6 → | F11: 36.85 | G11: 3 | J11: 2 | L11: 1 | M11: 27.125 | N11: 3 | Q11: 2 | S11: 1 | T11: 36.85 | U11: 3 | X11: 2 | Z11: 1 | AA11: 29.075 | AB11: 3 | AE11: 2 | AG11: 1
A12: TO L7 → | F12: 46.075 | G12: 3 | K12: 2 | L12: 1 | M12: 33.9 | N12: 3 | R12: 2 | S12: 1 | T12: 46.075 | U12: 3 | Y12: 2 | Z12: 1 | AA12: 36.35 | AB12: 3 | AF12: 2 | AG12: 1
A13: TO L8 → | F13: 57.6 | G13: 3 | K13: 2 | L13: 2 | M13: 42.375 | N13: 3 | R13: 2 | S13: 2 | T13: 57.6 | U13: 3 | Y13: 2 | Z13: 2 | AA13: 45.45 | AB13: 3 | AF13: 2 | AG13: 2
A14: TO L9 → | F14: 72 | G14: 3 | K14: 2 | L14: 2 | M14: 52.975 | N14: 3 | R14: 2 | S14: 2 | T14: 72 | U14: 3 | Y14: 2 | Z14: 2 | AA14: 56.825 | AB14: 3 | AF14: 2 | AG14: 2
A15: TO PRO → | F15: 90 | G15: 3 | K15: 2 | L15: 2 | M15: 66.225 | N15: 3 | R15: 2 | S15: 2 | T15: 90 | U15: 3 | Y15: 2 | Z15: 2 | AA15: 71.025 | AB15: 3 | AF15: 2 | AG15: 2
A16: Totals | B16: =SUMIF(B5:INDIRECT("B"&(E60+5)),">0") -> 0 | C16: =SUMIF(INDIRECT("R"&(ROW()-6)&"C"&COLUMN(),FALSE):INDIRECT("R"&(ROW()-6+F60)&"C"&COLUMN(),FALSE),">0") -> 0 | D16: =SUMIF(INDIRECT("R"&(ROW()-6)&"C"&COLUMN(),FALSE):INDIRECT("R"&(ROW()-6+G60)&"C"&COLUMN(),FALSE),">0") -> 0 | E16: =SUMIF(INDIRECT("R"&(ROW()-6)&"C"&COLUMN(),FALSE):INDIRECT("R"&(ROW()-6+H60)&"C"&COLUMN(),FALSE),">0") -> 0 | F16: =SUM(INDIRECT("R"&(ROW()-11)&"C"&COLUMN(),FALSE):INDIRECT("R"&(ROW()-11+$P60)&"C"&COLUMN(),FALSE)) -> 0 | G16: =SUM(INDIRECT("R"&(ROW()-11)&"C"&COLUMN(),FALSE):INDIRECT("R"&(ROW()-11+$P60)&"C"&COLUMN(),FALSE)) -> 0 | H16: =SUM(INDIRECT("R"&(ROW()-11)&"C"&COLUMN(),FALSE):INDIRECT("R"&(ROW()-11+$P60)&"C"&COLUMN(),FALSE)) -> 0 | I16: =SUM(INDIRECT("R"&(ROW()-11)&"C"&COLUMN(),FALSE):INDIRECT("R"&(ROW()-11+$P60)&"C"&COLUMN(),FALSE)) -> 0 | J16: =SUM(INDIRECT("R"&(ROW()-11)&"C"&COLUMN(),FALSE):INDIRECT("R"&(ROW()-11+$P60)&"C"&COLUMN(),FALSE)) -> 0 | K16: =SUM(INDIRECT("R"&(ROW()-11)&"C"&COLUMN(),FALSE):INDIRECT("R"&(ROW()-11+$P60)&"C"&COLUMN(),FALSE)) -> 0 | L16: =SUM(INDIRECT("R"&(ROW()-11)&"C"&COLUMN(),FALSE):INDIRECT("R"&(ROW()-11+$P60)&"C"&COLUMN(),FALSE)) -> 0 | M16: =SUM(INDIRECT("R"&(ROW()-11)&"C"&COLUMN(),FALSE):INDIRECT("R"&(ROW()-11+$Q60)&"C"&COLUMN(),FALSE)) -> 0 | N16: =SUM(INDIRECT("R"&(ROW()-11)&"C"&COLUMN(),FALSE):INDIRECT("R"&(ROW()-11+$Q60)&"C"&COLUMN(),FALSE)) -> 0 | O16: =SUM(INDIRECT("R"&(ROW()-11)&"C"&COLUMN(),FALSE):INDIRECT("R"&(ROW()-11+$Q60)&"C"&COLUMN(),FALSE)) -> 0 | P16: =SUM(INDIRECT("R"&(ROW()-11)&"C"&COLUMN(),FALSE):INDIRECT("R"&(ROW()-11+$Q60)&"C"&COLUMN(),FALSE)) -> 0 | Q16: =SUM(INDIRECT("R"&(ROW()-11)&"C"&COLUMN(),FALSE):INDIRECT("R"&(ROW()-11+$Q60)&"C"&COLUMN(),FALSE)) -> 0 | R16: =SUM(INDIRECT("R"&(ROW()-11)&"C"&COLUMN(),FALSE):INDIRECT("R"&(ROW()-11+$Q60)&"C"&COLUMN(),FALSE)) -> 0 | S16: =SUM(INDIRECT("R"&(ROW()-11)&"C"&COLUMN(),FALSE):INDIRECT("R"&(ROW()-11+$Q60)&"C"&COLUMN(),FALSE)) -> 0 | T16: =SUM(INDIRECT("R"&(ROW()-11)&"C"&COLUMN(),FALSE):INDIRECT("R"&(ROW()-11+$R60)&"C"&COLUMN(),FALSE)) -> 0 | U16: =SUM(INDIRECT("R"&(ROW()-11)&"C"&COLUMN(),FALSE):INDIRECT("R"&(ROW()-11+$R60)&"C"&COLUMN(),FALSE)) -> 0 | V16: =SUM(INDIRECT("R"&(ROW()-11)&"C"&COLUMN(),FALSE):INDIRECT("R"&(ROW()-11+$R60)&"C"&COLUMN(),FALSE)) -> 0 | W16: =SUM(INDIRECT("R"&(ROW()-11)&"C"&COLUMN(),FALSE):INDIRECT("R"&(ROW()-11+$R60)&"C"&COLUMN(),FALSE)) -> 0 | X16: =SUM(INDIRECT("R"&(ROW()-11)&"C"&COLUMN(),FALSE):INDIRECT("R"&(ROW()-11+$R60)&"C"&COLUMN(),FALSE)) -> 0 | Y16: =SUM(INDIRECT("R"&(ROW()-11)&"C"&COLUMN(),FALSE):INDIRECT("R"&(ROW()-11+$R60)&"C"&COLUMN(),FALSE)) -> 0 | Z16: =SUM(INDIRECT("R"&(ROW()-11)&"C"&COLUMN(),FALSE):INDIRECT("R"&(ROW()-11+$R60)&"C"&COLUMN(),FALSE)) -> 0 | AA16: =SUM(INDIRECT("R"&(ROW()-11)&"C"&COLUMN(),FALSE):INDIRECT("R"&(ROW()-11+$S60)&"C"&COLUMN(),FALSE)) -> 0 | AB16: =SUM(INDIRECT("R"&(ROW()-11)&"C"&COLUMN(),FALSE):INDIRECT("R"&(ROW()-11+$S60)&"C"&COLUMN(),FALSE)) -> 0 | AC16: =SUM(INDIRECT("R"&(ROW()-11)&"C"&COLUMN(),FALSE):INDIRECT("R"&(ROW()-11+$S60)&"C"&COLUMN(),FALSE)) -> 0 | AD16: =SUM(INDIRECT("R"&(ROW()-11)&"C"&COLUMN(),FALSE):INDIRECT("R"&(ROW()-11+$S60)&"C"&COLUMN(),FALSE)) -> 0 | AE16: =SUM(INDIRECT("R"&(ROW()-11)&"C"&COLUMN(),FALSE):INDIRECT("R"&(ROW()-11+$S60)&"C"&COLUMN(),FALSE)) -> 0 | AF16: =SUM(INDIRECT("R"&(ROW()-11)&"C"&COLUMN(),FALSE):INDIRECT("R"&(ROW()-11+$S60)&"C"&COLUMN(),FALSE)) -> 0 | AG16: =SUM(INDIRECT("R"&(ROW()-11)&"C"&COLUMN(),FALSE):INDIRECT("R"&(ROW()-11+$S60)&"C"&COLUMN(),FALSE)) -> 0
B17: =-SUMIF(B5:INDIRECT("B"&(E60+5)),"<0") -> 0 | C17: =-SUMIF(INDIRECT("R"&(ROW()-7)&"C"&COLUMN(),FALSE):INDIRECT("R"&(ROW()-7+F60)&"C"&COLUMN(),FALSE),"<0") -> 0 | D17: =-SUMIF(INDIRECT("R"&(ROW()-7)&"C"&COLUMN(),FALSE):INDIRECT("R"&(ROW()-7+G60)&"C"&COLUMN(),FALSE),"<0") -> 0 | E17: =-SUMIF(INDIRECT("R"&(ROW()-7)&"C"&COLUMN(),FALSE):INDIRECT("R"&(ROW()-7+H60)&"C"&COLUMN(),FALSE),"<0") -> 0
B18: Gathering Specifications for the McLaren MP4-31 - Asphalt 8 Airborne
C19: UPGRADE | L19: PRO KITS
B20: Init | C20: Accel | E20: Speed | G20: Handling | I20: Nitro | L20: Tires | O20: Suspension | R20: Drivetrain | U20: Exhaust
B21: L0 | C21: Rank | D21: A | E21: Rank | F21: S | G21: Rank | H21: H | I21: Rank | J21: N | L21: Rank | M21: H | N21: S | O21: Rank | P21: N | Q21: H | R21: Rank | S21: A | T21: S | U21: Rank | V21: N | W21: A
A22: LEVEL 1 → | B22: 2.7 | K22: A | L22: 1627 | M22: 1.302 | N22: 433.3 | O22: 1680 | P22: 25.2 | Q22: 1.345 | R22: 1722 | S22: 2.67 | T22: 458.8 | U22: 1774 | V22: 35.8 | W22: 2.04
A23: LEVEL 2 → | B23: 432.2 | K23: S | L23: 1630 | M23: 1.304 | N23: 434.8 | O23: 1682 | P23: 25.7 | Q23: 1.348 | R23: 1724 | S23: 2.64 | T23: 460 | U23: 1776 | V23: 36.3 | W23: 2.01
A24: LEVEL 3 → | B24: 1.3 | K24: H | L24: 1634 | M24: 1.308 | N24: 436.6 | O24: 1685 | P24: 26.5 | Q24: 1.351 | R24: 1728 | S24: 2.59 | T24: 461.8 | U24: 1779 | V24: 37.1 | W24: 1.97
A25: LEVEL 4 → | B25: 24.6 | K25: N | L25: 1637 | M25: 1.31 | N25: 438 | O25: 1688 | P25: 27.1 | Q25: 1.353 | R25: 1731 | S25: 2.56 | T25: 463.2 | U25: 1782 | V25: 37.7 | W25: 1.94
A26: LEVEL 5 → | B26: 1624 | K26: Rank | L26: 1643 | M26: 1.315 | N26: 440.9 | O26: 1692 | P26: 28.3 | Q26: 1.358 | R26: 1737 | S26: 2.48 | T26: 466.1 | U26: 1786 | V26: 38.9 | W26: 1.86
A27: LEVEL 6 → | L27: 1649 | M27: 1.32 | N27: 443.9 | O27: 1697 | P27: 29.5 | Q27: 1.363 | R27: 1743 | S27: 2.41 | T27: 469.1 | U27: 1791 | V27: 40.1 | W27: 1.79
A28: LEVEL 7 → | L28: 1656 | M28: 1.325 | N28: 446.8 | O28: 1702 | P28: 30.8 | Q28: 1.368 | R28: 1750 | S28: 2.34 | T28: 472 | U28: 1796 | V28: 41.4 | W28: 1.72
A29: LEVEL 8 → | L29: 1662 | M29: 1.33 | N29: 449.7 | O29: 1706 | P29: 32 | Q29: 1.373 | R29: 1756 | S29: 2.27 | T29: 474.9 | U29: 1800 | V29: 42.6 | W29: 1.65
A30: LEVEL 9 → | L30: 1671 | M30: 1.337 | N30: 454.1 | O30: 1713 | P30: 33.8 | Q30: 1.381 | R30: 1765 | S30: 2.16 | T30: 479.3 | U30: 1807 | V30: 44.4 | W30: 1.54
A31: PRO → | D31: =MIN(S31,W31) -> 1.46 | F31: =MAX(N31,T31) -> 482.6 | H31: =MAX(M31,Q31) -> 1.386 | J31: =MAX(P31,V31) -> 45.8 | L31: 1678 | M31: 1.343 | N31: 457.4 | O31: 1719 | P31: 35.2 | Q31: 1.386 | R31: 1772 | S31: 2.08 | T31: 482.6 | U31: 1813 | V31: 45.8 | W31: 1.46 | X31: =COUNT(C22:C26) -> 0
A32: PRO+TK → | B32: TK | D32: 1.26 | F32: 490.6 | H32: 1.4 | J32: 49.2 | X32: =COUNT(L22:L31) -> 10
A33: TK only → | D33: =D32-D31 -> -0.2 | F33: =F32-F31 -> 8 | H33: =H32-H31 -> 0.014 | J33: =J32-J31 -> 3.4
AH34: Tokens
B35: Tuning the McLaren MP4-31 - ASPHALT 8 AIRBORNE | Z35: S+N | AA35: =B40+B42+Z51+Z53 -> 456.8 | AB35: =AA35+AB40+AB42 -> 468.2 | AD35: TOTAL Cost | AF35: =AF36+AF37 -> 1415480
C36: UPGRADE | L36: PRO KITS | Z36: var | AD36: UPG T Cost | AF36: =SUMIF(B6:E15,">0")*1000 -> 0 | AH36: =-SUMIF(B6:E15,"<0")*1000 -> 0
B37: Init | C37: Accel | E37: Speed | G37: Handling | I37: Nitro | K37: MAX | L37: Tires | O37: Suspension | R37: Drivetrain | U37: Exhaust | X37: PRO | Y37: End | Z37: MAX | AA37: Final | AB37: TK | AD37: PRO T Cost | AF37: =SUM(F6:F15,M6:M15,T6:T15,AA6:AA15)*1000 -> 1415480
C38: Rank | D38: A | E38: Rank | F38: S | G38: Rank | H38: H | I38: Rank | J38: N | L38: Rank | M38: H | N38: S | O38: Rank | P38: N | Q38: H | R38: Rank | S38: A | T38: S | U38: Rank | V38: N | W38: A | Z38: PRO | AA38: Value | AB38: Boost | AD38: Current Cost | AF38: =AF39+AF40 -> 0
B39: =B22 -> 2.7 | K39: =SUM(D39:D48) -> 0 | L39: 3 | M39: 0.002 | N39: 1.1 | O39: 2 | P39: 0.6 | Q39: 0.002 | R39: 3 | S39: -0.03 | T39: 1.4 | U39: 2 | V39: 0.6 | W39: -0.04 | X39: =SUM(S39:S48,W39:W48) -> -1.24 | Y39: A | Z39: =K39+X39 -> -1.24 | AA39: =B39+Z39 -> 1.46 | AB39: =D33 -> -0.2 | AD39: UPG C Cost | AF39: =SUM(B16:E16)*1000 -> 0 | AH39: =SUM(B17:E17)*1000 -> 0
B40: =B23 -> 432.2 | K40: =SUM(F39:F48) -> 0 | L40: 3 | M40: 0.002 | N40: 1.5 | O40: 2 | P40: 0.5 | Q40: 0.003 | R40: 2 | S40: -0.03 | T40: 1.2 | U40: 2 | V40: 0.5 | W40: -0.03 | X40: =SUM(N39:N48,T39:T48) -> 50.4 | Y40: S | Z40: =K40+X40 -> 50.4 | AA40: =B40+Z40 -> 482.6 | AB40: =F33 -> 8 | AD40: PRO C Cost | AF40: =SUM(F16+M16+T16+AA16)*1000 -> 0
B41: =B24 -> 1.3 | K41: =SUM(H39:H48) -> 0 | L41: 4 | M41: 0.004 | N41: 1.8 | O41: 3 | P41: 0.8 | Q41: 0.003 | R41: 4 | S41: -0.05 | T41: 1.8 | U41: 3 | V41: 0.8 | W41: -0.04 | X41: =SUM(M39:M48,Q39:Q48) -> 0.086 | Y41: H | Z41: =K41+X41 -> 0.086 | AA41: =B41+Z41 -> 1.386 | AB41: =H33 -> 0.014 | AD41: Tires | AF41: =G16 -> 0
B42: =B25 -> 24.6 | K42: =SUM(J39:J48) -> 0 | L42: 3 | M42: 0.002 | N42: 1.4 | O42: 3 | P42: 0.6 | Q42: 0.002 | R42: 3 | S42: -0.03 | T42: 1.4 | U42: 3 | V42: 0.6 | W42: -0.03 | X42: =SUM(P39:P48,V39:V48) -> 21.2 | Y42: N | Z42: =K42+X42 -> 21.2 | AA42: =B42+Z42 -> 45.8 | AB42: =J33 -> 3.4 | AD42: Suspension | AF42: =N16 -> 0
B43: =B26 -> 1624 | K43: =SUM(C39:C48,E39:E48,G39:G48,I39:I48) -> 0 | L43: 6 | M43: 0.005 | N43: 2.9 | O43: 4 | P43: 1.2 | Q43: 0.005 | R43: 6 | S43: -0.08 | T43: 2.9 | U43: 4 | V43: 1.2 | W43: -0.08 | X43: =SUM(L39:L48,O39:O48,R39:R48,U39:U48) -> 189 | Y43: Rank | Z43: =K43+X43 -> 189 | AA43: =B43+Z43 -> 1813 | AB43: 27 | AD43: Drivetrain | AF43: =U16 -> 0
L44: 6 | M44: 0.005 | N44: 3 | O44: 5 | P44: 1.2 | Q44: 0.005 | R44: 6 | S44: -0.07 | T44: 3 | U44: 5 | V44: 1.2 | W44: -0.07 | AD44: Exhaust | AF44: =AB16 -> 0
L45: 7 | M45: 0.005 | N45: 2.9 | O45: 5 | P45: 1.3 | Q45: 0.005 | R45: 7 | S45: -0.07 | T45: 2.9 | U45: 5 | V45: 1.3 | W45: -0.07 | AD45: Early Tech | AF45: =H16+O16+V16+AC16 -> 0
L46: 6 | M46: 0.005 | N46: 2.9 | O46: 4 | P46: 1.2 | Q46: 0.005 | R46: 6 | S46: -0.07 | T46: 2.9 | U46: 4 | V46: 1.2 | W46: -0.07 | AD46: Initial Tech | AF46: =I16+P16+W16+AD16 -> 0
L47: 9 | M47: 0.007 | N47: 4.4 | O47: 7 | P47: 1.8 | Q47: 0.008 | R47: 9 | S47: -0.11 | T47: 4.4 | U47: 7 | V47: 1.8 | W47: -0.11 | AD47: Mid Tech | AF47: =J16+Q16+X16+AE16 -> 0
L48: 7 | M48: 0.006 | N48: 3.3 | O48: 6 | P48: 1.4 | Q48: 0.005 | R48: 7 | S48: -0.08 | T48: 3.3 | U48: 6 | V48: 1.4 | W48: -0.08 | AD48: Adv Tech | AF48: =K16+R16+Y16+AF16 -> 0
B49: TK | D49: =D32-D26 -> 1.26 | F49: =F32-F26 -> 490.6 | H49: =H32-H26 -> 1.4 | J49: =J32-J26 -> 49.2 | AB49: Final | AC49: MPTK | AD49: Engines | AF49: =L16+S16+Z16+AG16 -> 0 | AG49: CR
A50: 0 | B50: A | K50: =SUM(D50:D59) -> 0 | L50: =IF(proT>$A50,L39,"") ->  | O50: =IF(proS>$A50,O39,"") ->  | R50: =IF(proD>$A50,R39,"") ->  | U50: =IF(proE>$A50,U39,"") ->  | X50: =SUM(S50:S59,W50:W59) -> 0 | Y50: =B39+K50+X50 -> 2.7 | Z50: =K50+X50 -> 0 | AA50: =Z50/Z39 -> 0 | AB50: =Y50+AB39 -> 2.5 | AC50: 1.4
A51: 1 | B51: S | K51: =SUM(F50:F59) -> 0 | X51: =SUM(N50:N59,T50:T59) -> 0 | Y51: =B40+K51+X51 -> 432.2 | Z51: =K51+X51 -> 0 | AA51: =Z51/Z40 -> 0 | AB51: =Y51+AB40 -> 440.2 | AC51: 295.8 | AE51: SM = | AF51: 0.93
A52: 2 | B52: H | K52: =SUM(H50:H59) -> 0 | X52: =SUM(M50:M59,Q50:Q59) -> 0 | Y52: =B41+K52+X52 -> 1.3 | Z52: =K52+X52 -> 0 | AA52: =Z52/Z41 -> 0 | AB52: =Y52+AB41 -> 1.314 | AC52: 1.25 | AE52: MxSpeed = | AG52: =AB35*AF51 -> 435.426 | AH52: km/h
A53: 3 | B53: N | K53: =SUM(J50:J59) -> 0 | X53: =SUM(P50:P59,V50:V59) -> 0 | Y53: =B42+K53+X53 -> 24.6 | Z53: =K53+X53 -> 0 | AA53: =Z58/Z42 -> 0 | AB53: =Y53+AB42 -> 28
A54: 4
A55: 5
A56: 6
A57: 7
A58: 8 | AC58: 114.3
A59: 9 | B59: Rank | K59: =SUM(C50:C59,E50:E59,G50:G59,I50:I59) -> 0 | X59: =SUM(L50:L59,O50:O59,R50:R59,U50:U59) -> 0 | Y59: =B43+K59+X59 -> 1624 | Z59: =K59+X59 -> 0 | AA59: =Z59/Z43 -> 0 | AB59: =AB43+Y59 -> 1651
A60: INPUT → | X60: Speed+Nitro | Z60: =Z51+Z53 -> 0 | AA60: =Z60/(Z40+Z42) -> 0 | AB60: =IF(AA59=0,"",AA60/AA59-1) -> 
P62: 0 | Q62: 0 | R62: 0 | S62: 0
P63: =SUM(N$38,OFFSET(N$38,0,0,P62+1,1)) -> 0 | Q63: =SUM(P$38,OFFSET(P$38,0,0,Q62+1,1)) -> 0 | R63: =SUM(T$38,OFFSET(T$38,0,0,R62+1,1)) -> 0 | S63: =SUM(V$38,OFFSET(V$38,0,0,S62+1,1)) -> 0 | U63: =(P63+Q63+R63+S63+B40+B42+AB40+AB42)*U65 -> 435.51964 | W63: Total Spd
P64: =SUM(L$38,OFFSET(L$38,0,0,P62+1,1)) -> 0 | Q64: =SUM(O$38,OFFSET(O$38,0,0,Q62+1,1)) -> 0 | R64: =SUM(R$38,OFFSET(R$38,0,0,R62+1,1)) -> 0 | S64: =SUM(U$38,OFFSET(U$38,0,0,S62+1,1)) -> 0 | U64: =B43+P64+Q64+R64+S64 -> 1624 | W64: Rank
U65: 0.9302 | W65: Speed Modifier

Sheet MP4-25 (hidden)
B2: Gathering Prices & Parts for the Class A McLaren Mercedes MP4-25 (#0xAC) - Asphalt 8 Airborne
B3: UPGRADE | F3: PRO KITS
B4: Acc | C4: Spd | D4: Hnd | E4: Ntr | F4: Tires | M4: Suspension | T4: Drivetrain | AA4: Exhaust
B5: Cost | F5: Cost | G5: Part | H5: Early | I5: Init | J5: Mid | K5: Adv | L5: Engn | M5: Cost | N5: Part | O5: Early | P5: Init | Q5: Mid | R5: Adv | S5: Engn | T5: Cost | U5: Part | V5: Early | W5: Init | X5: Mid | Y5: Adv | Z5: Engn | AA5: Cost | AB5: Part | AC5: Early | AD5: Init | AE5: Mid | AF5: Adv | AG5: Engn
A6: TO L1 → | F6: 9.375 | G6: 1 | L6: 1 | M6: 10.25 | N6: 1 | S6: 1 | T6: 9.25 | U6: 1 | Z6: 1 | AA6: 8.125 | AB6: 1 | AG6: 1
A7: TO L2 → | F7: 11.725 | G7: 1 | L7: 1 | M7: 12.825 | N7: 1 | S7: 1 | T7: 11.575 | U7: 1 | Z7: 1 | AA7: 10.15 | AB7: 1 | AG7: 1
A8: TO L3 → | F8: 14.65 | G8: 1 | L8: 1 | M8: 16.025 | N8: 1 | S8: 1 | T8: 14.475 | U8: 1 | Z8: 1 | AA8: 12.7 | AB8: 1 | AG8: 1
A9: TO L4 → | F9: 18.325 | G9: 1 | I9: 1 | L9: 1 | M9: 20.025 | N9: 1 | O9: 1 | S9: 1 | T9: 18.1 | U9: 1 | W9: 1 | Z9: 1 | AA9: 15.875 | AB9: 1 | AC9: 1 | AG9: 1
A10: TO L5 → | F10: 22.9 | G10: 1 | J10: 1 | L10: 1 | M10: 25.025 | N10: 1 | Q10: 1 | S10: 1 | T10: 22.625 | U10: 1 | X10: 1 | Z10: 1 | AA10: 19.85 | AB10: 1 | AE10: 1 | AG10: 1
A11: TO L6 → | F11: 28.625 | G11: 1 | J11: 1 | L11: 1 | M11: 31.275 | N11: 1 | Q11: 1 | S11: 1 | T11: 28.275 | U11: 1 | X11: 1 | Z11: 1 | AA11: 24.825 | AB11: 1 | AE11: 1 | AG11: 1
A12: TO L7 → | F12: 35.775 | G12: 2 | J12: 1 | L12: 1 | M12: 39.1 | N12: 2 | Q12: 1 | S12: 1 | T12: 35.35 | U12: 2 | X12: 1 | Z12: 1 | AA12: 31.025 | AB12: 2 | AE12: 1 | AG12: 1
A13: TO L8 → | F13: 44.725 | G13: 2 | J13: 1 | L13: 1 | M13: 48.875 | N13: 2 | Q13: 1 | S13: 1 | T13: 44.2 | U13: 2 | X13: 1 | Z13: 1 | AA13: 38.775 | AB13: 2 | AE13: 1 | AG13: 1
A14: TO L9 → | F14: 55.9 | G14: 2 | K14: 1 | L14: 1 | M14: 61.1 | N14: 2 | R14: 1 | S14: 1 | T14: 55.25 | U14: 2 | Y14: 1 | Z14: 1 | AA14: 48.475 | AB14: 2 | AF14: 1 | AG14: 1
A15: TO PRO → | F15: 69.875 | G15: 2 | K15: 1 | L15: 1 | M15: 76.375 | N15: 2 | R15: 1 | S15: 1 | T15: 69.075 | U15: 2 | Y15: 1 | Z15: 1 | AA15: 60.6 | AB15: 2 | AF15: 1 | AG15: 1
A16: Totals | B16: =SUMIF(B5:INDIRECT("B"&(E60+5)),">0") -> 0 | C16: =SUMIF(INDIRECT("R"&(ROW()-6)&"C"&COLUMN(),FALSE):INDIRECT("R"&(ROW()-6+F60)&"C"&COLUMN(),FALSE),">0") -> 0 | D16: =SUMIF(INDIRECT("R"&(ROW()-6)&"C"&COLUMN(),FALSE):INDIRECT("R"&(ROW()-6+G60)&"C"&COLUMN(),FALSE),">0") -> 0 | E16: =SUMIF(INDIRECT("R"&(ROW()-6)&"C"&COLUMN(),FALSE):INDIRECT("R"&(ROW()-6+H60)&"C"&COLUMN(),FALSE),">0") -> 0 | F16: =SUM(INDIRECT("R"&(ROW()-11)&"C"&COLUMN(),FALSE):INDIRECT("R"&(ROW()-11+$P60)&"C"&COLUMN(),FALSE)) -> 0 | G16: =SUM(INDIRECT("R"&(ROW()-11)&"C"&COLUMN(),FALSE):INDIRECT("R"&(ROW()-11+$P60)&"C"&COLUMN(),FALSE)) -> 0 | H16: =SUM(INDIRECT("R"&(ROW()-11)&"C"&COLUMN(),FALSE):INDIRECT("R"&(ROW()-11+$P60)&"C"&COLUMN(),FALSE)) -> 0 | I16: =SUM(INDIRECT("R"&(ROW()-11)&"C"&COLUMN(),FALSE):INDIRECT("R"&(ROW()-11+$P60)&"C"&COLUMN(),FALSE)) -> 0 | J16: =SUM(INDIRECT("R"&(ROW()-11)&"C"&COLUMN(),FALSE):INDIRECT("R"&(ROW()-11+$P60)&"C"&COLUMN(),FALSE)) -> 0 | K16: =SUM(INDIRECT("R"&(ROW()-11)&"C"&COLUMN(),FALSE):INDIRECT("R"&(ROW()-11+$P60)&"C"&COLUMN(),FALSE)) -> 0 | L16: =SUM(INDIRECT("R"&(ROW()-11)&"C"&COLUMN(),FALSE):INDIRECT("R"&(ROW()-11+$P60)&"C"&COLUMN(),FALSE)) -> 0 | M16: =SUM(INDIRECT("R"&(ROW()-11)&"C"&COLUMN(),FALSE):INDIRECT("R"&(ROW()-11+$Q60)&"C"&COLUMN(),FALSE)) -> 0 | N16: =SUM(INDIRECT("R"&(ROW()-11)&"C"&COLUMN(),FALSE):INDIRECT("R"&(ROW()-11+$Q60)&"C"&COLUMN(),FALSE)) -> 0 | O16: =SUM(INDIRECT("R"&(ROW()-11)&"C"&COLUMN(),FALSE):INDIRECT("R"&(ROW()-11+$Q60)&"C"&COLUMN(),FALSE)) -> 0 | P16: =SUM(INDIRECT("R"&(ROW()-11)&"C"&COLUMN(),FALSE):INDIRECT("R"&(ROW()-11+$Q60)&"C"&COLUMN(),FALSE)) -> 0 | Q16: =SUM(INDIRECT("R"&(ROW()-11)&"C"&COLUMN(),FALSE):INDIRECT("R"&(ROW()-11+$Q60)&"C"&COLUMN(),FALSE)) -> 0 | R16: =SUM(INDIRECT("R"&(ROW()-11)&"C"&COLUMN(),FALSE):INDIRECT("R"&(ROW()-11+$Q60)&"C"&COLUMN(),FALSE)) -> 0 | S16: =SUM(INDIRECT("R"&(ROW()-11)&"C"&COLUMN(),FALSE):INDIRECT("R"&(ROW()-11+$Q60)&"C"&COLUMN(),FALSE)) -> 0 | T16: =SUM(INDIRECT("R"&(ROW()-11)&"C"&COLUMN(),FALSE):INDIRECT("R"&(ROW()-11+$R60)&"C"&COLUMN(),FALSE)) -> 0 | U16: =SUM(INDIRECT("R"&(ROW()-11)&"C"&COLUMN(),FALSE):INDIRECT("R"&(ROW()-11+$R60)&"C"&COLUMN(),FALSE)) -> 0 | V16: =SUM(INDIRECT("R"&(ROW()-11)&"C"&COLUMN(),FALSE):INDIRECT("R"&(ROW()-11+$R60)&"C"&COLUMN(),FALSE)) -> 0 | W16: =SUM(INDIRECT("R"&(ROW()-11)&"C"&COLUMN(),FALSE):INDIRECT("R"&(ROW()-11+$R60)&"C"&COLUMN(),FALSE)) -> 0 | X16: =SUM(INDIRECT("R"&(ROW()-11)&"C"&COLUMN(),FALSE):INDIRECT("R"&(ROW()-11+$R60)&"C"&COLUMN(),FALSE)) -> 0 | Y16: =SUM(INDIRECT("R"&(ROW()-11)&"C"&COLUMN(),FALSE):INDIRECT("R"&(ROW()-11+$R60)&"C"&COLUMN(),FALSE)) -> 0 | Z16: =SUM(INDIRECT("R"&(ROW()-11)&"C"&COLUMN(),FALSE):INDIRECT("R"&(ROW()-11+$R60)&"C"&COLUMN(),FALSE)) -> 0 | AA16: =SUM(INDIRECT("R"&(ROW()-11)&"C"&COLUMN(),FALSE):INDIRECT("R"&(ROW()-11+$S60)&"C"&COLUMN(),FALSE)) -> 0 | AB16: =SUM(INDIRECT("R"&(ROW()-11)&"C"&COLUMN(),FALSE):INDIRECT("R"&(ROW()-11+$S60)&"C"&COLUMN(),FALSE)) -> 0 | AC16: =SUM(INDIRECT("R"&(ROW()-11)&"C"&COLUMN(),FALSE):INDIRECT("R"&(ROW()-11+$S60)&"C"&COLUMN(),FALSE)) -> 0 | AD16: =SUM(INDIRECT("R"&(ROW()-11)&"C"&COLUMN(),FALSE):INDIRECT("R"&(ROW()-11+$S60)&"C"&COLUMN(),FALSE)) -> 0 | AE16: =SUM(INDIRECT("R"&(ROW()-11)&"C"&COLUMN(),FALSE):INDIRECT("R"&(ROW()-11+$S60)&"C"&COLUMN(),FALSE)) -> 0 | AF16: =SUM(INDIRECT("R"&(ROW()-11)&"C"&COLUMN(),FALSE):INDIRECT("R"&(ROW()-11+$S60)&"C"&COLUMN(),FALSE)) -> 0 | AG16: =SUM(INDIRECT("R"&(ROW()-11)&"C"&COLUMN(),FALSE):INDIRECT("R"&(ROW()-11+$S60)&"C"&COLUMN(),FALSE)) -> 0
B17: =-SUMIF(B5:INDIRECT("B"&(E60+5)),"<0") -> 0 | C17: =-SUMIF(INDIRECT("R"&(ROW()-7)&"C"&COLUMN(),FALSE):INDIRECT("R"&(ROW()-7+F60)&"C"&COLUMN(),FALSE),"<0") -> 0 | D17: =-SUMIF(INDIRECT("R"&(ROW()-7)&"C"&COLUMN(),FALSE):INDIRECT("R"&(ROW()-7+G60)&"C"&COLUMN(),FALSE),"<0") -> 0 | E17: =-SUMIF(INDIRECT("R"&(ROW()-7)&"C"&COLUMN(),FALSE):INDIRECT("R"&(ROW()-7+H60)&"C"&COLUMN(),FALSE),"<0") -> 0
B18: Gathering Specifications for the McLaren Mercedes MP4-25 - Asphalt 8 Airborne
C19: UPGRADE | L19: PRO KITS
B20: Init | C20: Accel | E20: Speed | G20: Handling | I20: Nitro | L20: Tires | O20: Suspension | R20: Drivetrain | U20: Exhaust
B21: L0 | C21: Rank | D21: A | E21: Rank | F21: S | G21: Rank | H21: H | I21: Rank | J21: N | L21: Rank | M21: H | N21: S | O21: Rank | P21: N | Q21: H | R21: Rank | S21: A | T21: S | U21: Rank | V21: N | W21: A
A22: LEVEL 1 → | B22: 2.7 | K22: A | L22: 1363 | M22: 1.302 | N22: 328 | O22: 1479 | P22: 26.3 | Q22: 1.345 | R22: 1568 | S22: 2.67 | T22: 376.5 | U22: 1683 | V22: 37.4 | W22: 2.04
A23: LEVEL 2 → | B23: 325.8 | K23: S | L23: 1370 | M23: 1.304 | N23: 330.8 | O23: 1483 | P23: 26.9 | Q23: 1.348 | R23: 1574 | S23: 2.64 | T23: 378.9 | U23: 1688 | V23: 38 | W23: 2.01
A24: LEVEL 3 → | B24: 1.3 | K24: H | L24: 1378 | M24: 1.308 | N24: 334.2 | O24: 1489 | P24: 27.7 | Q24: 1.351 | R24: 1582 | S24: 2.59 | T24: 382.2 | U24: 1694 | V24: 38.7 | W24: 1.97
A25: LEVEL 4 → | B25: 25.7 | K25: N | L25: 1385 | M25: 1.31 | N25: 337 | O25: 1494 | P25: 28.3 | Q25: 1.353 | R25: 1589 | S25: 2.56 | T25: 385 | U25: 1699 | V25: 39.4 | W25: 1.94
A26: LEVEL 5 → | B26: 1357 | K26: Rank | L26: 1398 | M26: 1.315 | N26: 342.5 | O26: 1505 | P26: 29.6 | Q26: 1.358 | R26: 1603 | S26: 2.48 | T26: 390.6 | U26: 1709 | V26: 40.7 | W26: 1.86
A27: LEVEL 6 → | L27: 1412 | M27: 1.32 | N27: 348.1 | O27: 1515 | P27: 30.9 | Q27: 1.363 | R27: 1616 | S27: 2.41 | T27: 396.2 | U27: 1719 | V27: 42 | W27: 1.79
A28: LEVEL 7 → | L28: 1425 | M28: 1.325 | N28: 353.7 | O28: 1525 | P28: 32.2 | Q28: 1.368 | R28: 1630 | S28: 2.34 | T28: 401.7 | U28: 1730 | V28: 43.2 | W28: 1.72
A29: LEVEL 8 → | L29: 1439 | M29: 1.33 | N29: 359.3 | O29: 1535 | P29: 33.4 | Q29: 1.373 | R29: 1643 | S29: 2.27 | T29: 407.3 | U29: 1740 | V29: 44.5 | W29: 1.65
A30: LEVEL 9 → | L30: 1459 | M30: 1.337 | N30: 367.6 | O30: 1551 | P30: 35.4 | Q30: 1.381 | R30: 1663 | S30: 2.16 | T30: 415.7 | U30: 1755 | V30: 46.5 | W30: 1.54
A31: PRO → | D31: =MIN(S31,W31) -> 1.46 | F31: =MAX(N31,T31) -> 421.9 | H31: =MAX(M31,Q31) -> 1.386 | J31: =MAX(P31,V31) -> 47.9 | L31: 1474 | M31: 1.343 | N31: 373.9 | O31: 1562 | P31: 36.8 | Q31: 1.386 | R31: 1679 | S31: 2.08 | T31: 421.9 | U31: 1766 | V31: 47.9 | W31: 1.46 | X31: =COUNT(C22:C26) -> 0
A32: PRO+TK → | B32: TK | D32: 1.26 | F32: 437.3 | H32: 1.4 | J32: 51.4 | X32: =COUNT(L22:L31) -> 10
A33: TK only → | D33: =D32-D31 -> -0.2 | F33: =F32-F31 -> 15.4 | H33: =H32-H31 -> 0.014 | J33: =J32-J31 -> 3.5
AH34: Tokens
B35: Tuning the McLaren Mercedes MP4-25 - ASPHALT 8 AIRBORNE | Z35: S+N | AA35: =B40+B42+Z51+Z53 -> 351.5 | AB35: =AA35+AB40+AB42 -> 370.4 | AD35: TOTAL Cost | AF35: =AF36+AF37 -> 1231325
C36: UPGRADE | L36: PRO KITS | Z36: var | AD36: UPG T Cost | AF36: =SUMIF(B6:E15,">0")*1000 -> 0 | AH36: =-SUMIF(B6:E15,"<0")*1000 -> 0
B37: Init | C37: Accel | E37: Speed | G37: Handling | I37: Nitro | K37: MAX | L37: Tires | O37: Suspension | R37: Drivetrain | U37: Exhaust | X37: PRO | Y37: End | Z37: MAX | AA37: Final | AB37: TK | AD37: PRO T Cost | AF37: =SUM(F6:F15,M6:M15,T6:T15,AA6:AA15)*1000 -> 1231325
C38: Rank | D38: A | E38: Rank | F38: S | G38: Rank | H38: H | I38: Rank | J38: N | L38: Rank | M38: H | N38: S | O38: Rank | P38: N | Q38: H | R38: Rank | S38: A | T38: S | U38: Rank | V38: N | W38: A | Z38: PRO | AA38: Value | AB38: Boost | AD38: Current Cost | AF38: =AF39+AF40 -> 0
B39: =B22 -> 2.7 | K39: =SUM(D39:D48) -> 0 | L39: 6 | M39: 0.002 | N39: 2.2 | O39: 5 | P39: 0.6 | Q39: 0.002 | R39: 6 | S39: -0.03 | T39: 2.6 | U39: 4 | V39: 0.6 | W39: -0.04 | X39: =SUM(S39:S48,W39:W48) -> -1.24 | Y39: A | Z39: =K39+X39 -> -1.24 | AA39: =B39+Z39 -> 1.46 | AB39: =D33 -> -0.2 | AD39: UPG C Cost | AF39: =SUM(B16:E16)*1000 -> 0 | AH39: =SUM(B17:E17)*1000 -> 0
B40: =B23 -> 325.8 | K40: =SUM(F39:F48) -> 0 | L40: 7 | M40: 0.002 | N40: 2.8 | O40: 4 | P40: 0.6 | Q40: 0.003 | R40: 6 | S40: -0.03 | T40: 2.4 | U40: 5 | V40: 0.6 | W40: -0.03 | X40: =SUM(N39:N48,T39:T48) -> 96.1 | Y40: S | Z40: =K40+X40 -> 96.1 | AA40: =B40+Z40 -> 421.9 | AB40: =F33 -> 15.4 | AD40: PRO C Cost | AF40: =SUM(F16+M16+T16+AA16)*1000 -> 0
B41: =B24 -> 1.3 | K41: =SUM(H39:H48) -> 0 | L41: 8 | M41: 0.004 | N41: 3.4 | O41: 6 | P41: 0.8 | Q41: 0.003 | R41: 8 | S41: -0.05 | T41: 3.3 | U41: 6 | V41: 0.7 | W41: -0.04 | X41: =SUM(M39:M48,Q39:Q48) -> 0.086 | Y41: H | Z41: =K41+X41 -> 0.086 | AA41: =B41+Z41 -> 1.386 | AB41: =H33 -> 0.014 | AD41: Tires | AF41: =G16 -> 0
B42: =B25 -> 25.7 | K42: =SUM(J39:J48) -> 0 | L42: 7 | M42: 0.002 | N42: 2.8 | O42: 5 | P42: 0.6 | Q42: 0.002 | R42: 7 | S42: -0.03 | T42: 2.8 | U42: 5 | V42: 0.7 | W42: -0.03 | X42: =SUM(P39:P48,V39:V48) -> 22.2 | Y42: N | Z42: =K42+X42 -> 22.2 | AA42: =B42+Z42 -> 47.9 | AB42: =J33 -> 3.5 | AD42: Suspension | AF42: =N16 -> 0
B43: =B26 -> 1357 | K43: =SUM(C39:C48,E39:E48,G39:G48,I39:I48) -> 0 | L43: 13 | M43: 0.005 | N43: 5.5 | O43: 11 | P43: 1.3 | Q43: 0.005 | R43: 14 | S43: -0.08 | T43: 5.6 | U43: 10 | V43: 1.3 | W43: -0.08 | X43: =SUM(L39:L48,O39:O48,R39:R48,U39:U48) -> 409 | Y43: Rank | Z43: =K43+X43 -> 409 | AA43: =B43+Z43 -> 1766 | AB43: 49 | AD43: Drivetrain | AF43: =U16 -> 0
L44: 14 | M44: 0.005 | N44: 5.6 | O44: 10 | P44: 1.3 | Q44: 0.005 | R44: 13 | S44: -0.07 | T44: 5.6 | U44: 10 | V44: 1.3 | W44: -0.07 | AD44: Exhaust | AF44: =AB16 -> 0
L45: 13 | M45: 0.005 | N45: 5.6 | O45: 10 | P45: 1.3 | Q45: 0.005 | R45: 14 | S45: -0.07 | T45: 5.5 | U45: 11 | V45: 1.2 | W45: -0.07 | AD45: Early Tech | AF45: =H16+O16+V16+AC16 -> 0
L46: 14 | M46: 0.005 | N46: 5.6 | O46: 10 | P46: 1.2 | Q46: 0.005 | R46: 13 | S46: -0.07 | T46: 5.6 | U46: 10 | V46: 1.3 | W46: -0.07 | AD46: Initial Tech | AF46: =I16+P16+W16+AD16 -> 0
L47: 20 | M47: 0.007 | N47: 8.3 | O47: 16 | P47: 2 | Q47: 0.008 | R47: 20 | S47: -0.11 | T47: 8.4 | U47: 15 | V47: 2 | W47: -0.11 | AD47: Mid Tech | AF47: =J16+Q16+X16+AE16 -> 0
L48: 15 | M48: 0.006 | N48: 6.3 | O48: 11 | P48: 1.4 | Q48: 0.005 | R48: 16 | S48: -0.08 | T48: 6.2 | U48: 11 | V48: 1.4 | W48: -0.08 | AD48: Adv Tech | AF48: =K16+R16+Y16+AF16 -> 0
B49: TK | D49: =D32-D26 -> 1.26 | F49: =F32-F26 -> 437.3 | H49: =H32-H26 -> 1.4 | J49: =J32-J26 -> 51.4 | AB49: Final | AC49: MPTK | AD49: Engines | AF49: =L16+S16+Z16+AG16 -> 0 | AG49: CR
A50: 0 | B50: A | K50: =SUM(D50:D59) -> 0 | L50: =IF(proT>$A50,L39,"") ->  | O50: =IF(proS>$A50,O39,"") ->  | R50: =IF(proD>$A50,R39,"") ->  | U50: =IF(proE>$A50,U39,"") ->  | X50: =SUM(S50:S59,W50:W59) -> 0 | Y50: =B39+K50+X50 -> 2.7 | Z50: =K50+X50 -> 0 | AA50: =Z50/Z39 -> 0 | AB50: =Y50+AB39 -> 2.5 | AC50: 1.4
A51: 1 | B51: S | K51: =SUM(F50:F59) -> 0 | X51: =SUM(N50:N59,T50:T59) -> 0 | Y51: =B40+K51+X51 -> 325.8 | Z51: =K51+X51 -> 0 | AA51: =Z51/Z40 -> 0 | AB51: =Y51+AB40 -> 341.2 | AC51: 295.8
A52: 2 | B52: H | K52: =SUM(H50:H59) -> 0 | X52: =SUM(M50:M59,Q50:Q59) -> 0 | Y52: =B41+K52+X52 -> 1.3 | Z52: =K52+X52 -> 0 | AA52: =Z52/Z41 -> 0 | AB52: =Y52+AB41 -> 1.314 | AC52: 1.25
A53: 3 | B53: N | K53: =SUM(J50:J59) -> 0 | X53: =SUM(P50:P59,V50:V59) -> 0 | Y53: =B42+K53+X53 -> 25.7 | Z53: =K53+X53 -> 0 | AA53: =Z58/Z42 -> 0 | AB53: =Y53+AB42 -> 29.2
A54: 4
A55: 5
A56: 6
A57: 7
A58: 8 | AC58: 114.3
A59: 9 | B59: Rank | K59: =SUM(C50:C59,E50:E59,G50:G59,I50:I59) -> 0 | X59: =SUM(L50:L59,O50:O59,R50:R59,U50:U59) -> 0 | Y59: =B43+K59+X59 -> 1357 | Z59: =K59+X59 -> 0 | AA59: =Z59/Z43 -> 0 | AB59: =AB43+Y59 -> 1406
A60: INPUT → | X60: Speed+Nitro | Z60: =Z51+Z53 -> 0 | AA60: =Z60/(Z40+Z42) -> 0 | AB60: =IF(AA59=0,"",AA60/AA59-1) -> 
P62: 0 | Q62: 0 | R62: 0 | S62: 0
P63: =SUM(N$38,OFFSET(N$38,0,0,P62+1,1)) -> 0 | Q63: =SUM(P$38,OFFSET(P$38,0,0,Q62+1,1)) -> 0 | R63: =SUM(T$38,OFFSET(T$38,0,0,R62+1,1)) -> 0 | S63: =SUM(V$38,OFFSET(V$38,0,0,S62+1,1)) -> 0 | U63: =P63+Q63+R63+S63+B40+B42+AB40+AB42 -> 370.4 | W63: Total Spd
P64: =SUM(L$38,OFFSET(L$38,0,0,P62+1,1)) -> 0 | Q64: =SUM(O$38,OFFSET(O$38,0,0,Q62+1,1)) -> 0 | R64: =SUM(R$38,OFFSET(R$38,0,0,R62+1,1)) -> 0 | S64: =SUM(U$38,OFFSET(U$38,0,0,S62+1,1)) -> 0 | U64: =B43+P64+Q64+R64+S64 -> 1357 | W64: Rank

Sheet MP4-8 (hidden)
B2: Gathering Prices & Parts for the Class B McLaren MP4/8 (#0xB3) - Asphalt 8 Airborne
B3: UPGRADE | F3: PRO KITS
B4: Acc | C4: Spd | D4: Hnd | E4: Ntr | F4: Tires | M4: Suspension | T4: Drivetrain | AA4: Exhaust
B5: Cost | F5: Cost | G5: Part | H5: Early | I5: Init | J5: Mid | K5: Adv | L5: Engn | M5: Cost | N5: Part | O5: Early | P5: Init | Q5: Mid | R5: Adv | S5: Engn | T5: Cost | U5: Part | V5: Early | W5: Init | X5: Mid | Y5: Adv | Z5: Engn | AA5: Cost | AB5: Part | AC5: Early | AD5: Init | AE5: Mid | AF5: Adv | AG5: Engn
A6: TO L1 → | F6: 7.425 | L6: 1 | M6: 5.935 | S6: 1 | T6: 7.425 | Z6: 1 | AA6: 6.525 | AG6: 1
A7: TO L2 → | F7: 9.275 | L7: 1 | M7: 7.425 | S7: 1 | T7: 9.275 | Z7: 1 | AA7: 8.15 | AG7: 1
A8: TO L3 → | F8: 11.6 | G8: 1 | L8: 1 | M8: 9.275 | N8: 1 | S8: 1 | T8: 11.6 | U8: 1 | Z8: 1 | AA8: 10.2 | AB8: 1 | AG8: 1
A9: TO L4 → | F9: 14.5 | G9: 1 | I9: 1 | L9: 1 | M9: 11.6 | N9: 1 | O9: 1 | S9: 1 | T9: 14.5 | U9: 1 | W9: 1 | Z9: 1 | AA9: 12.75 | AB9: 1 | AC9: 1 | AG9: 1
A10: TO L5 → | F10: 18.125 | G10: 1 | I10: 1 | L10: 1 | M10: 14.5 | N10: 1 | O10: 1 | S10: 1 | T10: 18.125 | U10: 1 | W10: 1 | Z10: 1 | AA10: 15.95 | AB10: 1 | AC10: 1 | AG10: 1
A11: TO L6 → | F11: 22.65 | G11: 1 | I11: 1 | L11: 1 | M11: 18.125 | N11: 1 | O11: 1 | S11: 1 | T11: 22.65 | U11: 1 | W11: 1 | Z11: 1 | AA11: 19.95 | AB11: 1 | AC11: 1 | AG11: 1
A12: TO L7 → | F12: 28.325 | G12: 1 | J12: 1 | L12: 1 | M12: 22.65 | N12: 1 | Q12: 1 | S12: 1 | T12: 28.325 | U12: 1 | X12: 1 | Z12: 1 | AA12: 24.95 | AB12: 1 | AE12: 1 | AG12: 1
A13: TO L8 → | F13: 35.4 | G13: 2 | J13: 1 | L13: 1 | M13: 28.325 | N13: 2 | Q13: 1 | S13: 1 | T13: 35.4 | U13: 2 | X13: 1 | Z13: 1 | AA13: 31.2 | AB13: 2 | AE13: 1 | AG13: 1
A14: TO L9 → | F14: 44.25 | G14: 2 | J14: 1 | L14: 2 | M14: 35.4 | N14: 2 | Q14: 1 | S14: 2 | T14: 44.25 | U14: 2 | X14: 1 | Z14: 2 | AA14: 39 | AB14: 2 | AE14: 1 | AG14: 2
A15: TO PRO → | F15: 55.325 | G15: 2 | J15: 1 | L15: 2 | M15: 44.25 | N15: 2 | Q15: 1 | S15: 2 | T15: 55.325 | U15: 2 | X15: 1 | Z15: 2 | AA15: 48.75 | AB15: 2 | AE15: 1 | AG15: 2
A16: Totals | B16: =SUMIF(B5:INDIRECT("B"&(E60+5)),">0") -> 0 | C16: =SUMIF(INDIRECT("R"&(ROW()-6)&"C"&COLUMN(),FALSE):INDIRECT("R"&(ROW()-6+F60)&"C"&COLUMN(),FALSE),">0") -> 0 | D16: =SUMIF(INDIRECT("R"&(ROW()-6)&"C"&COLUMN(),FALSE):INDIRECT("R"&(ROW()-6+G60)&"C"&COLUMN(),FALSE),">0") -> 0 | E16: =SUMIF(INDIRECT("R"&(ROW()-6)&"C"&COLUMN(),FALSE):INDIRECT("R"&(ROW()-6+H60)&"C"&COLUMN(),FALSE),">0") -> 0 | F16: =SUM(INDIRECT("R"&(ROW()-11)&"C"&COLUMN(),FALSE):INDIRECT("R"&(ROW()-11+$P60)&"C"&COLUMN(),FALSE)) -> 0 | G16: =SUM(INDIRECT("R"&(ROW()-11)&"C"&COLUMN(),FALSE):INDIRECT("R"&(ROW()-11+$P60)&"C"&COLUMN(),FALSE)) -> 0 | H16: =SUM(INDIRECT("R"&(ROW()-11)&"C"&COLUMN(),FALSE):INDIRECT("R"&(ROW()-11+$P60)&"C"&COLUMN(),FALSE)) -> 0 | I16: =SUM(INDIRECT("R"&(ROW()-11)&"C"&COLUMN(),FALSE):INDIRECT("R"&(ROW()-11+$P60)&"C"&COLUMN(),FALSE)) -> 0 | J16: =SUM(INDIRECT("R"&(ROW()-11)&"C"&COLUMN(),FALSE):INDIRECT("R"&(ROW()-11+$P60)&"C"&COLUMN(),FALSE)) -> 0 | K16: =SUM(INDIRECT("R"&(ROW()-11)&"C"&COLUMN(),FALSE):INDIRECT("R"&(ROW()-11+$P60)&"C"&COLUMN(),FALSE)) -> 0 | L16: =SUM(INDIRECT("R"&(ROW()-11)&"C"&COLUMN(),FALSE):INDIRECT("R"&(ROW()-11+$P60)&"C"&COLUMN(),FALSE)) -> 0 | M16: =SUM(INDIRECT("R"&(ROW()-11)&"C"&COLUMN(),FALSE):INDIRECT("R"&(ROW()-11+$Q60)&"C"&COLUMN(),FALSE)) -> 0 | N16: =SUM(INDIRECT("R"&(ROW()-11)&"C"&COLUMN(),FALSE):INDIRECT("R"&(ROW()-11+$Q60)&"C"&COLUMN(),FALSE)) -> 0 | O16: =SUM(INDIRECT("R"&(ROW()-11)&"C"&COLUMN(),FALSE):INDIRECT("R"&(ROW()-11+$Q60)&"C"&COLUMN(),FALSE)) -> 0 | P16: =SUM(INDIRECT("R"&(ROW()-11)&"C"&COLUMN(),FALSE):INDIRECT("R"&(ROW()-11+$Q60)&"C"&COLUMN(),FALSE)) -> 0 | Q16: =SUM(INDIRECT("R"&(ROW()-11)&"C"&COLUMN(),FALSE):INDIRECT("R"&(ROW()-11+$Q60)&"C"&COLUMN(),FALSE)) -> 0 | R16: =SUM(INDIRECT("R"&(ROW()-11)&"C"&COLUMN(),FALSE):INDIRECT("R"&(ROW()-11+$Q60)&"C"&COLUMN(),FALSE)) -> 0 | S16: =SUM(INDIRECT("R"&(ROW()-11)&"C"&COLUMN(),FALSE):INDIRECT("R"&(ROW()-11+$Q60)&"C"&COLUMN(),FALSE)) -> 0 | T16: =SUM(INDIRECT("R"&(ROW()-11)&"C"&COLUMN(),FALSE):INDIRECT("R"&(ROW()-11+$R60)&"C"&COLUMN(),FALSE)) -> 0 | U16: =SUM(INDIRECT("R"&(ROW()-11)&"C"&COLUMN(),FALSE):INDIRECT("R"&(ROW()-11+$R60)&"C"&COLUMN(),FALSE)) -> 0 | V16: =SUM(INDIRECT("R"&(ROW()-11)&"C"&COLUMN(),FALSE):INDIRECT("R"&(ROW()-11+$R60)&"C"&COLUMN(),FALSE)) -> 0 | W16: =SUM(INDIRECT("R"&(ROW()-11)&"C"&COLUMN(),FALSE):INDIRECT("R"&(ROW()-11+$R60)&"C"&COLUMN(),FALSE)) -> 0 | X16: =SUM(INDIRECT("R"&(ROW()-11)&"C"&COLUMN(),FALSE):INDIRECT("R"&(ROW()-11+$R60)&"C"&COLUMN(),FALSE)) -> 0 | Y16: =SUM(INDIRECT("R"&(ROW()-11)&"C"&COLUMN(),FALSE):INDIRECT("R"&(ROW()-11+$R60)&"C"&COLUMN(),FALSE)) -> 0 | Z16: =SUM(INDIRECT("R"&(ROW()-11)&"C"&COLUMN(),FALSE):INDIRECT("R"&(ROW()-11+$R60)&"C"&COLUMN(),FALSE)) -> 0 | AA16: =SUM(INDIRECT("R"&(ROW()-11)&"C"&COLUMN(),FALSE):INDIRECT("R"&(ROW()-11+$S60)&"C"&COLUMN(),FALSE)) -> 0 | AB16: =SUM(INDIRECT("R"&(ROW()-11)&"C"&COLUMN(),FALSE):INDIRECT("R"&(ROW()-11+$S60)&"C"&COLUMN(),FALSE)) -> 0 | AC16: =SUM(INDIRECT("R"&(ROW()-11)&"C"&COLUMN(),FALSE):INDIRECT("R"&(ROW()-11+$S60)&"C"&COLUMN(),FALSE)) -> 0 | AD16: =SUM(INDIRECT("R"&(ROW()-11)&"C"&COLUMN(),FALSE):INDIRECT("R"&(ROW()-11+$S60)&"C"&COLUMN(),FALSE)) -> 0 | AE16: =SUM(INDIRECT("R"&(ROW()-11)&"C"&COLUMN(),FALSE):INDIRECT("R"&(ROW()-11+$S60)&"C"&COLUMN(),FALSE)) -> 0 | AF16: =SUM(INDIRECT("R"&(ROW()-11)&"C"&COLUMN(),FALSE):INDIRECT("R"&(ROW()-11+$S60)&"C"&COLUMN(),FALSE)) -> 0 | AG16: =SUM(INDIRECT("R"&(ROW()-11)&"C"&COLUMN(),FALSE):INDIRECT("R"&(ROW()-11+$S60)&"C"&COLUMN(),FALSE)) -> 0
B17: =-SUMIF(B5:INDIRECT("B"&(E60+5)),"<0") -> 0 | C17: =-SUMIF(INDIRECT("R"&(ROW()-7)&"C"&COLUMN(),FALSE):INDIRECT("R"&(ROW()-7+F60)&"C"&COLUMN(),FALSE),"<0") -> 0 | D17: =-SUMIF(INDIRECT("R"&(ROW()-7)&"C"&COLUMN(),FALSE):INDIRECT("R"&(ROW()-7+G60)&"C"&COLUMN(),FALSE),"<0") -> 0 | E17: =-SUMIF(INDIRECT("R"&(ROW()-7)&"C"&COLUMN(),FALSE):INDIRECT("R"&(ROW()-7+H60)&"C"&COLUMN(),FALSE),"<0") -> 0
B18: Gathering Specifications for the McLaren MP4/8 - Asphalt 8 Airborne
C19: UPGRADE | L19: PRO KITS
B20: Init | C20: Accel | E20: Speed | G20: Handling | I20: Nitro | L20: Tires | O20: Suspension | R20: Drivetrain | U20: Exhaust
B21: L0 | C21: Rank | D21: A | E21: Rank | F21: S | G21: Rank | H21: H | I21: Rank | J21: N | L21: Rank | M21: H | N21: S | O21: Rank | P21: N | Q21: H | R21: Rank | S21: A | T21: S | U21: Rank | V21: N | W21: A
A22: LEVEL 1 → | B22: 3 | K22: A | L22: 1251 | M22: 1.302 | N22: 301.9 | O22: 1366 | P22: 29.3 | Q22: 1.345 | R22: 1462 | S22: 2.96 | T22: 341.7 | U22: 1576 | V22: 41.6 | W22: 2.27
A23: LEVEL 2 → | B23: 300.1 | K23: S | L23: 1258 | M23: 1.304 | N23: 304.2 | O23: 1371 | P23: 29.9 | Q23: 1.348 | R23: 1467 | S23: 2.93 | T23: 343.6 | U23: 1581 | V23: 42.2 | W23: 2.24
A24: LEVEL 3 → | B24: 1.3 | K24: H | L24: 1266 | M24: 1.308 | N24: 306.9 | O24: 1377 | P24: 30.7 | Q24: 1.351 | R24: 1475 | S24: 2.88 | T24: 346.4 | U24: 1587 | V24: 43 | W24: 2.19
A25: LEVEL 4 → | B25: 28.6 | K25: N | L25: 1272 | M25: 1.31 | N25: 309.2 | O25: 1383 | P25: 31.4 | Q25: 1.353 | R25: 1482 | S25: 2.84 | T25: 348.7 | U25: 1593 | V25: 43.8 | W25: 2.15
A26: LEVEL 5 → | B26: 1245 | K26: Rank | L26: 1286 | M26: 1.315 | N26: 313.8 | O26: 1394 | P26: 32.9 | Q26: 1.358 | R26: 1495 | S26: 2.76 | T26: 353.2 | U26: 1604 | V26: 45.2 | W26: 2.07
A27: LEVEL 6 → | L27: 1299 | M27: 1.32 | N27: 318.4 | O27: 1405 | P27: 34.3 | Q27: 1.363 | R27: 1509 | S27: 2.68 | T27: 357.8 | U27: 1614 | V27: 46.6 | W27: 1.99
A28: LEVEL 7 → | L28: 1312 | M28: 1.325 | N28: 323 | O28: 1416 | P28: 35.7 | Q28: 1.368 | R28: 1522 | S28: 2.6 | T28: 362.4 | U28: 1625 | V28: 48 | W28: 1.91
A29: LEVEL 8 → | L29: 1326 | M29: 1.33 | N29: 327.5 | O29: 1427 | P29: 37.2 | Q29: 1.373 | R29: 1536 | S29: 2.52 | T29: 367 | U29: 1636 | V29: 49.5 | W29: 1.83
A30: LEVEL 9 → | L30: 1346 | M30: 1.337 | N30: 334.4 | O30: 1443 | P30: 39.3 | Q30: 1.381 | R30: 1556 | S30: 2.4 | T30: 373.8 | U30: 1653 | V30: 51.6 | W30: 1.71
A31: PRO → | D31: =MIN(S31,W31) -> 1.62 | F31: =MAX(N31,T31) -> 379 | H31: =MAX(M31,Q31) -> 1.386 | J31: =MAX(P31,V31) -> 53.2 | L31: 1361 | M31: 1.343 | N31: 339.5 | O31: 1455 | P31: 40.9 | Q31: 1.386 | R31: 1571 | S31: 2.31 | T31: 379 | U31: 1665 | V31: 53.2 | W31: 1.62 | X31: =COUNT(C22:C26) -> 0
A32: PRO+TK → | B32: TK | D32: 1.4 | F32: 391.5 | H32: 1.4 | J32: 57.2 | X32: =COUNT(L22:L31) -> 10
A33: TK only → | D33: =D32-D31 -> -0.22 | F33: =F32-F31 -> 12.5 | H33: =H32-H31 -> 0.014 | J33: =J32-J31 -> 4
AH34: Tokens
B35: Tuning the McLaren MP4/8 - ASPHALT 8 AIRBORNE | Z35: S+N | AA35: =B40+B42+Z51+Z53 -> 328.7 | AB35: =AA35+AB40+AB42 -> 345.2 | AD35: TOTAL Cost | AF35: =AF36+AF37 -> 908660
C36: UPGRADE | L36: PRO KITS | Z36: var | AD36: UPG T Cost | AF36: =SUMIF(B6:E15,">0")*1000 -> 0 | AH36: =-SUMIF(B6:E15,"<0")*1000 -> 0
B37: Init | C37: Accel | E37: Speed | G37: Handling | I37: Nitro | K37: MAX | L37: Tires | O37: Suspension | R37: Drivetrain | U37: Exhaust | X37: PRO | Y37: End | Z37: MAX | AA37: Final | AB37: TK | AD37: PRO T Cost | AF37: =SUM(F6:F15,M6:M15,T6:T15,AA6:AA15)*1000 -> 908660
C38: Rank | D38: A | E38: Rank | F38: S | G38: Rank | H38: H | I38: Rank | J38: N | L38: Rank | M38: H | N38: S | O38: Rank | P38: N | Q38: H | R38: Rank | S38: A | T38: S | U38: Rank | V38: N | W38: A | Z38: PRO | AA38: Value | AB38: Boost | AD38: Current Cost | AF38: =AF39+AF40 -> 0
B39: =B22 -> 3 | K39: =SUM(D39:D48) -> 0 | L39: 6 | M39: 0.002 | N39: 1.8 | O39: 5 | P39: 0.7 | Q39: 0.002 | R39: 7 | S39: -0.04 | T39: 2.2 | U39: 5 | V39: 0.7 | W39: -0.04 | X39: =SUM(S39:S48,W39:W48) -> -1.38 | Y39: A | Z39: =K39+X39 -> -1.38 | AA39: =B39+Z39 -> 1.62 | AB39: =D33 -> -0.22 | AD39: UPG C Cost | AF39: =SUM(B16:E16)*1000 -> 0 | AH39: =SUM(B17:E17)*1000 -> 0
B40: =B23 -> 300.1 | K40: =SUM(F39:F48) -> 0 | L40: 7 | M40: 0.002 | N40: 2.3 | O40: 5 | P40: 0.6 | Q40: 0.003 | R40: 5 | S40: -0.03 | T40: 1.9 | U40: 5 | V40: 0.6 | W40: -0.03 | X40: =SUM(N39:N48,T39:T48) -> 78.9 | Y40: S | Z40: =K40+X40 -> 78.9 | AA40: =B40+Z40 -> 379 | AB40: =F33 -> 12.5 | AD40: PRO C Cost | AF40: =SUM(F16+M16+T16+AA16)*1000 -> 0
B41: =B24 -> 1.3 | K41: =SUM(H39:H48) -> 0 | L41: 8 | M41: 0.004 | N41: 2.7 | O41: 6 | P41: 0.8 | Q41: 0.003 | R41: 8 | S41: -0.05 | T41: 2.8 | U41: 6 | V41: 0.8 | W41: -0.05 | X41: =SUM(M39:M48,Q39:Q48) -> 0.086 | Y41: H | Z41: =K41+X41 -> 0.086 | AA41: =B41+Z41 -> 1.386 | AB41: =H33 -> 0.014 | AD41: Tires | AF41: =G16 -> 0
B42: =B25 -> 28.6 | K42: =SUM(J39:J48) -> 0 | L42: 6 | M42: 0.002 | N42: 2.3 | O42: 6 | P42: 0.7 | Q42: 0.002 | R42: 7 | S42: -0.04 | T42: 2.3 | U42: 6 | V42: 0.8 | W42: -0.04 | X42: =SUM(P39:P48,V39:V48) -> 24.6 | Y42: N | Z42: =K42+X42 -> 24.6 | AA42: =B42+Z42 -> 53.2 | AB42: =J33 -> 4 | AD42: Suspension | AF42: =N16 -> 0
B43: =B26 -> 1245 | K43: =SUM(C39:C48,E39:E48,G39:G48,I39:I48) -> 0 | L43: 14 | M43: 0.005 | N43: 4.6 | O43: 11 | P43: 1.5 | Q43: 0.005 | R43: 13 | S43: -0.08 | T43: 4.5 | U43: 11 | V43: 1.4 | W43: -0.08 | X43: =SUM(L39:L48,O39:O48,R39:R48,U39:U48) -> 420 | Y43: Rank | Z43: =K43+X43 -> 420 | AA43: =B43+Z43 -> 1665 | AB43: 52 | AD43: Drivetrain | AF43: =U16 -> 0
L44: 13 | M44: 0.005 | N44: 4.6 | O44: 11 | P44: 1.4 | Q44: 0.005 | R44: 14 | S44: -0.08 | T44: 4.6 | U44: 10 | V44: 1.4 | W44: -0.08 | AD44: Exhaust | AF44: =AB16 -> 0
L45: 13 | M45: 0.005 | N45: 4.6 | O45: 11 | P45: 1.4 | Q45: 0.005 | R45: 13 | S45: -0.08 | T45: 4.6 | U45: 11 | V45: 1.4 | W45: -0.08 | AD45: Early Tech | AF45: =H16+O16+V16+AC16 -> 0
L46: 14 | M46: 0.005 | N46: 4.5 | O46: 11 | P46: 1.5 | Q46: 0.005 | R46: 14 | S46: -0.08 | T46: 4.6 | U46: 11 | V46: 1.5 | W46: -0.08 | AD46: Initial Tech | AF46: =I16+P16+W16+AD16 -> 0
L47: 20 | M47: 0.007 | N47: 6.9 | O47: 16 | P47: 2.1 | Q47: 0.008 | R47: 20 | S47: -0.12 | T47: 6.8 | U47: 17 | V47: 2.1 | W47: -0.12 | AD47: Mid Tech | AF47: =J16+Q16+X16+AE16 -> 0
L48: 15 | M48: 0.006 | N48: 5.1 | O48: 12 | P48: 1.6 | Q48: 0.005 | R48: 15 | S48: -0.09 | T48: 5.2 | U48: 12 | V48: 1.6 | W48: -0.09 | AD48: Adv Tech | AF48: =K16+R16+Y16+AF16 -> 0
B49: TK | D49: =D32-D26 -> 1.4 | F49: =F32-F26 -> 391.5 | H49: =H32-H26 -> 1.4 | J49: =J32-J26 -> 57.2 | AB49: Final | AC49: MPTK | AD49: Engines | AF49: =L16+S16+Z16+AG16 -> 0 | AG49: SR
A50: 0 | B50: A | K50: =SUM(D50:D59) -> 0 | L50: =IF(proT>$A50,L39,"") ->  | O50: =IF(proS>$A50,O39,"") ->  | R50: =IF(proD>$A50,R39,"") ->  | U50: =IF(proE>$A50,U39,"") ->  | X50: =SUM(S50:S59,W50:W59) -> 0 | Y50: =B39+K50+X50 -> 3 | Z50: =K50+X50 -> 0 | AA50: =Z50/Z39 -> 0 | AB50: =Y50+AB39 -> 2.78 | AC50: 1.4
A51: 1 | B51: S | K51: =SUM(F50:F59) -> 0 | X51: =SUM(N50:N59,T50:T59) -> 0 | Y51: =B40+K51+X51 -> 300.1 | Z51: =K51+X51 -> 0 | AA51: =Z51/Z40 -> 0 | AB51: =Y51+AB40 -> 312.6 | AC51: 295.8
A52: 2 | B52: H | K52: =SUM(H50:H59) -> 0 | X52: =SUM(M50:M59,Q50:Q59) -> 0 | Y52: =B41+K52+X52 -> 1.3 | Z52: =K52+X52 -> 0 | AA52: =Z52/Z41 -> 0 | AB52: =Y52+AB41 -> 1.314 | AC52: 1.25
A53: 3 | B53: N | K53: =SUM(J50:J59) -> 0 | X53: =SUM(P50:P59,V50:V59) -> 0 | Y53: =B42+K53+X53 -> 28.6 | Z53: =K53+X53 -> 0 | AA53: =Z58/Z42 -> 0 | AB53: =Y53+AB42 -> 32.6
A54: 4
A55: 5
A56: 6
A57: 7
A58: 8 | AC58: 114.3
A59: 9 | B59: Rank | K59: =SUM(C50:C59,E50:E59,G50:G59,I50:I59) -> 0 | X59: =SUM(L50:L59,O50:O59,R50:R59,U50:U59) -> 0 | Y59: =B43+K59+X59 -> 1245 | Z59: =K59+X59 -> 0 | AA59: =Z59/Z43 -> 0 | AB59: =AB43+Y59 -> 1297
A60: INPUT → | X60: Speed+Nitro | Z60: =Z51+Z53 -> 0 | AA60: =Z60/(Z40+Z42) -> 0 | AB60: =IF(AA59=0,"",AA60/AA59-1) -> 
P62: 0 | Q62: 0 | R62: 0 | S62: 0
P63: =SUM(N$38,OFFSET(N$38,0,0,P62+1,1)) -> 0 | Q63: =SUM(P$38,OFFSET(P$38,0,0,Q62+1,1)) -> 0 | R63: =SUM(T$38,OFFSET(T$38,0,0,R62+1,1)) -> 0 | S63: =SUM(V$38,OFFSET(V$38,0,0,S62+1,1)) -> 0 | U63: =P63+Q63+R63+S63+B40+B42+AB40+AB42 -> 345.2 | W63: Total Spd
P64: =SUM(L$38,OFFSET(L$38,0,0,P62+1,1)) -> 0 | Q64: =SUM(O$38,OFFSET(O$38,0,0,Q62+1,1)) -> 0 | R64: =SUM(R$38,OFFSET(R$38,0,0,R62+1,1)) -> 0 | S64: =SUM(U$38,OFFSET(U$38,0,0,S62+1,1)) -> 0 | U64: =B43+P64+Q64+R64+S64 -> 1245 | W64: Rank

Sheet M14A (hidden)
B2: Gathering Prices & Parts for the Class C McLaren M14A (#0xAB) - Asphalt 8 Airborne
B3: UPGRADE | F3: PRO KITS
B4: Acc | C4: Spd | D4: Hnd | E4: Ntr | F4: Tires | M4: Suspension | T4: Drivetrain | AA4: Exhaust
B5: Cost | F5: Cost | G5: Part | H5: Early | I5: Init | J5: Mid | K5: Adv | L5: Engn | M5: Cost | N5: Part | O5: Early | P5: Init | Q5: Mid | R5: Adv | S5: Engn | T5: Cost | U5: Part | V5: Early | W5: Init | X5: Mid | Y5: Adv | Z5: Engn | AA5: Cost | AB5: Part | AC5: Early | AD5: Init | AE5: Mid | AF5: Adv | AG5: Engn
A6: TO L1 → | F6: 5.35 | L6: 1 | M6: 4.15 | S6: 1 | T6: 5.35 | Z6: 1 | AA6: 4.675 | AG6: 1
A7: TO L2 → | F7: 6.7 | L7: 1 | M7: 5.2 | S7: 1 | T7: 6.7 | Z7: 1 | AA7: 5.85 | AG7: 1
A8: TO L3 → | F8: 8.375 | L8: 1 | M8: 6.5 | S8: 1 | T8: 8.375 | Z8: 1 | AA8: 7.325 | AG8: 1
A9: TO L4 → | F9: 10.475 | G9: 1 | L9: 1 | M9: 8.125 | N9: 1 | S9: 1 | T9: 10.475 | U9: 1 | Z9: 1 | AA9: 9.15 | AB9: 1 | AG9: 1
A10: TO L5 → | F10: 13.1 | G10: 1 | I10: 1 | L10: 1 | M10: 10.15 | N10: 1 | O10: 1 | S10: 1 | T10: 13.1 | U10: 1 | W10: 1 | Z10: 1 | AA10: 11.45 | AB10: 1 | AC10: 1 | AG10: 1
A11: TO L6 → | F11: 16.375 | G11: 1 | I11: 1 | L11: 1 | M11: 12.7 | N11: 1 | O11: 1 | S11: 1 | T11: 16.375 | U11: 1 | W11: 1 | Z11: 1 | AA11: 14.325 | AB11: 1 | AC11: 1 | AG11: 1
A12: TO L7 → | F12: 20.475 | G12: 1 | I12: 1 | L12: 1 | M12: 15.875 | N12: 1 | O12: 1 | S12: 1 | T12: 20.475 | U12: 1 | W12: 1 | Z12: 1 | AA12: 17.9 | AB12: 1 | AC12: 1 | AG12: 1
A13: TO L8 → | F13: 25.6 | G13: 2 | I13: 1 | L13: 1 | M13: 19.85 | N13: 2 | O13: 1 | S13: 1 | T13: 25.6 | U13: 2 | W13: 1 | Z13: 1 | AA13: 22.375 | AB13: 2 | AC13: 1 | AG13: 1
A14: TO L9 → | F14: 32 | G14: 2 | J14: 1 | L14: 1 | M14: 24.825 | N14: 2 | Q14: 1 | S14: 1 | T14: 32 | U14: 2 | X14: 1 | Z14: 1 | AA14: 27.975 | AB14: 2 | AE14: 1 | AG14: 1
A15: TO PRO → | F15: 40 | G15: 2 | J15: 2 | L15: 1 | M15: 31.025 | N15: 2 | Q15: 2 | S15: 1 | T15: 40 | U15: 2 | X15: 2 | Z15: 1 | AA15: 34.975 | AB15: 2 | AE15: 2 | AG15: 1
A16: Totals | B16: =SUMIF(B5:INDIRECT("B"&(E60+5)),">0") -> 0 | C16: =SUMIF(INDIRECT("R"&(ROW()-6)&"C"&COLUMN(),FALSE):INDIRECT("R"&(ROW()-6+F60)&"C"&COLUMN(),FALSE),">0") -> 0 | D16: =SUMIF(INDIRECT("R"&(ROW()-6)&"C"&COLUMN(),FALSE):INDIRECT("R"&(ROW()-6+G60)&"C"&COLUMN(),FALSE),">0") -> 0 | E16: =SUMIF(INDIRECT("R"&(ROW()-6)&"C"&COLUMN(),FALSE):INDIRECT("R"&(ROW()-6+H60)&"C"&COLUMN(),FALSE),">0") -> 0 | F16: =SUM(INDIRECT("R"&(ROW()-11)&"C"&COLUMN(),FALSE):INDIRECT("R"&(ROW()-11+$P60)&"C"&COLUMN(),FALSE)) -> 0 | G16: =SUM(INDIRECT("R"&(ROW()-11)&"C"&COLUMN(),FALSE):INDIRECT("R"&(ROW()-11+$P60)&"C"&COLUMN(),FALSE)) -> 0 | H16: =SUM(INDIRECT("R"&(ROW()-11)&"C"&COLUMN(),FALSE):INDIRECT("R"&(ROW()-11+$P60)&"C"&COLUMN(),FALSE)) -> 0 | I16: =SUM(INDIRECT("R"&(ROW()-11)&"C"&COLUMN(),FALSE):INDIRECT("R"&(ROW()-11+$P60)&"C"&COLUMN(),FALSE)) -> 0 | J16: =SUM(INDIRECT("R"&(ROW()-11)&"C"&COLUMN(),FALSE):INDIRECT("R"&(ROW()-11+$P60)&"C"&COLUMN(),FALSE)) -> 0 | K16: =SUM(INDIRECT("R"&(ROW()-11)&"C"&COLUMN(),FALSE):INDIRECT("R"&(ROW()-11+$P60)&"C"&COLUMN(),FALSE)) -> 0 | L16: =SUM(INDIRECT("R"&(ROW()-11)&"C"&COLUMN(),FALSE):INDIRECT("R"&(ROW()-11+$P60)&"C"&COLUMN(),FALSE)) -> 0 | M16: =SUM(INDIRECT("R"&(ROW()-11)&"C"&COLUMN(),FALSE):INDIRECT("R"&(ROW()-11+$Q60)&"C"&COLUMN(),FALSE)) -> 0 | N16: =SUM(INDIRECT("R"&(ROW()-11)&"C"&COLUMN(),FALSE):INDIRECT("R"&(ROW()-11+$Q60)&"C"&COLUMN(),FALSE)) -> 0 | O16: =SUM(INDIRECT("R"&(ROW()-11)&"C"&COLUMN(),FALSE):INDIRECT("R"&(ROW()-11+$Q60)&"C"&COLUMN(),FALSE)) -> 0 | P16: =SUM(INDIRECT("R"&(ROW()-11)&"C"&COLUMN(),FALSE):INDIRECT("R"&(ROW()-11+$Q60)&"C"&COLUMN(),FALSE)) -> 0 | Q16: =SUM(INDIRECT("R"&(ROW()-11)&"C"&COLUMN(),FALSE):INDIRECT("R"&(ROW()-11+$Q60)&"C"&COLUMN(),FALSE)) -> 0 | R16: =SUM(INDIRECT("R"&(ROW()-11)&"C"&COLUMN(),FALSE):INDIRECT("R"&(ROW()-11+$Q60)&"C"&COLUMN(),FALSE)) -> 0 | S16: =SUM(INDIRECT("R"&(ROW()-11)&"C"&COLUMN(),FALSE):INDIRECT("R"&(ROW()-11+$Q60)&"C"&COLUMN(),FALSE)) -> 0 | T16: =SUM(INDIRECT("R"&(ROW()-11)&"C"&COLUMN(),FALSE):INDIRECT("R"&(ROW()-11+$R60)&"C"&COLUMN(),FALSE)) -> 0 | U16: =SUM(INDIRECT("R"&(ROW()-11)&"C"&COLUMN(),FALSE):INDIRECT("R"&(ROW()-11+$R60)&"C"&COLUMN(),FALSE)) -> 0 | V16: =SUM(INDIRECT("R"&(ROW()-11)&"C"&COLUMN(),FALSE):INDIRECT("R"&(ROW()-11+$R60)&"C"&COLUMN(),FALSE)) -> 0 | W16: =SUM(INDIRECT("R"&(ROW()-11)&"C"&COLUMN(),FALSE):INDIRECT("R"&(ROW()-11+$R60)&"C"&COLUMN(),FALSE)) -> 0 | X16: =SUM(INDIRECT("R"&(ROW()-11)&"C"&COLUMN(),FALSE):INDIRECT("R"&(ROW()-11+$R60)&"C"&COLUMN(),FALSE)) -> 0 | Y16: =SUM(INDIRECT("R"&(ROW()-11)&"C"&COLUMN(),FALSE):INDIRECT("R"&(ROW()-11+$R60)&"C"&COLUMN(),FALSE)) -> 0 | Z16: =SUM(INDIRECT("R"&(ROW()-11)&"C"&COLUMN(),FALSE):INDIRECT("R"&(ROW()-11+$R60)&"C"&COLUMN(),FALSE)) -> 0 | AA16: =SUM(INDIRECT("R"&(ROW()-11)&"C"&COLUMN(),FALSE):INDIRECT("R"&(ROW()-11+$S60)&"C"&COLUMN(),FALSE)) -> 0 | AB16: =SUM(INDIRECT("R"&(ROW()-11)&"C"&COLUMN(),FALSE):INDIRECT("R"&(ROW()-11+$S60)&"C"&COLUMN(),FALSE)) -> 0 | AC16: =SUM(INDIRECT("R"&(ROW()-11)&"C"&COLUMN(),FALSE):INDIRECT("R"&(ROW()-11+$S60)&"C"&COLUMN(),FALSE)) -> 0 | AD16: =SUM(INDIRECT("R"&(ROW()-11)&"C"&COLUMN(),FALSE):INDIRECT("R"&(ROW()-11+$S60)&"C"&COLUMN(),FALSE)) -> 0 | AE16: =SUM(INDIRECT("R"&(ROW()-11)&"C"&COLUMN(),FALSE):INDIRECT("R"&(ROW()-11+$S60)&"C"&COLUMN(),FALSE)) -> 0 | AF16: =SUM(INDIRECT("R"&(ROW()-11)&"C"&COLUMN(),FALSE):INDIRECT("R"&(ROW()-11+$S60)&"C"&COLUMN(),FALSE)) -> 0 | AG16: =SUM(INDIRECT("R"&(ROW()-11)&"C"&COLUMN(),FALSE):INDIRECT("R"&(ROW()-11+$S60)&"C"&COLUMN(),FALSE)) -> 0
B17: =-SUMIF(B5:INDIRECT("B"&(E60+5)),"<0") -> 0 | C17: =-SUMIF(INDIRECT("R"&(ROW()-7)&"C"&COLUMN(),FALSE):INDIRECT("R"&(ROW()-7+F60)&"C"&COLUMN(),FALSE),"<0") -> 0 | D17: =-SUMIF(INDIRECT("R"&(ROW()-7)&"C"&COLUMN(),FALSE):INDIRECT("R"&(ROW()-7+G60)&"C"&COLUMN(),FALSE),"<0") -> 0 | E17: =-SUMIF(INDIRECT("R"&(ROW()-7)&"C"&COLUMN(),FALSE):INDIRECT("R"&(ROW()-7+H60)&"C"&COLUMN(),FALSE),"<0") -> 0
B18: Gathering Specifications for the McLaren M14A - Asphalt 8 Airborne
C19: UPGRADE | L19: PRO KITS
B20: Init | C20: Accel | E20: Speed | G20: Handling | I20: Nitro | L20: Tires | O20: Suspension | R20: Drivetrain | U20: Exhaust
B21: L0 | C21: Rank | D21: A | E21: Rank | F21: S | G21: Rank | H21: H | I21: Rank | J21: N | L21: Rank | M21: H | N21: S | O21: Rank | P21: N | Q21: H | R21: Rank | S21: A | T21: S | U21: Rank | V21: N | W21: A
A22: LEVEL 1 → | B22: 3 | K22: A | L22: 989 | M22: 1.302 | N22: 262.3 | O22: 1150 | P22: 24.9 | Q22: 1.345 | R22: 1275 | S22: 2.96 | T22: 309.5 | U22: 1434 | V22: 35.3 | W22: 2.27
A23: LEVEL 2 → | B23: 260.1 | K23: S | L23: 998 | M23: 1.304 | N23: 265 | O23: 1156 | P23: 25.4 | Q23: 1.348 | R23: 1283 | S23: 2.93 | T23: 311.8 | U23: 1440 | V23: 35.9 | W23: 2.24
A24: LEVEL 3 → | B24: 1.3 | K24: H | L24: 1010 | M24: 1.308 | N24: 268.2 | O24: 1165 | P24: 26.1 | Q24: 1.351 | R24: 1294 | S24: 2.88 | T24: 315.1 | U24: 1449 | V24: 36.6 | W24: 2.19
A25: LEVEL 4 → | B25: 24.3 | K25: N | L25: 1019 | M25: 1.31 | N25: 270.9 | O25: 1172 | P25: 26.7 | Q25: 1.353 | R25: 1303 | S25: 2.84 | T25: 317.8 | U25: 1456 | V25: 37.2 | W25: 2.15
A26: LEVEL 5 → | B26: 981 | K26: Rank | L26: 1038 | M26: 1.315 | N26: 276.4 | O26: 1186 | P26: 27.9 | Q26: 1.358 | R26: 1322 | S26: 2.76 | T26: 323.2 | U26: 1470 | V26: 38.4 | W26: 2.07
A27: LEVEL 6 → | L27: 1057 | M27: 1.32 | N27: 281.8 | O27: 1200 | P27: 29.2 | Q27: 1.363 | R27: 1341 | S27: 2.68 | T27: 328.6 | U27: 1484 | V27: 39.6 | W27: 1.99
A28: LEVEL 7 → | L28: 1075 | M28: 1.325 | N28: 287.2 | O28: 1214 | P28: 30.4 | Q28: 1.368 | R28: 1359 | S28: 2.6 | T28: 334.1 | U28: 1498 | V28: 40.8 | W28: 1.91
A29: LEVEL 8 → | L29: 1094 | M29: 1.33 | N29: 292.7 | O29: 1228 | P29: 31.6 | Q29: 1.373 | R29: 1378 | S29: 2.52 | T29: 339.5 | U29: 1513 | V29: 42.1 | W29: 1.83
A30: LEVEL 9 → | L30: 1122 | M30: 1.337 | N30: 300.8 | O30: 1250 | P30: 33.4 | Q30: 1.381 | R30: 1406 | S30: 2.4 | T30: 347.6 | U30: 1534 | V30: 43.9 | W30: 1.71
A31: PRO → | D31: =MIN(S31,W31) -> 1.62 | F31: =MAX(N31,T31) -> 353.7 | H31: =MAX(M31,Q31) -> 1.386 | J31: =MAX(P31,V31) -> 45.2 | L31: 1143 | M31: 1.343 | N31: 306.9 | O31: 1266 | P31: 34.8 | Q31: 1.386 | R31: 1428 | S31: 2.31 | T31: 353.7 | U31: 1550 | V31: 45.2 | W31: 1.62 | X31: =COUNT(C22:C26) -> 0
A32: PRO+TK → | B32: TK | D32: 1.4 | F32: 368.7 | H32: 1.4 | J32: 48.6 | X32: =COUNT(L22:L31) -> 10
A33: TK only → | D33: =D32-D31 -> -0.22 | F33: =F32-F31 -> 15 | H33: =H32-H31 -> 0.014 | J33: =J32-J31 -> 3.4
AH34: Tokens
B35: Tuning the McLaren M14A - ASPHALT 8 AIRBORNE | Z35: S+N | AA35: =B40+B42+Z51+Z53 -> 284.4 | AB35: =AA35+AB40+AB42 -> 302.8 | AD35: TOTAL Cost | AF35: =AF36+AF37 -> 651300
C36: UPGRADE | L36: PRO KITS | Z36: var | AD36: UPG T Cost | AF36: =SUMIF(B6:E15,">0")*1000 -> 0 | AH36: =-SUMIF(B6:E15,"<0")*1000 -> 0
B37: Init | C37: Accel | E37: Speed | G37: Handling | I37: Nitro | K37: MAX | L37: Tires | O37: Suspension | R37: Drivetrain | U37: Exhaust | X37: PRO | Y37: End | Z37: MAX | AA37: Final | AB37: TK | AD37: PRO T Cost | AF37: =SUM(F6:F15,M6:M15,T6:T15,AA6:AA15)*1000 -> 651300
C38: Rank | D38: A | E38: Rank | F38: S | G38: Rank | H38: H | I38: Rank | J38: N | L38: Rank | M38: H | N38: S | O38: Rank | P38: N | Q38: H | R38: Rank | S38: A | T38: S | U38: Rank | V38: N | W38: A | Z38: PRO | AA38: Value | AB38: Boost | AD38: Current Cost | AF38: =AF39+AF40 -> 0
B39: =B22 -> 3 | K39: =SUM(D39:D48) -> 0 | L39: 8 | M39: 0.002 | N39: 2.2 | O39: 7 | P39: 0.6 | Q39: 0.002 | R39: 9 | S39: -0.04 | T39: 2.6 | U39: 6 | V39: 0.5 | W39: -0.04 | X39: =SUM(S39:S48,W39:W48) -> -1.38 | Y39: A | Z39: =K39+X39 -> -1.38 | AA39: =B39+Z39 -> 1.62 | AB39: =D33 -> -0.22 | AD39: UPG C Cost | AF39: =SUM(B16:E16)*1000 -> 0 | AH39: =SUM(B17:E17)*1000 -> 0
B40: =B23 -> 260.1 | K40: =SUM(F39:F48) -> 0 | L40: 9 | M40: 0.002 | N40: 2.7 | O40: 6 | P40: 0.5 | Q40: 0.003 | R40: 8 | S40: -0.03 | T40: 2.3 | U40: 6 | V40: 0.6 | W40: -0.03 | X40: =SUM(N39:N48,T39:T48) -> 93.6 | Y40: S | Z40: =K40+X40 -> 93.6 | AA40: =B40+Z40 -> 353.7 | AB40: =F33 -> 15 | AD40: PRO C Cost | AF40: =SUM(F16+M16+T16+AA16)*1000 -> 0
B41: =B24 -> 1.3 | K41: =SUM(H39:H48) -> 0 | L41: 12 | M41: 0.004 | N41: 3.2 | O41: 9 | P41: 0.7 | Q41: 0.003 | R41: 11 | S41: -0.05 | T41: 3.3 | U41: 9 | V41: 0.7 | W41: -0.05 | X41: =SUM(M39:M48,Q39:Q48) -> 0.086 | Y41: H | Z41: =K41+X41 -> 0.086 | AA41: =B41+Z41 -> 1.386 | AB41: =H33 -> 0.014 | AD41: Tires | AF41: =G16 -> 0
B42: =B25 -> 24.3 | K42: =SUM(J39:J48) -> 0 | L42: 9 | M42: 0.002 | N42: 2.7 | O42: 7 | P42: 0.6 | Q42: 0.002 | R42: 9 | S42: -0.04 | T42: 2.7 | U42: 7 | V42: 0.6 | W42: -0.04 | X42: =SUM(P39:P48,V39:V48) -> 20.9 | Y42: N | Z42: =K42+X42 -> 20.9 | AA42: =B42+Z42 -> 45.2 | AB42: =J33 -> 3.4 | AD42: Suspension | AF42: =N16 -> 0
B43: =B26 -> 981 | K43: =SUM(C39:C48,E39:E48,G39:G48,I39:I48) -> 0 | L43: 19 | M43: 0.005 | N43: 5.5 | O43: 14 | P43: 1.2 | Q43: 0.005 | R43: 19 | S43: -0.08 | T43: 5.4 | U43: 14 | V43: 1.2 | W43: -0.08 | X43: =SUM(L39:L48,O39:O48,R39:R48,U39:U48) -> 569 | Y43: Rank | Z43: =K43+X43 -> 569 | AA43: =B43+Z43 -> 1550 | AB43: 65 | AD43: Drivetrain | AF43: =U16 -> 0
L44: 19 | M44: 0.005 | N44: 5.4 | O44: 14 | P44: 1.3 | Q44: 0.005 | R44: 19 | S44: -0.08 | T44: 5.4 | U44: 14 | V44: 1.2 | W44: -0.08 | AD44: Exhaust | AF44: =AB16 -> 0
L45: 18 | M45: 0.005 | N45: 5.4 | O45: 14 | P45: 1.2 | Q45: 0.005 | R45: 18 | S45: -0.08 | T45: 5.5 | U45: 14 | V45: 1.2 | W45: -0.08 | AD45: Early Tech | AF45: =H16+O16+V16+AC16 -> 0
L46: 19 | M46: 0.005 | N46: 5.5 | O46: 14 | P46: 1.2 | Q46: 0.005 | R46: 19 | S46: -0.08 | T46: 5.4 | U46: 15 | V46: 1.3 | W46: -0.08 | AD46: Initial Tech | AF46: =I16+P16+W16+AD16 -> 0
L47: 28 | M47: 0.007 | N47: 8.1 | O47: 22 | P47: 1.8 | Q47: 0.008 | R47: 28 | S47: -0.12 | T47: 8.1 | U47: 21 | V47: 1.8 | W47: -0.12 | AD47: Mid Tech | AF47: =J16+Q16+X16+AE16 -> 0
L48: 21 | M48: 0.006 | N48: 6.1 | O48: 16 | P48: 1.4 | Q48: 0.005 | R48: 22 | S48: -0.09 | T48: 6.1 | U48: 16 | V48: 1.3 | W48: -0.09 | AD48: Adv Tech | AF48: =K16+R16+Y16+AF16 -> 0
B49: TK | D49: =D32-D26 -> 1.4 | F49: =F32-F26 -> 368.7 | H49: =H32-H26 -> 1.4 | J49: =J32-J26 -> 48.6 | AB49: Final | AC49: MPTK | AD49: Engines | AF49: =L16+S16+Z16+AG16 -> 0 | AG49: SR
A50: 0 | B50: A | K50: =SUM(D50:D59) -> 0 | L50: =IF(proT>$A50,L39,"") ->  | O50: =IF(proS>$A50,O39,"") ->  | R50: =IF(proD>$A50,R39,"") ->  | U50: =IF(proE>$A50,U39,"") ->  | X50: =SUM(S50:S59,W50:W59) -> 0 | Y50: =B39+K50+X50 -> 3 | Z50: =K50+X50 -> 0 | AA50: =Z50/Z39 -> 0 | AB50: =Y50+AB39 -> 2.78 | AC50: 1.4
A51: 1 | B51: S | K51: =SUM(F50:F59) -> 0 | X51: =SUM(N50:N59,T50:T59) -> 0 | Y51: =B40+K51+X51 -> 260.1 | Z51: =K51+X51 -> 0 | AA51: =Z51/Z40 -> 0 | AB51: =Y51+AB40 -> 275.1 | AC51: 295.8
A52: 2 | B52: H | K52: =SUM(H50:H59) -> 0 | X52: =SUM(M50:M59,Q50:Q59) -> 0 | Y52: =B41+K52+X52 -> 1.3 | Z52: =K52+X52 -> 0 | AA52: =Z52/Z41 -> 0 | AB52: =Y52+AB41 -> 1.314 | AC52: 1.25
A53: 3 | B53: N | K53: =SUM(J50:J59) -> 0 | X53: =SUM(P50:P59,V50:V59) -> 0 | Y53: =B42+K53+X53 -> 24.3 | Z53: =K53+X53 -> 0 | AA53: =Z58/Z42 -> 0 | AB53: =Y53+AB42 -> 27.7
A54: 4
A55: 5
A56: 6
A57: 7
A58: 8 | AC58: 114.3
A59: 9 | B59: Rank | K59: =SUM(C50:C59,E50:E59,G50:G59,I50:I59) -> 0 | X59: =SUM(L50:L59,O50:O59,R50:R59,U50:U59) -> 0 | Y59: =B43+K59+X59 -> 981 | Z59: =K59+X59 -> 0 | AA59: =Z59/Z43 -> 0 | AB59: =AB43+Y59 -> 1046
A60: INPUT → | X60: Speed+Nitro | Z60: =Z51+Z53 -> 0 | AA60: =Z60/(Z40+Z42) -> 0 | AB60: =IF(AA59=0,"",AA60/AA59-1) -> 
P62: 0 | Q62: 0 | R62: 0 | S62: 0
P63: =SUM(N$38,OFFSET(N$38,0,0,P62+1,1)) -> 0 | Q63: =SUM(P$38,OFFSET(P$38,0,0,Q62+1,1)) -> 0 | R63: =SUM(T$38,OFFSET(T$38,0,0,R62+1,1)) -> 0 | S63: =SUM(V$38,OFFSET(V$38,0,0,S62+1,1)) -> 0 | U63: =P63+Q63+R63+S63+B40+B42+AB40+AB42 -> 302.8 | W63: Total Spd
P64: =SUM(L$38,OFFSET(L$38,0,0,P62+1,1)) -> 0 | Q64: =SUM(O$38,OFFSET(O$38,0,0,Q62+1,1)) -> 0 | R64: =SUM(R$38,OFFSET(R$38,0,0,R62+1,1)) -> 0 | S64: =SUM(U$38,OFFSET(U$38,0,0,S62+1,1)) -> 0 | U64: =B43+P64+Q64+R64+S64 -> 981 | W64: Rank

Sheet ARIEL (hidden)
B2: Gathering Prices & Parts for the Class D Ariel Atom V8 (#0xDA) - Asphalt 8 Airborne
B3: UPGRADE | F3: PRO KITS
B4: Acc | C4: Spd | D4: Hnd | E4: Ntr | F4: Tires | M4: Suspension | T4: Drivetrain | AA4: Exhaust
B5: Cost | F5: Cost | G5: Part | H5: Early | I5: Init | J5: Mid | K5: Adv | L5: Engn | M5: Cost | N5: Part | O5: Early | P5: Init | Q5: Mid | R5: Adv | S5: Engn | T5: Cost | U5: Part | V5: Early | W5: Init | X5: Mid | Y5: Adv | Z5: Engn | AA5: Cost | AB5: Part | AC5: Early | AD5: Init | AE5: Mid | AF5: Adv | AG5: Engn
A6: TO L1 → | F6: 9.275 | L6: 1 | M6: 7.425 | S6: 1 | T6: 9.275 | Z6: 1 | AA6: 8.15 | AG6: 1
A7: TO L2 → | F7: 11.6 | L7: 1 | M7: 9.275 | S7: 1 | T7: 11.6 | Z7: 1 | AA7: 10.2 | AG7: 1
A8: TO L3 → | F8: 14.5 | I8: 1 | L8: 1 | M8: 11.6 | O8: 1 | S8: 1 | T8: 14.5 | W8: 1 | Z8: 1 | AA8: 12.75 | AC8: 1 | AG8: 1
A9: TO L4 → | F9: 18.125 | G9: 1 | I9: 1 | L9: 1 | M9: 14.5 | N9: 1 | O9: 1 | S9: 1 | T9: 18.125 | U9: 1 | W9: 1 | Z9: 1 | AA9: 15.95 | AB9: 1 | AC9: 1 | AG9: 1
A10: TO L5 → | F10: 22.65 | G10: 1 | I10: 1 | L10: 1 | M10: 18.125 | N10: 1 | O10: 1 | S10: 1 | T10: 22.65 | U10: 1 | W10: 1 | Z10: 1 | AA10: 19.95 | AB10: 1 | AC10: 1 | AG10: 1
A11: TO L6 → | F11: 28.325 | G11: 1 | I11: 1 | L11: 2 | M11: 22.65 | N11: 1 | O11: 1 | S11: 2 | T11: 28.325 | U11: 1 | W11: 1 | Z11: 2 | AA11: 24.95 | AB11: 1 | AC11: 1 | AG11: 2
A12: TO L7 → | F12: 35.4 | G12: 1 | I12: 1 | L12: 2 | M12: 28.325 | N12: 1 | O12: 1 | S12: 2 | T12: 35.4 | U12: 1 | W12: 1 | Z12: 2 | AA12: 31.2 | AB12: 1 | AC12: 1 | AG12: 2
A13: TO L8 → | F13: 44.25 | G13: 2 | I13: 2 | L13: 2 | M13: 35.4 | N13: 2 | O13: 2 | S13: 2 | T13: 44.25 | U13: 2 | W13: 2 | Z13: 2 | AA13: 39 | AB13: 2 | AC13: 2 | AG13: 2
A14: TO L9 → | F14: 55.325 | G14: 2 | I14: 2 | L14: 3 | M14: 44.25 | N14: 2 | O14: 2 | S14: 3 | T14: 55.325 | U14: 2 | W14: 2 | Z14: 3 | AA14: 48.75 | AB14: 2 | AC14: 2 | AG14: 3
A15: TO PRO → | F15: 69.15 | G15: 2 | I15: 2 | L15: 3 | M15: 55.325 | N15: 2 | O15: 2 | S15: 3 | T15: 69.15 | U15: 2 | W15: 2 | Z15: 3 | AA15: 60.95 | AB15: 2 | AC15: 2 | AG15: 3
A16: Totals | B16: =SUMIF(B5:INDIRECT("B"&(E60+5)),">0") -> 0 | C16: =SUMIF(INDIRECT("R"&(ROW()-6)&"C"&COLUMN(),FALSE):INDIRECT("R"&(ROW()-6+F60)&"C"&COLUMN(),FALSE),">0") -> 0 | D16: =SUMIF(INDIRECT("R"&(ROW()-6)&"C"&COLUMN(),FALSE):INDIRECT("R"&(ROW()-6+G60)&"C"&COLUMN(),FALSE),">0") -> 0 | E16: =SUMIF(INDIRECT("R"&(ROW()-6)&"C"&COLUMN(),FALSE):INDIRECT("R"&(ROW()-6+H60)&"C"&COLUMN(),FALSE),">0") -> 0 | F16: =SUM(INDIRECT("R"&(ROW()-11)&"C"&COLUMN(),FALSE):INDIRECT("R"&(ROW()-11+$P60)&"C"&COLUMN(),FALSE)) -> 0 | G16: =SUM(INDIRECT("R"&(ROW()-11)&"C"&COLUMN(),FALSE):INDIRECT("R"&(ROW()-11+$P60)&"C"&COLUMN(),FALSE)) -> 0 | H16: =SUM(INDIRECT("R"&(ROW()-11)&"C"&COLUMN(),FALSE):INDIRECT("R"&(ROW()-11+$P60)&"C"&COLUMN(),FALSE)) -> 0 | I16: =SUM(INDIRECT("R"&(ROW()-11)&"C"&COLUMN(),FALSE):INDIRECT("R"&(ROW()-11+$P60)&"C"&COLUMN(),FALSE)) -> 0 | J16: =SUM(INDIRECT("R"&(ROW()-11)&"C"&COLUMN(),FALSE):INDIRECT("R"&(ROW()-11+$P60)&"C"&COLUMN(),FALSE)) -> 0 | K16: =SUM(INDIRECT("R"&(ROW()-11)&"C"&COLUMN(),FALSE):INDIRECT("R"&(ROW()-11+$P60)&"C"&COLUMN(),FALSE)) -> 0 | L16: =SUM(INDIRECT("R"&(ROW()-11)&"C"&COLUMN(),FALSE):INDIRECT("R"&(ROW()-11+$P60)&"C"&COLUMN(),FALSE)) -> 0 | M16: =SUM(INDIRECT("R"&(ROW()-11)&"C"&COLUMN(),FALSE):INDIRECT("R"&(ROW()-11+$Q60)&"C"&COLUMN(),FALSE)) -> 0 | N16: =SUM(INDIRECT("R"&(ROW()-11)&"C"&COLUMN(),FALSE):INDIRECT("R"&(ROW()-11+$Q60)&"C"&COLUMN(),FALSE)) -> 0 | O16: =SUM(INDIRECT("R"&(ROW()-11)&"C"&COLUMN(),FALSE):INDIRECT("R"&(ROW()-11+$Q60)&"C"&COLUMN(),FALSE)) -> 0 | P16: =SUM(INDIRECT("R"&(ROW()-11)&"C"&COLUMN(),FALSE):INDIRECT("R"&(ROW()-11+$Q60)&"C"&COLUMN(),FALSE)) -> 0 | Q16: =SUM(INDIRECT("R"&(ROW()-11)&"C"&COLUMN(),FALSE):INDIRECT("R"&(ROW()-11+$Q60)&"C"&COLUMN(),FALSE)) -> 0 | R16: =SUM(INDIRECT("R"&(ROW()-11)&"C"&COLUMN(),FALSE):INDIRECT("R"&(ROW()-11+$Q60)&"C"&COLUMN(),FALSE)) -> 0 | S16: =SUM(INDIRECT("R"&(ROW()-11)&"C"&COLUMN(),FALSE):INDIRECT("R"&(ROW()-11+$Q60)&"C"&COLUMN(),FALSE)) -> 0 | T16: =SUM(INDIRECT("R"&(ROW()-11)&"C"&COLUMN(),FALSE):INDIRECT("R"&(ROW()-11+$R60)&"C"&COLUMN(),FALSE)) -> 0 | U16: =SUM(INDIRECT("R"&(ROW()-11)&"C"&COLUMN(),FALSE):INDIRECT("R"&(ROW()-11+$R60)&"C"&COLUMN(),FALSE)) -> 0 | V16: =SUM(INDIRECT("R"&(ROW()-11)&"C"&COLUMN(),FALSE):INDIRECT("R"&(ROW()-11+$R60)&"C"&COLUMN(),FALSE)) -> 0 | W16: =SUM(INDIRECT("R"&(ROW()-11)&"C"&COLUMN(),FALSE):INDIRECT("R"&(ROW()-11+$R60)&"C"&COLUMN(),FALSE)) -> 0 | X16: =SUM(INDIRECT("R"&(ROW()-11)&"C"&COLUMN(),FALSE):INDIRECT("R"&(ROW()-11+$R60)&"C"&COLUMN(),FALSE)) -> 0 | Y16: =SUM(INDIRECT("R"&(ROW()-11)&"C"&COLUMN(),FALSE):INDIRECT("R"&(ROW()-11+$R60)&"C"&COLUMN(),FALSE)) -> 0 | Z16: =SUM(INDIRECT("R"&(ROW()-11)&"C"&COLUMN(),FALSE):INDIRECT("R"&(ROW()-11+$R60)&"C"&COLUMN(),FALSE)) -> 0 | AA16: =SUM(INDIRECT("R"&(ROW()-11)&"C"&COLUMN(),FALSE):INDIRECT("R"&(ROW()-11+$S60)&"C"&COLUMN(),FALSE)) -> 0 | AB16: =SUM(INDIRECT("R"&(ROW()-11)&"C"&COLUMN(),FALSE):INDIRECT("R"&(ROW()-11+$S60)&"C"&COLUMN(),FALSE)) -> 0 | AC16: =SUM(INDIRECT("R"&(ROW()-11)&"C"&COLUMN(),FALSE):INDIRECT("R"&(ROW()-11+$S60)&"C"&COLUMN(),FALSE)) -> 0 | AD16: =SUM(INDIRECT("R"&(ROW()-11)&"C"&COLUMN(),FALSE):INDIRECT("R"&(ROW()-11+$S60)&"C"&COLUMN(),FALSE)) -> 0 | AE16: =SUM(INDIRECT("R"&(ROW()-11)&"C"&COLUMN(),FALSE):INDIRECT("R"&(ROW()-11+$S60)&"C"&COLUMN(),FALSE)) -> 0 | AF16: =SUM(INDIRECT("R"&(ROW()-11)&"C"&COLUMN(),FALSE):INDIRECT("R"&(ROW()-11+$S60)&"C"&COLUMN(),FALSE)) -> 0 | AG16: =SUM(INDIRECT("R"&(ROW()-11)&"C"&COLUMN(),FALSE):INDIRECT("R"&(ROW()-11+$S60)&"C"&COLUMN(),FALSE)) -> 0
B17: =-SUMIF(B5:INDIRECT("B"&(E60+5)),"<0") -> 0 | C17: =-SUMIF(INDIRECT("R"&(ROW()-7)&"C"&COLUMN(),FALSE):INDIRECT("R"&(ROW()-7+F60)&"C"&COLUMN(),FALSE),"<0") -> 0 | D17: =-SUMIF(INDIRECT("R"&(ROW()-7)&"C"&COLUMN(),FALSE):INDIRECT("R"&(ROW()-7+G60)&"C"&COLUMN(),FALSE),"<0") -> 0 | E17: =-SUMIF(INDIRECT("R"&(ROW()-7)&"C"&COLUMN(),FALSE):INDIRECT("R"&(ROW()-7+H60)&"C"&COLUMN(),FALSE),"<0") -> 0
B18: Gathering Specifications for the Ariel Atom V8 - Asphalt 8 Airborne
C19: UPGRADE | L19: PRO KITS
B20: Init | C20: Accel | E20: Speed | G20: Handling | I20: Nitro | L20: Tires | O20: Suspension | R20: Drivetrain | U20: Exhaust
B21: L0 | C21: Rank | D21: A | E21: Rank | F21: S | G21: Rank | H21: H | I21: Rank | J21: N | L21: Rank | M21: H | N21: S | O21: Rank | P21: N | Q21: H | R21: Rank | S21: A | T21: S | U21: Rank | V21: N | W21: A
A22: LEVEL 1 → | B22: 3 | C22: 2.78 | D22: =C22-B22 -> -0.22 | F22: 2.09 | G22: =F22-S31 -> -0.22 | K22: A | L22: 1054 | M22: 1.302 | N22: 250.4 | O22: 1215 | P22: 51 | Q22: 1.345 | R22: 1135 | S22: 2.97 | T22: 257.8 | U22: 1296 | V22: 72.4 | W22: 2.28
A23: LEVEL 2 → | B23: 250.1 | C23: 252.4 | D23: =C23-B23 -> 2.3 | F23: 267.1 | G23: =F23-T31 -> 2.3 | K23: S | L23: 1059 | M23: 1.304 | N23: 250.8 | O23: 1220 | P23: 52.2 | Q23: 1.347 | R23: 1139 | S23: 2.93 | T23: 258.2 | U23: 1300 | V23: 73.7 | W23: 2.24
A24: LEVEL 3 → | B24: 1.3 | C24: 1.314 | D24: =C24-B24 -> 0.014 | F24: 1.357 | G24: =F24-M31 -> 0.014 | K24: H | L24: 1064 | M24: 1.307 | N24: 251.4 | O24: 1225 | P24: 53.7 | Q24: 1.35 | R24: 1145 | S24: 2.88 | T24: 258.7 | U24: 1306 | V24: 75.2 | W24: 2.2
A25: LEVEL 4 → | B25: 50 | C25: 56.9 | D25: =C25-B25 -> 6.9 | F25: 56.9 | G25: =F25-B25 -> 6.9 | K25: N | L25: 1069 | M25: 1.31 | N25: 251.8 | O25: 1230 | P25: 55 | Q25: 1.353 | R25: 1150 | S25: 2.84 | T25: 259.1 | U25: 1310 | V25: 76.4 | W25: 2.16
A26: LEVEL 5 → | B26: 1050 | C26: 49 | F26: 49 | K26: Rank | L26: 1078 | M26: 1.315 | N26: 252.6 | O26: 1239 | P26: 57.5 | Q26: 1.358 | R26: 1159 | S26: 2.76 | T26: 260 | U26: 1320 | V26: 78.9 | W26: 2.08
A27: LEVEL 6 → | C27: TK | D27: Diff. | F27: T+D | G27: Diff | L27: 1088 | M27: 1.32 | N27: 253.5 | O27: 1249 | P27: 59.9 | Q27: 1.363 | R27: 1168 | S27: 2.68 | T27: 260.8 | U27: 1329 | V27: 81.4 | W27: 2
A28: LEVEL 7 → | L28: 1097 | M28: 1.325 | N28: 254.3 | O28: 1258 | P28: 62.4 | Q28: 1.368 | R28: 1178 | S28: 2.6 | T28: 261.7 | U28: 1338 | V28: 83.8 | W28: 1.92
A29: LEVEL 8 → | L29: 1106 | M29: 1.33 | N29: 255.2 | O29: 1267 | P29: 64.9 | Q29: 1.373 | R29: 1187 | S29: 2.52 | T29: 262.5 | U29: 1348 | V29: 86.3 | W29: 1.84
A30: LEVEL 9 → | L30: 1120 | M30: 1.337 | N30: 256.5 | O30: 1281 | P30: 68.6 | Q30: 1.38 | R30: 1201 | S30: 2.4 | T30: 263.8 | U30: 1362 | V30: 90.1 | W30: 1.72
A31: PRO → | D31: =MIN(S31,W31) -> 1.63 | F31: =MAX(N31,T31) -> 264.8 | H31: =MAX(M31,Q31) -> 1.386 | J31: =MAX(P31,V31) -> 92.8 | L31: 1131 | M31: 1.343 | N31: 257.4 | O31: 1292 | P31: 71.4 | Q31: 1.386 | R31: 1211 | S31: 2.31 | T31: 264.8 | U31: 1372 | V31: 92.8 | W31: 1.63 | X31: =COUNT(C22:C26) -> 5
A32: PRO+TK → | B32: TK | D32: 1.41 | F32: 267.1 | H32: 1.4 | J32: 99.7 | X32: =COUNT(L22:L31) -> 10
A33: TK only → | D33: =D32-D31 -> -0.22 | F33: =F32-F31 -> 2.3 | H33: =H32-H31 -> 0.014 | J33: =J32-J31 -> 6.9 | L33: =(L31-B26)/($U$31-$B$26) -> 0.251552795 | O33: =(O31-R31)/($U$31-$B$26) -> 0.251552795 | R33: =(R31-L31)/($U$31-$B$26) -> 0.248447205 | U33: =(U31-O31)/($U$31-$B$26) -> 0.248447205
AH34: Tokens
B35: Tuning the Ariel Atom V8 - ASPHALT 8 AIRBORNE | Z35: S+N | AA35: =B40+B42+Z51+Z53 -> 300.1 | AB35: =AA35+AB40+AB42 -> 309.3 | AD35: TOTAL Cost | AF35: =AF36+AF37 -> 1135925
C36: UPGRADE | L36: PRO KITS | Z36: var | AD36: UPG T Cost | AF36: =SUMIF(B6:E15,">0")*1000 -> 0 | AH36: =-SUMIF(B6:E15,"<0")*1000 -> 0
B37: Init | C37: Accel | E37: Speed | G37: Handling | I37: Nitro | K37: MAX | L37: Tires | O37: Suspension | R37: Drivetrain | U37: Exhaust | X37: PRO | Y37: End | Z37: MAX | AA37: Final | AB37: TK | AD37: PRO T Cost | AF37: =SUM(F6:F15,M6:M15,T6:T15,AA6:AA15)*1000 -> 1135925
C38: Rank | D38: A | E38: Rank | F38: S | G38: Rank | H38: H | I38: Rank | J38: N | L38: Rank | M38: H | N38: S | O38: Rank | P38: N | Q38: H | R38: Rank | S38: A | T38: S | U38: Rank | V38: N | W38: A | Z38: PRO | AA38: Value | AB38: Boost | AD38: Current Cost | AF38: =AF39+AF40 -> 0
B39: =B22 -> 3 | K39: =SUM(D39:D48) -> 0 | L39: =L22-B26 -> 4 | M39: =M22-B24 -> 0.002 | N39: =N22-B23 -> 0.3 | O39: =O22-R31 -> 4 | P39: =P22-B25 -> 1 | Q39: =Q22-M31 -> 0.002 | R39: =R22-L31 -> 4 | S39: =S22-B22 -> -0.03 | T39: =T22-N31 -> 0.4 | U39: =U22-O31 -> 4 | V39: =V22-P31 -> 1 | W39: =W22-S31 -> -0.03 | X39: =SUM(S39:S48,W39:W48) -> -1.37 | Y39: A | Z39: =K39+X39 -> -1.37 | AA39: =B39+Z39 -> 1.63 | AB39: =D33 -> -0.22 | AD39: UPG C Cost | AF39: =SUM(B16:E16)*1000 -> 0 | AH39: =SUM(B17:E17)*1000 -> 0
B40: =B23 -> 250.1 | K40: =SUM(F39:F48) -> 0 | L40: =L23-L22 -> 5 | M40: 0.002 | N40: 0.4 | O40: 5 | P40: 1.2 | Q40: 0.002 | R40: 4 | S40: -0.04 | T40: 0.4 | U40: 4 | V40: 1.3 | W40: -0.04 | X40: =SUM(N39:N48,T39:T48) -> 14.7 | Y40: S | Z40: =K40+X40 -> 14.7 | AA40: =B40+Z40 -> 264.8 | AB40: =F33 -> 2.3 | AD40: PRO C Cost | AF40: =SUM(F16+M16+T16+AA16)*1000 -> 0
B41: =B24 -> 1.3 | K41: =SUM(H39:H48) -> 0 | L41: =L24-L23 -> 5 | M41: 0.003 | N41: 0.6 | O41: 5 | P41: 1.5 | Q41: 0.003 | R41: =R24-R23 -> 6 | S41: -0.05 | T41: 0.5 | U41: 6 | V41: 1.5 | W41: -0.04 | X41: =SUM(M39:M48,Q39:Q48) -> 0.086 | Y41: H | Z41: =K41+X41 -> 0.086 | AA41: =B41+Z41 -> 1.386 | AB41: =H33 -> 0.014 | AD41: Tires | AF41: =G16 -> 0
B42: =B25 -> 50 | K42: =SUM(J39:J48) -> 0 | L42: =L25-L24 -> 5 | M42: 0.003 | N42: 0.4 | O42: 5 | P42: 1.3 | Q42: 0.003 | R42: =R25-R24 -> 5 | S42: -0.04 | T42: 0.4 | U42: 4 | V42: 1.2 | W42: -0.04 | X42: =SUM(P39:P48,V39:V48) -> 42.8 | Y42: N | Z42: =K42+X42 -> 42.8 | AA42: =B42+Z42 -> 92.8 | AB42: =J33 -> 6.9 | AD42: Suspension | AF42: =N16 -> 0
B43: =B26 -> 1050 | K43: =SUM(C39:C48,E39:E48,G39:G48,I39:I48) -> 0 | L43: =L26-L25 -> 9 | M43: 0.005 | N43: 0.8 | O43: 9 | P43: 2.5 | Q43: 0.005 | R43: =R26-R25 -> 9 | S43: -0.08 | T43: 0.9 | U43: 10 | V43: 2.5 | W43: -0.08 | X43: =SUM(L39:L48,O39:O48,R39:R48,U39:U48) -> 322 | Y43: Rank | Z43: =K43+X43 -> 322 | AA43: =B43+Z43 -> 1372 | AB43: 49 | AD43: Drivetrain | AF43: =U16 -> 0
L44: =L27-L26 -> 10 | M44: 0.005 | N44: 0.9 | O44: 10 | P44: 2.4 | Q44: 0.005 | R44: =R27-R26 -> 9 | S44: -0.08 | T44: 0.8 | U44: 9 | V44: 2.5 | W44: -0.08 | AD44: Exhaust | AF44: =AB16 -> 0
L45: =L28-L27 -> 9 | M45: 0.005 | N45: 0.8 | O45: 9 | P45: 2.5 | Q45: 0.005 | R45: =R28-R27 -> 10 | S45: -0.08 | T45: 0.9 | U45: 9 | V45: 2.4 | W45: -0.08 | AD45: Early Tech | AF45: =H16+O16+V16+AC16 -> 0
L46: =L29-L28 -> 9 | M46: 0.005 | N46: 0.9 | O46: 9 | P46: 2.5 | Q46: 0.005 | R46: =R29-R28 -> 9 | S46: -0.08 | T46: 0.8 | U46: 10 | V46: 2.5 | W46: -0.08 | AD46: Initial Tech | AF46: =I16+P16+W16+AD16 -> 0
L47: =L30-L29 -> 14 | M47: 0.007 | N47: 1.3 | O47: 14 | P47: 3.7 | Q47: 0.007 | R47: =R30-R29 -> 14 | S47: -0.12 | T47: 1.3 | U47: 14 | V47: 3.8 | W47: -0.12 | AD47: Mid Tech | AF47: =J16+Q16+X16+AE16 -> 0
L48: =L31-L30 -> 11 | M48: 0.006 | N48: 0.9 | O48: 11 | P48: 2.8 | Q48: 0.006 | R48: =R31-R30 -> 10 | S48: -0.09 | T48: 1 | U48: 10 | V48: 2.7 | W48: -0.09 | AD48: Adv Tech | AF48: =K16+R16+Y16+AF16 -> 0
B49: TK | D49: =D32-D26 -> 1.41 | F49: =F32-F26 -> 218.1 | H49: =H32-H26 -> 1.4 | J49: =J32-J26 -> 99.7 | AB49: Final | AC49: MPTK | AD49: Engines | AF49: =L16+S16+Z16+AG16 -> 0 | AG49: V8
A50: 0 | B50: A | K50: =SUM(D50:D59) -> 0 | L50: =IF(proT>$A50,L39,"") ->  | O50: =IF(proS>$A50,O39,"") ->  | R50: =IF(proD>$A50,R39,"") ->  | U50: =IF(proE>$A50,U39,"") ->  | X50: =SUM(S50:S59,W50:W59) -> 0 | Y50: =B39+K50+X50 -> 3 | Z50: =K50+X50 -> 0 | AA50: =Z50/Z39 -> 0 | AB50: =Y50+AB39 -> 2.78 | AC50: 1.4
A51: 1 | B51: S | K51: =SUM(F50:F59) -> 0 | X51: =SUM(N50:N59,T50:T59) -> 0 | Y51: =B40+K51+X51 -> 250.1 | Z51: =K51+X51 -> 0 | AA51: =Z51/Z40 -> 0 | AB51: =Y51+AB40 -> 252.4 | AC51: 295.8
A52: 2 | B52: H | K52: =SUM(H50:H59) -> 0 | X52: =SUM(M50:M59,Q50:Q59) -> 0 | Y52: =B41+K52+X52 -> 1.3 | Z52: =K52+X52 -> 0 | AA52: =Z52/Z41 -> 0 | AB52: =Y52+AB41 -> 1.314 | AC52: 1.25
A53: 3 | B53: N | K53: =SUM(J50:J59) -> 0 | X53: =SUM(P50:P59,V50:V59) -> 0 | Y53: =B42+K53+X53 -> 50 | Z53: =K53+X53 -> 0 | AA53: =Z58/Z42 -> 0 | AB53: =Y53+AB42 -> 56.9
A54: 4
A55: 5
A56: 6
A57: 7
A58: 8 | AC58: 114.3
A59: 9 | B59: Rank | K59: =SUM(C50:C59,E50:E59,G50:G59,I50:I59) -> 0 | X59: =SUM(L50:L59,O50:O59,R50:R59,U50:U59) -> 0 | Y59: =B43+K59+X59 -> 1050 | Z59: =K59+X59 -> 0 | AA59: =Z59/Z43 -> 0 | AB59: =AB43+Y59 -> 1099
A60: INPUT → | X60: Speed+Nitro | Z60: =Z51+Z53 -> 0 | AA60: =Z60/(Z40+Z42) -> 0 | AB60: =IF(AA59=0,"",AA60/AA59-1) -> 
P62: 0 | Q62: 0 | R62: 0 | S62: 0
P63: =SUM(N$38,OFFSET(N$38,0,0,P62+1,1)) -> 0 | Q63: =SUM(P$38,OFFSET(P$38,0,0,Q62+1,1)) -> 0 | R63: =SUM(T$38,OFFSET(T$38,0,0,R62+1,1)) -> 0 | S63: =SUM(V$38,OFFSET(V$38,0,0,S62+1,1)) -> 0 | U63: =P63+Q63+R63+S63+B40+B42+AB40+AB42 -> 309.3 | W63: Total Spd
P64: =SUM(L$38,OFFSET(L$38,0,0,P62+1,1)) -> 0 | Q64: =SUM(O$38,OFFSET(O$38,0,0,Q62+1,1)) -> 0 | R64: =SUM(R$38,OFFSET(R$38,0,0,R62+1,1)) -> 0 | S64: =SUM(U$38,OFFSET(U$38,0,0,S62+1,1)) -> 0 | U64: =B43+P64+Q64+R64+S64 -> 1050 | W64: Rank

Sheet Tbl_Mastery (hidden)
D1: TO | E1: PC | F1: BP | G1: TK | H1: NS | I1: ET | K1: DC | L1: US | M1: UA | N1: UB | O1: UC | P1: UD
D2: Token | E2: Pro Card | F2: BP Card | G2: Tuning Kit | H2: Nitro Starter | I2: Extra Tank | J2: License | K2: Double Credit | L2: Class S upgrade | M2: Class A upgrade | N2: Class B upgrade | O2: Class C upgrade | P2: Class D upgrade | Q2: Delta New Update
D3: =SUM(D4:D227) -> 10535 | E3: =SUM(E4:E227) -> 732 | G3: =SUM(G4:G227) -> 174 | H3: 207 | I3: 79 | J3: 6854 | K3: 20 | L3: 10 | M3: 16 | N3: 15 | O3: 18 | P3: 13
B4: 1967 Chevrolet Impala | C4: D | G4: 2 | J4: 18 | R4: =TRIM(CONCATENATE(IF(D4="","",CONCATENATE(" ",D4," ",D$1)),IF(E4="","",CONCATENATE(" ",E4," ",E$1)),IF(G4="","",CONCATENATE(" ",G4," ",G$1)),IF(H4="","",CONCATENATE(" ",H4," ",H$1)),IF(I4="","",CONCATENATE(" ",I4," ",I$1)),IF(K4="","",CONCATENATE(" ",K4," ",K$1)),IF(L4="","",CONCATENATE(" ",L4," ",L$1)),IF(M4="","",CONCATENATE(" ",M4," ",M$1)),IF(N4="","",CONCATENATE(" ",N4," ",N$1)),IF(O4="","",CONCATENATE(" ",O4," ",O$1)),IF(P4="","",CONCATENATE(" ",P4," ",P$1)))) -> 2 TK
B5: 2010 Bentley Continental Supersports | C5: B | G5: 4 | J5: 35 | R5: 4 TK
B6: 2015 Ford Mustang | C6: D | J6: 15 | P6: 2 | R6: =TRIM(CONCATENATE(IF(D6="","",CONCATENATE(" ",D6," ",D$1)),IF(E6="","",CONCATENATE(" ",E6," ",E$1)),IF(G6="","",CONCATENATE(" ",G6," ",G$1)),IF(H6="","",CONCATENATE(" ",H6," ",H$1)),IF(I6="","",CONCATENATE(" ",I6," ",I$1)),IF(K6="","",CONCATENATE(" ",K6," ",K$1)),IF(L6="","",CONCATENATE(" ",L6," ",L$1)),IF(M6="","",CONCATENATE(" ",M6," ",M$1)),IF(N6="","",CONCATENATE(" ",N6," ",N$1)),IF(O6="","",CONCATENATE(" ",O6," ",O$1)),IF(P6="","",CONCATENATE(" ",P6," ",P$1)))) -> 2 UD
B7: 2015 GTA Spano | C7: S | J7: 100
B8: 9FF GT9 VMAX | C8: S | D8: 150 | J8: 43 | R8: 150 TO
B9: AC 378 GT Z | C9: C | J9: 32 | K9: 1 | R9: 1 DC
B10: Acura NSX 2005 | C10: C | E10: 8 | J10: 27 | R10: 8 PC
B11: Alfa Romeo 4C | C11: D | I11: 2 | J11: 25 | R11: 2 ET
B12: Alfa Romeo 8C Competizione | C12: C | J12: 19 | O12: 1 | R12: 1 UC
B13: Alfa Romeo Giulietta 2016 Veloce | C13: D | D13: 75 | H13: 1 | J13: 16 | O13: 1 | R13: 75 TO 1 NS 1 UC
B14: Alfa Romeo MiTo GTA | C14: D | G14: 2 | H14: 1 | J14: 11 | R14: 2 TK 1 NS
B15: Apollo Intensa Emozione | C15: S | D15: 400 | F15: 2 | J15: 72 | R15: =TRIM(CONCATENATE(IF(D15="","",CONCATENATE(" ",D15," ",D$1)),IF(E15="","",CONCATENATE(" ",E15," ",E$1)),IF(F15="","",CONCATENATE(" ",F15," ",F$1)),IF(G15="","",CONCATENATE(" ",G15," ",G$1)),IF(H15="","",CONCATENATE(" ",H15," ",H$1)),IF(I15="","",CONCATENATE(" ",I15," ",I$1)),IF(K15="","",CONCATENATE(" ",K15," ",K$1)),IF(L15="","",CONCATENATE(" ",L15," ",L$1)),IF(M15="","",CONCATENATE(" ",M15," ",M$1)),IF(N15="","",CONCATENATE(" ",N15," ",N$1)),IF(O15="","",CONCATENATE(" ",O15," ",O$1)),IF(P15="","",CONCATENATE(" ",P15," ",P$1)))) -> 400 TO 2 BP
B16: Apollo N | C16: B | F16: 2 | J16: 37 | K16: 1 | R16: =TRIM(CONCATENATE(IF(D16="","",CONCATENATE(" ",D16," ",D$1)),IF(E16="","",CONCATENATE(" ",E16," ",E$1)),IF(F16="","",CONCATENATE(" ",F16," ",F$1)),IF(G16="","",CONCATENATE(" ",G16," ",G$1)),IF(H16="","",CONCATENATE(" ",H16," ",H$1)),IF(I16="","",CONCATENATE(" ",I16," ",I$1)),IF(K16="","",CONCATENATE(" ",K16," ",K$1)),IF(L16="","",CONCATENATE(" ",L16," ",L$1)),IF(M16="","",CONCATENATE(" ",M16," ",M$1)),IF(N16="","",CONCATENATE(" ",N16," ",N$1)),IF(O16="","",CONCATENATE(" ",O16," ",O$1)),IF(P16="","",CONCATENATE(" ",P16," ",P$1)))) -> 2 BP 1 DC | S16: Not verified
B17: Aprilia Tuono V4 1100 RR my2017 | C17: S | D17: 150 | E17: 60 | J17: =3+7+12+23 -> 45 | R17: 150 TO 60 PC | S17: ok
B18: Arash AF10 | C18: S | D18: 500 | J18: 71 | K18: 1 | R18: 500 TO 1 DC
B19: Ariel Atom V8 | C19: D | F19: 1 | I19: 2 | J19: 27 | R19: =TRIM(CONCATENATE(IF(D19="","",CONCATENATE(" ",D19," ",D$1)),IF(E19="","",CONCATENATE(" ",E19," ",E$1)),IF(F19="","",CONCATENATE(" ",F19," ",F$1)),IF(G19="","",CONCATENATE(" ",G19," ",G$1)),IF(H19="","",CONCATENATE(" ",H19," ",H$1)),IF(I19="","",CONCATENATE(" ",I19," ",I$1)),IF(K19="","",CONCATENATE(" ",K19," ",K$1)),IF(L19="","",CONCATENATE(" ",L19," ",L$1)),IF(M19="","",CONCATENATE(" ",M19," ",M$1)),IF(N19="","",CONCATENATE(" ",N19," ",N$1)),IF(O19="","",CONCATENATE(" ",O19," ",O$1)),IF(P19="","",CONCATENATE(" ",P19," ",P$1)))) -> 1 BP 2 ET
B20: Arrinera Hussarya | C20: B | I20: 1 | J20: 29 | R20: 1 ET
B21: Arrinera Hussarya GT | C21: S | D21: 200 | E21: 90 | J21: 60 | R21: 200 TO 90 PC
B22: Aston Martin DB9 Coupé | C22: B | H22: 1 | J22: 9 | N22: 1 | R22: 1 NS 1 UB
B23: Aston Martin One-77 | C23: A | D23: 250 | E23: 30 | J23: 52 | R23: 250 TO 30 PC
B24: Aston Martin V12 Vantage | C24: B | G24: 2 | J24: 19 | R24: 2 TK
B25: Aston Martin V12 Zagato | C25: B | G25: 2 | J25: 12 | N25: 1 | Q25: 1XB | R25: 2 TK 1 UB
B26: Aston Martin Vulcan | C26: S | D26: 300 | J26: 67 | R26: 300 TO
B27: Audi R8 e-tron | C27: D | G27: 1 | J27: 4 | O27: 1 | R27: 1 TK 1 UC
B28: Audi R8 e-tron Special Edition | C28: A | F28: 2 | H28: 2 | J28: 53 | R28: =TRIM(CONCATENATE(IF(D28="","",CONCATENATE(" ",D28," ",D$1)),IF(E28="","",CONCATENATE(" ",E28," ",E$1)),IF(F28="","",CONCATENATE(" ",F28," ",F$1)),IF(G28="","",CONCATENATE(" ",G28," ",G$1)),IF(H28="","",CONCATENATE(" ",H28," ",H$1)),IF(I28="","",CONCATENATE(" ",I28," ",I$1)),IF(K28="","",CONCATENATE(" ",K28," ",K$1)),IF(L28="","",CONCATENATE(" ",L28," ",L$1)),IF(M28="","",CONCATENATE(" ",M28," ",M$1)),IF(N28="","",CONCATENATE(" ",N28," ",N$1)),IF(O28="","",CONCATENATE(" ",O28," ",O$1)),IF(P28="","",CONCATENATE(" ",P28," ",P$1)))) -> 2 BP 2 NS
B29: Audi R8 LMS Ultra | C29: B | I29: 2 | J29: 31 | R29: 2 ET
B30: Audi RS 3 Sportback | C30: C | G30: 1 | J30: 4 | O30: 1 | R30: 1 TK 1 UC
B31: Audi RS 4 Avant | C31: C | J31: 19 | O31: 1 | R31: 1 UC
B32: Audi S4 | C32: D | H32: 1 | I32: 1 | J32: 12 | R32: 1 NS 1 ET
B33: Audi TTS Coupé | C33: C | G33: 1 | J33: 8 | O33: 1 | R33: 1 TK 1 UC
B34: Bentley Continental GT V8 | C34: B | G34: 2 | J34: 17 | R34: 2 TK
B35: Bentley EXP10 Speed 6 | C35: A | D35: 75 | J35: 47 | R35: 75 TO
B36: BMW 3.0 CSL Hommage | C36: A | D36: 200 | E36: 30 | J36: =10+40 -> 50 | R36: 200 TO 30 PC
B37: BMW M1 | C37: C | J37: 29 | O37: 1 | Q37: 1xC | R37: 1 UC
B38: BMW M2 | C38: C | D38: 75 | H38: 4 | J38: 29 | R38: 75 TO 4 NS
B39: BMW M3 Sedan | C39: D | J39: 18 | O39: 1 | Q39: 1xC | R39: 1 UC
B40: BMW M2 Special Edition | C40: B | F40: 1 | H40: 4 | J40: 36 | R40: =TRIM(CONCATENATE(IF(D40="","",CONCATENATE(" ",D40," ",D$1)),IF(E40="","",CONCATENATE(" ",E40," ",E$1)),IF(F40="","",CONCATENATE(" ",F40," ",F$1)),IF(G40="","",CONCATENATE(" ",G40," ",G$1)),IF(H40="","",CONCATENATE(" ",H40," ",H$1)),IF(I40="","",CONCATENATE(" ",I40," ",I$1)),IF(K40="","",CONCATENATE(" ",K40," ",K$1)),IF(L40="","",CONCATENATE(" ",L40," ",L$1)),IF(M40="","",CONCATENATE(" ",M40," ",M$1)),IF(N40="","",CONCATENATE(" ",N40," ",N$1)),IF(O40="","",CONCATENATE(" ",O40," ",O$1)),IF(P40="","",CONCATENATE(" ",P40," ",P$1)))) -> 1 BP 4 NS
B41: BMW M6 | C41: B | H41: 3 | J41: 22 | R41: 3 NS
B42: BMW S 1000 RR | C42: A | E42: 30 | H42: 3 | I42: 1 | J42: =2+6+21 -> 29 | R42: 30 PC 3 NS 1 ET
B43: Bugatti 16.4 Grand Sport Vitesse | C43: S | H43: 2 | I43: 1 | J43: 31 | R43: 2 NS 1 ET
B44: Buick 2013 Riviera | C44: C | F44: 1 | I44: 1 | J44: 32 | R44: =TRIM(CONCATENATE(IF(D44="","",CONCATENATE(" ",D44," ",D$1)),IF(E44="","",CONCATENATE(" ",E44," ",E$1)),IF(F44="","",CONCATENATE(" ",F44," ",F$1)),IF(G44="","",CONCATENATE(" ",G44," ",G$1)),IF(H44="","",CONCATENATE(" ",H44," ",H$1)),IF(I44="","",CONCATENATE(" ",I44," ",I$1)),IF(K44="","",CONCATENATE(" ",K44," ",K$1)),IF(L44="","",CONCATENATE(" ",L44," ",L$1)),IF(M44="","",CONCATENATE(" ",M44," ",M$1)),IF(N44="","",CONCATENATE(" ",N44," ",N$1)),IF(O44="","",CONCATENATE(" ",O44," ",O$1)),IF(P44="","",CONCATENATE(" ",P44," ",P$1)))) -> 1 BP 1 ET
B45: Buick Avista Concept | C45: D | H45: 3 | J45: 26 | R45: 3 NS
B46: BXR Bailey Blade GT1 | C46: B | D46: 120 | J46: 32 | R46: 120 TO
B47: Cadillac 16 Concept | C47: S | G47: 8 | H47: 18 | I47: 16 | R47: 8 TK 18 NS 16 ET
B48: Cadillac ATS | C48: D | G48: 1 | J48: 11 | O48: 1 | R48: 1 TK 1 UC
B49: Cadillac ATS-V Coupe | C49: C | G49: 3 | I49: 1 | J49: 28 | R49: 3 TK 1 ET
B50: Cadillac CTS-V Coupe Race Car | C50: A | H50: 2 | J50: 19 | M50: 1 | R50: 2 NS 1 UA
B51: Cadillac XTS | C51: D | G51: 2 | H51: 1 | J51: 11 | R51: 2 TK 1 NS
B52: Camaro Z/28 | C52: D | G52: 4 | H52: 6 | I52: 3 | Q52: 18xNS;12xTK;9xET | R52: 4 TK 6 NS 3 ET
B53: Chevrolet 2016 Camaro SS | C53: A | D53: 200 | J53: 45 | R53: 200 TO
B54: Chevrolet Camaro GS | C54: C | H54: 1 | J54: 7 | O54: 1 | R54: 1 NS 1 UC
B55: Chevrolet Corvette C3 | C55: A | D55: 200 | J55: 44 | R55: 200 TO
B56: Chevrolet Corvette C7 | C56: A | G56: 1 | J56: 23 | M56: 1 | Q56: 1xA | R56: 1 TK 1 UA
B57: Chevrolet Corvette Grand Sport | C57: A | H57: 4 | J57: 53 | R57: 4 NS
B58: Chevrolet SS | C58: B | I58: 2 | J58: 34 | R58: 2 ET
B59: Chrysler ME412 | C59: S | D59: 50 | J59: 40 | R59: 50 TO
B60: Datsun 280Z | C60: C | G60: 8 | H60: 12 | I60: 6 | Q60: 12xNS;8TK; 6xET | R60: 8 TK 12 NS 6 ET
B61: Devel Sixteen Prototype | C61: S | J61: =10+10+50 -> 70 | K61: 2 | R61: 2 DC
B62: Dodge Dart GT | C62: D | G62: 1 | J62: 4 | P62: 2 | R62: =TRIM(CONCATENATE(IF(D62="","",CONCATENATE(" ",D62," ",D$1)),IF(E62="","",CONCATENATE(" ",E62," ",E$1)),IF(G62="","",CONCATENATE(" ",G62," ",G$1)),IF(H62="","",CONCATENATE(" ",H62," ",H$1)),IF(I62="","",CONCATENATE(" ",I62," ",I$1)),IF(K62="","",CONCATENATE(" ",K62," ",K$1)),IF(L62="","",CONCATENATE(" ",L62," ",L$1)),IF(M62="","",CONCATENATE(" ",M62," ",M$1)),IF(N62="","",CONCATENATE(" ",N62," ",N$1)),IF(O62="","",CONCATENATE(" ",O62," ",O$1)),IF(P62="","",CONCATENATE(" ",P62," ",P$1)))) -> 1 TK 2 UD
B63: Dodge Viper SRT10 ACR-X | C63: A | H63: 2 | J63: 23 | M63: 1 | R63: 2 NS 1 UA
B64: Donkervoort D8 GTO | C64: D | I64: 2 | J64: 25 | R64: 2 ET
B65: DS 3 Racing | C65: D | I65: 1 | J65: 15 | R65: 1 ET
B66: DS Survolt | C66: B | G66: 1 | J66: 4 | N66: 1 | R66: 1 TK 1 UB
B67: Ducati Monster 1200 | C67: B | D67: 100 | H67: 2 | J67: =1+5+4+15 -> 25 | R67: 100 TO 2 NS
B68: Ducati SuperSport S | C68: A | H68: 2 | I68: 2 | J68: =2+5+4+15 -> 26 | R68: 2 NS 2 ET
B69: Ducati Xdiavel S | C69: B | F69: 1 | J69: =1+2+7+3+18 -> 31 | R69: =TRIM(CONCATENATE(IF(D69="","",CONCATENATE(" ",D69," ",D$1)),IF(E69="","",CONCATENATE(" ",E69," ",E$1)),IF(F69="","",CONCATENATE(" ",F69," ",F$1)),IF(G69="","",CONCATENATE(" ",G69," ",G$1)),IF(H69="","",CONCATENATE(" ",H69," ",H$1)),IF(I69="","",CONCATENATE(" ",I69," ",I$1)),IF(K69="","",CONCATENATE(" ",K69," ",K$1)),IF(L69="","",CONCATENATE(" ",L69," ",L$1)),IF(M69="","",CONCATENATE(" ",M69," ",M$1)),IF(N69="","",CONCATENATE(" ",N69," ",N$1)),IF(O69="","",CONCATENATE(" ",O69," ",O$1)),IF(P69="","",CONCATENATE(" ",P69," ",P$1)))) -> 1 BP
B70: ED Design Torq | C70: C | D70: 75 | G70: 4 | J70: 30 | R70: 75 TO 4 TK
B71: Falcon F7 | C71: B | J71: 35 | K71: 1 | R71: 1 DC
B72: Felino cB7 | C72: C | G72: 3 | J72: 28 | R72: 3 TK
B73: Ferrari 308 GTS | C73: D | J73: 18 | O73: 1 | Q73: 1xC | R73: 1 UC
B74: Ferrari 330 P4 | C74: A | J74: 38 | M74: 1 | Q74: 2xA | R74: 1 UA
B75: Ferrari 458 Italia | C75: B | H75: 2 | J75: 19 | N75: 1 | R75: 2 NS 1 UB
B76: Ferrari 599XX | C76: B | H76: 3 | I76: 1 | J76: 20 | R76: 3 NS 1 ET
B77: Ferrari 612 Scaglietti | C77: C | J77: 34 | K77: 1 | R77: 1 DC
B78: Ferrari Enzo Ferrari | C78: S | D78: 75 | J78: 48 | R78: 75 TO
B79: Ferrari F12berlinetta | C79: A | G79: 1 | J79: 23 | M79: 1 | Q79: 1xA | R79: 1 TK 1 UA
B80: Ferrari F40 | C80: B | J80: 30 | K80: 1 | R80: 1 DC
B81: Ferrari F430 | C81: A | E81: 4 | I81: 1 | J81: 27 | R81: 4 PC 1 ET
B82: Ferrari F50 | C82: B | J82: 34 | K82: 1 | R82: 1 DC
B83: Ferrari FF | C83: A | E83: 15 | J83: 34 | R83: 15 PC
B84: Ferrari FXX Evoluzione | C84: S | H84: 2 | J84: 19 | L84: 1 | R84: 2 NS 1 US
B85: Ferrari GTC4Lusso | C85: B | I85: 2 | J85: 35 | L85: 1 | R85: 2 ET 1 US
B86: Ferrari LaFerrari | C86: A | E86: 30 | J86: 24 | M86: 1 | R86: 30 PC 1 UA
B87: Ferrari Testarossa | C87: B | J87: 23 | N87: 1 | Q87: 2xB | R87: 1 UB
B88: Ford 2006 GT | C88: A | G88: 2 | J88: 27 | R88: 2 TK
B89: Ford F-150 | C89: D | I89: 1 | J89: 12 | P89: 2 | R89: 1 ET 2 UD
B90: Ford Focus RS | C90: C | H90: 2 | J90: 17 | R90: 2 NS
B91: Ford Shelby GT500 | C91: B | J91: 18 | N91: 2 | Q91: 1xB | R91: 2 UB
B92: Geely GC9 | C92: D | J92: 15 | O92: 2 | R92: 2 UC
B93: GT by CITROEN | C93: S | J93: 67 | T93: ok
B94: GTA Spano | C94: S | J94: 27 | L94: 2 | R94: 2 US
B95: Hennessey Venom GT | C95: S | D95: 120 | J95: 38 | R95: 120 TO
B96: Holden Coupe 60 | C96: B | D96: 75 | J96: 32 | K96: 1 | R96: 75 TO 1 DC
B97: Honda Civic Type-R | C97: C | E97: 60 | H97: 4 | J97: 35 | R97: 60 PC 4 NS
B98: Honda Integra Type-R | C98: B | H98: 3 | J98: =3+7+20 -> 30 | R98: 3 NS
B99: Honda S2000 | C99: D | G99: 4 | J99: 24 | R99: 4 TK
B100: Hot Wheels Bone Shaker™ | C100: C | J100: 0 | R100: Unavailable
B101: Hot Wheels Rip Rod™ | C101: D | J101: 0 | R101: Unavailable
B102: Hot Wheels Twin Mill™ | C102: B | J102: 0 | R102: Unavailable
B103: HTT Pléthore LC 750 | C103: S | D103: 175 | J103: 45 | R103: 175 TO
B104: Icona Vulcano V12 Hybrid | C104: A | D104: 150 | E104: 30 | J104: 45 | O104: 1 | R104: 150 TO 30 PC 1 UC
B105: Infiniti FX50 | C105: C | J105: 20 | O105: 1 | R105: 1 UC
B106: Jaguar C-X75 | C106: A | J106: 33 | M106: 1 | Q106: 1xA | R106: 1 UA
B107: Jaguar F-Type Project 7 | C107: C | D107: 125 | G107: 4 | J107: 33 | R107: 125 TO 4 TK | T107: ok
B108: Jaguar F-Type R | C108: C | I108: 1 | J108: 28 | R108: 1 ET
B109: Jaguar XJ220S | C109: A | D109: 150 | J109: 47 | R109: 150 TO | T109: ok
B110: Kawasaki Ninja H2R | C110: S | F110: 2 | G110: 5 | J110: =3+7+12+25 -> 47 | R110: =TRIM(CONCATENATE(IF(D110="","",CONCATENATE(" ",D110," ",D$1)),IF(E110="","",CONCATENATE(" ",E110," ",E$1)),IF(F110="","",CONCATENATE(" ",F110," ",F$1)),IF(G110="","",CONCATENATE(" ",G110," ",G$1)),IF(H110="","",CONCATENATE(" ",H110," ",H$1)),IF(I110="","",CONCATENATE(" ",I110," ",I$1)),IF(K110="","",CONCATENATE(" ",K110," ",K$1)),IF(L110="","",CONCATENATE(" ",L110," ",L$1)),IF(M110="","",CONCATENATE(" ",M110," ",M$1)),IF(N110="","",CONCATENATE(" ",N110," ",N$1)),IF(O110="","",CONCATENATE(" ",O110," ",O$1)),IF(P110="","",CONCATENATE(" ",P110," ",P$1)))) -> 2 BP 5 TK
B111: Kawasaki Z800 | C111: D | E111: 30 | G111: 1 | H111: 1 | J111: =1+5+10 -> 16 | R111: 30 PC 1 TK 1 NS | T111: ok
B112: Kepler Motion | C112: B | G112: 3 | J112: 42 | R112: 3 TK
B113: Koenigsegg Agera R | C113: S | G113: 2 | J113: 31 | L113: 1 | R113: =TRIM(CONCATENATE(IF(D113="","",CONCATENATE(" ",D113," ",D$1)),IF(E113="","",CONCATENATE(" ",E113," ",E$1)),IF(G113="","",CONCATENATE(" ",G113," ",G$1)),IF(H113="","",CONCATENATE(" ",H113," ",H$1)),IF(I113="","",CONCATENATE(" ",I113," ",I$1)),IF(K113="","",CONCATENATE(" ",K113," ",K$1)),IF(L113="","",CONCATENATE(" ",L113," ",L$1)),IF(M113="","",CONCATENATE(" ",M113," ",M$1)),IF(N113="","",CONCATENATE(" ",N113," ",N$1)),IF(O113="","",CONCATENATE(" ",O113," ",O$1)),IF(P113="","",CONCATENATE(" ",P113," ",P$1)))) -> 2 TK 1 US
B114: Koenigsegg One:1 | C114: S | D114: 150 | J114: 40 | R114: 150 TO
B115: KTM 1290 Super Duke R | C115: C | H115: 2 | J115: =1+3+5+3+8 -> 20 | R115: 2 NS
B116: Lamborghini Asterion | C116: A | G116: 2 | J116: 39 | R116: 2 TK
B117: Lamborghini Aventador LP 700-4 | C117: A | J117: 37 | L117: 1 | R117: 1 US
B118: Lamborghini Aventador SV | C118: S | H118: 6 | J118: 53 | R118: 6 NS | T118: ok
B119: Lamborghini Countach 25th Anniversary | C119: B | G119: 1 | J119: 9 | N119: 1 | R119: 1 TK 1 UB
B120: Lamborghini Egoista | C120: S | D120: 150 | J120: 50 | K120: 2 | R120: 150 TO 2 DC
B121: Lamborghini Estoque | C121: B | D121: 120 | J121: 35 | R121: 120 TO
B122: Lamborghini Gallardo LP 560-4 2013 | C122: B | G122: 2 | J122: 19 | N122: 1 | Q122: 1xB, 2xA | R122: 2 TK 1 UB
B123: Lamborghini Huracán | C123: S | G123: 5 | J123: 57 | R123: 5 TK
B124: Lamborghini Miura | C124: C | I124: 1 | J124: 30 | R124: 1 ET
B125: Lamborghini Sesto Elemento | C125: A | G125: 2 | H125: 3 | J125: 20 | Q125: 1xS | R125: 2 TK 3 NS
B126: Lamborghini Urus | C126: C | G126: 2 | H126: 2 | J126: 12 | Q126: 1XB | R126: 2 TK 2 NS
B127: Lamborghini Veneno | C127: S | H127: 2 | J127: 18 | L127: 1 | R127: 2 NS 1 US
B128: Lotus Evora Enduro GT | C128: B | J128: 19 | N128: 1 | R128: 1 UB
B129: Lotus Evora Sport 410 | C129: B | D129: 150 | H129: 4 | J129: 36 | R129: 150 TO 4 NS
B130: Lotus Exige S Coupe | C130: C | G130: 2 | J130: 14 | N130: 1 | R130: 2 TK 1 UB
B131: Lucra L148 | C131: A | I131: 1 | J131: 32 | R131: 1 ET
B132: Marussia B2 | C132: A | H132: 2 | J132: 23 | M132: 1 | R132: 2 NS 1 UA
B133: Maserati GranTurismo Sport | C133: B | H133: 1 | I133: 1 | J133: 12 | R133: 1 NS 1 ET
B134: Maserati MC12 | C134: B | I134: 1 | J134: 27 | R134: 1 ET
B135: Mazda 6 | C135: D | I135: 1 | J135: =1+5+10 -> 16 | R135: 1 ET
B136: Mazda Furai | C136: B | I136: 1 | J136: 29 | R136: 1 ET
B137: Mazda RX8 | C137: D | D137: 100 | G137: 1 | J137: =4+20 -> 24 | R137: 100 TO 1 TK
B138: Mazzanti Evantra | C138: A | D138: 85 | J138: 42 | R138: 85 TO
B139: McLaren 12C Spider | C139: A | G139: 1 | H139: 3 | J139: 14 | R139: 1 TK 3 NS
B140: McLaren 570S | C140: A | H140: 4 | J140: 43 | R140: 4 NS
B141: McLaren 650S GT3 | C141: A | E141: 60 | H141: 2 | J141: 35 | R141: 60 PC 2 NS
B142: McLaren 675LT | C142: A | H142: 4 | J142: 38 | R142: 4 NS
B143: McLaren F1 XP-5 | C143: S | D143: 200 | J143: 59 | R143: 200 TO
B144: McLaren M14A | C144: C | D144: 125 | J144: 52 | K144: 1 | R144: 125 TO 1 DC | T144: ok
B145: McLaren Mercedes MP4-25 | C145: A | D145: 200 | J145: 60 | R145: 200 TO | T145: ok
B146: McLaren MP4-31 | C146: S | D146: 725 | J146: 80 | R146: 725 TO | T146: ok
B147: McLaren MP4/8 | C147: B | D147: 150 | J147: 50 | K147: 1 | R147: 150 TO 1 DC | T147: ok
B148: McLaren P1 | C148: A | J148: 18 | L148: 1 | M148: 1 | R148: 1 US 1 UA
B149: McLaren P1™ GTR | C149: S | D149: 200 | J149: 45 | R149: 200 TO
B150: Mercedes-AMG C 63 Coupe Touring Car 2014 | C150: A | D150: 150 | J150: 43 | R150: 150 TO
B151: Mercedes-AMG GT3 | C151: B | D151: 150 | J151: 35 | R151: 150 TO | T151: ok
B152: Mercedes-Benz Biome | C152: B | J152: 25 | N152: 1 | Q152: 1XB | R152: 1 UB
B153: Mercedes-Benz CLA 45 AMG Racing Series | C153: C | D153: 250 | H153: 3 | J153: 34 | R153: 250 TO 3 NS
B154: Mercedes-Benz CLK GTR AMG | C154: B | G154: 3 | J154: 27 | R154: 3 TK
B155: Mercedes-Benz GLC Coupe | C155: C | D155: 70 | J155: 28 | R155: 70 TO
B156: Mercedes-Benz Silver Lightning | C156: S | E156: 15 | G156: 2 | J156: 22 | R156: 15 PC 2 TK
B157: Mercedes-Benz SL 65 AMG Black Series | C157: A | H157: 2 | J157: 14 | M157: 1 | R157: 2 NS 1 UA
B158: Mercedes-Benz SLK 55 AMG | C158: C | H158: 2 | J158: 29 | R158: 2 NS
B159: Mercedes-Benz SLK 55 AMG Special Edition | C159: A | D159: 225 | E159: 30 | J159: 51 | R159: 225 TO 30 PC
B160: Mercedes-Benz SLR McLaren 722 Edition | C160: S | D160: 300 | H160: 6 | J160: 53 | R160: 300 TO 6 NS
B161: Mercedes-Benz SLS AMG Electric Drive | C161: C | H161: 1 | J161: 5 | O161: 1 | R161: 1 NS 1 UC
B162: Mercedes-Benz SLS AMG GT Coupé Final Edition | C162: A | G162: 3 | J162: 33 | R162: 3 TK
B163: Mini Cooper S Roadster | C163: D | G163: 2 | J163: 12 | O163: 1 | R163: =TRIM(CONCATENATE(IF(D163="","",CONCATENATE(" ",D163," ",D$1)),IF(E163="","",CONCATENATE(" ",E163," ",E$1)),IF(G163="","",CONCATENATE(" ",G163," ",G$1)),IF(H163="","",CONCATENATE(" ",H163," ",H$1)),IF(I163="","",CONCATENATE(" ",I163," ",I$1)),IF(K163="","",CONCATENATE(" ",K163," ",K$1)),IF(L163="","",CONCATENATE(" ",L163," ",L$1)),IF(M163="","",CONCATENATE(" ",M163," ",M$1)),IF(N163="","",CONCATENATE(" ",N163," ",N$1)),IF(O163="","",CONCATENATE(" ",O163," ",O$1)),IF(P163="","",CONCATENATE(" ",P163," ",P$1)))) -> 2 TK 1 UC
B164: Mitsubishi Eclipse | C164: C | D164: 125 | J164: =7+25 -> 32 | K164: 1 | R164: 125 TO 1 DC
B165: Mitsubishi Lancer Evolution X | C165: D | J165: 18 | P165: 2 | Q165: 2x ET | R165: 2 UD
B166: Mosler GT3 | C166: A | I166: 3 | J166: 45 | R166: 3 ET
B167: Mosler Land Shark | C167: S | G167: 5 | J167: 55 | R167: 5 TK
B168: Mosler Super GT | C168: S | D168: 200 | J168: =7+12+40 -> 59 | R168: 200 TO
B169: nanoFlowcell Quant FE | C169: S | D169: 200 | J169: 50 | R169: 200 TO | T169: ok
B170: nanoFlowcell Quantino | C170: D | D170: 75 | G170: 2 | J170: 20 | R170: 75 TO 2 TK | T170: ok
B171: Nissan 370Z | C171: D | I171: 2 | J171: 12 | R171: 2 ET
B172: Nissan GT-R (R35) | C172: B | G172: 2 | H172: 2 | J172: 11 | Q172: 1XA | R172: 2 TK 2 NS
B173: Nissan GT-R NISMO | C173: A | E173: 15 | J173: 30 | R173: 15 PC
B174: Nissan Juke Nismo | C174: D | H174: 1 | J174: 16 | R174: 1 NS | T174: ok
B175: Nissan Skyline GT-R (R34) | C175: B | J175: 35 | K175: 1 | R175: 1 DC
B176: ONUK Sazan LM | C176: B | J176: 34 | M176: 1 | R176: 1 UA
B177: Pagani Huayra | C177: S | H177: 5 | J177: 28 | R177: 5 NS
B178: Pagani Huayra BC | C178: S | E178: 90 | J178: 60 | K178: 1 | R178: 90 PC 1 DC
B179: Pagani Zonda R | C179: A | G179: 1 | H179: 3 | J179: 22 | R179: 1 TK 3 NS
B180: Peugeot Onyx | C180: S | D180: 60 | J180: 38 | R180: 60 TO
B181: Peugeot RCZ R | C181: D | D181: 75 | J181: 16 | R181: 75 TO
B182: Peugeot SR1 | C182: B | D182: 100 | G182: 4 | J182: 29 | R182: 100 TO 4 TK
B183: Porsche 718 Boxster S | C183: C | H183: 2 | J183: 32 | R183: 2 NS
B184: Porsche 911 GT3 RS | C184: A | E184: 60 | J184: 44 | R184: 60 PC
B185: Porsche 918 Spyder with Weissach Package | C185: S | D185: 375 | G185: 5 | J185: 69 | R185: 375 TO 5 TK
B186: Porsche 959 | C186: D | I186: 2 | J186: 24 | R186: 2 ET
B187: Porsche Cayman GT4 | C187: B | J187: 32 | K187: 1 | R187: 1 DC
B188: Range Rover Evoque Coupe HSE Dynamic | C188: C | G188: 3 | J188: 25 | R188: 3 TK
B189: Renault Alpine Celebration | C189: C | D189: 275 | H189: 3 | J189: 33 | R189: 275 TO 3 NS | T189: ok
B190: Renault CLIO R.S. 200 EDC | C190: D | G190: 2 | J190: 14 | P190: 1 | Q190: 1xD; 1xB | R190: 2 TK 1 UD
B191: Renault DeZir | C191: D | J191: 14 | P191: 1 | Q191: 2xD | R191: 1 UD
B192: Renault Sport R.S. 01 | C192: S | G192: 5 | J192: 52 | R192: 5 TK
B193: Renault Trezor | C193: C | D193: 250 | E193: 30 | H193: 4 | J193: 35 | R193: 250 TO 30 PC 4 NS
B194: Rimac Concept One | C194: B | G194: 3 | J194: 30 | R194: 3 TK
B195: Rinspeed zaZen | C195: B | I195: 2 | J195: 30 | R195: 2 ET
B196: RUF CTR 3 | C196: S | G196: 2 | J196: 30 | L196: 1 | R196: 2 TK 1 US
B197: RUF RT 12 S | C197: A | G197: 2 | J197: 26 | M197: 1 | Q197: 2xA | R197: 2 TK 1 UA
B198: Savage Rivale GTR | C198: A | J198: 34 | M198: 1 | Q198: 1XA | R198: 1 UA
B199: Savage Rivale Roadyacht GTS | C199: A | E199: 15 | J199: 31 | R199: 15 PC
B200: Sbarro Alcador | C200: A | G200: 3 | J200: 40 | R200: 3 TK
... 27 more rows

Sheet Tbl_Car_Max (hidden)
B2: Car Names | D2: Level | E2: Price (cred) | F2: Price (tok) | G2: Price (bp) | H2: Price (lic) | I2: price Max sum | J2: Price Max acceleration | K2: Price Max Top speed | L2: Price Max Handling | M2: Price Max Nitro | N2: price token sum | O2: Price token acceleration | P2: Price token Top speed | Q2: Price token Handling | R2: Price token Nitro | S2: What it was | X2: What it is | AB2: Change
B3: Dodge Dart GT | C3: D | D3: 1 | J3: =X3 -> 250 | K3: 500 | L3: 250 | M3: 375 | S3: 200 | T3: 400 | U3: 200 | V3: 300 | X3: =S3*$AB$3 -> 250 | Y3: 500 | Z3: 250 | AA3: 375 | AB3: 1.25
B4: Dodge Dart GT | C4: D | D4: 2 | J4: 2500 | K4: 5625 | L4: 2500 | M4: 4375 | S4: 2000 | T4: 4500 | U4: 2000 | V4: 3500 | X4: 2500 | Y4: 5625 | Z4: 2500 | AA4: 4375
B5: Dodge Dart GT | C5: D | D5: 3 | J5: 4375 | K5: 10000 | L5: 4375 | M5: 6875 | S5: 3500 | T5: 8000 | U5: 3500 | V5: 5500 | X5: 4375 | Y5: 10000 | Z5: 4375 | AA5: 6875
B6: Dodge Dart GT | C6: D | D6: 4 | J6: 7500 | K6: 18750 | L6: 7500 | M6: 12500 | S6: 6000 | T6: 15000 | U6: 6000 | V6: 10000 | X6: 7500 | Y6: 18750 | Z6: 7500 | AA6: 12500
B7: Dodge Dart GT | C7: D | D7: 5 | J7: 9375 | K7: 25000 | L7: 9375 | M7: 18750 | S7: 10000 | T7: 20000 | U7: 10000 | V7: 15000 | X7: =S7*$AB$7 -> 9375 | Y7: =T7*$AB$3 -> 25000 | Z7: =U7*$AB$7 -> 9375 | AA7: =V7*$AB$3 -> 18750 | AB7: 0.9375
A8: =VLOOKUP(B8,Garage!$C$4:$K$271,9,FALSE) -> 0 | B8: Dodge Dart GT | C8: D | D8: T | E8: 0 | I8: =SUM(J8:M8) -> 150750 | J8: =SUM(J3:J7) -> 24000 | K8: =SUM(K3:K7) -> 59875 | L8: =SUM(L3:L7) -> 24000 | M8: =SUM(M3:M7) -> 42875
B9: Audi R8 e-tron | C9: D | D9: 1 | J9: 250 | K9: 500 | L9: 250 | M9: 375 | S9: Same changes as DART
B10: Audi R8 e-tron | C10: D | D10: 2 | J10: 2500 | K10: 5625 | L10: 2500 | M10: 4375
B11: Audi R8 e-tron | C11: D | D11: 3 | J11: 4375 | K11: 10000 | L11: 4375 | M11: 6875
B12: Audi R8 e-tron | C12: D | D12: 4 | J12: 7500 | K12: 18750 | L12: 7500 | M12: 12500
B13: Audi R8 e-tron | C13: D | D13: 5 | J13: 9375 | K13: 25000 | L13: 9375 | M13: 18750
A14: =VLOOKUP(B14,Garage!$C$4:$K$271,9,FALSE) -> 0 | B14: Audi R8 e-tron | C14: D | D14: T | E14: 7000 | I14: =SUM(J14:M14) -> 150750 | J14: =SUM(J9:J13) -> 24000 | K14: =SUM(K9:K13) -> 59875 | L14: =SUM(L9:L13) -> 24000 | M14: =SUM(M9:M13) -> 42875
B15: Tesla Model S | C15: D | D15: 1 | J15: =X15 -> 250 | K15: 500 | L15: 250 | M15: 375 | S15: 200 | T15: 400 | U15: 200 | V15: 300 | X15: =S15*$AB$15 -> 250 | Y15: 500 | Z15: 250 | AA15: 375 | AB15: 1.25
B16: Tesla Model S | C16: D | D16: 2 | J16: 2500 | K16: 5625 | L16: 2500 | M16: 4375 | S16: 2000 | T16: 4500 | U16: 2000 | V16: 3500 | X16: 2500 | Y16: 5625 | Z16: 2500 | AA16: 4375
B17: Tesla Model S | C17: D | D17: 3 | J17: 4375 | K17: 10000 | L17: 4375 | M17: 6875 | S17: 3500 | T17: 8000 | U17: 3500 | V17: 5500 | X17: 4375 | Y17: 10000 | Z17: 4375 | AA17: 6875
B18: Tesla Model S | C18: D | D18: 4 | J18: 7500 | K18: 18750 | L18: 7500 | M18: 12500 | S18: 6000 | T18: 15000 | U18: 6000 | V18: 10000 | X18: 7500 | Y18: 18750 | Z18: 7500 | AA18: 12500
B19: Tesla Model S | C19: D | D19: 5 | J19: 12500 | K19: 25000 | L19: 12500 | M19: 18750 | S19: 10000 | T19: 20000 | U19: 10000 | V19: 15000 | X19: 12500 | Y19: 25000 | Z19: 12500 | AA19: 18750
A20: =VLOOKUP(B20,Garage!$C$4:$K$271,9,FALSE) -> 0 | B20: Tesla Model S | C20: D | D20: T | E20: 7500 | I20: =SUM(J20:M20) -> 157000 | J20: =SUM(J15:J19) -> 27125 | K20: =SUM(K15:K19) -> 59875 | L20: =SUM(L15:L19) -> 27125 | M20: =SUM(M15:M19) -> 42875
B21: Cadillac ATS | C21: D | D21: 1 | J21: 250 | K21: 500 | L21: 250 | M21: 375 | S21: Same changes as Tesla
B22: Cadillac ATS | C22: D | D22: 2 | J22: 2500 | K22: 5625 | L22: 2500 | M22: 4375
B23: Cadillac ATS | C23: D | D23: 3 | J23: 4375 | K23: 10000 | L23: 4375 | M23: 6875
B24: Cadillac ATS | C24: D | D24: 4 | J24: 7500 | K24: 18750 | L24: 7500 | M24: 12500
B25: Cadillac ATS | C25: D | D25: 5 | J25: 12500 | K25: 25000 | L25: 12500 | M25: 18750
A26: =VLOOKUP(B26,Garage!$C$4:$K$271,9,FALSE) -> 0 | B26: Cadillac ATS | C26: D | D26: T | E26: 8000 | I26: =SUM(J26:M26) -> 157000 | J26: =SUM(J21:J25) -> 27125 | K26: =SUM(K21:K25) -> 59875 | L26: =SUM(L21:L25) -> 27125 | M26: =SUM(M21:M25) -> 42875 | S26: my previous calculated values | X26: wiki values
B27: Suzuki GSX-R750 | C27: D | D27: 1 | J27: 430 | K27: 920 | L27: 160 | M27: 650 | S27: 612 | T27: 612 | U27: 612 | V27: 612 | X27: 430 | Y27: 920 | Z27: 160 | AA27: 650
B28: Suzuki GSX-R750 | C28: D | D28: 2 | J28: 850 | K28: 1850 | L28: 300 | M28: 1300 | S28: 1190 | T28: 1190 | U28: 1190 | V28: 1190 | X28: 850 | Y28: 1850 | Z28: 300 | AA28: 1300
B29: Suzuki GSX-R750 | C29: D | D29: 3 | J29: 1300 | K29: 3300 | L29: 500 | M29: 2500 | S29: 1870 | T29: 2465 | U29: 1870 | V29: 2465 | X29: 1300 | Y29: 3300 | Z29: 500 | AA29: 2500
B30: Suzuki GSX-R750 | C30: D | D30: 4 | J30: 1300 | K30: 6000 | L30: 500 | M30: 4600 | S30: 1870 | T30: 5440 | U30: 1870 | V30: 4930 | X30: 1300 | Y30: 6000 | Z30: 500 | AA30: 4600
B31: Suzuki GSX-R750 | C31: D | D31: 5 | J31: 2600 | K31: 9300 | L31: 1000 | M31: 5500 | S31: 3740 | T31: 7990 | U31: 3740 | V31: 5440 | X31: 2600 | Y31: 9300 | Z31: 1000 | AA31: 5500
B32: Suzuki GSX-R750 | C32: D | D32: 6 | J32: 3500 | K32: 12200 | L32: 1300 | M32: 7300 | S32: 4930 | T32: 10370 | U32: 4930 | V32: 7310 | X32: 3500 | Y32: 12200 | Z32: 1300 | AA32: 7300
B33: Suzuki GSX-R750 | C33: D | D33: 7 | J33: 3900 | K33: 15800 | L33: 1500 | M33: 9100 | S33: 5440 | T33: 14110 | U33: 5440 | V33: 9180 | X33: 3900 | Y33: 15800 | Z33: 1500 | AA33: 9100
B34: Suzuki GSX-R750 | C34: D | D34: 8 | J34: 5200 | K34: 21300 | L34: 1900 | M34: 12100 | S34: 7310 | T34: 19040 | U34: 7310 | V34: 12240 | X34: 5200 | Y34: 21300 | Z34: 1900 | AA34: 12100
B35: Suzuki GSX-R750 | C35: D | D35: 9 | J35: 6500 | K35: 24600 | L35: 2400 | M35: 14600 | S35: 9180 | T35: 21420 | U35: 9180 | V35: 14620 | X35: 6500 | Y35: 24600 | Z35: 2400 | AA35: 14600
B36: Suzuki GSX-R750 | C36: D | D36: 10 | J36: 8600 | K36: 29200 | L36: 3200 | M36: 18900 | S36: 12240 | T36: 24480 | U36: 12240 | V36: 19040 | X36: 8600 | Y36: 29200 | Z36: 3200 | AA36: 18900
A37: =VLOOKUP(B37,Garage!$C$4:$K$271,9,FALSE) -> 0 | B37: Suzuki GSX-R750 | C37: D | D37: T | E37: 30000 | F37: 200 | I37: =SUM(J37:M37) -> 247960 | J37: =SUM(J27:J36) -> 34180 | K37: =SUM(K27:K36) -> 124470 | L37: =SUM(L27:L36) -> 12760 | M37: =SUM(M27:M36) -> 76550
B38: Cadillac XTS | C38: D | D38: 1 | J38: =X38 -> 250 | K38: 500 | L38: 250 | M38: 375 | S38: 200 | T38: 400 | U38: 200 | V38: 300 | X38: =S38*$AB$38 -> 250 | Y38: 500 | Z38: 250 | AA38: 375 | AB38: 1.25
B39: Cadillac XTS | C39: D | D39: 2 | J39: 2500 | K39: 5625 | L39: 2500 | M39: 4375 | S39: 2000 | T39: 4500 | U39: 2000 | V39: 3500 | X39: 2500 | Y39: 5625 | Z39: 2500 | AA39: 4375
B40: Cadillac XTS | C40: D | D40: 3 | J40: 4375 | K40: 10000 | L40: 4375 | M40: 6875 | S40: 3500 | T40: 8000 | U40: 3500 | V40: 5500 | X40: 4375 | Y40: 10000 | Z40: 4375 | AA40: 6875
B41: Cadillac XTS | C41: D | D41: 4 | J41: 7500 | K41: 18750 | L41: 7500 | M41: 12500 | S41: 6000 | T41: 15000 | U41: 6000 | V41: 10000 | X41: 7500 | Y41: 18750 | Z41: 7500 | AA41: 12500
B42: Cadillac XTS | C42: D | D42: 5 | J42: 15625 | K42: 31250 | L42: 15625 | M42: 25000 | S42: 12500 | T42: 25000 | U42: 12500 | V42: 20000 | X42: 15625 | Y42: 31250 | Z42: 15625 | AA42: 25000
A43: =VLOOKUP(B43,Garage!$C$4:$K$271,9,FALSE) -> 0 | B43: Cadillac XTS | C43: D | D43: T | E43: 10000 | F43: 160 | I43: =SUM(J43:M43) -> 175750 | J43: =SUM(J38:J42) -> 30250 | K43: =SUM(K38:K42) -> 66125 | L43: =SUM(L38:L42) -> 30250 | M43: =SUM(M38:M42) -> 49125
B44: Ford F-150 | C44: D | D44: 1 | J44: 250 | K44: 500 | L44: 250 | M44: 375 | S44: Same changes as XTS
B45: Ford F-150 | C45: D | D45: 2 | J45: 2500 | K45: 5625 | L45: 2500 | M45: 4375
B46: Ford F-150 | C46: D | D46: 3 | J46: 4375 | K46: 10000 | L46: 4375 | M46: 6875
B47: Ford F-150 | C47: D | D47: 4 | J47: 7500 | K47: 18750 | L47: 7500 | M47: 12500
B48: Ford F-150 | C48: D | D48: 5 | J48: 15625 | K48: 31250 | L48: 15625 | M48: 25000
A49: =VLOOKUP(B49,Garage!$C$4:$K$271,9,FALSE) -> 0 | B49: Ford F-150 | C49: D | D49: T | E49: 13000 | I49: =SUM(J49:M49) -> 175750 | J49: =SUM(J44:J48) -> 30250 | K49: =SUM(K44:K48) -> 66125 | L49: =SUM(L44:L48) -> 30250 | M49: =SUM(M44:M48) -> 49125
B50: Scion FR-S | C50: D | D50: 1 | J50: 250 | K50: 500 | L50: 250 | M50: 375 | S50: Same changes as XTS
B51: Scion FR-S | C51: D | D51: 2 | J51: 2500 | K51: 5625 | L51: 2500 | M51: 4375
B52: Scion FR-S | C52: D | D52: 3 | J52: 4375 | K52: 10000 | L52: 4375 | M52: 6875
B53: Scion FR-S | C53: D | D53: 4 | J53: 7500 | K53: 18750 | L53: 7500 | M53: 12500
B54: Scion FR-S | C54: D | D54: 5 | J54: 15625 | K54: 31250 | L54: 15625 | M54: 25000
A55: =VLOOKUP(B55,Garage!$C$4:$K$271,9,FALSE) -> 0 | B55: Scion FR-S | C55: D | D55: T | E55: 12000 | I55: =SUM(J55:M55) -> 175750 | J55: =SUM(J50:J54) -> 30250 | K55: =SUM(K50:K54) -> 66125 | L55: =SUM(L50:L54) -> 30250 | M55: =SUM(M50:M54) -> 49125
B56: Mini Cooper S Roadster | C56: D | D56: 1 | J56: 250 | K56: 500 | L56: 250 | M56: 375 | S56: Same changes as XTS
B57: Mini Cooper S Roadster | C57: D | D57: 2 | J57: 2500 | K57: 5625 | L57: 2500 | M57: 4375
B58: Mini Cooper S Roadster | C58: D | D58: 3 | J58: 4375 | K58: 10000 | L58: 4375 | M58: 6875
B59: Mini Cooper S Roadster | C59: D | D59: 4 | J59: 7500 | K59: 18750 | L59: 7500 | M59: 12500
B60: Mini Cooper S Roadster | C60: D | D60: 5 | J60: 15625 | K60: 31250 | L60: 15625 | M60: 25000
A61: =VLOOKUP(B61,Garage!$C$4:$K$271,9,FALSE) -> 0 | B61: Mini Cooper S Roadster | C61: D | D61: T | E61: 15000 | I61: =SUM(J61:M61) -> 175750 | J61: =SUM(J56:J60) -> 30250 | K61: =SUM(K56:K60) -> 66125 | L61: =SUM(L56:L60) -> 30250 | M61: =SUM(M56:M60) -> 49125
B62: Kawasaki Z800 | C62: D | D62: 1 | J62: 640 | K62: 1360 | L62: 230 | M62: 940 | S62: Same as wiki FIXED
B63: Kawasaki Z800 | C63: D | D63: 2 | J63: 1250 | K63: 2700 | L63: 500 | M63: 1900
B64: Kawasaki Z800 | C64: D | D64: 3 | J64: 1900 | K64: 4850 | L64: 700 | M64: 3650
B65: Kawasaki Z800 | C65: D | D65: 4 | J65: 1900 | K65: 8800 | L65: 700 | M65: 6800
B66: Kawasaki Z800 | C66: D | D66: 5 | J66: 3800 | K66: 13600 | L66: 1400 | M66: 8100
B67: Kawasaki Z800 | C67: D | D67: 6 | J67: 5100 | K67: 17900 | L67: 1900 | M67: 10800
B68: Kawasaki Z800 | C68: D | D68: 7 | J68: 5700 | K68: 23300 | L68: 2100 | M68: 13300
B69: Kawasaki Z800 | C69: D | D69: 8 | J69: 7600 | K69: 31300 | L69: 2900 | M69: 17800
B70: Kawasaki Z800 | C70: D | D70: 9 | J70: 9500 | K70: 36100 | L70: 3600 | M70: 21400
B71: Kawasaki Z800 | C71: D | D71: 10 | J71: 12700 | K71: 42800 | L71: 4800 | M71: 27800
A72: =VLOOKUP(B72,Garage!$C$4:$K$271,9,FALSE) -> 3 | B72: Kawasaki Z800 | C72: D | D72: T | G72: 4 | I72: =SUM(J72:M72) -> 364120 | J72: =SUM(J62:J71) -> 50090 | K72: =SUM(K62:K71) -> 182710 | L72: =SUM(L62:L71) -> 18830 | M72: =SUM(M62:M71) -> 112490
B73: Alfa Romeo MiTo GTA | C73: D | D73: 1 | J73: 250 | K73: 500 | L73: 250 | M73: 375 | S73: Same changes as XTS
B74: Alfa Romeo MiTo GTA | C74: D | D74: 2 | J74: 2500 | K74: 5625 | L74: 2500 | M74: 4375
B75: Alfa Romeo MiTo GTA | C75: D | D75: 3 | J75: 4375 | K75: 10000 | L75: 4375 | M75: 6875
B76: Alfa Romeo MiTo GTA | C76: D | D76: 4 | J76: 7500 | K76: 18750 | L76: 7500 | M76: 12500
B77: Alfa Romeo MiTo GTA | C77: D | D77: 5 | J77: 15625 | K77: 31250 | L77: 15625 | M77: 25000
A78: =VLOOKUP(B78,Garage!$C$4:$K$271,9,FALSE) -> 0 | B78: Alfa Romeo MiTo GTA | C78: D | D78: T | E78: 20000 | F78: 315 | I78: =SUM(J78:M78) -> 175750 | J78: =SUM(J73:J77) -> 30250 | K78: =SUM(K73:K77) -> 66125 | L78: =SUM(L73:L77) -> 30250 | M78: =SUM(M73:M77) -> 49125
B79: Renault CLIO R.S. 200 EDC | C79: D | D79: 1 | J79: 250 | K79: 500 | L79: 250 | M79: 375 | S79: Same changes as XTS
B80: Renault CLIO R.S. 200 EDC | C80: D | D80: 2 | J80: 2500 | K80: 5625 | L80: 2500 | M80: 4375
B81: Renault CLIO R.S. 200 EDC | C81: D | D81: 3 | J81: 4375 | K81: 10000 | L81: 4375 | M81: 6875
B82: Renault CLIO R.S. 200 EDC | C82: D | D82: 4 | J82: 7500 | K82: 18750 | L82: 7500 | M82: 12500
B83: Renault CLIO R.S. 200 EDC | C83: D | D83: 5 | J83: 15625 | K83: 31250 | L83: 15625 | M83: 25000
A84: =VLOOKUP(B84,Garage!$C$4:$K$271,9,FALSE) -> 0 | B84: Renault CLIO R.S. 200 EDC | C84: D | D84: T | E84: 25000 | I84: =SUM(J84:M84) -> 175750 | J84: =SUM(J79:J83) -> 30250 | K84: =SUM(K79:K83) -> 66125 | L84: =SUM(L79:L83) -> 30250 | M84: =SUM(M79:M83) -> 49125
B85: Volkswagen Beetle Turbo | C85: D | D85: 1 | J85: 940 | K85: 1880 | L85: 940 | M85: 1410 | S85: No change
B86: Volkswagen Beetle Turbo | C86: D | D86: 2 | J86: 9400 | K86: 21150 | L86: 9400 | M86: 16450
B87: Volkswagen Beetle Turbo | C87: D | D87: 3 | J87: 16450 | K87: 37600 | L87: 16450 | M87: 25850
B88: Volkswagen Beetle Turbo | C88: D | D88: 4 | J88: 28200 | K88: 70500 | L88: 28200 | M88: 47000
B89: Volkswagen Beetle Turbo | C89: D | D89: 5 | J89: 58800 | K89: 117500 | L89: 58800 | M89: 94000
A90: =VLOOKUP(B90,Garage!$C$4:$K$271,9,FALSE) -> 1 | B90: Volkswagen Beetle Turbo | C90: D | D90: T | E90: 26000 | F90: 180 | I90: =SUM(J90:M90) -> 660920 | J90: =SUM(J85:J89) -> 113790 | K90: =SUM(K85:K89) -> 248630 | L90: =SUM(L85:L89) -> 113790 | M90: =SUM(M85:M89) -> 184710
B91: Renault DeZir | C91: D | D91: 1 | J91: 1000 | K91: 2000 | L91: 1000 | M91: 1500 | S91: No change
B92: Renault DeZir | C92: D | D92: 2 | J92: 10000 | K92: 22500 | L92: 10000 | M92: 17500
B93: Renault DeZir | C93: D | D93: 3 | J93: 17500 | K93: 40000 | L93: 17500 | M93: 27500
B94: Renault DeZir | C94: D | D94: 4 | J94: 30000 | K94: 75000 | L94: 30000 | M94: 50000
B95: Renault DeZir | C95: D | D95: 5 | J95: 62500 | K95: 125000 | L95: 62500 | M95: 100000
A96: =VLOOKUP(B96,Garage!$C$4:$K$271,9,FALSE) -> 1 | B96: Renault DeZir | C96: D | D96: T | F96: 375 | I96: 703000 | J96: 121000 | K96: 264500 | L96: 121000 | M96: 196500 | S96: My previous values | X96: Wiki's values
B97: Peugeot RCZ R | C97: D | D97: 1 | J97: =S97 -> 1030 | K97: 2060 | L97: 1030 | M97: 1550 | S97: 1030 | T97: 2060 | U97: 1030 | V97: 1550 | X97: 1545 | Y97: 3090 | Z97: 1545 | AA97: 2325
B98: Peugeot RCZ R | C98: D | D98: 2 | J98: 10300 | K98: 23200 | L98: 10300 | M98: 18050 | S98: 10300 | T98: 23200 | U98: 10300 | V98: 18050 | X98: 15450 | Y98: 34800 | Z98: 15450 | AA98: 27075
B99: Peugeot RCZ R | C99: D | D99: 3 | J99: 18050 | K99: 41200 | L99: 18050 | M99: 28350 | S99: 18050 | T99: 41200 | U99: 18050 | V99: 28350 | X99: 27075 | Y99: 61800 | Z99: 27075 | AA99: 42525
B100: Peugeot RCZ R | C100: D | D100: 4 | J100: 30900 | K100: 77300 | L100: 30900 | M100: 51500 | S100: 30900 | T100: 77300 | U100: 30900 | V100: 51500 | X100: 46350 | Y100: 115950 | Z100: 46350 | AA100: 77250
B101: Peugeot RCZ R | C101: D | D101: 5 | J101: 64400 | K101: 128800 | L101: 64400 | M101: 103000 | S101: 64400 | T101: 128800 | U101: 64400 | V101: 103000 | X101: 96600 | Y101: 193200 | Z101: 96600 | AA101: 154500
A102: =VLOOKUP(B102,Garage!$C$4:$K$271,9,FALSE) -> 3 | B102: Peugeot RCZ R | C102: D | D102: T | F102: 525 | G102: 8 | I102: =SUM(J102:M102) -> 724370 | J102: =SUM(J97:J101) -> 124680 | K102: =SUM(K97:K101) -> 272560 | L102: =SUM(L97:L101) -> 124680 | M102: =SUM(M97:M101) -> 202450 | O102: BP cost is a wild guess
B103: DS 3 Racing | C103: D | D103: 1 | J103: 1030 | K103: 2060 | L103: 1030 | M103: 1550 | S103: BP
B104: DS 3 Racing | C104: D | D104: 2 | J104: 10300 | K104: 23200 | L104: 10300 | M104: 18050
B105: DS 3 Racing | C105: D | D105: 3 | J105: 18050 | K105: 41200 | L105: 18050 | M105: 28350
B106: DS 3 Racing | C106: D | D106: 4 | J106: 30900 | K106: 77300 | L106: 30900 | M106: 51500
B107: DS 3 Racing | C107: D | D107: 5 | J107: 64400 | K107: 128800 | L107: 64400 | M107: 103000
A108: =VLOOKUP(B108,Garage!$C$4:$K$271,9,FALSE) -> 3 | B108: DS 3 Racing | C108: D | D108: T | E108: 105000 | G108: 12 | I108: 724370 | J108: 124680 | K108: 272560 | L108: 124680 | M108: 202450
B109: Audi S4 | C109: D | D109: 1 | J109: 250 | K109: 500 | L109: 250 | M109: 375 | S109: Same changes as XTS
B110: Audi S4 | C110: D | D110: 2 | J110: 2500 | K110: 5625 | L110: 2500 | M110: 4375
B111: Audi S4 | C111: D | D111: 3 | J111: 4375 | K111: 10000 | L111: 4375 | M111: 6875
B112: Audi S4 | C112: D | D112: 4 | J112: 7500 | K112: 18750 | L112: 7500 | M112: 12500
B113: Audi S4 | C113: D | D113: 5 | J113: 15625 | K113: 31250 | L113: 15625 | M113: 25000
A114: =VLOOKUP(B114,Garage!$C$4:$K$271,9,FALSE) -> 0 | B114: Audi S4 | C114: D | D114: T | E114: 30000 | I114: =SUM(J114:M114) -> 175750 | J114: =SUM(J109:J113) -> 30250 | K114: =SUM(K109:K113) -> 66125 | L114: =SUM(L109:L113) -> 30250 | M114: =SUM(M109:M113) -> 49125
B115: Nissan 370Z | C115: D | D115: 1 | J115: 250 | K115: 500 | L115: 250 | M115: 375 | S115: Same changes as XTS
B116: Nissan 370Z | C116: D | D116: 2 | J116: 2500 | K116: 5625 | L116: 2500 | M116: 4375
B117: Nissan 370Z | C117: D | D117: 3 | J117: 4375 | K117: 10000 | L117: 4375 | M117: 6875
B118: Nissan 370Z | C118: D | D118: 4 | J118: 7500 | K118: 18750 | L118: 7500 | M118: 12500
B119: Nissan 370Z | C119: D | D119: 5 | J119: 15625 | K119: 31250 | L119: 15625 | M119: 25000
A120: =VLOOKUP(B120,Garage!$C$4:$K$271,9,FALSE) -> 0 | B120: Nissan 370Z | C120: D | D120: T | E120: 50000 | I120: =SUM(J120:M120) -> 175750 | J120: =SUM(J115:J119) -> 30250 | K120: =SUM(K115:K119) -> 66125 | L120: =SUM(L115:L119) -> 30250 | M120: =SUM(M115:M119) -> 49125
B121: Camaro Z/28 | C121: D | D121: 1 | J121: 1090 | K121: 2180 | L121: 1090 | M121: 1640 | S121: No change
B122: Camaro Z/28 | C122: D | D122: 2 | J122: 10900 | K122: 24550 | L122: 10900 | M122: 19100
B123: Camaro Z/28 | C123: D | D123: 3 | J123: 19100 | K123: 43600 | L123: 19100 | M123: 30000
B124: Camaro Z/28 | C124: D | D124: 4 | J124: 32700 | K124: 81800 | L124: 32700 | M124: 54500
B125: Camaro Z/28 | C125: D | D125: 5 | J125: 68100 | K125: 136300 | L125: 68100 | M125: 109000
A126: =VLOOKUP(B126,Garage!$C$4:$K$271,9,FALSE) -> 2 | B126: Camaro Z/28 | C126: D | D126: T | E126: 0 | H126: 300 | I126: 766450 | J126: 131890 | K126: 288430 | L126: 131890 | M126: 214240
B127: 1967 Chevrolet Impala | C127: D | D127: 1 | J127: 10050 | K127: 14360 | L127: 10050 | M127: 11490 | S127: BP
B128: 1967 Chevrolet Impala | C128: D | D128: 2 | J128: 16800 | K128: 37500 | L128: 16800 | M128: 27150
B129: 1967 Chevrolet Impala | C129: D | D129: 3 | J129: 29750 | K129: 64650 | L129: 29750 | M129: 47850
B130: 1967 Chevrolet Impala | C130: D | D130: 4 | J130: 33600 | K130: 71100 | L130: 33600 | M130: 51700
B131: 1967 Chevrolet Impala | C131: D | D131: 5 | J131: 38800 | K131: 77600 | L131: 38800 | M131: 58200
A132: =VLOOKUP(B132,Garage!$C$4:$K$271,9,FALSE) -> 3 | B132: 1967 Chevrolet Impala | C132: D | D132: T | F132: 1000 | G132: 14 | I132: =SUM(J132:M132) -> 719600 | J132: =SUM(J127:J131) -> 129000 | K132: =SUM(K127:K131) -> 265210 | L132: =SUM(L127:L131) -> 129000 | M132: =SUM(M127:M131) -> 196390
B133: Honda S2000 | C133: D | D133: 1 | J133: 5720 | K133: 13340 | L133: 5720 | M133: 9530 | S133: No change
B134: Honda S2000 | C134: D | D134: 2 | J134: 41300 | K134: 92100 | L134: 41300 | M134: 66700
B135: Honda S2000 | C135: D | D135: 3 | J135: 73050 | K135: 158750 | L135: 73050 | M135: 117500
B136: Honda S2000 | C136: D | D136: 4 | J136: 108000 | K136: 238100 | L136: 108000 | M136: 177800
B137: Honda S2000 | C137: D | D137: 5 | J137: 158800 | K137: 381000 | L137: 158800 | M137: 285800
A138: =VLOOKUP(B138,Garage!$C$4:$K$271,9,FALSE) -> 0 | B138: Honda S2000 | C138: D | D138: T | E138: 150000 | I138: 2314360 | J138: 386870 | K138: 883290 | L138: 386870 | M138: 657330
B139: 2015 Ford Mustang | C139: D | D139: 1 | J139: 430 | K139: 860 | L139: 430 | M139: 640 | S139: No change
B140: 2015 Ford Mustang | C140: D | D140: 2 | J140: 4300 | K140: 9650 | L140: 4300 | M140: 7500
B141: 2015 Ford Mustang | C141: D | D141: 3 | J141: 7500 | K141: 17100 | L141: 7500 | M141: 11750
B142: 2015 Ford Mustang | C142: D | D142: 4 | J142: 12800 | K142: 32100 | L142: 12800 | M142: 21400
B143: 2015 Ford Mustang | C143: D | D143: 5 | J143: 26800 | K143: 53500 | L143: 26800 | M143: 42800
A144: =VLOOKUP(B144,Garage!$C$4:$K$271,9,FALSE) -> 1 | B144: 2015 Ford Mustang | C144: D | D144: T | F144: 1100 | I144: 300960 | J144: 51830 | K144: 113210 | L144: 51830 | M144: 84090
B145: Nissan Juke Nismo | C145: D | D145: 1 | J145: 1390 | K145: 2780 | L145: 1390 | M145: 2080 | S145: No change
B146: Nissan Juke Nismo | C146: D | D146: 2 | J146: 13900 | K146: 31200 | L146: 13900 | M146: 24300
B147: Nissan Juke Nismo | C147: D | D147: 3 | J147: 20650 | K147: 47200 | L147: 20650 | M147: 32450
B148: Nissan Juke Nismo | C148: D | D148: 4 | J148: 29100 | K148: 72800 | L148: 29100 | M148: 48600
B149: Nissan Juke Nismo | C149: D | D149: 5 | J149: 60700 | K149: 121400 | L149: 60700 | M149: 97100
A150: =VLOOKUP(B150,Garage!$C$4:$K$271,9,FALSE) -> 0 | B150: Nissan Juke Nismo | C150: D | D150: T | E150: 95000 | F150: 1100 | I150: 731390 | J150: 125740 | K150: 275380 | L150: 125740 | M150: 204530
B151: Alfa Romeo Giulietta 2016 Veloce | C151: D | D151: 1 | J151: 1550 | K151: 3100 | L151: 1550 | M151: 2320 | S151: BP
B152: Alfa Romeo Giulietta 2016 Veloce | C152: D | D152: 2 | J152: 15500 | K152: 34850 | L152: 15500 | M152: 27100
B153: Alfa Romeo Giulietta 2016 Veloce | C153: D | D153: 3 | J153: 23050 | K153: 52700 | L153: 23050 | M153: 36250
B154: Alfa Romeo Giulietta 2016 Veloce | C154: D | D154: 4 | J154: 32500 | K154: 81400 | L154: 32500 | M154: 54200
B155: Alfa Romeo Giulietta 2016 Veloce | C155: D | D155: 5 | J155: 67800 | K155: 135600 | L155: 67800 | M155: 108500
A156: =VLOOKUP(B156,Garage!$C$4:$K$271,9,FALSE) -> 3 | B156: Alfa Romeo Giulietta 2016 Veloce | C156: D | D156: T | E156: 170000 | F156: 1200 | G156: 16 | I156: 816820 | J156: 140400 | K156: 307650 | L156: 140400 | M156: 228370
B157: Hot Wheels Rip Rod™ | C157: D | D157: 1 | J157: 1650 | K157: 3300 | L157: 1650 | M157: 2480 | S157: Same as wiki
B158: Hot Wheels Rip Rod™ | C158: D | D158: 2 | J158: 16500 | K158: 37150 | L158: 16500 | M158: 28900
B159: Hot Wheels Rip Rod™ | C159: D | D159: 3 | J159: 24550 | K159: 56100 | L159: 24550 | M159: 38550
B160: Hot Wheels Rip Rod™ | C160: D | D160: 4 | J160: 34700 | K160: 86600 | L160: 34700 | M160: 57800
B161: Hot Wheels Rip Rod™ | C161: D | D161: 5 | J161: 66000 | K161: 132000 | L161: 66000 | M161: 99000
A162: =VLOOKUP(B162,Garage!$C$4:$K$271,9,FALSE) -> 1 | B162: Hot Wheels Rip Rod™ | C162: D | D162: T | F162: 2100 | I162: =SUM(J162:M162) -> 828680 | J162: =SUM(J157:J161) -> 143400 | K162: =SUM(K157:K161) -> 315150 | L162: =SUM(L157:L161) -> 143400 | M162: =SUM(M157:M161) -> 226730
B163: Porsche 959 | C163: D | D163: 1 | J163: 1550 | K163: 3100 | L163: 1550 | M163: 2320 | S163: BP
B164: Porsche 959 | C164: D | D164: 2 | J164: 15500 | K164: 34850 | L164: 15500 | M164: 27100
B165: Porsche 959 | C165: D | D165: 3 | J165: 23050 | K165: 52700 | L165: 23050 | M165: 36250
B166: Porsche 959 | C166: D | D166: 4 | J166: 32500 | K166: 81400 | L166: 32500 | M166: 54200
B167: Porsche 959 | C167: D | D167: 5 | J167: 67800 | K167: 135600 | L167: 67800 | M167: 108500
A168: =VLOOKUP(B168,Garage!$C$4:$K$271,9,FALSE) -> 3 | B168: Porsche 959 | C168: D | D168: T | F168: 1100 | G168: 14 | I168: 816820 | J168: 140400 | K168: 307650 | L168: 140400 | M168: 228370
B169: Ferrari 308 GTS | C169: D | D169: 1 | J169: 1120 | K169: 2240 | L169: 1120 | M169: 1680 | S169: No change
B170: Ferrari 308 GTS | C170: D | D170: 2 | J170: 11200 | K170: 25200 | L170: 11200 | M170: 19600
B171: Ferrari 308 GTS | C171: D | D171: 3 | J171: 19600 | K171: 44800 | L171: 19600 | M171: 30800
B172: Ferrari 308 GTS | C172: D | D172: 4 | J172: 33600 | K172: 84000 | L172: 33600 | M172: 56000
B173: Ferrari 308 GTS | C173: D | D173: 5 | J173: 70000 | K173: 140000 | L173: 70000 | M173: 112000
A174: =VLOOKUP(B174,Garage!$C$4:$K$271,9,FALSE) -> 0 | B174: Ferrari 308 GTS | C174: D | D174: T | E174: 120000 | F174: 1100 | I174: 787360 | J174: 135520 | K174: 296240 | L174: 135520 | M174: 220080
B175: BMW M3 Sedan | C175: D | D175: 1 | J175: 5090 | K175: 11870 | L175: 5090 | M175: 8480 | S175: No change
B176: BMW M3 Sedan | C176: D | D176: 2 | J176: 36750 | K176: 81950 | L176: 36750 | M176: 59350
B177: BMW M3 Sedan | C177: D | D177: 3 | J177: 65000 | K177: 141250 | L177: 65000 | M177: 104550
B178: BMW M3 Sedan | C178: D | D178: 4 | J178: 96100 | K178: 211900 | L178: 96100 | M178: 158200
B179: BMW M3 Sedan | C179: D | D179: 5 | J179: 141300 | K179: 339000 | L179: 141300 | M179: 254300
A180: =VLOOKUP(B180,Garage!$C$4:$K$271,9,FALSE) -> 1 | B180: BMW M3 Sedan | C180: D | D180: T | F180: 1200 | I180: 2059330 | J180: 344240 | K180: 785970 | L180: 344240 | M180: 584880
B181: Mazda 6 | C181: D | D181: 1 | J181: 3200 | K181: 7040 | L181: 3200 | M181: 5120 | S181: BP
B182: Mazda 6 | C182: D | D182: 2 | J182: 25600 | K182: 57600 | L182: 25600 | M182: 41600
B183: Mazda 6 | C183: D | D183: 3 | J183: 44800 | K183: 102400 | L183: 44800 | M183: 73600
B184: Mazda 6 | C184: D | D184: 4 | J184: 83200 | K184: 192000 | L184: 83200 | M184: 140800
B185: Mazda 6 | C185: D | D185: 5 | J185: 128000 | K185: 288000 | L185: 128000 | M185: 224000
A186: =VLOOKUP(B186,Garage!$C$4:$K$271,9,FALSE) -> 3 | B186: Mazda 6 | C186: D | D186: T | E186: 270000 | G186: 20 | I186: 1701760 | J186: 284800 | K186: 647040 | L186: 284800 | M186: 485120
B187: Geely GC9 | C187: D | D187: 1 | J187: 1120 | K187: 2240 | L187: 1120 | M187: 1680 | S187: No change
B188: Geely GC9 | C188: D | D188: 2 | J188: 11200 | K188: 25200 | L188: 11200 | M188: 19600
B189: Geely GC9 | C189: D | D189: 3 | J189: 19600 | K189: 44800 | L189: 19600 | M189: 30800
B190: Geely GC9 | C190: D | D190: 4 | J190: 33600 | K190: 84000 | L190: 33600 | M190: 56000
B191: Geely GC9 | C191: D | D191: 5 | J191: 70000 | K191: 140000 | L191: 70000 | M191: 112000
A192: =VLOOKUP(B192,Garage!$C$4:$K$271,9,FALSE) -> 2 | B192: Geely GC9 | C192: D | D192: T | E192: 125000 | F192: 1350 | H192: 100 | I192: 787360 | J192: 135520 | K192: 296240 | L192: 135520 | M192: 220080
B193: Subaru Impreza WRX STI | C193: D | D193: 1 | J193: 5350 | K193: 12490 | L193: 5350 | M193: 8920 | S193: No change
B194: Subaru Impreza WRX STI | C194: D | D194: 2 | J194: 38650 | K194: 86250 | L194: 38650 | M194: 62450
B195: Subaru Impreza WRX STI | C195: D | D195: 3 | J195: 68400 | K195: 148750 | L195: 68400 | M195: 110050
B196: Subaru Impreza WRX STI | C196: D | D196: 4 | J196: 101100 | K196: 223100 | L196: 101100 | M196: 166600
B197: Subaru Impreza WRX STI | C197: D | D197: 5 | J197: 148700 | K197: 357000 | L197: 148700 | M197: 267700
A198: =VLOOKUP(B198,Garage!$C$4:$K$271,9,FALSE) -> 0 | B198: Subaru Impreza WRX STI | C198: D | D198: T | E198: 200000 | F198: 1625 | I198: 2167710 | J198: 362200 | K198: 827590 | L198: 362200 | M198: 615720
B199: nanoFlowcell Quantino | C199: D | D199: 1 | J199: 5160 | K199: 10960 | L199: 5160 | M199: 8060 | S199: No change
B200: nanoFlowcell Quantino | C200: D | D200: 2 | J200: 40300 | K200: 90300 | L200: 40300 | M200: 65450
B201: nanoFlowcell Quantino | C201: D | D201: 3 | J201: 45150 | K201: 103200 | L201: 45150 | M201: 74150
... 1177 more rows

Sheet Tbl_Car_Pro (hidden)
E2: Tires | L2: Suspension | S2: Drive Train | Z2: Exhaust
B3: Car Name | D3: Level | E3: Tir Part name | F3: Tir Part qty | G3: Tir Engine name | H3: Tir Engine qty | I3: Tir Dev name | J3: Tir Dev qty | K3: Tir Pro Price | L3: Sus Part name | M3: Sus Part qty | N3: Sus Engine name | O3: Sus Engine qty | P3: Sus Dev name | Q3: Sus Dev qty | R3: Sus Pro Price | S3: DrTr Part name | T3: DrTr Part qty | U3: DrTr Engine name | V3: DrTr Engine qty | W3: DrTr Dev name | X3: DrTr Dev qty | Y3: DrTr Pro Price | Z3: Exh Part name | AA3: Exh Part qty | AB3: Exh Engine name | AC3: Exh Engine qty | AD3: Exh Dev name | AE3: Exh Dev qty | AF3: Exh Pro Price | AH3: Price checked 1st step only 2017
B4: Dodge Dart GT | C4: D | D4: 1 | E4: Tires - D | F4: 1 | G4: i4 | H4: 0 | I4: Initial Tech | J4: 0 | K4: 0 | L4: Suspension - D | M4: 1 | N4: i4 | O4: 0 | P4: Early Tech | Q4: 0 | R4: 360 | S4: Drive Train - D | T4: 1 | U4: i4 | V4: 0 | W4: Initial Tech | X4: 0 | Y4: 440 | Z4: Exhaust - D | AA4: 1 | AB4: i4 | AC4: 0 | AD4: Early Tech | AE4: 0 | AF4: 400 | AH4: OK
B5: Audi R8 e-tron | C5: D | D5: 1 | E5: Tires - D | F5: 1 | G5: Electric | H5: 0 | I5: Early Tech | J5: 0 | K5: 403 | L5: Suspension - D | M5: 1 | N5: Electric | O5: 0 | P5: Initial Tech | Q5: 0 | R5: 315 | S5: Drive Train - D | T5: 1 | U5: Electric | V5: 0 | W5: Early Tech | X5: 0 | Y5: 385 | Z5: Exhaust - D | AA5: 1 | AB5: Electric | AC5: 0 | AD5: Initial Tech | AE5: 0 | AF5: 350 | AH5: OK
B6: Tesla Model S | C6: D | D6: 1 | E6: Tires - D | F6: 1 | G6: Electric | H6: 0 | I6: Initial Tech | J6: 0 | K6: 413 | L6: Suspension - D | M6: 1 | N6: Electric | O6: 0 | P6: Early Tech | Q6: 0 | R6: 325 | S6: Drive Train - D | T6: 1 | U6: Electric | V6: 0 | W6: Initial Tech | X6: 0 | Y6: 400 | Z6: Exhaust - D | AA6: 1 | AB6: Electric | AC6: 0 | AD6: Early Tech | AE6: 0 | AF6: 350 | AH6: OK
B7: Tesla Model S | C7: D | D7: 2 | E7: Tires - D | F7: 1 | G7: Electric | H7: 0 | I7: Early Tech | J7: 0 | K7: 2500 | L7: Suspension - D | M7: 1 | N7: Electric | O7: 0 | P7: Initial Tech | Q7: 0 | R7: 2000 | S7: Drive Train - D | T7: 1 | U7: Electric | V7: 0 | W7: Early Tech | X7: 0 | Y7: 2500 | Z7: Exhaust - D | AA7: 1 | AB7: Electric | AC7: 0 | AD7: Initial Tech | AE7: 0 | AF7: 2300
B8: Cadillac ATS | C8: D | D8: 1 | E8: Tires - D | F8: 1 | G8: v6 | H8: 0 | I8: Early Tech | J8: 0 | K8: 371 | L8: Suspension - D | M8: 1 | N8: v6 | O8: 0 | P8: Initial Tech | Q8: 0 | R8: 293 | S8: Drive Train - D | T8: 1 | U8: v6 | V8: 0 | W8: Early Tech | X8: 0 | Y8: 360 | Z8: Exhaust - D | AA8: 1 | AB8: v6 | AC8: 0 | AD8: Initial Tech | AE8: 0 | AF8: 315 | AH8: OK
B9: Cadillac ATS | C9: D | D9: 2 | E9: Tires - D | F9: 1 | G9: v6 | H9: 0 | I9: Initial Tech | J9: 0 | K9: 2250 | L9: Suspension - D | M9: 1 | N9: v6 | O9: 0 | P9: Early Tech | Q9: 0 | R9: 1800 | S9: Drive Train - D | T9: 1 | U9: v6 | V9: 0 | W9: Initial Tech | X9: 0 | Y9: 2250 | Z9: Exhaust - D | AA9: 1 | AB9: v6 | AC9: 0 | AD9: Early Tech | AE9: 0 | AF9: 2070
B10: Suzuki GSX-R750 | C10: D | D10: 1 | E10: Bike Tires - D | F10: 1 | G10: Four-Stroke | H10: 0 | I10: Initial Tech | J10: 0 | K10: 325 | L10: Fork Tubes - D | M10: 1 | N10: Four-Stroke | O10: 0 | P10: Early Tech | Q10: 0 | R10: 250 | S10: Transmission - D | T10: 1 | U10: Four-Stroke | V10: 0 | W10: Initial Tech | X10: 0 | Y10: 325 | Z10: Bike Exhaust - D | AA10: 1 | AB10: Four-Stroke | AC10: 0 | AD10: Early Tech | AE10: 0 | AF10: 275 | AH10: OK
B11: Suzuki GSX-R750 | C11: D | D11: 2 | E11: Bike Tires - D | F11: 1 | G11: Four-Stroke | H11: 0 | I11: Initial Tech | J11: 0 | K11: 1275 | L11: Fork Tubes - D | M11: 1 | N11: Four-Stroke | O11: 0 | P11: Early Tech | Q11: 0 | R11: 1025 | S11: Transmission - D | T11: 1 | U11: Four-Stroke | V11: 0 | W11: Initial Tech | X11: 0 | Y11: 1275 | Z11: Bike Exhaust - D | AA11: 1 | AB11: Four-Stroke | AC11: 0 | AD11: Early Tech | AE11: 0 | AF11: 1175
B12: Suzuki GSX-R750 | C12: D | D12: 3 | E12: Bike Tires - D | F12: 1 | G12: Four-Stroke | H12: 0 | I12: Initial Tech | J12: 0 | K12: 1925 | L12: Fork Tubes - D | M12: 1 | N12: Four-Stroke | O12: 0 | P12: Early Tech | Q12: 0 | R12: 1550 | S12: Transmission - D | T12: 1 | U12: Four-Stroke | V12: 0 | W12: Initial Tech | X12: 0 | Y12: 1925 | Z12: Bike Exhaust - D | AA12: 1 | AB12: Four-Stroke | AC12: 0 | AD12: Early Tech | AE12: 0 | AF12: 1775
B13: Suzuki GSX-R750 | C13: D | D13: 4 | E13: Bike Tires - D | F13: 1 | G13: Four-Stroke | H13: 0 | I13: Initial Tech | J13: 1 | K13: 2875 | L13: Fork Tubes - D | M13: 1 | N13: Four-Stroke | O13: 0 | P13: Early Tech | Q13: 1 | R13: 2300 | S13: Transmission - D | T13: 1 | U13: Four-Stroke | V13: 0 | W13: Initial Tech | X13: 1 | Y13: 2875 | Z13: Bike Exhaust - D | AA13: 1 | AB13: Four-Stroke | AC13: 0 | AD13: Early Tech | AE13: 1 | AF13: 2650
B14: Suzuki GSX-R750 | C14: D | D14: 5 | E14: Bike Tires - D | F14: 1 | G14: Four-Stroke | H14: 1 | I14: Common Tech | J14: 1 | K14: 4825 | L14: Fork Tubes - D | M14: 1 | N14: Four-Stroke | O14: 1 | P14: Common Tech | Q14: 1 | R14: 3850 | S14: Transmission - D | T14: 1 | U14: Four-Stroke | V14: 1 | W14: Common Tech | X14: 1 | Y14: 4825 | Z14: Bike Exhaust - D | AA14: 1 | AB14: Four-Stroke | AC14: 1 | AD14: Common Tech | AE14: 1 | AF14: 4425
B15: Cadillac XTS | C15: D | D15: 1 | E15: Tires - D | F15: 1 | G15: v6 | H15: 0 | I15: Initial Tech | J15: 0 | K15: 532 | L15: Suspension - D | M15: 1 | N15: v6 | O15: 0 | P15: Early Tech | Q15: 0 | R15: 420 | S15: Drive Train - D | T15: 1 | U15: v6 | V15: 0 | W15: Initial Tech | X15: 0 | Y15: 532 | Z15: Exhaust - D | AA15: 1 | AB15: v6 | AC15: 0 | AD15: Early Tech | AE15: 0 | AF15: 476 | AH15: OK
B16: Cadillac XTS | C16: D | D16: 2 | E16: Tires - D | F16: 1 | G16: v6 | H16: 0 | I16: Early Tech | J16: 0 | K16: 2800 | L16: Suspension - D | M16: 1 | N16: v6 | O16: 0 | P16: Initial Tech | Q16: 0 | R16: 2240 | S16: Drive Train - D | T16: 1 | U16: v6 | V16: 0 | W16: Early Tech | X16: 0 | Y16: 2800 | Z16: Exhaust - D | AA16: 1 | AB16: v6 | AC16: 0 | AD16: Initial Tech | AE16: 0 | AF16: 2576
B17: Cadillac XTS | C17: D | D17: 3 | E17: Tires - D | F17: 1 | G17: v6 | H17: 0 | I17: Initial Tech | J17: 1 | K17: 2800 | L17: Suspension - D | M17: 1 | N17: v6 | O17: 0 | P17: Early Tech | Q17: 1 | R17: 2240 | S17: Drive Train - D | T17: 1 | U17: v6 | V17: 0 | W17: Initial Tech | X17: 1 | Y17: 2800 | Z17: Exhaust - D | AA17: 1 | AB17: v6 | AC17: 0 | AD17: Early Tech | AE17: 1 | AF17: 2576
B18: Ford F-150 | C18: D | D18: 1 | E18: Tires - D | F18: 1 | G18: v8 | H18: 0 | I18: Early Tech | J18: 0 | K18: 447 | L18: Suspension - D | M18: 1 | N18: v8 | O18: 0 | P18: Initial Tech | Q18: 0 | R18: 353 | S18: Drive Train - D | T18: 1 | U18: v8 | V18: 0 | W18: Early Tech | X18: 0 | Y18: 447 | Z18: Exhaust - D | AA18: 1 | AB18: v8 | AC18: 0 | AD18: Initial Tech | AE18: 0 | AF18: 400 | AH18: OK
B19: Ford F-150 | C19: D | D19: 2 | E19: Tires - D | F19: 1 | G19: v8 | H19: 0 | I19: Initial Tech | J19: 0 | K19: 2350 | L19: Suspension - D | M19: 1 | N19: v8 | O19: 0 | P19: Early Tech | Q19: 0 | R19: 1880 | S19: Drive Train - D | T19: 1 | U19: v8 | V19: 0 | W19: Initial Tech | X19: 0 | Y19: 2350 | Z19: Exhaust - D | AA19: 1 | AB19: v8 | AC19: 0 | AD19: Early Tech | AE19: 0 | AF19: 2162
B20: Ford F-150 | C20: D | D20: 3 | E20: Tires - D | F20: 1 | G20: v8 | H20: 0 | I20: Early Tech | J20: 1 | K20: 3384 | L20: Suspension - D | M20: 1 | N20: v8 | O20: 0 | P20: Initial Tech | Q20: 1 | R20: 2703 | S20: Drive Train - D | T20: 1 | U20: v8 | V20: 0 | W20: Early Tech | X20: 1 | Y20: 3384 | Z20: Exhaust - D | AA20: 1 | AB20: v8 | AC20: 0 | AD20: Initial Tech | AE20: 1 | AF20: 3102
B21: Scion FR-S | C21: D | D21: 1 | E21: Tires - D | F21: 1 | G21: i4 | H21: 0 | I21: Initial Tech | J21: 0 | K21: 492 | L21: Suspension - D | M21: 1 | N21: i4 | O21: 0 | P21: Early Tech | Q21: 0 | R21: 390 | S21: Drive Train - D | T21: 1 | U21: i4 | V21: 0 | W21: Initial Tech | X21: 0 | Y21: 492 | Z21: Exhaust - D | AA21: 1 | AB21: i4 | AC21: 0 | AD21: Early Tech | AE21: 0 | AF21: 431 | AH21: OK
B22: Scion FR-S | C22: D | D22: 2 | E22: Tires - D | F22: 1 | G22: i4 | H22: 0 | I22: Early Tech | J22: 0 | K22: 2050 | L22: Suspension - D | M22: 1 | N22: i4 | O22: 0 | P22: Initial Tech | Q22: 0 | R22: 1640 | S22: Drive Train - D | T22: 1 | U22: i4 | V22: 0 | W22: Early Tech | X22: 0 | Y22: 2050 | Z22: Exhaust - D | AA22: 1 | AB22: i4 | AC22: 0 | AD22: Initial Tech | AE22: 0 | AF22: 1886
B23: Scion FR-S | C23: D | D23: 3 | E23: Tires - D | F23: 1 | G23: i4 | H23: 0 | I23: Initial Tech | J23: 1 | K23: 3690 | L23: Suspension - D | M23: 1 | N23: i4 | O23: 0 | P23: Early Tech | Q23: 1 | R23: 2952 | S23: Drive Train - D | T23: 1 | U23: i4 | V23: 0 | W23: Initial Tech | X23: 1 | Y23: 3690 | Z23: Exhaust - D | AA23: 1 | AB23: i4 | AC23: 0 | AD23: Early Tech | AE23: 1 | AF23: 3403
B24: Mini Cooper S Roadster | C24: D | D24: 1 | E24: Tires - D | F24: 1 | G24: i4 | H24: 0 | I24: Early Tech | J24: 0 | K24: 312 | L24: Suspension - D | M24: 1 | N24: i4 | O24: 0 | P24: Initial Tech | Q24: 0 | R24: 247 | S24: Drive Train - D | T24: 1 | U24: i4 | V24: 0 | W24: Early Tech | X24: 0 | Y24: 312 | Z24: Exhaust - D | AA24: 1 | AB24: i4 | AC24: 0 | AD24: Initial Tech | AE24: 0 | AF24: 273 | AH24: OK
B25: Mini Cooper S Roadster | C25: D | D25: 2 | E25: Tires - D | F25: 1 | G25: i4 | H25: 0 | I25: Initial Tech | J25: 0 | K25: 1300 | L25: Suspension - D | M25: 1 | N25: i4 | O25: 0 | P25: Early Tech | Q25: 0 | R25: 1040 | S25: Drive Train - D | T25: 1 | U25: i4 | V25: 0 | W25: Initial Tech | X25: 0 | Y25: 1300 | Z25: Exhaust - D | AA25: 1 | AB25: i4 | AC25: 0 | AD25: Early Tech | AE25: 0 | AF25: 1196
B26: Mini Cooper S Roadster | C26: D | D26: 3 | E26: Tires - D | F26: 1 | G26: i4 | H26: 0 | I26: Early Tech | J26: 1 | K26: 2893 | L26: Suspension - D | M26: 1 | N26: i4 | O26: 0 | P26: Initial Tech | Q26: 1 | R26: 2314 | S26: Drive Train - D | T26: 1 | U26: i4 | V26: 0 | W26: Early Tech | X26: 1 | Y26: 2899 | Z26: Exhaust - D | AA26: 1 | AB26: i4 | AC26: 0 | AD26: Initial Tech | AE26: 1 | AF26: 2665
B27: Mini Cooper S Roadster | C27: D | D27: 4 | E27: Tires - D | F27: 1 | G27: i4 | H27: 0 | I27: Initial Tech | J27: 1 | K27: 5168 | L27: Suspension - D | M27: 1 | N27: i4 | O27: 0 | P27: Early Tech | Q27: 1 | R27: 4134 | S27: Drive Train - D | T27: 1 | U27: i4 | V27: 0 | W27: Initial Tech | X27: 1 | Y27: 5174 | Z27: Exhaust - D | AA27: 1 | AB27: i4 | AC27: 0 | AD27: Early Tech | AE27: 1 | AF27: 4758
B28: Kawasaki Z800 | C28: D | D28: 1 | E28: Bike Tires - D | F28: 1 | G28: Four-Stroke | H28: 0 | I28: Initial Tech | J28: 0 | K28: 725 | L28: Fork Tubes - D | M28: 1 | N28: Four-Stroke | O28: 0 | P28: Early Tech | Q28: 0 | R28: 575 | S28: Transmission - D | T28: 1 | U28: Four-Stroke | V28: 0 | W28: Initial Tech | X28: 0 | Y28: 725 | Z28: Bike Exhaust - D | AA28: 1 | AB28: Four-Stroke | AC28: 0 | AD28: Early Tech | AE28: 0 | AF28: 650
B29: Kawasaki Z800 | C29: D | D29: 2 | E29: Bike Tires - D | F29: 1 | G29: Four-Stroke | H29: 0 | I29: Initial Tech | J29: 0 | K29: 1675 | L29: Fork Tubes - D | M29: 1 | N29: Four-Stroke | O29: 0 | P29: Early Tech | Q29: 0 | R29: 1325 | S29: Transmission - D | T29: 1 | U29: Four-Stroke | V29: 0 | W29: Initial Tech | X29: 0 | Y29: 1675 | Z29: Bike Exhaust - D | AA29: 1 | AB29: Four-Stroke | AC29: 0 | AD29: Early Tech | AE29: 0 | AF29: 1525
B30: Kawasaki Z800 | C30: D | D30: 3 | E30: Bike Tires - D | F30: 1 | G30: Four-Stroke | H30: 0 | I30: Initial Tech | J30: 0 | K30: 3700 | L30: Fork Tubes - D | M30: 1 | N30: Four-Stroke | O30: 0 | P30: Early Tech | Q30: 0 | R30: 2950 | S30: Transmission - D | T30: 1 | U30: Four-Stroke | V30: 0 | W30: Initial Tech | X30: 0 | Y30: 3700 | Z30: Bike Exhaust - D | AA30: 1 | AB30: Four-Stroke | AC30: 0 | AD30: Early Tech | AE30: 0 | AF30: 3400
B31: Kawasaki Z800 | C31: D | D31: 4 | E31: Bike Tires - D | F31: 1 | G31: Four-Stroke | H31: 0 | I31: Common Tech | J31: 1 | K31: 6600 | L31: Fork Tubes - D | M31: 1 | N31: Four-Stroke | O31: 0 | P31: Common Tech | Q31: 1 | R31: 5275 | S31: Transmission - D | T31: 1 | U31: Four-Stroke | V31: 0 | W31: Common Tech | X31: 1 | Y31: 6625 | Z31: Bike Exhaust - D | AA31: 1 | AB31: Four-Stroke | AC31: 0 | AD31: Common Tech | AE31: 1 | AF31: 6075
B32: Kawasaki Z800 | C32: D | D32: 5 | E32: Bike Tires - D | F32: 2 | G32: Four-Stroke | H32: 1 | I32: Common Tech | J32: 1 | K32: 10575 | L32: Fork Tubes - D | M32: 2 | N32: Four-Stroke | O32: 1 | P32: Common Tech | Q32: 1 | R32: 8475 | S32: Transmission - D | T32: 2 | U32: Four-Stroke | V32: 1 | W32: Common Tech | X32: 1 | Y32: 10575 | Z32: Bike Exhaust - D | AA32: 2 | AB32: Four-Stroke | AC32: 1 | AD32: Common Tech | AE32: 1 | AF32: 9725
B33: Alfa Romeo MiTo GTA | C33: D | D33: 1 | E33: Tires - D | F33: 1 | G33: i4 | H33: 0 | I33: Initial Tech | J33: 0 | K33: 378 | L33: Suspension - D | M33: 1 | N33: i4 | O33: 0 | P33: Early Tech | Q33: 0 | R33: 300 | S33: Drive Train - D | T33: 1 | U33: i4 | V33: 0 | W33: Initial Tech | X33: 0 | Y33: 372 | Z33: Exhaust - D | AA33: 1 | AB33: i4 | AC33: 0 | AD33: Early Tech | AE33: 0 | AF33: 336 | AH33: OK
B34: Alfa Romeo MiTo GTA | C34: D | D34: 2 | E34: Tires - D | F34: 1 | G34: i4 | H34: 0 | I34: Early Tech | J34: 0 | K34: 1200 | L34: Suspension - D | M34: 1 | N34: i4 | O34: 0 | P34: Initial Tech | Q34: 0 | R34: 960 | S34: Drive Train - D | T34: 1 | U34: i4 | V34: 0 | W34: Early Tech | X34: 0 | Y34: 1200 | Z34: Exhaust - D | AA34: 1 | AB34: i4 | AC34: 0 | AD34: Initial Tech | AE34: 0 | AF34: 1104
B35: Alfa Romeo MiTo GTA | C35: D | D35: 3 | E35: Tires - D | F35: 1 | G35: i4 | H35: 0 | I35: Initial Tech | J35: 1 | K35: 2670 | L35: Suspension - D | M35: 1 | N35: i4 | O35: 0 | P35: Early Tech | Q35: 1 | R35: 2136 | S35: Drive Train - D | T35: 1 | U35: i4 | V35: 0 | W35: Initial Tech | X35: 1 | Y35: 2676 | Z35: Exhaust - D | AA35: 1 | AB35: i4 | AC35: 0 | AD35: Early Tech | AE35: 1 | AF35: 2460
B36: Alfa Romeo MiTo GTA | C36: D | D36: 4 | E36: Tires - D | F36: 2 | G36: i4 | H36: 0 | I36: Early Tech | J36: 1 | K36: 4770 | L36: Suspension - D | M36: 2 | N36: i4 | O36: 0 | P36: Initial Tech | Q36: 1 | R36: 3816 | S36: Drive Train - D | T36: 2 | U36: i4 | V36: 0 | W36: Early Tech | X36: 1 | Y36: 4776 | Z36: Exhaust - D | AA36: 2 | AB36: i4 | AC36: 0 | AD36: Initial Tech | AE36: 1 | AF36: 4392
B37: Renault CLIO R.S. 200 EDC | C37: D | D37: 1 | E37: Tires - D | F37: 1 | G37: i4 | H37: 0 | I37: Early Tech | J37: 0 | K37: 770 | L37: Suspension - D | M37: 1 | N37: i4 | O37: 0 | P37: Initial Tech | Q37: 0 | R37: 613 | S37: Drive Train - D | T37: 1 | U37: i4 | V37: 0 | W37: Early Tech | X37: 0 | Y37: 770 | Z37: Exhaust - D | AA37: 1 | AB37: i4 | AC37: 0 | AD37: Initial Tech | AE37: 0 | AF37: 683 | AH37: OK
B38: Renault CLIO R.S. 200 EDC | C38: D | D38: 2 | E38: Tires - D | F38: 1 | G38: i4 | H38: 0 | I38: Initial Tech | J38: 0 | K38: 1750 | L38: Suspension - D | M38: 1 | N38: i4 | O38: 0 | P38: Early Tech | Q38: 0 | R38: 1400 | S38: Drive Train - D | T38: 1 | U38: i4 | V38: 0 | W38: Initial Tech | X38: 0 | Y38: 1750 | Z38: Exhaust - D | AA38: 1 | AB38: i4 | AC38: 0 | AD38: Early Tech | AE38: 0 | AF38: 1610
B39: Renault CLIO R.S. 200 EDC | C39: D | D39: 3 | E39: Tires - D | F39: 1 | G39: i4 | H39: 0 | I39: Early Tech | J39: 1 | K39: 3894 | L39: Suspension - D | M39: 1 | N39: i4 | O39: 0 | P39: Initial Tech | Q39: 1 | R39: 3115 | S39: Drive Train - D | T39: 1 | U39: i4 | V39: 0 | W39: Early Tech | X39: 1 | Y39: 3903 | Z39: Exhaust - D | AA39: 1 | AB39: i4 | AC39: 0 | AD39: Initial Tech | AE39: 1 | AF39: 3588
B40: Renault CLIO R.S. 200 EDC | C40: D | D40: 4 | E40: Tires - D | F40: 2 | G40: i4 | H40: 0 | I40: Initial Tech | J40: 1 | K40: 6956 | L40: Suspension - D | M40: 2 | N40: i4 | O40: 0 | P40: Early Tech | Q40: 1 | R40: 5565 | S40: Drive Train - D | T40: 2 | U40: i4 | V40: 0 | W40: Initial Tech | X40: 1 | Y40: 6965 | Z40: Exhaust - D | AA40: 2 | AB40: i4 | AC40: 0 | AD40: Early Tech | AE40: 1 | AF40: 6405
B41: Renault CLIO R.S. 200 EDC | C41: D | D41: 5 | E41: Tires - D | F41: 2 | G41: i4 | H41: 1 | I41: Early Tech | J41: 1 | K41: 11139 | L41: Suspension - D | M41: 2 | N41: i4 | O41: 1 | P41: Initial Tech | Q41: 1 | R41: 8908 | S41: Drive Train - D | T41: 2 | U41: i4 | V41: 1 | W41: Early Tech | X41: 1 | Y41: 11130 | Z41: Exhaust - D | AA41: 2 | AB41: i4 | AC41: 1 | AD41: Initial Tech | AE41: 1 | AF41: 10238
B42: Volkswagen Beetle Turbo | C42: D | D42: 1 | E42: Tires - D | F42: 1 | G42: i4 | H42: 0 | I42: Initial Tech | J42: 0 | K42: 1525 | L42: Suspension - D | M42: 1 | N42: i4 | O42: 0 | P42: Early Tech | Q42: 0 | R42: 725 | S42: Drive Train - D | T42: 1 | U42: i4 | V42: 0 | W42: Initial Tech | X42: 0 | Y42: 1525 | Z42: Exhaust - D | AA42: 1 | AB42: i4 | AC42: 0 | AD42: Early Tech | AE42: 0 | AF42: 1375 | AH42: OK
B43: Volkswagen Beetle Turbo | C43: D | D43: 2 | E43: Tires - D | F43: 1 | G43: i4 | H43: 0 | I43: Initial Tech | J43: 0 | K43: 7375 | L43: Suspension - D | M43: 1 | N43: i4 | O43: 0 | P43: Early Tech | Q43: 0 | R43: 5900 | S43: Drive Train - D | T43: 1 | U43: i4 | V43: 0 | W43: Initial Tech | X43: 0 | Y43: 7400 | Z43: Exhaust - D | AA43: 1 | AB43: i4 | AC43: 0 | AD43: Early Tech | AE43: 0 | AF43: 6800
B44: Volkswagen Beetle Turbo | C44: D | D44: 3 | E44: Tires - D | F44: 2 | G44: i4 | H44: 0 | I44: Initial Tech | J44: 1 | K44: 9275 | L44: Suspension - D | M44: 2 | N44: i4 | O44: 0 | P44: Early Tech | Q44: 1 | R44: 7400 | S44: Drive Train - D | T44: 2 | U44: i4 | V44: 0 | W44: Initial Tech | X44: 1 | Y44: 9250 | Z44: Exhaust - D | AA44: 2 | AB44: i4 | AC44: 0 | AD44: Early Tech | AE44: 1 | AF44: 8500
B45: Volkswagen Beetle Turbo | C45: D | D45: 4 | E45: Tires - D | F45: 2 | G45: i4 | H45: 0 | I45: Initial Tech | J45: 1 | K45: 13800 | L45: Suspension - D | M45: 2 | N45: i4 | O45: 0 | P45: Early Tech | Q45: 1 | R45: 11050 | S45: Drive Train - D | T45: 2 | U45: i4 | V45: 0 | W45: Initial Tech | X45: 1 | Y45: 13825 | Z45: Exhaust - D | AA45: 2 | AB45: i4 | AC45: 0 | AD45: Early Tech | AE45: 1 | AF45: 12700
B46: Volkswagen Beetle Turbo | C46: D | D46: 5 | E46: Tires - D | F46: 2 | G46: i4 | H46: 1 | I46: Initial Tech | J46: 1 | K46: 23050 | L46: Suspension - D | M46: 2 | N46: i4 | O46: 1 | P46: Early Tech | Q46: 1 | R46: 18450 | S46: Drive Train - D | T46: 2 | U46: i4 | V46: 1 | W46: Initial Tech | X46: 1 | Y46: 23050 | Z46: Exhaust - D | AA46: 2 | AB46: i4 | AC46: 1 | AD46: Early Tech | AE46: 1 | AF46: 21200
B47: Renault DeZir | C47: D | D47: 1 | E47: Tires - D | F47: 1 | G47: Electric | H47: 0 | I47: Initial Tech | J47: 0 | K47: 3146 | L47: Suspension - D | M47: 1 | N47: Electric | O47: 0 | P47: Early Tech | Q47: 0 | R47: 2503 | S47: Drive Train - D | T47: 1 | U47: Electric | V47: 0 | W47: Initial Tech | X47: 0 | Y47: 3146 | Z47: Exhaust - D | AA47: 1 | AB47: Electric | AC47: 0 | AD47: Early Tech | AE47: 0 | AF47: 2789
B48: Renault DeZir | C48: D | D48: 2 | E48: Tires - D | F48: 2 | G48: Electric | H48: 0 | I48: Early Tech | J48: 0 | K48: 8938 | L48: Suspension - D | M48: 2 | N48: Electric | O48: 0 | P48: Initial Tech | Q48: 0 | R48: 7150 | S48: Drive Train - D | T48: 2 | U48: Electric | V48: 0 | W48: Early Tech | X48: 0 | Y48: 8938 | Z48: Exhaust - D | AA48: 2 | AB48: Electric | AC48: 0 | AD48: Initial Tech | AE48: 0 | AF48: 8223
B49: Peugeot RCZ R | C49: D | D49: 1 | E49: Tires - D | F49: 1 | G49: Hybrid | H49: 0 | I49: Initial Tech | J49: 0 | K49: 1300 | L49: Suspension - D | M49: 1 | N49: Hybrid | O49: 0 | P49: Early Tech | Q49: 0 | R49: 625 | S49: Drive Train - D | T49: 1 | U49: Hybrid | V49: 0 | W49: Initial Tech | X49: 0 | Y49: 1300 | Z49: Exhaust - D | AA49: 1 | AB49: Hybrid | AC49: 0 | AD49: Early Tech | AE49: 0 | AF49: 1175 | AH49: OK
B50: Peugeot RCZ R | C50: D | D50: 2 | E50: Tires - D | F50: 1 | G50: Hybrid | H50: 0 | I50: Initial Tech | J50: 1 | K50: 6325 | L50: Suspension - D | M50: 1 | N50: Hybrid | O50: 0 | P50: Early Tech | Q50: 1 | R50: 5075 | S50: Drive Train - D | T50: 1 | U50: Hybrid | V50: 0 | W50: Initial Tech | X50: 1 | Y50: 6350 | Z50: Exhaust - D | AA50: 1 | AB50: Hybrid | AC50: 0 | AD50: Early Tech | AE50: 1 | AF50: 5825
B51: Peugeot RCZ R | C51: D | D51: 3 | E51: Tires - D | F51: 2 | G51: Hybrid | H51: 0 | I51: Initial Tech | J51: 1 | K51: 7950 | L51: Suspension - D | M51: 2 | N51: Hybrid | O51: 0 | P51: Early Tech | Q51: 1 | R51: 6350 | S51: Drive Train - D | T51: 2 | U51: Hybrid | V51: 0 | W51: Initial Tech | X51: 1 | Y51: 7925 | Z51: Exhaust - D | AA51: 2 | AB51: Hybrid | AC51: 0 | AD51: Early Tech | AE51: 1 | AF51: 7300
B52: Peugeot RCZ R | C52: D | D52: 4 | E52: Tires - D | F52: 2 | G52: Hybrid | H52: 0 | I52: Initial Tech | J52: 1 | K52: 11825 | L52: Suspension - D | M52: 2 | N52: Hybrid | O52: 0 | P52: Early Tech | Q52: 1 | R52: 9475 | S52: Drive Train - D | T52: 2 | U52: Hybrid | V52: 0 | W52: Initial Tech | X52: 1 | Y52: 11850 | Z52: Exhaust - D | AA52: 2 | AB52: Hybrid | AC52: 0 | AD52: Early Tech | AE52: 1 | AF52: 10900
B53: Peugeot RCZ R | C53: D | D53: 5 | E53: Tires - D | F53: 2 | G53: Hybrid | H53: 1 | I53: Initial Tech | J53: 0 | K53: 19750 | L53: Suspension - D | M53: 2 | N53: Hybrid | O53: 1 | P53: Early Tech | Q53: 0 | R53: 15825 | S53: Drive Train - D | T53: 2 | U53: Hybrid | V53: 1 | W53: Initial Tech | X53: 0 | Y53: 19750 | Z53: Exhaust - D | AA53: 2 | AB53: Hybrid | AC53: 1 | AD53: Early Tech | AE53: 0 | AF53: 18175
B54: DS 3 Racing | C54: D | D54: 1 | E54: Tires - D | F54: 1 | G54: i4 | H54: 0 | I54: Initial Tech | J54: 0 | K54: 1450 | L54: Suspension - D | M54: 1 | N54: i4 | O54: 0 | P54: Early Tech | Q54: 0 | R54: 700 | S54: Drive Train - D | T54: 1 | U54: i4 | V54: 0 | W54: Initial Tech | X54: 0 | Y54: 1450 | Z54: Exhaust - D | AA54: 1 | AB54: i4 | AC54: 0 | AD54: Early Tech | AE54: 0 | AF54: 1300
B55: DS 3 Racing | C55: D | D55: 2 | E55: Tires - D | F55: 1 | G55: i4 | H55: 0 | I55: Initial Tech | J55: 0 | K55: 7025 | L55: Suspension - D | M55: 1 | N55: i4 | O55: 0 | P55: Early Tech | Q55: 0 | R55: 5625 | S55: Drive Train - D | T55: 1 | U55: i4 | V55: 0 | W55: Initial Tech | X55: 0 | Y55: 7050 | Z55: Exhaust - D | AA55: 1 | AB55: i4 | AC55: 0 | AD55: Early Tech | AE55: 0 | AF55: 6475
B56: DS 3 Racing | C56: D | D56: 3 | E56: Tires - D | F56: 2 | G56: i4 | H56: 0 | I56: Initial Tech | J56: 1 | K56: 8825 | L56: Suspension - D | M56: 2 | N56: i4 | O56: 0 | P56: Early Tech | Q56: 1 | R56: 7050 | S56: Drive Train - D | T56: 2 | U56: i4 | V56: 0 | W56: Initial Tech | X56: 1 | Y56: 8800 | Z56: Exhaust - D | AA56: 2 | AB56: i4 | AC56: 0 | AD56: Early Tech | AE56: 1 | AF56: 8100
B57: DS 3 Racing | C57: D | D57: 4 | E57: Tires - D | F57: 2 | G57: i4 | H57: 0 | I57: Initial Tech | J57: 1 | K57: 13150 | L57: Suspension - D | M57: 2 | N57: i4 | O57: 0 | P57: Early Tech | Q57: 1 | R57: 10525 | S57: Drive Train - D | T57: 2 | U57: i4 | V57: 0 | W57: Initial Tech | X57: 1 | Y57: 13175 | Z57: Exhaust - D | AA57: 2 | AB57: i4 | AC57: 0 | AD57: Early Tech | AE57: 1 | AF57: 12100
B58: DS 3 Racing | C58: D | D58: 5 | E58: Tires - D | F58: 2 | G58: i4 | H58: 1 | I58: Initial Tech | J58: 1 | K58: 21950 | L58: Suspension - D | M58: 2 | N58: i4 | O58: 1 | P58: Early Tech | Q58: 1 | R58: 17575 | S58: Drive Train - D | T58: 2 | U58: i4 | V58: 1 | W58: Initial Tech | X58: 1 | Y58: 21950 | Z58: Exhaust - D | AA58: 2 | AB58: i4 | AC58: 1 | AD58: Early Tech | AE58: 1 | AF58: 20200
B59: Audi S4 | C59: D | D59: 1 | E59: Tires - D | F59: 1 | G59: v6 | H59: 0 | I59: Early Tech | J59: 0 | K59: 638 | L59: Suspension - D | M59: 1 | N59: v6 | O59: 0 | P59: Initial Tech | Q59: 0 | R59: 508 | S59: Drive Train - D | T59: 1 | U59: v6 | V59: 0 | W59: Early Tech | X59: 0 | Y59: 638 | Z59: Exhaust - D | AA59: 1 | AB59: v6 | AC59: 0 | AD59: Initial Tech | AE59: 0 | AF59: 566 | AH59: OK
B60: Audi S4 | C60: D | D60: 2 | E60: Tires - D | F60: 1 | G60: v6 | H60: 0 | I60: Initial Tech | J60: 0 | K60: 2538 | L60: Suspension - D | M60: 1 | N60: v6 | O60: 0 | P60: Early Tech | Q60: 0 | R60: 2030 | S60: Drive Train - D | T60: 1 | U60: v6 | V60: 0 | W60: Initial Tech | X60: 0 | Y60: 2538 | Z60: Exhaust - D | AA60: 1 | AB60: v6 | AC60: 0 | AD60: Early Tech | AE60: 0 | AF60: 2335
B61: Audi S4 | C61: D | D61: 3 | E61: Tires - D | F61: 2 | G61: v6 | H61: 0 | I61: Early Tech | J61: 1 | K61: 3864 | L61: Suspension - D | M61: 2 | N61: v6 | O61: 0 | P61: Initial Tech | Q61: 1 | R61: 3089 | S61: Drive Train - D | T61: 2 | U61: v6 | V61: 0 | W61: Early Tech | X61: 1 | Y61: 3857 | Z61: Exhaust - D | AA61: 2 | AB61: v6 | AC61: 0 | AD61: Initial Tech | AE61: 1 | AF61: 3553
B62: Audi S4 | C62: D | D62: 4 | E62: Tires - D | F62: 2 | G62: v6 | H62: 0 | I62: Initial Tech | J62: 1 | K62: 5764 | L62: Suspension - D | M62: 2 | N62: v6 | O62: 0 | P62: Early Tech | Q62: 1 | R62: 4611 | S62: Drive Train - D | T62: 2 | U62: v6 | V62: 0 | W62: Initial Tech | X62: 1 | Y62: 5771 | Z62: Exhaust - D | AA62: 2 | AB62: v6 | AC62: 0 | AD62: Early Tech | AE62: 1 | AF62: 5307
B63: Audi S4 | C63: D | D63: 5 | E63: Tires - D | F63: 2 | G63: v6 | H63: 1 | I63: Early Tech | J63: 1 | K63: 9628 | L63: Suspension - D | M63: 2 | N63: v6 | O63: 1 | P63: Initial Tech | Q63: 1 | R63: 7700 | S63: Drive Train - D | T63: 2 | U63: v6 | V63: 1 | W63: Early Tech | X63: 1 | Y63: 9628 | Z63: Exhaust - D | AA63: 2 | AB63: v6 | AC63: 1 | AD63: Initial Tech | AE63: 1 | AF63: 8860
B64: Nissan 370Z | C64: D | D64: 1 | E64: Tires - D | F64: 1 | G64: v6 | H64: 0 | I64: Initial Tech | J64: 0 | K64: 638 | L64: Suspension - D | M64: 1 | N64: v6 | O64: 0 | P64: Early Tech | Q64: 0 | R64: 508 | S64: Drive Train - D | T64: 1 | U64: v6 | V64: 0 | W64: Initial Tech | X64: 0 | Y64: 638 | Z64: Exhaust - D | AA64: 1 | AB64: v6 | AC64: 0 | AD64: Early Tech | AE64: 0 | AF64: 566 | AH64: OK
B65: Nissan 370Z | C65: D | D65: 2 | E65: Tires - D | F65: 1 | G65: v6 | H65: 0 | I65: Early Tech | J65: 0 | K65: 3081 | L65: Suspension - D | M65: 1 | N65: v6 | O65: 0 | P65: Initial Tech | Q65: 0 | R65: 2465 | S65: Drive Train - D | T65: 1 | U65: v6 | V65: 0 | W65: Early Tech | X65: 0 | Y65: 3089 | Z65: Exhaust - D | AA65: 1 | AB65: v6 | AC65: 0 | AD65: Initial Tech | AE65: 0 | AF65: 2842
B66: Nissan 370Z | C66: D | D66: 3 | E66: Tires - D | F66: 2 | G66: v6 | H66: 0 | I66: Initial Tech | J66: 1 | K66: 3864 | L66: Suspension - D | M66: 2 | N66: v6 | O66: 0 | P66: Early Tech | Q66: 1 | R66: 3089 | S66: Drive Train - D | T66: 2 | U66: v6 | V66: 0 | W66: Initial Tech | X66: 1 | Y66: 3857 | Z66: Exhaust - D | AA66: 2 | AB66: v6 | AC66: 0 | AD66: Early Tech | AE66: 1 | AF66: 3553
B67: Nissan 370Z | C67: D | D67: 4 | E67: Tires - D | F67: 2 | G67: v6 | H67: 0 | I67: Early Tech | J67: 1 | K67: 5764 | L67: Suspension - D | M67: 2 | N67: v6 | O67: 0 | P67: Initial Tech | Q67: 1 | R67: 4611 | S67: Drive Train - D | T67: 2 | U67: v6 | V67: 0 | W67: Early Tech | X67: 1 | Y67: 5771 | Z67: Exhaust - D | AA67: 2 | AB67: v6 | AC67: 0 | AD67: Initial Tech | AE67: 1 | AF67: 5307
B68: Nissan 370Z | C68: D | D68: 5 | E68: Tires - D | F68: 2 | G68: v6 | H68: 1 | I68: Initial Tech | J68: 1 | K68: 9628 | L68: Suspension - D | M68: 2 | N68: v6 | O68: 1 | P68: Early Tech | Q68: 1 | R68: 7700 | S68: Drive Train - D | T68: 2 | U68: v6 | V68: 1 | W68: Initial Tech | X68: 1 | Y68: 9628 | Z68: Exhaust - D | AA68: 2 | AB68: v6 | AC68: 1 | AD68: Early Tech | AE68: 1 | AF68: 8860
B69: Camaro Z/28 | C69: D | D69: 1 | E69: Tires - D | F69: 1 | G69: v6 | H69: 0 | I69: Initial Tech | J69: 0 | K69: 8150 | L69: Suspension - D | M69: 1 | N69: v6 | O69: 0 | P69: Early Tech | Q69: 0 | R69: 6300 | S69: Drive Train - D | T69: 1 | U69: v6 | V69: 0 | W69: Initial Tech | X69: 0 | Y69: 8150 | Z69: Exhaust - D | AA69: 1 | AB69: v6 | AC69: 0 | AD69: Early Tech | AE69: 0 | AF69: 7100 | AH69: OK
B70: Camaro Z/28 | C70: D | D70: 2 | E70: Tires - D | F70: 2 | G70: v6 | H70: 0 | I70: Initial Tech | J70: 1 | K70: 20475 | L70: Suspension - D | M70: 2 | N70: v6 | O70: 0 | P70: Early Tech | Q70: 1 | R70: 16275 | S70: Drive Train - D | T70: 2 | U70: v6 | V70: 0 | W70: Initial Tech | X70: 1 | Y70: 20475 | Z70: Exhaust - D | AA70: 2 | AB70: v6 | AC70: 0 | AD70: Early Tech | AE70: 1 | AF70: 18650
B71: Camaro Z/28 | C71: D | D71: 3 | E71: Tires - D | F71: 2 | G71: v6 | H71: 1 | I71: Initial Tech | J71: 2 | K71: 48825 | L71: Suspension - D | M71: 2 | N71: v6 | O71: 1 | P71: Early Tech | Q71: 2 | R71: 39125 | S71: Drive Train - D | T71: 2 | U71: v6 | V71: 1 | W71: Initial Tech | X71: 2 | Y71: 48825 | Z71: Exhaust - D | AA71: 2 | AB71: v6 | AC71: 1 | AD71: Early Tech | AE71: 2 | AF71: 44900
B72: Camaro Z/28 | C72: D | D72: 4 | E72: Tires - D | F72: 4 | G72: v6 | H72: 2 | I72: Initial Tech | J72: 3 | K72: 63525 | L72: Suspension - D | M72: 4 | N72: v6 | O72: 2 | P72: Early Tech | Q72: 3 | R72: 50925 | S72: Drive Train - D | T72: 4 | U72: v6 | V72: 2 | W72: Initial Tech | X72: 3 | Y72: 63525 | Z72: Exhaust - D | AA72: 4 | AB72: v6 | AC72: 2 | AD72: Early Tech | AE72: 3 | AF72: 58275
B73: Camaro Z/28 | C73: D | D73: 5 | E73: Tires - D | F73: 6 | G73: v6 | H73: 2 | I73: Initial Tech | J73: 4 | K73: 106850 | L73: Suspension - D | M73: 6 | N73: v6 | O73: 2 | P73: Early Tech | Q73: 4 | R73: 85575 | S73: Drive Train - D | T73: 6 | U73: v6 | V73: 2 | W73: Initial Tech | X73: 4 | Y73: 106850 | Z73: Exhaust - D | AA73: 6 | AB73: v6 | AC73: 2 | AD73: Early Tech | AE73: 4 | AF73: 98175
B74: 1967 Chevrolet Impala | C74: D | D74: 1 | E74: Tires - D | F74: 1 | G74: v8 | H74: 0 | I74: Initial Tech | J74: 0 | K74: 2947 | L74: Suspension - D | M74: 1 | N74: v8 | O74: 0 | P74: Early Tech | Q74: 0 | R74: 2282 | S74: Drive Train - D | T74: 1 | U74: v8 | V74: 0 | W74: Initial Tech | X74: 0 | Y74: 2947 | Z74: Exhaust - D | AA74: 1 | AB74: v8 | AC74: 0 | AD74: Early Tech | AE74: 0 | AF74: 2567
B75: 1967 Chevrolet Impala | C75: D | D75: 2 | E75: Tires - D | F75: 1 | G75: v8 | H75: 0 | I75: Initial Tech | J75: 1 | K75: 7415 | L75: Suspension - D | M75: 1 | N75: v8 | O75: 0 | P75: Early Tech | Q75: 1 | R75: 5894 | S75: Drive Train - D | T75: 1 | U75: v8 | V75: 0 | W75: Initial Tech | X75: 1 | Y75: 7415 | Z75: Exhaust - D | AA75: 1 | AB75: v8 | AC75: 0 | AD75: Early Tech | AE75: 1 | AF75: 6749
B76: 1967 Chevrolet Impala | C76: D | D76: 3 | E76: Tires - D | F76: 2 | G76: v8 | H76: 0 | I76: Initial Tech | J76: 1 | K76: 17682 | L76: Suspension - D | M76: 2 | N76: v8 | O76: 0 | P76: Early Tech | Q76: 1 | R76: 14164 | S76: Drive Train - D | T76: 2 | U76: v8 | V76: 0 | W76: Initial Tech | X76: 1 | Y76: 17682 | Z76: Exhaust - D | AA76: 2 | AB76: v8 | AC76: 0 | AD76: Early Tech | AE76: 1 | AF76: 16256
B77: 1967 Chevrolet Impala | C77: D | D77: 4 | E77: Tires - D | F77: 2 | G77: v8 | H77: 0 | I77: Initial Tech | J77: 1 | K77: 23005 | L77: Suspension - D | M77: 2 | N77: v8 | O77: 0 | P77: Early Tech | Q77: 1 | R77: 18442 | S77: Drive Train - D | T77: 2 | U77: v8 | V77: 0 | W77: Initial Tech | X77: 1 | Y77: 23005 | Z77: Exhaust - D | AA77: 2 | AB77: v8 | AC77: 0 | AD77: Early Tech | AE77: 1 | AF77: 21104
B78: 1967 Chevrolet Impala | C78: D | D78: 5 | E78: Tires - D | F78: 2 | G78: v8 | H78: 1 | I78: Initial Tech | J78: 1 | K78: 38690 | L78: Suspension - D | M78: 2 | N78: v8 | O78: 1 | P78: Early Tech | Q78: 1 | R78: 30990 | S78: Drive Train - D | T78: 2 | U78: v8 | V78: 1 | W78: Initial Tech | X78: 1 | Y78: 38690 | Z78: Exhaust - D | AA78: 2 | AB78: v8 | AC78: 1 | AD78: Early Tech | AE78: 1 | AF78: 35553
B79: Honda S2000 | C79: D | D79: 1 | E79: Tires - D | F79: 1 | G79: i4 | H79: 0 | I79: Initial Tech | J79: 1 | K79: 4475 | L79: Suspension - D | M79: 1 | N79: i4 | O79: 0 | P79: Early Tech | Q79: 1 | R79: 3425 | S79: Drive Train - D | T79: 1 | U79: i4 | V79: 0 | W79: Initial Tech | X79: 1 | Y79: 4475 | Z79: Exhaust - D | AA79: 1 | AB79: i4 | AC79: 0 | AD79: Early Tech | AE79: 1 | AF79: 3675 | AH79: OK
B80: Honda S2000 | C80: D | D80: 2 | E80: Tires - D | F80: 1 | G80: i4 | H80: 0 | I80: Initial Tech | J80: 1 | K80: 27575 | L80: Suspension - D | M80: 1 | N80: i4 | O80: 0 | P80: Early Tech | Q80: 1 | R80: 22050 | S80: Drive Train - D | T80: 1 | U80: i4 | V80: 0 | W80: Initial Tech | X80: 1 | Y80: 27575 | Z80: Exhaust - D | AA80: 1 | AB80: i4 | AC80: 0 | AD80: Early Tech | AE80: 1 | AF80: 25200
B81: Honda S2000 | C81: D | D81: 3 | E81: Tires - D | F81: 3 | G81: i4 | H81: 1 | I81: Initial Tech | J81: 1 | K81: 24150 | L81: Suspension - D | M81: 3 | N81: i4 | O81: 1 | P81: Early Tech | Q81: 1 | R81: 19175 | S81: Drive Train - D | T81: 3 | U81: i4 | V81: 1 | W81: Initial Tech | X81: 1 | Y81: 24150 | Z81: Exhaust - D | AA81: 3 | AB81: i4 | AC81: 1 | AD81: Early Tech | AE81: 1 | AF81: 22050
B82: Honda S2000 | C82: D | D82: 4 | E82: Tires - D | F82: 3 | G82: i4 | H82: 1 | I82: Initial Tech | J82: 1 | K82: 34125 | L82: Suspension - D | M82: 3 | N82: i4 | O82: 1 | P82: Early Tech | Q82: 1 | R82: 27300 | S82: Drive Train - D | T82: 3 | U82: i4 | V82: 1 | W82: Initial Tech | X82: 1 | Y82: 33875 | Z82: Exhaust - D | AA82: 3 | AB82: i4 | AC82: 1 | AD82: Early Tech | AE82: 1 | AF82: 31250
B83: Honda S2000 | C83: D | D83: 5 | E83: Tires - D | F83: 3 | G83: i4 | H83: 1 | I83: Initial Tech | J83: 1 | K83: 53550 | L83: Suspension - D | M83: 3 | N83: i4 | O83: 1 | P83: Early Tech | Q83: 1 | R83: 42800 | S83: Drive Train - D | T83: 3 | U83: i4 | V83: 1 | W83: Initial Tech | X83: 1 | Y83: 53550 | Z83: Exhaust - D | AA83: 3 | AB83: i4 | AC83: 1 | AD83: Early Tech | AE83: 1 | AF83: 49350
B84: 2015 Ford Mustang | C84: D | D84: 1 | E84: Tires - D | F84: 1 | G84: v8 | H84: 0 | I84: Early Tech | J84: 0 | K84: 1386 | L84: Suspension - D | M84: 1 | N84: v8 | O84: 0 | P84: Initial Tech | Q84: 0 | R84: 1103 | S84: Drive Train - D | T84: 1 | U84: v8 | V84: 0 | W84: Early Tech | X84: 0 | Y84: 1386 | Z84: Exhaust - D | AA84: 1 | AB84: v8 | AC84: 0 | AD84: Initial Tech | AE84: 0 | AF84: 1229 | AH84: OK
B85: 2015 Ford Mustang | C85: D | D85: 2 | E85: Tires - D | F85: 1 | G85: v8 | H85: 0 | I85: Initial Tech | J85: 0 | K85: 6694 | L85: Suspension - D | M85: 1 | N85: v8 | O85: 0 | P85: Early Tech | Q85: 0 | R85: 5355 | S85: Drive Train - D | T85: 1 | U85: v8 | V85: 0 | W85: Initial Tech | X85: 0 | Y85: 6710 | Z85: Exhaust - D | AA85: 1 | AB85: v8 | AC85: 0 | AD85: Early Tech | AE85: 0 | AF85: 6174
B86: 2015 Ford Mustang | C86: D | D86: 3 | E86: Tires - D | F86: 2 | G86: v8 | H86: 0 | I86: Early Tech | J86: 1 | K86: 8395 | L86: Suspension - D | M86: 2 | N86: v8 | O86: 0 | P86: Initial Tech | Q86: 1 | R86: 6710 | S86: Drive Train - D | T86: 2 | U86: v8 | V86: 0 | W86: Early Tech | X86: 1 | Y86: 8379 | Z86: Exhaust - D | AA86: 2 | AB86: v8 | AC86: 0 | AD86: Initial Tech | AE86: 1 | AF86: 7718
B87: 2015 Ford Mustang | C87: D | D87: 4 | E87: Tires - D | F87: 2 | G87: v8 | H87: 0 | I87: Initial Tech | J87: 1 | K87: 12521 | L87: Suspension - D | M87: 2 | N87: v8 | O87: 0 | P87: Early Tech | Q87: 1 | R87: 10017 | S87: Drive Train - D | T87: 2 | U87: v8 | V87: 0 | W87: Initial Tech | X87: 1 | Y87: 12537 | Z87: Exhaust - D | AA87: 2 | AB87: v8 | AC87: 0 | AD87: Early Tech | AE87: 1 | AF87: 11529
B88: 2015 Ford Mustang | C88: D | D88: 5 | E88: Tires - D | F88: 2 | G88: v8 | H88: 1 | I88: Early Tech | J88: 2 | K88: 20916 | L88: Suspension - D | M88: 2 | N88: v8 | O88: 1 | P88: Initial Tech | Q88: 2 | R88: 16727 | S88: Drive Train - D | T88: 2 | U88: v8 | V88: 1 | W88: Early Tech | X88: 2 | Y88: 20916 | Z88: Exhaust - D | AA88: 2 | AB88: v8 | AC88: 1 | AD88: Initial Tech | AE88: 2 | AF88: 19247
B89: Nissan Juke Nismo | C89: D | D89: 1 | E89: Tires - D | F89: 1 | G89: i4 | H89: 0 | I89: Initial Tech | J89: 0 | K89: 3925 | L89: Suspension - D | M89: 1 | N89: i4 | O89: 0 | P89: Early Tech | Q89: 0 | R89: 3125 | S89: Drive Train - D | T89: 1 | U89: i4 | V89: 0 | W89: Initial Tech | X89: 0 | Y89: 3925 | Z89: Exhaust - D | AA89: 1 | AB89: i4 | AC89: 0 | AD89: Early Tech | AE89: 0 | AF89: 3425 | AH89: OK
B90: Nissan Juke Nismo | C90: D | D90: 2 | E90: Tires - D | F90: 1 | G90: i4 | H90: 0 | I90: Initial Tech | J90: 1 | K90: 24900 | L90: Suspension - D | M90: 1 | N90: i4 | O90: 0 | P90: Early Tech | Q90: 1 | R90: 19925 | S90: Drive Train - D | T90: 1 | U90: i4 | V90: 0 | W90: Initial Tech | X90: 1 | Y90: 24875 | Z90: Exhaust - D | AA90: 1 | AB90: i4 | AC90: 0 | AD90: Early Tech | AE90: 1 | AF90: 22925
B91: Nissan Juke Nismo | C91: D | D91: 3 | E91: Tires - D | F91: 2 | G91: i4 | H91: 0 | I91: Initial Tech | J91: 1 | K91: 19750 | L91: Suspension - D | M91: 2 | N91: i4 | O91: 0 | P91: Early Tech | Q91: 1 | R91: 15800 | S91: Drive Train - D | T91: 2 | U91: i4 | V91: 0 | W91: Initial Tech | X91: 1 | Y91: 19800 | Z91: Exhaust - D | AA91: 2 | AB91: i4 | AC91: 0 | AD91: Early Tech | AE91: 1 | AF91: 18200
B92: Nissan Juke Nismo | C92: D | D92: 4 | E92: Tires - D | F92: 3 | G92: i4 | H92: 0 | I92: Initial Tech | J92: 1 | K92: 27975 | L92: Suspension - D | M92: 3 | N92: i4 | O92: 0 | P92: Early Tech | Q92: 1 | R92: 22375 | S92: Drive Train - D | T92: 3 | U92: i4 | V92: 0 | W92: Initial Tech | X92: 1 | Y92: 27950 | Z92: Exhaust - D | AA92: 3 | AB92: i4 | AC92: 0 | AD92: Early Tech | AE92: 1 | AF92: 25725
B93: Nissan Juke Nismo | C93: D | D93: 5 | E93: Tires - D | F93: 2 | G93: i4 | H93: 1 | I93: Initial Tech | J93: 1 | K93: 44125 | L93: Suspension - D | M93: 2 | N93: i4 | O93: 1 | P93: Early Tech | Q93: 1 | R93: 35300 | S93: Drive Train - D | T93: 2 | U93: i4 | V93: 1 | W93: Initial Tech | X93: 1 | Y93: 44125 | Z93: Exhaust - D | AA93: 2 | AB93: i4 | AC93: 1 | AD93: Early Tech | AE93: 1 | AF93: 40575
B94: Alfa Romeo Giulietta 2016 Veloce | C94: D | D94: 1 | E94: Tires - D | F94: 1 | G94: v6 | H94: 0 | I94: Initial Tech | J94: 0 | K94: 4125 | L94: Suspension - D | M94: 1 | N94: v6 | O94: 0 | P94: Early Tech | Q94: 0 | R94: 3275 | S94: Drive Train - D | T94: 1 | U94: v6 | V94: 0 | W94: Initial Tech | X94: 0 | Y94: 4125 | Z94: Exhaust - D | AA94: 1 | AB94: v6 | AC94: 0 | AD94: Early Tech | AE94: 0 | AF94: 3600
B95: Alfa Romeo Giulietta 2016 Veloce | C95: D | D95: 2 | E95: Tires - D | F95: 1 | G95: v6 | H95: 0 | I95: Initial Tech | J95: 1 | K95: 26150 | L95: Suspension - D | M95: 1 | N95: v6 | O95: 0 | P95: Early Tech | Q95: 1 | R95: 20925 | S95: Drive Train - D | T95: 1 | U95: v6 | V95: 0 | W95: Initial Tech | X95: 1 | Y95: 26125 | Z95: Exhaust - D | AA95: 1 | AB95: v6 | AC95: 0 | AD95: Early Tech | AE95: 1 | AF95: 24075
B96: Alfa Romeo Giulietta 2016 Veloce | C96: D | D96: 3 | E96: Tires - D | F96: 2 | G96: v6 | H96: 0 | I96: Initial Tech | J96: 1 | K96: 20750 | L96: Suspension - D | M96: 2 | N96: v6 | O96: 0 | P96: Early Tech | Q96: 1 | R96: 16600 | S96: Drive Train - D | T96: 2 | U96: v6 | V96: 0 | W96: Initial Tech | X96: 1 | Y96: 20800 | Z96: Exhaust - D | AA96: 2 | AB96: v6 | AC96: 0 | AD96: Early Tech | AE96: 1 | AF96: 19100
B97: Alfa Romeo Giulietta 2016 Veloce | C97: D | D97: 4 | E97: Tires - D | F97: 3 | G97: v6 | H97: 0 | I97: Initial Tech | J97: 1 | K97: 29375 | L97: Suspension - D | M97: 3 | N97: v6 | O97: 0 | P97: Early Tech | Q97: 1 | R97: 23500 | S97: Drive Train - D | T97: 3 | U97: v6 | V97: 0 | W97: Initial Tech | X97: 1 | Y97: 29350 | Z97: Exhaust - D | AA97: 3 | AB97: v6 | AC97: 0 | AD97: Early Tech | AE97: 1 | AF97: 27000
B98: Alfa Romeo Giulietta 2016 Veloce | C98: D | D98: 5 | E98: Tires - D | F98: 3 | G98: v6 | H98: 1 | I98: Initial Tech | J98: 1 | K98: 46325 | L98: Suspension - D | M98: 3 | N98: v6 | O98: 1 | P98: Early Tech | Q98: 1 | R98: 37075 | S98: Drive Train - D | T98: 3 | U98: v6 | V98: 1 | W98: Initial Tech | X98: 1 | Y98: 46325 | Z98: Exhaust - D | AA98: 3 | AB98: v6 | AC98: 1 | AD98: Early Tech | AE98: 1 | AF98: 42600
B99: Hot Wheels Rip Rod™ | C99: D | D99: 1 | E99: Tires - D | F99: 1 | G99: Hot Wheels | H99: 0 | I99: Initial Tech | J99: 0 | K99: 3600 | L99: Suspension - D | M99: 1 | N99: Hot Wheels | O99: 0 | P99: Early Tech | Q99: 0 | R99: 2875 | S99: Drive Train - D | T99: 1 | U99: Hot Wheels | V99: 0 | W99: Initial Tech | X99: 0 | Y99: 3600 | Z99: Exhaust - D | AA99: 1 | AB99: Hot Wheels | AC99: 0 | AD99: Early Tech | AE99: 0 | AF99: 3150
B100: Hot Wheels Rip Rod™ | C100: D | D100: 2 | E100: Tires - D | F100: 1 | G100: Hot Wheels | H100: 0 | I100: Initial Tech | J100: 1 | K100: 22850 | L100: Suspension - D | M100: 1 | N100: Hot Wheels | O100: 0 | P100: Early Tech | Q100: 1 | R100: 18300 | S100: Drive Train - D | T100: 1 | U100: Hot Wheels | V100: 0 | W100: Initial Tech | X100: 1 | Y100: 22850 | Z100: Exhaust - D | AA100: 1 | AB100: Hot Wheels | AC100: 0 | AD100: Early Tech | AE100: 1 | AF100: 21050
B101: Hot Wheels Rip Rod™ | C101: D | D101: 3 | E101: Tires - D | F101: 2 | G101: Hot Wheels | H101: 1 | I101: Initial Tech | J101: 1 | K101: 18125 | L101: Suspension - D | M101: 2 | N101: Hot Wheels | O101: 1 | P101: Early Tech | Q101: 1 | R101: 14525 | S101: Drive Train - D | T101: 2 | U101: Hot Wheels | V101: 1 | W101: Initial Tech | X101: 1 | Y101: 18175 | Z101: Exhaust - D | AA101: 2 | AB101: Hot Wheels | AC101: 1 | AD101: Early Tech | AE101: 1 | AF101: 16725
B102: Hot Wheels Rip Rod™ | C102: D | D102: 4 | E102: Tires - D | F102: 3 | G102: Hot Wheels | H102: 1 | I102: Initial Tech | J102: 1 | K102: 25675 | L102: Suspension - D | M102: 3 | N102: Hot Wheels | O102: 1 | P102: Early Tech | Q102: 1 | R102: 20550 | S102: Drive Train - D | T102: 3 | U102: Hot Wheels | V102: 1 | W102: Initial Tech | X102: 1 | Y102: 25650 | Z102: Exhaust - D | AA102: 3 | AB102: Hot Wheels | AC102: 1 | AD102: Early Tech | AE102: 1 | AF102: 23625
B103: Hot Wheels Rip Rod™ | C103: D | D103: 5 | E103: Tires - D | F103: 3 | G103: Hot Wheels | H103: 1 | I103: Initial Tech | J103: 2 | K103: 40500 | L103: Suspension - D | M103: 3 | N103: Hot Wheels | O103: 1 | P103: Early Tech | Q103: 2 | R103: 32400 | S103: Drive Train - D | T103: 3 | U103: Hot Wheels | V103: 1 | W103: Initial Tech | X103: 2 | Y103: 40500 | Z103: Exhaust - D | AA103: 3 | AB103: Hot Wheels | AC103: 1 | AD103: Early Tech | AE103: 2 | AF103: 37250
B104: Porsche 959 | C104: D | D104: 1 | E104: Tires - D | F104: 1 | G104: High Grade | H104: 0 | I104: Initial Tech | J104: 1 | K104: 4000 | L104: Suspension - D | M104: 1 | N104: High Grade | O104: 0 | P104: Early Tech | Q104: 1 | R104: 3200 | S104: Drive Train - D | T104: 1 | U104: High Grade | V104: 0 | W104: Initial Tech | X104: 1 | Y104: 4000 | Z104: Exhaust - D | AA104: 1 | AB104: High Grade | AC104: 0 | AD104: Early Tech | AE104: 1 | AF104: 3500
B105: Porsche 959 | C105: D | D105: 2 | E105: Tires - D | F105: 2 | G105: High Grade | H105: 1 | I105: Initial Tech | J105: 1 | K105: 25400 | L105: Suspension - D | M105: 2 | N105: High Grade | O105: 1 | P105: Early Tech | Q105: 1 | R105: 20325 | S105: Drive Train - D | T105: 2 | U105: High Grade | V105: 1 | W105: Initial Tech | X105: 1 | Y105: 25375 | Z105: Exhaust - D | AA105: 2 | AB105: High Grade | AC105: 1 | AD105: Early Tech | AE105: 1 | AF105: 23375
B106: Porsche 959 | C106: D | D106: 3 | E106: Tires - D | F106: 2 | G106: High Grade | H106: 1 | I106: Initial Tech | J106: 1 | K106: 20150 | L106: Suspension - D | M106: 2 | N106: High Grade | O106: 1 | P106: Early Tech | Q106: 1 | R106: 16125 | S106: Drive Train - D | T106: 2 | U106: High Grade | V106: 1 | W106: Initial Tech | X106: 1 | Y106: 20200 | Z106: Exhaust - D | AA106: 2 | AB106: High Grade | AC106: 1 | AD106: Early Tech | AE106: 1 | AF106: 18575
B107: Porsche 959 | C107: D | D107: 4 | E107: Tires - D | F107: 3 | G107: High Grade | H107: 1 | I107: Initial Tech | J107: 1 | K107: 28525 | L107: Suspension - D | M107: 3 | N107: High Grade | O107: 1 | P107: Early Tech | Q107: 1 | R107: 22825 | S107: Drive Train - D | T107: 3 | U107: High Grade | V107: 1 | W107: Initial Tech | X107: 1 | Y107: 28500 | Z107: Exhaust - D | AA107: 3 | AB107: High Grade | AC107: 1 | AD107: Early Tech | AE107: 1 | AF107: 26250
B108: Porsche 959 | C108: D | D108: 5 | E108: Tires - D | F108: 3 | G108: High Grade | H108: 1 | I108: Initial Tech | J108: 1 | K108: 45000 | L108: Suspension - D | M108: 3 | N108: High Grade | O108: 1 | P108: Early Tech | Q108: 1 | R108: 36000 | S108: Drive Train - D | T108: 3 | U108: High Grade | V108: 1 | W108: Initial Tech | X108: 1 | Y108: 45000 | Z108: Exhaust - D | AA108: 3 | AB108: High Grade | AC108: 1 | AD108: Early Tech | AE108: 1 | AF108: 41375
B109: Ferrari 308 GTS | C109: D | D109: 1 | E109: Tires - D | F109: 1 | G109: v8 | H109: 0 | I109: Initial Tech | J109: 0 | K109: 4128 | L109: Suspension - D | M109: 1 | N109: v8 | O109: 0 | P109: Early Tech | Q109: 0 | R109: 3290 | S109: Drive Train - D | T109: 1 | U109: v8 | V109: 0 | W109: Initial Tech | X109: 0 | Y109: 4128 | Z109: Exhaust - D | AA109: 1 | AB109: v8 | AC109: 0 | AD109: Early Tech | AE109: 0 | AF109: 3612 | AH109: OK
B110: Ferrari 308 GTS | C110: D | D110: 2 | E110: Tires - D | F110: 1 | G110: v8 | H110: 0 | I110: Early Tech | J110: 0 | K110: 26219 | L110: Suspension - D | M110: 1 | N110: v8 | O110: 0 | P110: Initial Tech | Q110: 0 | R110: 20963 | S110: Drive Train - D | T110: 1 | U110: v8 | V110: 0 | W110: Early Tech | X110: 0 | Y110: 26187 | Z110: Exhaust - D | AA110: 1 | AB110: v8 | AC110: 0 | AD110: Initial Tech | AE110: 0 | AF110: 24123
B111: Ferrari 308 GTS | C111: D | D111: 3 | E111: Tires - D | F111: 2 | G111: v8 | H111: 0 | I111: Initial Tech | J111: 1 | K111: 20801 | L111: Suspension - D | M111: 2 | N111: v8 | O111: 0 | P111: Early Tech | Q111: 1 | R111: 16641 | S111: Drive Train - D | T111: 2 | U111: v8 | V111: 0 | W111: Initial Tech | X111: 1 | Y111: 20834 | Z111: Exhaust - D | AA111: 2 | AB111: v8 | AC111: 0 | AD111: Early Tech | AE111: 1 | AF111: 19157
B112: Ferrari 308 GTS | C112: D | D112: 4 | E112: Tires - D | F112: 2 | G112: v8 | H112: 0 | I112: Early Tech | J112: 1 | K112: 29444 | L112: Suspension - D | M112: 2 | N112: v8 | O112: 0 | P112: Initial Tech | Q112: 1 | R112: 23543 | S112: Drive Train - D | T112: 2 | U112: v8 | V112: 0 | W112: Early Tech | X112: 1 | Y112: 29412 | Z112: Exhaust - D | AA112: 2 | AB112: v8 | AC112: 0 | AD112: Initial Tech | AE112: 1 | AF112: 27090
B113: Ferrari 308 GTS | C113: D | D113: 5 | E113: Tires - D | F113: 3 | G113: v8 | H113: 1 | I113: Initial Tech | J113: 2 | K113: 46440 | L113: Suspension - D | M113: 3 | N113: v8 | O113: 1 | P113: Early Tech | Q113: 2 | R113: 37152 | S113: Drive Train - D | T113: 3 | U113: v8 | V113: 1 | W113: Initial Tech | X113: 2 | Y113: 46440 | Z113: Exhaust - D | AA113: 3 | AB113: v8 | AC113: 1 | AD113: Early Tech | AE113: 2 | AF113: 42699
B114: BMW M3 Sedan | C114: D | D114: 1 | E114: Tires - D | F114: 1 | G114: f6 | H114: 0 | I114: Initial Tech | J114: 0 | K114: 4250 | L114: Suspension - D | M114: 1 | N114: f6 | O114: 0 | P114: Early Tech | Q114: 0 | R114: 3250 | S114: Drive Train - D | T114: 1 | U114: f6 | V114: 0 | W114: Initial Tech | X114: 0 | Y114: 4250 | Z114: Exhaust - D | AA114: 1 | AB114: f6 | AC114: 0 | AD114: Early Tech | AE114: 0 | AF114: 3500 | AH114: OK
B115: BMW M3 Sedan | C115: D | D115: 2 | E115: Tires - D | F115: 1 | G115: f6 | H115: 0 | I115: Initial Tech | J115: 0 | K115: 26250 | L115: Suspension - D | M115: 1 | N115: f6 | O115: 0 | P115: Early Tech | Q115: 0 | R115: 21000 | S115: Drive Train - D | T115: 1 | U115: f6 | V115: 0 | W115: Initial Tech | X115: 0 | Y115: 26250 | Z115: Exhaust - D | AA115: 1 | AB115: f6 | AC115: 0 | AD115: Early Tech | AE115: 0 | AF115: 24000
B116: BMW M3 Sedan | C116: D | D116: 3 | E116: Tires - D | F116: 2 | G116: f6 | H116: 0 | I116: Initial Tech | J116: 1 | K116: 23000 | L116: Suspension - D | M116: 2 | N116: f6 | O116: 0 | P116: Early Tech | Q116: 1 | R116: 18250 | S116: Drive Train - D | T116: 2 | U116: f6 | V116: 0 | W116: Initial Tech | X116: 1 | Y116: 23000 | Z116: Exhaust - D | AA116: 2 | AB116: f6 | AC116: 0 | AD116: Early Tech | AE116: 1 | AF116: 21000
B117: BMW M3 Sedan | C117: D | D117: 4 | E117: Tires - D | F117: 3 | G117: f6 | H117: 0 | I117: Initial Tech | J117: 2 | K117: 32500 | L117: Suspension - D | M117: 3 | N117: f6 | O117: 0 | P117: Early Tech | Q117: 2 | R117: 26000 | S117: Drive Train - D | T117: 3 | U117: f6 | V117: 0 | W117: Initial Tech | X117: 2 | Y117: 32250 | Z117: Exhaust - D | AA117: 3 | AB117: f6 | AC117: 0 | AD117: Early Tech | AE117: 2 | AF117: 29750
B118: BMW M3 Sedan | C118: D | D118: 5 | E118: Tires - D | F118: 3 | G118: f6 | H118: 1 | I118: Initial Tech | J118: 2 | K118: 51000 | L118: Suspension - D | M118: 3 | N118: f6 | O118: 1 | P118: Early Tech | Q118: 2 | R118: 40750 | S118: Drive Train - D | T118: 3 | U118: f6 | V118: 1 | W118: Initial Tech | X118: 2 | Y118: 51000 | Z118: Exhaust - D | AA118: 3 | AB118: f6 | AC118: 1 | AD118: Early Tech | AE118: 2 | AF118: 47000
B119: Mazda 6 | C119: D | D119: 1 | E119: Tires - D | F119: 1 | G119: i4 | H119: 0 | I119: Initial Tech | J119: 1 | K119: 4900 | L119: Suspension - D | M119: 1 | N119: i4 | O119: 0 | P119: Early Tech | Q119: 1 | R119: 3750 | S119: Drive Train - D | T119: 1 | U119: i4 | V119: 0 | W119: Initial Tech | X119: 1 | Y119: 4900 | Z119: Exhaust - D | AA119: 1 | AB119: i4 | AC119: 0 | AD119: Early Tech | AE119: 1 | AF119: 4050
B120: Mazda 6 | C120: D | D120: 2 | E120: Tires - D | F120: 1 | G120: i4 | H120: 0 | I120: Initial Tech | J120: 1 | K120: 30325 | L120: Suspension - D | M120: 1 | N120: i4 | O120: 0 | P120: Early Tech | Q120: 1 | R120: 24250 | S120: Drive Train - D | T120: 1 | U120: i4 | V120: 0 | W120: Initial Tech | X120: 1 | Y120: 30325 | Z120: Exhaust - D | AA120: 1 | AB120: i4 | AC120: 0 | AD120: Early Tech | AE120: 1 | AF120: 27725
B121: Mazda 6 | C121: D | D121: 3 | E121: Tires - D | F121: 3 | G121: i4 | H121: 0 | I121: Initial Tech | J121: 1 | K121: 26575 | L121: Suspension - D | M121: 3 | N121: i4 | O121: 0 | P121: Early Tech | Q121: 1 | R121: 21075 | S121: Drive Train - D | T121: 3 | U121: i4 | V121: 0 | W121: Initial Tech | X121: 1 | Y121: 26575 | Z121: Exhaust - D | AA121: 3 | AB121: i4 | AC121: 0 | AD121: Early Tech | AE121: 1 | AF121: 24250
B122: Mazda 6 | C122: D | D122: 4 | E122: Tires - D | F122: 2 | G122: i4 | H122: 1 | I122: Initial Tech | J122: 1 | K122: 37550 | L122: Suspension - D | M122: 2 | N122: i4 | O122: 1 | P122: Early Tech | Q122: 1 | R122: 30025 | S122: Drive Train - D | T122: 2 | U122: i4 | V122: 1 | W122: Initial Tech | X122: 1 | Y122: 37250 | Z122: Exhaust - D | AA122: 2 | AB122: i4 | AC122: 1 | AD122: Early Tech | AE122: 1 | AF122: 34350
B123: Mazda 6 | C123: D | D123: 5 | E123: Tires - D | F123: 3 | G123: i4 | H123: 2 | I123: Initial Tech | J123: 1 | K123: 58900 | L123: Suspension - D | M123: 3 | N123: i4 | O123: 2 | P123: Early Tech | Q123: 1 | R123: 47075 | S123: Drive Train - D | T123: 3 | U123: i4 | V123: 2 | W123: Initial Tech | X123: 1 | Y123: 58900 | Z123: Exhaust - D | AA123: 3 | AB123: i4 | AC123: 2 | AD123: Early Tech | AE123: 1 | AF123: 54275
B124: Geely GC9 | C124: D | D124: 1 | E124: Tires - D | F124: 1 | G124: v6 | H124: 0 | I124: Initial Tech | J124: 0 | K124: 4675 | L124: Suspension - D | M124: 1 | N124: v6 | O124: 0 | P124: Early Tech | Q124: 0 | R124: 3575 | S124: Drive Train - D | T124: 1 | U124: v6 | V124: 0 | W124: Initial Tech | X124: 0 | Y124: 4675 | Z124: Exhaust - D | AA124: 1 | AB124: v6 | AC124: 0 | AD124: Early Tech | AE124: 0 | AF124: 3850 | AH124: OK
B125: Geely GC9 | C125: D | D125: 2 | E125: Tires - D | F125: 1 | G125: v6 | H125: 0 | I125: Initial Tech | J125: 0 | K125: 28875 | L125: Suspension - D | M125: 1 | N125: v6 | O125: 0 | P125: Early Tech | Q125: 0 | R125: 23100 | S125: Drive Train - D | T125: 1 | U125: v6 | V125: 0 | W125: Initial Tech | X125: 0 | Y125: 28875 | Z125: Exhaust - D | AA125: 1 | AB125: v6 | AC125: 0 | AD125: Early Tech | AE125: 0 | AF125: 26400
B126: Geely GC9 | C126: D | D126: 3 | E126: Tires - D | F126: 2 | G126: v6 | H126: 0 | I126: Initial Tech | J126: 1 | K126: 25300 | L126: Suspension - D | M126: 2 | N126: v6 | O126: 0 | P126: Early Tech | Q126: 1 | R126: 20075 | S126: Drive Train - D | T126: 2 | U126: v6 | V126: 0 | W126: Initial Tech | X126: 1 | Y126: 25300 | Z126: Exhaust - D | AA126: 2 | AB126: v6 | AC126: 0 | AD126: Early Tech | AE126: 1 | AF126: 23100
B127: Geely GC9 | C127: D | D127: 4 | E127: Tires - D | F127: 3 | G127: v6 | H127: 0 | I127: Initial Tech | J127: 2 | K127: 35750 | L127: Suspension - D | M127: 3 | N127: v6 | O127: 0 | P127: Early Tech | Q127: 2 | R127: 28600 | S127: Drive Train - D | T127: 3 | U127: v6 | V127: 0 | W127: Initial Tech | X127: 2 | Y127: 35475 | Z127: Exhaust - D | AA127: 3 | AB127: v6 | AC127: 0 | AD127: Early Tech | AE127: 2 | AF127: 32725
B128: Geely GC9 | C128: D | D128: 5 | E128: Tires - D | F128: 4 | G128: v6 | H128: 2 | I128: Initial Tech | J128: 2 | K128: 56100 | L128: Suspension - D | M128: 4 | N128: v6 | O128: 2 | P128: Early Tech | Q128: 2 | R128: 44825 | S128: Drive Train - D | T128: 4 | U128: v6 | V128: 2 | W128: Initial Tech | X128: 2 | Y128: 56100 | Z128: Exhaust - D | AA128: 4 | AB128: v6 | AC128: 2 | AD128: Early Tech | AE128: 2 | AF128: 51700
B129: Subaru Impreza WRX STI | C129: D | D129: 1 | E129: Tires - D | F129: 1 | G129: i4 | H129: 0 | I129: Initial Tech | J129: 0 | K129: 5000 | L129: Suspension - D | M129: 1 | N129: i4 | O129: 0 | P129: Early Tech | Q129: 0 | R129: 3675 | S129: Drive Train - D | T129: 1 | U129: i4 | V129: 0 | W129: Initial Tech | X129: 0 | Y129: 5000 | Z129: Exhaust - D | AA129: 1 | AB129: i4 | AC129: 0 | AD129: Early Tech | AE129: 0 | AF129: 3950 | AH129: OK
B130: Subaru Impreza WRX STI | C130: D | D130: 2 | E130: Tires - D | F130: 1 | G130: i4 | H130: 0 | I130: Initial Tech | J130: 1 | K130: 30450 | L130: Suspension - D | M130: 1 | N130: i4 | O130: 0 | P130: Early Tech | Q130: 1 | R130: 24150 | S130: Drive Train - D | T130: 1 | U130: i4 | V130: 0 | W130: Initial Tech | X130: 1 | Y130: 30450 | Z130: Exhaust - D | AA130: 1 | AB130: i4 | AC130: 0 | AD130: Early Tech | AE130: 1 | AF130: 27825
B131: Subaru Impreza WRX STI | C131: D | D131: 3 | E131: Tires - D | F131: 2 | G131: i4 | H131: 1 | I131: Initial Tech | J131: 1 | K131: 29150 | L131: Suspension - D | M131: 2 | N131: i4 | O131: 1 | P131: Early Tech | Q131: 1 | R131: 23100 | S131: Drive Train - D | T131: 2 | U131: i4 | V131: 1 | W131: Initial Tech | X131: 1 | Y131: 29150 | Z131: Exhaust - D | AA131: 2 | AB131: i4 | AC131: 1 | AD131: Early Tech | AE131: 1 | AF131: 26775
B132: Subaru Impreza WRX STI | C132: D | D132: 4 | E132: Tires - D | F132: 3 | G132: i4 | H132: 1 | I132: Initial Tech | J132: 1 | K132: 41225 | L132: Suspension - D | M132: 3 | N132: i4 | O132: 1 | P132: Early Tech | Q132: 1 | R132: 33075 | S132: Drive Train - D | T132: 3 | U132: i4 | V132: 1 | W132: Initial Tech | X132: 1 | Y132: 40950 | Z132: Exhaust - D | AA132: 3 | AB132: i4 | AC132: 1 | AD132: Early Tech | AE132: 1 | AF132: 37800
B133: Subaru Impreza WRX STI | C133: D | D133: 5 | E133: Tires - D | F133: 4 | G133: i4 | H133: 2 | I133: Initial Tech | J133: 2 | K133: 64850 | L133: Suspension - D | M133: 4 | N133: i4 | O133: 2 | P133: Early Tech | Q133: 2 | R133: 51725 | S133: Drive Train - D | T133: 4 | U133: i4 | V133: 2 | W133: Initial Tech | X133: 2 | Y133: 64850 | Z133: Exhaust - D | AA133: 4 | AB133: i4 | AC133: 2 | AD133: Early Tech | AE133: 2 | AF133: 59600
B134: nanoFlowcell Quantino | C134: D | D134: 1 | E134: Tires - D | F134: 1 | G134: Electric | H134: 0 | I134: Initial Tech | J134: 1 | K134: 4500 | L134: Suspension - D | M134: 1 | N134: Electric | O134: 0 | P134: Early Tech | Q134: 1 | R134: 3300 | S134: Drive Train - D | T134: 1 | U134: Electric | V134: 0 | W134: Initial Tech | X134: 1 | Y134: 4500 | Z134: Exhaust - D | AA134: 1 | AB134: Electric | AC134: 0 | AD134: Early Tech | AE134: 1 | AF134: 3550 | AH134: OK
B135: nanoFlowcell Quantino | C135: D | D135: 2 | E135: Tires - D | F135: 1 | G135: Electric | H135: 0 | I135: Initial Tech | J135: 1 | K135: 27400 | L135: Suspension - D | M135: 1 | N135: Electric | O135: 0 | P135: Early Tech | Q135: 1 | R135: 21725 | S135: Drive Train - D | T135: 1 | U135: Electric | V135: 0 | W135: Initial Tech | X135: 1 | Y135: 27400 | Z135: Exhaust - D | AA135: 1 | AB135: Electric | AC135: 0 | AD135: Early Tech | AE135: 1 | AF135: 25050
B136: nanoFlowcell Quantino | C136: D | D136: 3 | E136: Tires - D | F136: 2 | G136: Electric | H136: 0 | I136: Initial Tech | J136: 1 | K136: 26225 | L136: Suspension - D | M136: 2 | N136: Electric | O136: 0 | P136: Early Tech | Q136: 1 | R136: 20800 | S136: Drive Train - D | T136: 2 | U136: Electric | V136: 0 | W136: Initial Tech | X136: 1 | Y136: 26225 | Z136: Exhaust - D | AA136: 2 | AB136: Electric | AC136: 0 | AD136: Early Tech | AE136: 1 | AF136: 24100
B137: nanoFlowcell Quantino | C137: D | D137: 4 | E137: Tires - D | F137: 3 | G137: Electric | H137: 0 | I137: Initial Tech | J137: 1 | K137: 37100 | L137: Suspension - D | M137: 3 | N137: Electric | O137: 0 | P137: Early Tech | Q137: 1 | R137: 29775 | S137: Drive Train - D | T137: 3 | U137: Electric | V137: 0 | W137: Initial Tech | X137: 1 | Y137: 36850 | Z137: Exhaust - D | AA137: 3 | AB137: Electric | AC137: 0 | AD137: Early Tech | AE137: 1 | AF137: 34025
B138: nanoFlowcell Quantino | C138: D | D138: 5 | E138: Tires - D | F138: 3 | G138: Electric | H138: 1 | I138: Initial Tech | J138: 1 | K138: 58375 | L138: Suspension - D | M138: 3 | N138: Electric | O138: 1 | P138: Early Tech | Q138: 1 | R138: 46550 | S138: Drive Train - D | T138: 3 | U138: Electric | V138: 1 | W138: Initial Tech | X138: 1 | Y138: 58375 | Z138: Exhaust - D | AA138: 3 | AB138: Electric | AC138: 1 | AD138: Early Tech | AE138: 1 | AF138: 53650
B139: Mitsubishi Lancer Evolution X | C139: D | D139: 1 | E139: Tires - D | F139: 1 | G139: i4 | H139: 0 | I139: Initial Tech | J139: 0 | K139: 4750 | L139: Suspension - D | M139: 1 | N139: i4 | O139: 0 | P139: Early Tech | Q139: 0 | R139: 3500 | S139: Drive Train - D | T139: 1 | U139: i4 | V139: 0 | W139: Initial Tech | X139: 0 | Y139: 4750 | Z139: Exhaust - D | AA139: 1 | AB139: i4 | AC139: 0 | AD139: Early Tech | AE139: 0 | AF139: 3750 | AH139: OK
B140: Mitsubishi Lancer Evolution X | C140: D | D140: 2 | E140: Tires - D | F140: 1 | G140: i4 | H140: 0 | I140: Initial Tech | J140: 0 | K140: 29000 | L140: Suspension - D | M140: 1 | N140: i4 | O140: 0 | P140: Early Tech | Q140: 0 | R140: 23000 | S140: Drive Train - D | T140: 1 | U140: i4 | V140: 0 | W140: Initial Tech | X140: 0 | Y140: 29000 | Z140: Exhaust - D | AA140: 1 | AB140: i4 | AC140: 0 | AD140: Early Tech | AE140: 0 | AF140: 26500
B141: Mitsubishi Lancer Evolution X | C141: D | D141: 3 | E141: Tires - D | F141: 2 | G141: i4 | H141: 0 | I141: Initial Tech | J141: 1 | K141: 27750 | L141: Suspension - D | M141: 2 | N141: i4 | O141: 0 | P141: Early Tech | Q141: 1 | R141: 22000 | S141: Drive Train - D | T141: 2 | U141: i4 | V141: 0 | W141: Initial Tech | X141: 1 | Y141: 27750 | Z141: Exhaust - D | AA141: 2 | AB141: i4 | AC141: 0 | AD141: Early Tech | AE141: 1 | AF141: 25500
B142: Mitsubishi Lancer Evolution X | C142: D | D142: 4 | E142: Tires - D | F142: 3 | G142: i4 | H142: 1 | I142: Initial Tech | J142: 2 | K142: 39250 | L142: Suspension - D | M142: 3 | N142: i4 | O142: 1 | P142: Early Tech | Q142: 2 | R142: 31500 | S142: Drive Train - D | T142: 3 | U142: i4 | V142: 1 | W142: Initial Tech | X142: 2 | Y142: 39000 | Z142: Exhaust - D | AA142: 3 | AB142: i4 | AC142: 1 | AD142: Early Tech | AE142: 2 | AF142: 36000
B143: Mitsubishi Lancer Evolution X | C143: D | D143: 5 | E143: Tires - D | F143: 4 | G143: i4 | H143: 1 | I143: Initial Tech | J143: 2 | K143: 61750 | L143: Suspension - D | M143: 4 | N143: i4 | O143: 1 | P143: Early Tech | Q143: 2 | R143: 49250 | S143: Drive Train - D | T143: 4 | U143: i4 | V143: 1 | W143: Initial Tech | X143: 2 | Y143: 61750 | Z143: Exhaust - D | AA143: 4 | AB143: i4 | AC143: 1 | AD143: Early Tech | AE143: 2 | AF143: 56750
B144: Alfa Romeo 4C | C144: D | D144: 1 | E144: Tires - D | F144: 1 | G144: i4 | H144: 0 | I144: Initial Tech | J144: 1 | K144: 3325 | L144: Suspension - D | M144: 1 | N144: i4 | O144: 0 | P144: Early Tech | Q144: 1 | R144: 2450 | S144: Drive Train - D | T144: 1 | U144: i4 | V144: 0 | W144: Initial Tech | X144: 1 | Y144: 3325 | Z144: Exhaust - D | AA144: 1 | AB144: i4 | AC144: 0 | AD144: Early Tech | AE144: 1 | AF144: 2625
B145: Alfa Romeo 4C | C145: D | D145: 2 | E145: Tires - D | F145: 1 | G145: i4 | H145: 0 | I145: Initial Tech | J145: 1 | K145: 20300 | L145: Suspension - D | M145: 1 | N145: i4 | O145: 0 | P145: Early Tech | Q145: 1 | R145: 16100 | S145: Drive Train - D | T145: 1 | U145: i4 | V145: 0 | W145: Initial Tech | X145: 1 | Y145: 20300 | Z145: Exhaust - D | AA145: 1 | AB145: i4 | AC145: 0 | AD145: Early Tech | AE145: 1 | AF145: 18550
B146: Alfa Romeo 4C | C146: D | D146: 3 | E146: Tires - D | F146: 2 | G146: i4 | H146: 1 | I146: Initial Tech | J146: 1 | K146: 21375 | L146: Suspension - D | M146: 2 | N146: i4 | O146: 1 | P146: Early Tech | Q146: 1 | R146: 16950 | S146: Drive Train - D | T146: 2 | U146: i4 | V146: 1 | W146: Initial Tech | X146: 1 | Y146: 21375 | Z146: Exhaust - D | AA146: 2 | AB146: i4 | AC146: 1 | AD146: Early Tech | AE146: 1 | AF146: 19625
B147: Alfa Romeo 4C | C147: D | D147: 4 | E147: Tires - D | F147: 3 | G147: i4 | H147: 1 | I147: Initial Tech | J147: 1 | K147: 27475 | L147: Suspension - D | M147: 3 | N147: i4 | O147: 1 | P147: Early Tech | Q147: 1 | R147: 22050 | S147: Drive Train - D | T147: 3 | U147: i4 | V147: 1 | W147: Initial Tech | X147: 1 | Y147: 27300 | Z147: Exhaust - D | AA147: 3 | AB147: i4 | AC147: 1 | AD147: Early Tech | AE147: 1 | AF147: 25200
B148: Alfa Romeo 4C | C148: D | D148: 5 | E148: Tires - D | F148: 4 | G148: i4 | H148: 1 | I148: Initial Tech | J148: 1 | K148: 43225 | L148: Suspension - D | M148: 4 | N148: i4 | O148: 1 | P148: Early Tech | Q148: 1 | R148: 34475 | S148: Drive Train - D | T148: 4 | U148: i4 | V148: 1 | W148: Initial Tech | X148: 1 | Y148: 43225 | Z148: Exhaust - D | AA148: 4 | AB148: i4 | AC148: 1 | AD148: Early Tech | AE148: 1 | AF148: 39725
B149: Mazda RX8 | C149: D | D149: 1 | E149: Tires - D | F149: 1 | G149: Rotary Engine | H149: 0 | I149: Initial Tech | J149: 1 | K149: 3650 | L149: Suspension - D | M149: 1 | N149: Rotary Engine | O149: 0 | P149: Early Tech | Q149: 1 | R149: 2700 | S149: Drive Train - D | T149: 1 | U149: Rotary Engine | V149: 0 | W149: Initial Tech | X149: 1 | Y149: 3650 | Z149: Exhaust - D | AA149: 1 | AB149: Rotary Engine | AC149: 0 | AD149: Early Tech | AE149: 1 | AF149: 2900 | AH149: OK
B150: Mazda RX8 | C150: D | D150: 2 | E150: Tires - D | F150: 1 | G150: Rotary Engine | H150: 0 | I150: Initial Tech | J150: 1 | K150: 22325 | L150: Suspension - D | M150: 1 | N150: Rotary Engine | O150: 0 | P150: Early Tech | Q150: 1 | R150: 17700 | S150: Drive Train - D | T150: 1 | U150: Rotary Engine | V150: 0 | W150: Initial Tech | X150: 1 | Y150: 22325 | Z150: Exhaust - D | AA150: 1 | AB150: Rotary Engine | AC150: 0 | AD150: Early Tech | AE150: 1 | AF150: 20400
B151: Mazda RX8 | C151: D | D151: 3 | E151: Tires - D | F151: 2 | G151: Rotary Engine | H151: 0 | I151: Initial Tech | J151: 1 | K151: 23525 | L151: Suspension - D | M151: 2 | N151: Rotary Engine | O151: 0 | P151: Early Tech | Q151: 1 | R151: 18650 | S151: Drive Train - D | T151: 2 | U151: Rotary Engine | V151: 0 | W151: Initial Tech | X151: 1 | Y151: 23525 | Z151: Exhaust - D | AA151: 2 | AB151: Rotary Engine | AC151: 0 | AD151: Early Tech | AE151: 1 | AF151: 21600
B152: Mazda RX8 | C152: D | D152: 4 | E152: Tires - D | F152: 3 | G152: Rotary Engine | H152: 0 | I152: Initial Tech | J152: 1 | K152: 30225 | L152: Suspension - D | M152: 3 | N152: Rotary Engine | O152: 0 | P152: Early Tech | Q152: 1 | R152: 24250 | S152: Drive Train - D | T152: 3 | U152: Rotary Engine | V152: 0 | W152: Initial Tech | X152: 1 | Y152: 30025 | Z152: Exhaust - D | AA152: 3 | AB152: Rotary Engine | AC152: 0 | AD152: Early Tech | AE152: 1 | AF152: 27725
B153: Mazda RX8 | C153: D | D153: 5 | E153: Tires - D | F153: 3 | G153: Rotary Engine | H153: 1 | I153: Initial Tech | J153: 1 | K153: 47550 | L153: Suspension - D | M153: 3 | N153: Rotary Engine | O153: 1 | P153: Early Tech | Q153: 1 | R153: 37925 | S153: Drive Train - D | T153: 3 | U153: Rotary Engine | V153: 1 | W153: Initial Tech | X153: 1 | Y153: 47550 | Z153: Exhaust - D | AA153: 3 | AB153: Rotary Engine | AC153: 1 | AD153: Early Tech | AE153: 1 | AF153: 43700
B154: Donkervoort D8 GTO | C154: D | D154: 1 | E154: Tires - D | F154: 1 | G154: i5 | H154: 0 | I154: Initial Tech | J154: 1 | K154: 5250 | L154: Suspension - D | M154: 1 | N154: i5 | O154: 0 | P154: Early Tech | Q154: 1 | R154: 3850 | S154: Drive Train - D | T154: 1 | U154: i5 | V154: 0 | W154: Initial Tech | X154: 1 | Y154: 5250 | Z154: Exhaust - D | AA154: 1 | AB154: i5 | AC154: 0 | AD154: Early Tech | AE154: 1 | AF154: 4150 | AH154: OK
B155: Donkervoort D8 GTO | C155: D | D155: 2 | E155: Tires - D | F155: 2 | G155: i5 | H155: 0 | I155: Initial Tech | J155: 1 | K155: 31975 | L155: Suspension - D | M155: 2 | N155: i5 | O155: 0 | P155: Early Tech | Q155: 1 | R155: 25350 | S155: Drive Train - D | T155: 2 | U155: i5 | V155: 0 | W155: Initial Tech | X155: 1 | Y155: 31975 | Z155: Exhaust - D | AA155: 2 | AB155: i5 | AC155: 0 | AD155: Early Tech | AE155: 1 | AF155: 29225
B156: Donkervoort D8 GTO | C156: D | D156: 3 | E156: Tires - D | F156: 3 | G156: i5 | H156: 0 | I156: Initial Tech | J156: 2 | K156: 30600 | L156: Suspension - D | M156: 3 | N156: i5 | O156: 0 | P156: Early Tech | Q156: 2 | R156: 24250 | S156: Drive Train - D | T156: 3 | U156: i5 | V156: 0 | W156: Initial Tech | X156: 2 | Y156: 30600 | Z156: Exhaust - D | AA156: 3 | AB156: i5 | AC156: 0 | AD156: Early Tech | AE156: 2 | AF156: 28125
B157: Donkervoort D8 GTO | C157: D | D157: 4 | E157: Tires - D | F157: 3 | G157: i5 | H157: 1 | I157: Initial Tech | J157: 1 | K157: 43275 | L157: Suspension - D | M157: 3 | N157: i5 | O157: 1 | P157: Early Tech | Q157: 1 | R157: 34725 | S157: Drive Train - D | T157: 3 | U157: i5 | V157: 1 | W157: Initial Tech | X157: 1 | Y157: 43000 | Z157: Exhaust - D | AA157: 3 | AB157: i5 | AC157: 1 | AD157: Early Tech | AE157: 1 | AF157: 39700
B158: Donkervoort D8 GTO | C158: D | D158: 5 | E158: Tires - D | F158: 4 | G158: i5 | H158: 1 | I158: Initial Tech | J158: 2 | K158: 68100 | L158: Suspension - D | M158: 4 | N158: i5 | O158: 1 | P158: Early Tech | Q158: 2 | R158: 54300 | S158: Drive Train - D | T158: 4 | U158: i5 | V158: 1 | W158: Initial Tech | X158: 2 | Y158: 68100 | Z158: Exhaust - D | AA158: 4 | AB158: i5 | AC158: 1 | AD158: Early Tech | AE158: 2 | AF158: 62575
B159: Buick Avista Concept | C159: D | D159: 1 | E159: Tires - D | F159: 1 | G159: v8 | H159: 0 | I159: Initial Tech | J159: 1 | K159: 5250 | L159: Suspension - D | M159: 1 | N159: v8 | O159: 0 | P159: Early Tech | Q159: 1 | R159: 3850 | S159: Drive Train - D | T159: 1 | U159: v8 | V159: 0 | W159: Initial Tech | X159: 1 | Y159: 5250 | Z159: Exhaust - D | AA159: 1 | AB159: v8 | AC159: 0 | AD159: Early Tech | AE159: 1 | AF159: 4150 | AH159: OK
B160: Buick Avista Concept | C160: D | D160: 2 | E160: Tires - D | F160: 2 | G160: v8 | H160: 0 | I160: Initial Tech | J160: 2 | K160: 31975 | L160: Suspension - D | M160: 2 | N160: v8 | O160: 0 | P160: Early Tech | Q160: 2 | R160: 25350 | S160: Drive Train - D | T160: 2 | U160: v8 | V160: 0 | W160: Initial Tech | X160: 2 | Y160: 31975 | Z160: Exhaust - D | AA160: 2 | AB160: v8 | AC160: 0 | AD160: Early Tech | AE160: 2 | AF160: 29225
B161: Buick Avista Concept | C161: D | D161: 3 | E161: Tires - D | F161: 3 | G161: v8 | H161: 0 | I161: Initial Tech | J161: 2 | K161: 30600 | L161: Suspension - D | M161: 3 | N161: v8 | O161: 0 | P161: Early Tech | Q161: 2 | R161: 24250 | S161: Drive Train - D | T161: 3 | U161: v8 | V161: 0 | W161: Initial Tech | X161: 2 | Y161: 30600 | Z161: Exhaust - D | AA161: 3 | AB161: v8 | AC161: 0 | AD161: Early Tech | AE161: 2 | AF161: 28125
B162: Buick Avista Concept | C162: D | D162: 4 | E162: Tires - D | F162: 3 | G162: v8 | H162: 1 | I162: Initial Tech | J162: 1 | K162: 43275 | L162: Suspension - D | M162: 3 | N162: v8 | O162: 1 | P162: Early Tech | Q162: 1 | R162: 34725 | S162: Drive Train - D | T162: 3 | U162: v8 | V162: 1 | W162: Initial Tech | X162: 1 | Y162: 43000 | Z162: Exhaust - D | AA162: 3 | AB162: v8 | AC162: 1 | AD162: Early Tech | AE162: 1 | AF162: 39700
B163: Buick Avista Concept | C163: D | D163: 5 | E163: Tires - D | F163: 4 | G163: v8 | H163: 1 | I163: Initial Tech | J163: 2 | K163: 68100 | L163: Suspension - D | M163: 4 | N163: v8 | O163: 1 | P163: Early Tech | Q163: 2 | R163: 54300 | S163: Drive Train - D | T163: 4 | U163: v8 | V163: 1 | W163: Initial Tech | X163: 2 | Y163: 68100 | Z163: Exhaust - D | AA163: 4 | AB163: v8 | AC163: 1 | AD163: Early Tech | AE163: 2 | AF163: 62575
B164: Ariel Atom V8 | C164: D | D164: 1 | E164: Tires - D | G164: v8 | H164: 1 | I164: Initial Tech | K164: 9275 | L164: Suspension - D | N164: v8 | O164: 1 | P164: Early Tech | R164: 7425 | S164: Drive Train - D | U164: v8 | V164: 1 | W164: Initial Tech | Y164: 9275 | Z164: Exhaust - D | AB164: v8 | AC164: 1 | AD164: Early Tech | AF164: 8150 | AH164: PRO data from Kneip's file, unverified
B165: Ariel Atom V8 | C165: D | D165: 2 | E165: Tires - D | G165: v8 | H165: 1 | I165: Initial Tech | K165: 11600 | L165: Suspension - D | N165: v8 | O165: 1 | P165: Early Tech | R165: 9275 | S165: Drive Train - D | U165: v8 | V165: 1 | W165: Initial Tech | Y165: 11600 | Z165: Exhaust - D | AB165: v8 | AC165: 1 | AD165: Early Tech | AF165: 10200
B166: Ariel Atom V8 | C166: D | D166: 3 | E166: Tires - D | G166: v8 | H166: 1 | I166: Initial Tech | J166: 1 | K166: 14500 | L166: Suspension - D | N166: v8 | O166: 1 | P166: Early Tech | Q166: 1 | R166: 11600 | S166: Drive Train - D | U166: v8 | V166: 1 | W166: Initial Tech | X166: 1 | Y166: 14500 | Z166: Exhaust - D | AB166: v8 | AC166: 1 | AD166: Early Tech | AE166: 1 | AF166: 12750
B167: Ariel Atom V8 | C167: D | D167: 4 | E167: Tires - D | F167: 1 | G167: v8 | H167: 1 | I167: Initial Tech | J167: 1 | K167: 18125 | L167: Suspension - D | M167: 1 | N167: v8 | O167: 1 | P167: Early Tech | Q167: 1 | R167: 14500 | S167: Drive Train - D | T167: 1 | U167: v8 | V167: 1 | W167: Initial Tech | X167: 1 | Y167: 18125 | Z167: Exhaust - D | AA167: 1 | AB167: v8 | AC167: 1 | AD167: Early Tech | AE167: 1 | AF167: 15950
B168: Ariel Atom V8 | C168: D | D168: 5 | E168: Tires - D | F168: 1 | G168: v8 | H168: 1 | I168: Initial Tech | J168: 1 | K168: 22650 | L168: Suspension - D | M168: 1 | N168: v8 | O168: 1 | P168: Early Tech | Q168: 1 | R168: 18125 | S168: Drive Train - D | T168: 1 | U168: v8 | V168: 1 | W168: Initial Tech | X168: 1 | Y168: 22650 | Z168: Exhaust - D | AA168: 1 | AB168: v8 | AC168: 1 | AD168: Early Tech | AE168: 1 | AF168: 19950
B169: Ariel Atom V8 | C169: D | D169: 6 | E169: Tires - D | F169: 1 | G169: v8 | H169: 2 | I169: Initial Tech | J169: 1 | K169: 28325 | L169: Suspension - D | M169: 1 | N169: v8 | O169: 2 | P169: Early Tech | Q169: 1 | R169: 22650 | S169: Drive Train - D | T169: 1 | U169: v8 | V169: 2 | W169: Initial Tech | X169: 1 | Y169: 28325 | Z169: Exhaust - D | AA169: 1 | AB169: v8 | AC169: 2 | AD169: Early Tech | AE169: 1 | AF169: 24950
B170: Ariel Atom V8 | C170: D | D170: 7 | E170: Tires - D | F170: 1 | G170: v8 | H170: 2 | I170: Initial Tech | J170: 1 | K170: 35400 | L170: Suspension - D | M170: 1 | N170: v8 | O170: 2 | P170: Early Tech | Q170: 1 | R170: 28325 | S170: Drive Train - D | T170: 1 | U170: v8 | V170: 2 | W170: Initial Tech | X170: 1 | Y170: 35400 | Z170: Exhaust - D | AA170: 1 | AB170: v8 | AC170: 2 | AD170: Early Tech | AE170: 1 | AF170: 31200
B171: Ariel Atom V8 | C171: D | D171: 8 | E171: Tires - D | F171: 2 | G171: v8 | H171: 2 | I171: Initial Tech | J171: 2 | K171: 44250 | L171: Suspension - D | M171: 2 | N171: v8 | O171: 2 | P171: Early Tech | Q171: 2 | R171: 35400 | S171: Drive Train - D | T171: 2 | U171: v8 | V171: 2 | W171: Initial Tech | X171: 2 | Y171: 44250 | Z171: Exhaust - D | AA171: 2 | AB171: v8 | AC171: 2 | AD171: Early Tech | AE171: 2 | AF171: 39000
B172: Ariel Atom V8 | C172: D | D172: 9 | E172: Tires - D | F172: 2 | G172: v8 | H172: 3 | I172: Initial Tech | J172: 2 | K172: 55325 | L172: Suspension - D | M172: 2 | N172: v8 | O172: 3 | P172: Early Tech | Q172: 2 | R172: 44250 | S172: Drive Train - D | T172: 2 | U172: v8 | V172: 3 | W172: Initial Tech | X172: 2 | Y172: 55325 | Z172: Exhaust - D | AA172: 2 | AB172: v8 | AC172: 3 | AD172: Early Tech | AE172: 2 | AF172: 48750
B173: Ariel Atom V8 | C173: D | D173: 10 | E173: Tires - D | F173: 2 | G173: v8 | H173: 3 | I173: Initial Tech | J173: 2 | K173: 69150 | L173: Suspension - D | M173: 2 | N173: v8 | O173: 3 | P173: Early Tech | Q173: 2 | R173: 55325 | S173: Drive Train - D | T173: 2 | U173: v8 | V173: 3 | W173: Initial Tech | X173: 2 | Y173: 69150 | Z173: Exhaust - D | AA173: 2 | AB173: v8 | AC173: 3 | AD173: Early Tech | AE173: 2 | AF173: 60950
B174: Audi RS 3 Sportback | C174: C | D174: 1 | E174: Tires - C | F174: 1 | G174: i5 | H174: 0 | I174: Early Tech | J174: 0 | K174: 625 | L174: Suspension - C | M174: 1 | N174: i5 | O174: 0 | P174: Initial Tech | Q174: 0 | R174: 500 | S174: Drive Train - C | T174: 1 | U174: i5 | V174: 0 | W174: Early Tech | X174: 0 | Y174: 650 | Z174: Exhaust - C | AA174: 1 | AB174: i5 | AC174: 0 | AD174: Initial Tech | AE174: 0 | AF174: 550
B175: Audi RS 3 Sportback | C175: C | D175: 2 | E175: Tires - C | F175: 1 | G175: i5 | H175: 0 | I175: Initial Tech | J175: 1 | K175: 5000 | L175: Suspension - C | M175: 1 | N175: i5 | O175: 0 | P175: Early Tech | Q175: 1 | R175: 4000 | S175: Drive Train - C | T175: 1 | U175: i5 | V175: 0 | W175: Initial Tech | X175: 1 | Y175: 5000 | Z175: Exhaust - C | AA175: 1 | AB175: i5 | AC175: 0 | AD175: Early Tech | AE175: 1 | AF175: 4600
B176: Mercedes-Benz SLS AMG Electric Drive | C176: C | D176: 1 | E176: Tires - C | F176: 1 | G176: Electric | H176: 0 | I176: Initial Tech | J176: 0 | K176: 625 | L176: Suspension - C | M176: 1 | N176: Electric | O176: 0 | P176: Early Tech | Q176: 0 | R176: 500 | S176: Drive Train - C | T176: 1 | U176: Electric | V176: 0 | W176: Initial Tech | X176: 0 | Y176: 650 | Z176: Exhaust - C | AA176: 1 | AB176: Electric | AC176: 0 | AD176: Early Tech | AE176: 0 | AF176: 550
B177: Mercedes-Benz SLS AMG Electric Drive | C177: C | D177: 2 | E177: Tires - C | F177: 1 | G177: Electric | H177: 0 | I177: Early Tech | J177: 1 | K177: 5000 | L177: Suspension - C | M177: 1 | N177: Electric | O177: 0 | P177: Initial Tech | Q177: 1 | R177: 4000 | S177: Drive Train - C | T177: 1 | U177: Electric | V177: 0 | W177: Early Tech | X177: 1 | Y177: 5000 | Z177: Exhaust - C | AA177: 1 | AB177: Electric | AC177: 0 | AD177: Initial Tech | AE177: 1 | AF177: 4600
B178: Audi TTS Coupé | C178: C | D178: 1 | E178: Tires - C | F178: 1 | G178: v6 | H178: 0 | I178: Early Tech | J178: 0 | K178: 817 | L178: Suspension - C | M178: 1 | N178: v6 | O178: 0 | P178: Initial Tech | Q178: 0 | R178: 646 | S178: Drive Train - C | T178: 1 | U178: v6 | V178: 0 | W178: Early Tech | X178: 0 | Y178: 798 | Z178: Exhaust - C | AA178: 1 | AB178: v6 | AC178: 0 | AD178: Initial Tech | AE178: 0 | AF178: 722
B179: Audi TTS Coupé | C179: C | D179: 2 | E179: Tires - C | F179: 1 | G179: v6 | H179: 0 | I179: Initial Tech | J179: 1 | K179: 3800 | L179: Suspension - C | M179: 1 | N179: v6 | O179: 0 | P179: Early Tech | Q179: 1 | R179: 3040 | S179: Drive Train - C | T179: 1 | U179: v6 | V179: 0 | W179: Initial Tech | X179: 1 | Y179: 3800 | Z179: Exhaust - C | AA179: 1 | AB179: v6 | AC179: 0 | AD179: Early Tech | AE179: 1 | AF179: 3496
B180: Audi TTS Coupé | C180: C | D180: 3 | E180: Tires - C | F180: 1 | G180: v6 | H180: 0 | I180: Early Tech | J180: 1 | K180: 6327 | L180: Suspension - C | M180: 1 | N180: v6 | O180: 0 | P180: Initial Tech | Q180: 1 | R180: 5054 | S180: Drive Train - C | T180: 1 | U180: v6 | V180: 0 | W180: Early Tech | X180: 1 | Y180: 6308 | Z180: Exhaust - C | AA180: 1 | AB180: v6 | AC180: 0 | AD180: Initial Tech | AE180: 1 | AF180: 5814
B181: Chevrolet Camaro GS | C181: C | D181: 1 | E181: Tires - C | F181: 1 | G181: v6 | H181: 0 | I181: Initial Tech | J181: 0 | K181: 806 | L181: Suspension - C | M181: 1 | N181: v6 | O181: 0 | P181: Early Tech | Q181: 0 | R181: 638 | S181: Drive Train - C | T181: 1 | U181: v6 | V181: 0 | W181: Initial Tech | X181: 0 | Y181: 788 | Z181: Exhaust - C | AA181: 1 | AB181: v6 | AC181: 0 | AD181: Early Tech | AE181: 0 | AF181: 713
B182: Chevrolet Camaro GS | C182: C | D182: 2 | E182: Tires - C | F182: 1 | G182: v6 | H182: 0 | I182: Early Tech | J182: 1 | K182: 3750 | L182: Suspension - C | M182: 1 | N182: v6 | O182: 0 | P182: Initial Tech | Q182: 1 | R182: 3000 | S182: Drive Train - C | T182: 1 | U182: v6 | V182: 0 | W182: Early Tech | X182: 1 | Y182: 3750 | Z182: Exhaust - C | AA182: 1 | AB182: v6 | AC182: 0 | AD182: Initial Tech | AE182: 1 | AF182: 3450
B183: Chevrolet Camaro GS | C183: C | D183: 3 | E183: Tires - C | F183: 1 | G183: v6 | H183: 0 | I183: Initial Tech | J183: 1 | K183: 6244 | L183: Suspension - C | M183: 1 | N183: v6 | O183: 0 | P183: Early Tech | Q183: 1 | R183: 4988 | S183: Drive Train - C | T183: 1 | U183: v6 | V183: 0 | W183: Initial Tech | X183: 1 | Y183: 6225 | Z183: Exhaust - C | AA183: 1 | AB183: v6 | AC183: 0 | AD183: Early Tech | AE183: 1 | AF183: 5738
B184: Ford Focus RS | C184: C | D184: 1 | E184: Tires - C | F184: 1 | G184: i5 | H184: 0 | I184: Initial Tech | J184: 0 | K184: 630 | L184: Suspension - C | M184: 1 | N184: i5 | O184: 0 | P184: Early Tech | Q184: 0 | R184: 500 | S184: Drive Train - C | T184: 1 | U184: i5 | V184: 0 | W184: Initial Tech | X184: 0 | Y184: 620 | Z184: Exhaust - C | AA184: 1 | AB184: i5 | AC184: 0 | AD184: Early Tech | AE184: 0 | AF184: 560
B185: Ford Focus RS | C185: C | D185: 2 | E185: Tires - C | F185: 1 | G185: i5 | H185: 0 | I185: Early Tech | J185: 1 | K185: 2000 | L185: Suspension - C | M185: 1 | N185: i5 | O185: 0 | P185: Initial Tech | Q185: 1 | R185: 1600 | S185: Drive Train - C | T185: 1 | U185: i5 | V185: 0 | W185: Early Tech | X185: 1 | Y185: 2000 | Z185: Exhaust - C | AA185: 1 | AB185: i5 | AC185: 0 | AD185: Initial Tech | AE185: 1 | AF185: 1840
B186: Ford Focus RS | C186: C | D186: 3 | E186: Tires - C | F186: 1 | G186: i5 | H186: 0 | I186: Initial Tech | J186: 1 | K186: 5000 | L186: Suspension - C | M186: 1 | N186: i5 | O186: 0 | P186: Early Tech | Q186: 1 | R186: 4000 | S186: Drive Train - C | T186: 1 | U186: i5 | V186: 0 | W186: Initial Tech | X186: 1 | Y186: 5000 | Z186: Exhaust - C | AA186: 1 | AB186: i5 | AC186: 0 | AD186: Early Tech | AE186: 1 | AF186: 4600
B187: Ford Focus RS | C187: C | D187: 4 | E187: Tires - C | F187: 2 | G187: i5 | H187: 0 | I187: Early Tech | J187: 1 | K187: 8700 | L187: Suspension - C | M187: 2 | N187: i5 | O187: 0 | P187: Initial Tech | Q187: 1 | R187: 6960 | S187: Drive Train - C | T187: 2 | U187: i5 | V187: 0 | W187: Early Tech | X187: 1 | Y187: 8700 | Z187: Exhaust - C | AA187: 2 | AB187: i5 | AC187: 0 | AD187: Initial Tech | AE187: 1 | AF187: 8000
B188: KTM 1290 Super Duke R | C188: C | D188: 1 | E188: Bike Tires - C | F188: 1 | G188: V-Twin | H188: 0 | I188: Initial Tech | J188: 0 | K188: 900 | L188: Fork Tubes - C | M188: 1 | N188: V-Twin | O188: 0 | P188: Early Tech | Q188: 0 | R188: 725 | S188: Transmission - C | T188: 1 | U188: V-Twin | V188: 0 | W188: Initial Tech | X188: 0 | Y188: 900 | Z188: Bike Exhaust - C | AA188: 1 | AB188: V-Twin | AC188: 0 | AD188: Early Tech | AE188: 0 | AF188: 800
B189: KTM 1290 Super Duke R | C189: C | D189: 2 | E189: Bike Tires - C | F189: 1 | G189: V-Twin | H189: 0 | I189: Initial Tech | J189: 1 | K189: 2225 | L189: Fork Tubes - C | M189: 1 | N189: V-Twin | O189: 0 | P189: Early Tech | Q189: 1 | R189: 1775 | S189: Transmission - C | T189: 1 | U189: V-Twin | V189: 0 | W189: Initial Tech | X189: 1 | Y189: 2225 | Z189: Bike Exhaust - C | AA189: 1 | AB189: V-Twin | AC189: 0 | AD189: Early Tech | AE189: 1 | AF189: 2050
B190: KTM 1290 Super Duke R | C190: C | D190: 3 | E190: Bike Tires - C | F190: 1 | G190: V-Twin | H190: 0 | I190: Initial Tech | J190: 1 | K190: 4400 | L190: Fork Tubes - C | M190: 1 | N190: V-Twin | O190: 0 | P190: Early Tech | Q190: 1 | R190: 3525 | S190: Transmission - C | T190: 1 | U190: V-Twin | V190: 0 | W190: Initial Tech | X190: 1 | Y190: 4400 | Z190: Bike Exhaust - C | AA190: 1 | AB190: V-Twin | AC190: 0 | AD190: Early Tech | AE190: 1 | AF190: 4050
B191: KTM 1290 Super Duke R | C191: C | D191: 4 | E191: Bike Tires - C | F191: 1 | G191: V-Twin | H191: 0 | I191: Common Tech | J191: 1 | K191: 5750 | L191: Fork Tubes - C | M191: 1 | N191: V-Twin | O191: 0 | P191: Common Tech | Q191: 1 | R191: 4600 | S191: Transmission - C | T191: 1 | U191: V-Twin | V191: 0 | W191: Common Tech | X191: 1 | Y191: 5750 | Z191: Bike Exhaust - C | AA191: 1 | AB191: V-Twin | AC191: 0 | AD191: Common Tech | AE191: 1 | AF191: 5275
B192: KTM 1290 Super Duke R | C192: C | D192: 5 | E192: Bike Tires - C | F192: 1 | G192: V-Twin | H192: 1 | I192: Common Tech | J192: 0 | K192: 10275 | L192: Fork Tubes - C | M192: 1 | N192: V-Twin | O192: 1 | P192: Common Tech | Q192: 0 | R192: 8225 | S192: Transmission - C | T192: 1 | U192: V-Twin | V192: 1 | W192: Common Tech | X192: 0 | Y192: 10275 | Z192: Bike Exhaust - C | AA192: 1 | AB192: V-Twin | AC192: 1 | AD192: Common Tech | AE192: 0 | AF192: 9450
B193: Lamborghini Urus | C193: C | D193: 1 | E193: Tires - C | F193: 1 | G193: v10 | H193: 0 | I193: Early Tech | J193: 0 | K193: 612 | L193: Suspension - C | M193: 1 | N193: v10 | O193: 0 | P193: Initial Tech | Q193: 0 | R193: 485 | S193: Drive Train - C | T193: 1 | U193: v10 | V193: 0 | W193: Early Tech | X193: 0 | Y193: 612 | Z193: Exhaust - C | AA193: 1 | AB193: v10 | AC193: 0 | AD193: Initial Tech | AE193: 0 | AF193: 536
B194: Lamborghini Urus | C194: C | D194: 2 | E194: Tires - C | F194: 1 | G194: v10 | H194: 0 | I194: Initial Tech | J194: 1 | K194: 2550 | L194: Suspension - C | M194: 1 | N194: v10 | O194: 0 | P194: Early Tech | Q194: 1 | R194: 2040 | S194: Drive Train - C | T194: 1 | U194: v10 | V194: 0 | W194: Initial Tech | X194: 1 | Y194: 2550 | Z194: Exhaust - C | AA194: 1 | AB194: v10 | AC194: 0 | AD194: Early Tech | AE194: 1 | AF194: 2346
B195: Lamborghini Urus | C195: C | D195: 3 | E195: Tires - C | F195: 1 | G195: v10 | H195: 0 | I195: Early Tech | J195: 1 | K195: 6375 | L195: Suspension - C | M195: 1 | N195: v10 | O195: 0 | P195: Initial Tech | Q195: 1 | R195: 5100 | S195: Drive Train - C | T195: 1 | U195: v10 | V195: 0 | W195: Early Tech | X195: 1 | Y195: 6375 | Z195: Exhaust - C | AA195: 1 | AB195: v10 | AC195: 0 | AD195: Initial Tech | AE195: 1 | AF195: 5865
B196: Lamborghini Urus | C196: C | D196: 4 | E196: Tires - C | F196: 2 | G196: v10 | H196: 0 | I196: Initial Tech | J196: 1 | K196: 10136 | L196: Suspension - C | M196: 2 | N196: v10 | O196: 0 | P196: Early Tech | Q196: 1 | R196: 8109 | S196: Drive Train - C | T196: 2 | U196: v10 | V196: 0 | W196: Initial Tech | X196: 1 | Y196: 10149 | Z196: Exhaust - C | AA196: 2 | AB196: v10 | AC196: 0 | AD196: Early Tech | AE196: 1 | AF196: 9333
B197: Datsun 280Z | C197: C | D197: 1 | E197: Tires - C | F197: 1 | G197: i6 | H197: 0 | I197: Initial Tech | J197: 0 | K197: 24150 | L197: Suspension - C | M197: 1 | N197: i6 | O197: 0 | P197: Early Tech | Q197: 0 | R197: 19425 | S197: Drive Train - C | T197: 1 | U197: i6 | V197: 0 | W197: Initial Tech | X197: 0 | Y197: 24150 | Z197: Exhaust - C | AA197: 1 | AB197: i6 | AC197: 0 | AD197: Early Tech | AE197: 0 | AF197: 21275
B198: Datsun 280Z | C198: C | D198: 2 | E198: Tires - C | F198: 2 | G198: i6 | H198: 0 | I198: Initial Tech | J198: 2 | K198: 46200 | L198: Suspension - C | M198: 2 | N198: i6 | O198: 0 | P198: Early Tech | Q198: 2 | R198: 38600 | S198: Drive Train - C | T198: 2 | U198: i6 | V198: 0 | W198: Initial Tech | X198: 2 | Y198: 46200 | Z198: Exhaust - C | AA198: 2 | AB198: i6 | AC198: 0 | AD198: Early Tech | AE198: 2 | AF198: 42275
B199: Datsun 280Z | C199: C | D199: 3 | E199: Tires - C | F199: 4 | G199: i6 | H199: 1 | I199: Initial Tech | J199: 2 | K199: 68000 | L199: Suspension - C | M199: 4 | N199: i6 | O199: 1 | P199: Early Tech | Q199: 2 | R199: 58025 | S199: Drive Train - C | T199: 4 | U199: i6 | V199: 1 | W199: Initial Tech | X199: 2 | Y199: 68000 | Z199: Exhaust - C | AA199: 4 | AB199: i6 | AC199: 1 | AD199: Early Tech | AE199: 2 | AF199: 62475
B200: Datsun 280Z | C200: C | D200: 4 | E200: Tires - C | F200: 5 | G200: i6 | H200: 2 | I200: Initial Tech | J200: 3 | K200: 84000 | L200: Suspension - C | M200: 5 | N200: i6 | O200: 2 | P200: Early Tech | Q200: 3 | R200: 83225 | S200: Drive Train - C | T200: 5 | U200: i6 | V200: 2 | W200: Initial Tech | X200: 3 | Y200: 84000 | Z200: Exhaust - C | AA200: 5 | AB200: i6 | AC200: 2 | AD200: Early Tech | AE200: 3 | AF200: 77175
B201: Datsun 280Z | C201: C | D201: 5 | E201: Tires - C | F201: 6 | G201: i6 | H201: 2 | I201: Mid Tech | J201: 4 | K201: 152000 | L201: Suspension - C | M201: 6 | N201: i6 | O201: 2 | P201: Mid Tech | Q201: 4 | R201: 111825 | S201: Drive Train - C | T201: 6 | U201: i6 | V201: 2 | W201: Mid Tech | X201: 4 | Y201: 152000 | Z201: Exhaust - C | AA201: 6 | AB201: i6 | AC201: 2 | AD201: Mid Tech | AE201: 4 | AF201: 139650
... 892 more rows

Sheet Garage
A1: Sheet created and developed by Rookie Vee | B1: 3.6.1 | E1: http://asphalt.wikia.com/wiki/ | G1: HIDDEN | I1: HIDDEN | M1: HIDDEN | S1: HIDDEN | AA1: HIDDEN | AH1: Early Tech | AI1: Initial Tech | AJ1: Common Tech | AK1: Rare Tech | AL1: Mid Tech | AM1: Pro Tech | AN1: Advanced Tech | AP1: i4 | AQ1: Electric | AR1: v6 | AS1: v8 | AT1: f6 | AU1: v10 | AV1: v12 | AW1: Forced Induction v8 | AX1: Hybrid | AY1: i5 | AZ1: i6 | BA1: f12 | BB1: Rotary Engine | BC1: w16 | BD1: Serial Racing | BE1: Custom Racing | BF1: High Grade | BG1: Exceptional | BH1: Four-Stroke | BI1: V-Twin | BJ1: Forced Four-Stroke | BK1: Legendary Electric | BL1: Hot Wheels | BM1: v16 | BN1: HIDDEN | BU1: HIDDEN | CB1: 0.25 | CC1: 0.375 | CD1: 0.375 | CF1: 1.61 | CG1: =MIN($CB$4:$CB$270) -> 4 | CH1: =MAX($CB$4:$CB$270) -> 10 | CI1: =MIN($CC$4:$CC$270) -> 7 | CJ1: =MAX($CC$4:$CC$270) -> 17 | CK1: =MIN($CD$4:$CD$270) -> 10 | CL1: =MAX($CD$4:$CD$270) -> 20 | CR1: 12 | CS1: B | CU1: HIDDEN
E2: =CONCATENATE(D$1,SUBSTITUTE(C2," ","_")) ->  | L2: MAX | R2: PRO | Z2: =Z275+IF(ISNUMBER(Z1),Z1,0) -> 0 | AC2: PARTS | AG2: TECHS | AH2: TECH | AO2: ENG | AP2: ENGINES | BN2: isMAX? | BS2: isXPRO? | BU2: =100/MAX($CE$4:$CE$270) -> 1 | CA2: 1.064301552 | CB2: Nitro Eff | CF2: kph | CG2: MAX PRO +TK + Elite 0808 Speeds | CQ2: =CONCATENATE("TOP ",CR1," Fastest Car",IF(CR1=1," ","s "),IF(CS1="","in the Game",CONCATENATE("for Class ",CS1))) -> TOP 12 Fastest Cars for Class B | CU2: =IF(OR(CS1="D",CS1="C",CS1="B",CS1="A",CS1="S"),HLOOKUP(CS1,Inventory!$N$6:$S$8,3,FALSE),Inventory!S8) -> 50
A3: RV | B3: # | C3: Vehicle | E3: IC | F3: Upd | G3: Remarks | H3: Car Cost | I3: Aux | J3: EV | K3: Type | L3: Upgrade | M3: A | N3: S | O3: H | P3: N | Q3: Max Cost | R3: KITS | S3: RC | T3: T | U3: S | V3: D | W3: E | X3: RC | Y3: Pro Cost | Z3: Lic | AA3: $/lic | AB3: LC | AC3: T | AD3: S | AE3: D | AF3: E | AH3: E | AI3: I | AJ3: C | AK3: R | AL3: M | AM3: P | AN3: A | AP3: i4 | AQ3: E | AR3: V6 | AS3: V8 | AT3: F6 | AU3: V10 | AV3: V12 | AW3: fV8 | AX3: H | AY3: i5 | AZ3: i6 | BA3: F12 | BB3: R | BC3: W | BD3: SR | BE3: CR | BF3: HG | BG3: Ex | BH3: 4S | BI3: VT | BJ3: f4S | BK3: LE | BL3: HW | BM3: V16 | BN3: Upgrade | BO3: A | BP3: S | BQ3: H | BR3: N | BS3: Upg Cost | BT3: Elite | BU3: A | BV3: S | BW3: H | BX3: N | BY3: Rank | BZ3: Speed | CA3: Rewards | CB3: S | CC3: P | CD3: T | CE3: NE | CF3: MxSp | CG3: TS | CH3: Nitro | CI3: Erank | CJ3: SM % | CK3: TS | CL3: Nitro | CM3: Obs. | CQ3: Pos | CR3: Name | CS3: =IF(CF2="mph","m/h","km/h") -> km/h | CU3: Pos | CV3: Car | CW3: Mx Sp | CX3: Composite Rk | CY3: Cl
B4: 1 | C4: Dodge Dart GT | E4: 1 | F4: 1.0.0 | H4: =IF(OR(AND(R4="",L4=""),CM4="Not Owned"),IF(K4=1,SUMIF(Tbl_Car_Max!B$6:B$1376,C4,Tbl_Car_Max!F$6:F$1376),IF(K4=2,SUMIF(Tbl_Car_Max!B$6:B$1376,C4,Tbl_Car_Max!H$6:H$1376),IF(K4=3,SUMIF(Tbl_Car_Max!B$6:B$1376,C4,Tbl_Car_Max!G$6:G$1376),SUMIF(Tbl_Car_Max!B$6:B$1376,C4,Tbl_Car_Max!E$6:E$1376)))),"") ->  | M4: =IF($L4="MAX",5,IF(MID($L4,1,1)="",0,MID($L4,1,1))) -> 0 | N4: =IF($L4="MAX",5,IF(MID($L4,3,1)="",0,MID($L4,3,1))) -> 0 | O4: =IF($L4="MAX",5,IF(MID($L4,5,1)="",0,MID($L4,5,1))) -> 0 | P4: =IF($L4="MAX",5,IF(MID($L4,7,1)="",0,MID($L4,7,1))) -> 0 | Q4: =SUMIFS(Tbl_Car_Max!$J$3:$J$1376,Tbl_Car_Max!$B$3:$B$1376,$C4,Tbl_Car_Max!$D$3:$D$1376,">"&$M4)+SUMIFS(Tbl_Car_Max!$K$3:$K$1376,Tbl_Car_Max!$B$3:$B$1376,$C4,Tbl_Car_Max!$D$3:$D$1376,">"&$N4)+SUMIFS(Tbl_Car_Max!$L$3:$L$1376,Tbl_Car_Max!$B$3:$B$1376,$C4,Tbl_Car_Max!$D$3:$D$1376,">"&$O4)+SUMIFS(Tbl_Car_Max!$M$3:$M$1376,Tbl_Car_Max!$B$3:$B$1376,$C4,Tbl_Car_Max!$D$3:$D$1376,">"&$P4) -> 150750 | R4: 1-0-0-0 | T4: =IF($R4="PRO",5,IF(MID($R4,1,1)="",0,MID($R4,1,1))) -> 1 | U4: =IF($R4="PRO",5,IF(MID($R4,3,1)="",0,MID($R4,3,1))) -> 0 | V4: =IF($R4="PRO",5,IF(MID($R4,5,1)="",0,MID($R4,5,1))) -> 0 | W4: =IF($R4="PRO",5,IF(MID($R4,7,1)="",0,MID($R4,7,1))) -> 0 | X4: =SUM(AC4:BM4) -> 3 | Y4: =SUMIFS(Tbl_Car_Pro!$K$4:$K$1089,Tbl_Car_Pro!$B$4:$B$1089,$C4,Tbl_Car_Pro!$D$4:$D$1089,">"&$T4)+SUMIFS(Tbl_Car_Pro!$R$4:$R$1089,Tbl_Car_Pro!$B$4:$B$1089,$C4,Tbl_Car_Pro!$D$4:$D$1089,">"&$U4)+SUMIFS(Tbl_Car_Pro!$Y$4:$Y$1089,Tbl_Car_Pro!$B$4:$B$1089,$C4,Tbl_Car_Pro!$D$4:$D$1089,">"&$V4)+SUMIFS(Tbl_Car_Pro!$AF$4:$AF$1089,Tbl_Car_Pro!$B$4:$B$1089,$C4,Tbl_Car_Pro!$D$4:$D$1089,">"&$W4) -> 1200 | Z4: =VLOOKUP(C4,Tbl_Mastery!B$4:J$227,9,FALSE)-AB4 -> 4 | AA4: =IF(AND(K4=1,H4<>""),H4/Z4,"") ->  | AB4: =IF(RIGHT(CM4,8)="Lic Left",VLOOKUP(C4,Tbl_Mastery!B$4:J$227,9,FALSE)-VALUE(LEFT(CM4,2)),0) -> 0 | AC4: =SUMIFS(Tbl_Car_Pro!F$4:F$1089,Tbl_Car_Pro!$B$4:$B$1089,$C4,Tbl_Car_Pro!$D$4:$D$1089,">"&T4) -> 0 | AD4: =SUMIFS(Tbl_Car_Pro!M$4:M$1089,Tbl_Car_Pro!$B$4:$B$1089,$C4,Tbl_Car_Pro!$D$4:$D$1089,">"&U4) -> 1 | AE4: =SUMIFS(Tbl_Car_Pro!T$4:T$1089,Tbl_Car_Pro!$B$4:$B$1089,$C4,Tbl_Car_Pro!$D$4:$D$1089,">"&V4) -> 1 | AF4: =SUMIFS(Tbl_Car_Pro!AA$4:AA$1089,Tbl_Car_Pro!$B$4:$B$1089,$C4,Tbl_Car_Pro!$D$4:$D$1089,">"&W4) -> 1 | AG4: =TRIM(CONCATENATE(IF(AH4=0,"",CONCATENATE(" ",AH4,"E")),IF(AI4=0,"",CONCATENATE(" ",AI4,"I")),IF(AJ4=0,"",CONCATENATE(" ",AJ4,"C")),IF(AK4=0,"",CONCATENATE(" ",AK4,"R")),IF(AL4=0,"",CONCATENATE(" ",AL4,"M")),IF(AM4=0,"",CONCATENATE(" ",AM4,"P")),IF(AN4=0,"",CONCATENATE(" ",AN4,"A")))) ->  | AO4: =IF(SUM(AP4:BM4)=0,"",CONCATENATE(SUM(AP4:BM4)," ",IF(ISNA(MATCH(SUM(AP4:BM4),AP4:BM4,0)),"",INDEX(AP$3:BM$3,,MATCH(SUM(AP4:BM4),AP4:BM4,0))))) ->  | BN4: =Q4 -> 150750 | BS4: =BN4+Y4 -> 151950 | BU4: =IF($BT4="",0,MID(TEXT($BT4,"0000"),1,1)-4) -> 0 | BV4: =IF($BT4="",0,MID(TEXT($BT4,"0000"),2,1)-4) -> 0 | BW4: =IF($BT4="",0,MID(TEXT($BT4,"0000"),3,1)-4) -> 0 | BX4: =IF($BT4="",0,MID(TEXT($BT4,"0000"),4,1)-4) -> 0 | BY4: 515 | BZ4: 231.4458 | CA4: =VLOOKUP(C4,Tbl_Mastery!B$4:R$227,17,FALSE) -> 1 TK 2 UD | CB4: 10 | CC4: 15 | CD4: 20 | CE4: =($CB$1*(100-(CB4-$CG$1)*100/($CH$1-$CG$1))+$CC$1*(100-(CC4-$CI$1)*100/($CJ$1-$CI$1))+$CD$1*(100-(CD4-$CK$1)*100/($CL$1-$CK$1)))*CA$2 -> 7.982261641 | CF4: =IF(CF$2="kph",CK4+CL4,CG4+CH4)*IF(CJ4="",1,CJ4/100) -> 270.3 | CG4: 149.9 | CH4: 17.9 | CK4: 241.4 | CL4: 28.9 | CQ4: 1 | CR4: =IF(CQ4="","",VLOOKUP(CQ4,CU$4:CV$270,2,FALSE)) -> BMW M2 Special Edition | CS4: =IF(CQ4="","",VLOOKUP(CR4,CV$4:CW$270,2,FALSE)) -> 466.9 | CU4: =IF(CX4="","",RANK(CX4,CX$4:CX$270)) ->  | CV4: =C4 -> Dodge Dart GT | CW4: =CF4 -> 270.3 | CX4: =IF(OR(CS$1="",CY4=CS$1),ROUND((CK4+CL4)*IF(CJ4="",1,CJ4/100),3)*1000000000+ROUND(CE4,0)*10000+IF(CJ4="",1,CJ4/100)*CK4*10,"") ->  | CY4: D
B5: =B4+1 -> 2 | C5: Audi R8 e-tron | E5: 2 | F5: 1.0.0 | H5: =IF(OR(AND(R5="",L5=""),CM5="Not Owned"),IF(K5=1,SUMIF(Tbl_Car_Max!B$6:B$1376,C5,Tbl_Car_Max!F$6:F$1376),IF(K5=2,SUMIF(Tbl_Car_Max!B$6:B$1376,C5,Tbl_Car_Max!H$6:H$1376),IF(K5=3,SUMIF(Tbl_Car_Max!B$6:B$1376,C5,Tbl_Car_Max!G$6:G$1376),SUMIF(Tbl_Car_Max!B$6:B$1376,C5,Tbl_Car_Max!E$6:E$1376)))),"") -> 7000 | M5: =IF($L5="MAX",5,IF(MID($L5,1,1)="",0,MID($L5,1,1))) -> 0 | N5: =IF($L5="MAX",5,IF(MID($L5,3,1)="",0,MID($L5,3,1))) -> 0 | O5: =IF($L5="MAX",5,IF(MID($L5,5,1)="",0,MID($L5,5,1))) -> 0 | P5: =IF($L5="MAX",5,IF(MID($L5,7,1)="",0,MID($L5,7,1))) -> 0 | Q5: =SUMIFS(Tbl_Car_Max!$J$3:$J$1376,Tbl_Car_Max!$B$3:$B$1376,$C5,Tbl_Car_Max!$D$3:$D$1376,">"&$M5)+SUMIFS(Tbl_Car_Max!$K$3:$K$1376,Tbl_Car_Max!$B$3:$B$1376,$C5,Tbl_Car_Max!$D$3:$D$1376,">"&$N5)+SUMIFS(Tbl_Car_Max!$L$3:$L$1376,Tbl_Car_Max!$B$3:$B$1376,$C5,Tbl_Car_Max!$D$3:$D$1376,">"&$O5)+SUMIFS(Tbl_Car_Max!$M$3:$M$1376,Tbl_Car_Max!$B$3:$B$1376,$C5,Tbl_Car_Max!$D$3:$D$1376,">"&$P5) -> 150750 | T5: =IF($R5="PRO",5,IF(MID($R5,1,1)="",0,MID($R5,1,1))) -> 0 | U5: =IF($R5="PRO",5,IF(MID($R5,3,1)="",0,MID($R5,3,1))) -> 0 | V5: =IF($R5="PRO",5,IF(MID($R5,5,1)="",0,MID($R5,5,1))) -> 0 | W5: =IF($R5="PRO",5,IF(MID($R5,7,1)="",0,MID($R5,7,1))) -> 0 | X5: =SUM(AC5:BM5) -> 4 | Y5: =SUMIFS(Tbl_Car_Pro!$K$4:$K$1089,Tbl_Car_Pro!$B$4:$B$1089,$C5,Tbl_Car_Pro!$D$4:$D$1089,">"&$T5)+SUMIFS(Tbl_Car_Pro!$R$4:$R$1089,Tbl_Car_Pro!$B$4:$B$1089,$C5,Tbl_Car_Pro!$D$4:$D$1089,">"&$U5)+SUMIFS(Tbl_Car_Pro!$Y$4:$Y$1089,Tbl_Car_Pro!$B$4:$B$1089,$C5,Tbl_Car_Pro!$D$4:$D$1089,">"&$V5)+SUMIFS(Tbl_Car_Pro!$AF$4:$AF$1089,Tbl_Car_Pro!$B$4:$B$1089,$C5,Tbl_Car_Pro!$D$4:$D$1089,">"&$W5) -> 1453 | Z5: =VLOOKUP(C5,Tbl_Mastery!B$4:J$227,9,FALSE)-AB5 -> 4 | AB5: =IF(RIGHT(CM5,8)="Lic Left",VLOOKUP(C5,Tbl_Mastery!B$4:J$227,9,FALSE)-VALUE(LEFT(CM5,2)),0) -> 0 | AC5: =SUMIFS(Tbl_Car_Pro!F$4:F$1089,Tbl_Car_Pro!$B$4:$B$1089,$C5,Tbl_Car_Pro!$D$4:$D$1089,">"&T5) -> 1 | AD5: =SUMIFS(Tbl_Car_Pro!M$4:M$1089,Tbl_Car_Pro!$B$4:$B$1089,$C5,Tbl_Car_Pro!$D$4:$D$1089,">"&U5) -> 1 | AE5: =SUMIFS(Tbl_Car_Pro!T$4:T$1089,Tbl_Car_Pro!$B$4:$B$1089,$C5,Tbl_Car_Pro!$D$4:$D$1089,">"&V5) -> 1 | AF5: =SUMIFS(Tbl_Car_Pro!AA$4:AA$1089,Tbl_Car_Pro!$B$4:$B$1089,$C5,Tbl_Car_Pro!$D$4:$D$1089,">"&W5) -> 1 | AO5: =IF(SUM(AP5:BM5)=0,"",CONCATENATE(SUM(AP5:BM5)," ",IF(ISNA(MATCH(SUM(AP5:BM5),AP5:BM5,0)),"",INDEX(AP$3:BM$3,,MATCH(SUM(AP5:BM5),AP5:BM5,0))))) ->  | BN5: 150750 | BS5: =BN5+Y5 -> 152203 | BU5: 0 | BV5: 0 | BW5: =IF($BT5="",0,MID(TEXT($BT5,"0000"),3,1)-4) -> 0 | BX5: 0 | BY5: 527 | BZ5: 240.791 | CA5: =VLOOKUP(C5,Tbl_Mastery!B$4:R$227,17,FALSE) -> 1 TK 1 UC | CB5: 9 | CC5: 14 | CD5: 19 | CE5: 20.39911308 | CF5: =IF(CF$2="kph",CK5+CL5,CG5+CH5)*IF(CJ5="",1,CJ5/100) -> 286.2 | CG5: 138.8 | CH5: 38.9 | CK5: 223.6 | CL5: 62.6 | CQ5: =IF(CQ4<MIN(CR$1,CU$2),CQ4+1,"") -> 2 | CR5: Holden Coupe 60 | CS5: 465.6 | CV5: Audi R8 e-tron | CW5: =CF5 -> 286.2 | CX5: =IF(OR(CS$1="",CY5=CS$1),ROUND((CK5+CL5)*IF(CJ5="",1,CJ5/100),3)*1000000000+ROUND(CE5,0)*10000+IF(CJ5="",1,CJ5/100)*CK5*10,"") ->  | CY5: D
B6: =B5+1 -> 3 | C6: Tesla Model S | E6: 3 | F6: 1.0.0 | H6: =IF(OR(AND(R6="",L6=""),CM6="Not Owned"),IF(K6=1,SUMIF(Tbl_Car_Max!B$6:B$1376,C6,Tbl_Car_Max!F$6:F$1376),IF(K6=2,SUMIF(Tbl_Car_Max!B$6:B$1376,C6,Tbl_Car_Max!H$6:H$1376),IF(K6=3,SUMIF(Tbl_Car_Max!B$6:B$1376,C6,Tbl_Car_Max!G$6:G$1376),SUMIF(Tbl_Car_Max!B$6:B$1376,C6,Tbl_Car_Max!E$6:E$1376)))),"") -> 7500 | M6: 0 | N6: 0 | O6: 0 | P6: 0 | Q6: =SUMIFS(Tbl_Car_Max!$J$3:$J$1376,Tbl_Car_Max!$B$3:$B$1376,$C6,Tbl_Car_Max!$D$3:$D$1376,">"&$M6)+SUMIFS(Tbl_Car_Max!$K$3:$K$1376,Tbl_Car_Max!$B$3:$B$1376,$C6,Tbl_Car_Max!$D$3:$D$1376,">"&$N6)+SUMIFS(Tbl_Car_Max!$L$3:$L$1376,Tbl_Car_Max!$B$3:$B$1376,$C6,Tbl_Car_Max!$D$3:$D$1376,">"&$O6)+SUMIFS(Tbl_Car_Max!$M$3:$M$1376,Tbl_Car_Max!$B$3:$B$1376,$C6,Tbl_Car_Max!$D$3:$D$1376,">"&$P6) -> 157000 | T6: 0 | U6: 0 | V6: 0 | W6: 0 | X6: 8 | Y6: =SUMIFS(Tbl_Car_Pro!$K$4:$K$1089,Tbl_Car_Pro!$B$4:$B$1089,$C6,Tbl_Car_Pro!$D$4:$D$1089,">"&$T6)+SUMIFS(Tbl_Car_Pro!$R$4:$R$1089,Tbl_Car_Pro!$B$4:$B$1089,$C6,Tbl_Car_Pro!$D$4:$D$1089,">"&$U6)+SUMIFS(Tbl_Car_Pro!$Y$4:$Y$1089,Tbl_Car_Pro!$B$4:$B$1089,$C6,Tbl_Car_Pro!$D$4:$D$1089,">"&$V6)+SUMIFS(Tbl_Car_Pro!$AF$4:$AF$1089,Tbl_Car_Pro!$B$4:$B$1089,$C6,Tbl_Car_Pro!$D$4:$D$1089,">"&$W6) -> 10788 | Z6: =VLOOKUP(C6,Tbl_Mastery!B$4:J$227,9,FALSE)-AB6 -> 10 | AB6: =IF(RIGHT(CM6,8)="Lic Left",VLOOKUP(C6,Tbl_Mastery!B$4:J$227,9,FALSE)-VALUE(LEFT(CM6,2)),0) -> 0 | AC6: =SUMIFS(Tbl_Car_Pro!F$4:F$1089,Tbl_Car_Pro!$B$4:$B$1089,$C6,Tbl_Car_Pro!$D$4:$D$1089,">"&T6) -> 2 | AD6: =SUMIFS(Tbl_Car_Pro!M$4:M$1089,Tbl_Car_Pro!$B$4:$B$1089,$C6,Tbl_Car_Pro!$D$4:$D$1089,">"&U6) -> 2 | AE6: =SUMIFS(Tbl_Car_Pro!T$4:T$1089,Tbl_Car_Pro!$B$4:$B$1089,$C6,Tbl_Car_Pro!$D$4:$D$1089,">"&V6) -> 2 | AF6: =SUMIFS(Tbl_Car_Pro!AA$4:AA$1089,Tbl_Car_Pro!$B$4:$B$1089,$C6,Tbl_Car_Pro!$D$4:$D$1089,">"&W6) -> 2 | BN6: 157000 | BS6: 167788 | BU6: 0 | BV6: 0 | BW6: 0 | BX6: 0 | BY6: 551 | BZ6: 238.289 | CA6: =VLOOKUP(C6,Tbl_Mastery!B$4:R$227,17,FALSE) -> 1 TK 2 UD | CB6: 7 | CC6: 12 | CD6: 17 | CE6: 45.23281596 | CF6: 292.9 | CG6: 155.6 | CH6: 26.3 | CK6: 250.5 | CL6: 42.4 | CQ6: 3 | CR6: Mercedes-AMG GT3 | CS6: 465.2 | CV6: Tesla Model S | CW6: =CF6 -> 292.9 | CY6: D
B7: 4 | C7: Cadillac ATS | E7: 4 | F7: 1.0.0 | H7: =IF(OR(AND(R7="",L7=""),CM7="Not Owned"),IF(K7=1,SUMIF(Tbl_Car_Max!B$6:B$1376,C7,Tbl_Car_Max!F$6:F$1376),IF(K7=2,SUMIF(Tbl_Car_Max!B$6:B$1376,C7,Tbl_Car_Max!H$6:H$1376),IF(K7=3,SUMIF(Tbl_Car_Max!B$6:B$1376,C7,Tbl_Car_Max!G$6:G$1376),SUMIF(Tbl_Car_Max!B$6:B$1376,C7,Tbl_Car_Max!E$6:E$1376)))),"") -> 8000 | M7: 0 | N7: 0 | O7: 0 | P7: 0 | Q7: =SUMIFS(Tbl_Car_Max!$J$3:$J$1376,Tbl_Car_Max!$B$3:$B$1376,$C7,Tbl_Car_Max!$D$3:$D$1376,">"&$M7)+SUMIFS(Tbl_Car_Max!$K$3:$K$1376,Tbl_Car_Max!$B$3:$B$1376,$C7,Tbl_Car_Max!$D$3:$D$1376,">"&$N7)+SUMIFS(Tbl_Car_Max!$L$3:$L$1376,Tbl_Car_Max!$B$3:$B$1376,$C7,Tbl_Car_Max!$D$3:$D$1376,">"&$O7)+SUMIFS(Tbl_Car_Max!$M$3:$M$1376,Tbl_Car_Max!$B$3:$B$1376,$C7,Tbl_Car_Max!$D$3:$D$1376,">"&$P7) -> 157000 | T7: 0 | U7: 0 | V7: 0 | W7: 0 | X7: 8 | Y7: =SUMIFS(Tbl_Car_Pro!$K$4:$K$1089,Tbl_Car_Pro!$B$4:$B$1089,$C7,Tbl_Car_Pro!$D$4:$D$1089,">"&$T7)+SUMIFS(Tbl_Car_Pro!$R$4:$R$1089,Tbl_Car_Pro!$B$4:$B$1089,$C7,Tbl_Car_Pro!$D$4:$D$1089,">"&$U7)+SUMIFS(Tbl_Car_Pro!$Y$4:$Y$1089,Tbl_Car_Pro!$B$4:$B$1089,$C7,Tbl_Car_Pro!$D$4:$D$1089,">"&$V7)+SUMIFS(Tbl_Car_Pro!$AF$4:$AF$1089,Tbl_Car_Pro!$B$4:$B$1089,$C7,Tbl_Car_Pro!$D$4:$D$1089,">"&$W7) -> 9709 | Z7: =VLOOKUP(C7,Tbl_Mastery!B$4:J$227,9,FALSE)-AB7 -> 11 | AB7: =IF(RIGHT(CM7,8)="Lic Left",VLOOKUP(C7,Tbl_Mastery!B$4:J$227,9,FALSE)-VALUE(LEFT(CM7,2)),0) -> 0 | AC7: =SUMIFS(Tbl_Car_Pro!F$4:F$1089,Tbl_Car_Pro!$B$4:$B$1089,$C7,Tbl_Car_Pro!$D$4:$D$1089,">"&T7) -> 2 | AD7: =SUMIFS(Tbl_Car_Pro!M$4:M$1089,Tbl_Car_Pro!$B$4:$B$1089,$C7,Tbl_Car_Pro!$D$4:$D$1089,">"&U7) -> 2 | AE7: =SUMIFS(Tbl_Car_Pro!T$4:T$1089,Tbl_Car_Pro!$B$4:$B$1089,$C7,Tbl_Car_Pro!$D$4:$D$1089,">"&V7) -> 2 | AF7: =SUMIFS(Tbl_Car_Pro!AA$4:AA$1089,Tbl_Car_Pro!$B$4:$B$1089,$C7,Tbl_Car_Pro!$D$4:$D$1089,">"&W7) -> 2 | BN7: 157000 | BS7: 166709 | BU7: 0 | BV7: 0 | BW7: 0 | BX7: 0 | BY7: 586 | BZ7: 241.363 | CA7: =VLOOKUP(C7,Tbl_Mastery!B$4:R$227,17,FALSE) -> 1 TK 1 UC | CB7: 7 | CC7: 13 | CD7: 17 | CE7: 41.24168514 | CF7: 299 | CG7: 160.9 | CH7: 24.8 | CK7: 259.1 | CL7: 39.9 | CQ7: 4 | CR7: Ferrari GTC4Lusso | CS7: 464.3 | CV7: Cadillac ATS | CW7: =CF7 -> 299 | CY7: D
B8: 5 | C8: Suzuki GSX-R750 | E8: 196 | F8: 3.2.0 | H8: =IF(OR(AND(R8="",L8=""),CM8="Not Owned"),IF(K8=1,SUMIF(Tbl_Car_Max!B$6:B$1376,C8,Tbl_Car_Max!F$6:F$1376),IF(K8=2,SUMIF(Tbl_Car_Max!B$6:B$1376,C8,Tbl_Car_Max!H$6:H$1376),IF(K8=3,SUMIF(Tbl_Car_Max!B$6:B$1376,C8,Tbl_Car_Max!G$6:G$1376),SUMIF(Tbl_Car_Max!B$6:B$1376,C8,Tbl_Car_Max!E$6:E$1376)))),"") -> 30000 | J8: Bike | M8: =IF(L8="MAX",10,IF(L8=0,0,MID(L8,1,IF(ISERR(FIND("|",SUBSTITUTE(L8,"-","|",1))),2,FIND("|",SUBSTITUTE(L8,"-","|",1))-1)))) -> 0 | N8: =IF(L8="MAX",10,IF(L8=0,0,MID(L8,FIND("|",SUBSTITUTE(L8,"-","|",1))+1,IF(ISERR(FIND("|",SUBSTITUTE(L8,"-","|",2))),2,FIND("|",SUBSTITUTE(L8,"-","|",2))-FIND("|",SUBSTITUTE(L8,"-","|",1))-1)))) -> 0 | O8: =IF(L8="MAX",10,IF(L8=0,0,MID(L8,FIND("|",SUBSTITUTE(L8,"-","|",2))+1,IF(ISERR(FIND("|",SUBSTITUTE(L8,"-","|",3))),2,FIND("|",SUBSTITUTE(L8,"-","|",3))-FIND("|",SUBSTITUTE(L8,"-","|",2))-1)))) -> 0 | P8: =IF(L8="MAX",10,IF(L8=0,0,MID(L8,FIND("|",SUBSTITUTE(L8,"-","|",3))+1,IF(ISERR(FIND("|",SUBSTITUTE(L8,"-","|",4))),2,FIND("|",SUBSTITUTE(L8,"-","|",4))-FIND("|",SUBSTITUTE(L8,"-","|",3))-1)))) -> 0 | Q8: =SUMIFS(Tbl_Car_Max!$J$3:$J$1376,Tbl_Car_Max!$B$3:$B$1376,$C8,Tbl_Car_Max!$D$3:$D$1376,">"&$M8)+SUMIFS(Tbl_Car_Max!$K$3:$K$1376,Tbl_Car_Max!$B$3:$B$1376,$C8,Tbl_Car_Max!$D$3:$D$1376,">"&$N8)+SUMIFS(Tbl_Car_Max!$L$3:$L$1376,Tbl_Car_Max!$B$3:$B$1376,$C8,Tbl_Car_Max!$D$3:$D$1376,">"&$O8)+SUMIFS(Tbl_Car_Max!$M$3:$M$1376,Tbl_Car_Max!$B$3:$B$1376,$C8,Tbl_Car_Max!$D$3:$D$1376,">"&$P8) -> 247960 | T8: 0 | U8: 0 | V8: 0 | W8: 0 | X8: 32 | Y8: =SUMIFS(Tbl_Car_Pro!$K$4:$K$1089,Tbl_Car_Pro!$B$4:$B$1089,$C8,Tbl_Car_Pro!$D$4:$D$1089,">"&$T8)+SUMIFS(Tbl_Car_Pro!$R$4:$R$1089,Tbl_Car_Pro!$B$4:$B$1089,$C8,Tbl_Car_Pro!$D$4:$D$1089,">"&$U8)+SUMIFS(Tbl_Car_Pro!$Y$4:$Y$1089,Tbl_Car_Pro!$B$4:$B$1089,$C8,Tbl_Car_Pro!$D$4:$D$1089,">"&$V8)+SUMIFS(Tbl_Car_Pro!$AF$4:$AF$1089,Tbl_Car_Pro!$B$4:$B$1089,$C8,Tbl_Car_Pro!$D$4:$D$1089,">"&$W8) -> 41725 | Z8: =VLOOKUP(C8,Tbl_Mastery!B$4:J$227,9,FALSE)-AB8 -> 13 | AB8: =IF(RIGHT(CM8,8)="Lic Left",VLOOKUP(C8,Tbl_Mastery!B$4:J$227,9,FALSE)-VALUE(LEFT(CM8,2)),0) -> 0 | AC8: =SUMIFS(Tbl_Car_Pro!F$4:F$1089,Tbl_Car_Pro!$B$4:$B$1089,$C8,Tbl_Car_Pro!$D$4:$D$1089,">"&T8) -> 5 | AD8: =SUMIFS(Tbl_Car_Pro!M$4:M$1089,Tbl_Car_Pro!$B$4:$B$1089,$C8,Tbl_Car_Pro!$D$4:$D$1089,">"&U8) -> 5 | AE8: =SUMIFS(Tbl_Car_Pro!T$4:T$1089,Tbl_Car_Pro!$B$4:$B$1089,$C8,Tbl_Car_Pro!$D$4:$D$1089,">"&V8) -> 5 | AF8: =SUMIFS(Tbl_Car_Pro!AA$4:AA$1089,Tbl_Car_Pro!$B$4:$B$1089,$C8,Tbl_Car_Pro!$D$4:$D$1089,">"&W8) -> 5 | AG8: 2E 2I 4C | AH8: =SUMIFS(Tbl_Car_Pro!$J$4:$J$1089,Tbl_Car_Pro!$B$4:$B$1089,$C8,Tbl_Car_Pro!$I$4:$I$1089,AH$1,Tbl_Car_Pro!$D$4:$D$1089,">"&$T8)+SUMIFS(Tbl_Car_Pro!$Q$4:$Q$1089,Tbl_Car_Pro!$B$4:$B$1089,$C8,Tbl_Car_Pro!$P$4:$P$1089,AH$1,Tbl_Car_Pro!$D$4:$D$1089,">"&$U8)+SUMIFS(Tbl_Car_Pro!$X$4:$X$1089,Tbl_Car_Pro!$B$4:$B$1089,$C8,Tbl_Car_Pro!$W$4:$W$1089,AH$1,Tbl_Car_Pro!$D$4:$D$1089,">"&$V8)+SUMIFS(Tbl_Car_Pro!$AE$4:$AE$1089,Tbl_Car_Pro!$B$4:$B$1089,$C8,Tbl_Car_Pro!$AD$4:$AD$1089,AH$1,Tbl_Car_Pro!$D$4:$D$1089,">"&$W8) -> 2 | AI8: =SUMIFS(Tbl_Car_Pro!$J$4:$J$1089,Tbl_Car_Pro!$B$4:$B$1089,$C8,Tbl_Car_Pro!$I$4:$I$1089,AI$1,Tbl_Car_Pro!$D$4:$D$1089,">"&$T8)+SUMIFS(Tbl_Car_Pro!$Q$4:$Q$1089,Tbl_Car_Pro!$B$4:$B$1089,$C8,Tbl_Car_Pro!$P$4:$P$1089,AI$1,Tbl_Car_Pro!$D$4:$D$1089,">"&$U8)+SUMIFS(Tbl_Car_Pro!$X$4:$X$1089,Tbl_Car_Pro!$B$4:$B$1089,$C8,Tbl_Car_Pro!$W$4:$W$1089,AI$1,Tbl_Car_Pro!$D$4:$D$1089,">"&$V8)+SUMIFS(Tbl_Car_Pro!$AE$4:$AE$1089,Tbl_Car_Pro!$B$4:$B$1089,$C8,Tbl_Car_Pro!$AD$4:$AD$1089,AI$1,Tbl_Car_Pro!$D$4:$D$1089,">"&$W8) -> 2 | AJ8: =SUMIFS(Tbl_Car_Pro!$J$4:$J$1089,Tbl_Car_Pro!$B$4:$B$1089,$C8,Tbl_Car_Pro!$I$4:$I$1089,AJ$1,Tbl_Car_Pro!$D$4:$D$1089,">"&$T8)+SUMIFS(Tbl_Car_Pro!$Q$4:$Q$1089,Tbl_Car_Pro!$B$4:$B$1089,$C8,Tbl_Car_Pro!$P$4:$P$1089,AJ$1,Tbl_Car_Pro!$D$4:$D$1089,">"&$U8)+SUMIFS(Tbl_Car_Pro!$X$4:$X$1089,Tbl_Car_Pro!$B$4:$B$1089,$C8,Tbl_Car_Pro!$W$4:$W$1089,AJ$1,Tbl_Car_Pro!$D$4:$D$1089,">"&$V8)+SUMIFS(Tbl_Car_Pro!$AE$4:$AE$1089,Tbl_Car_Pro!$B$4:$B$1089,$C8,Tbl_Car_Pro!$AD$4:$AD$1089,AJ$1,Tbl_Car_Pro!$D$4:$D$1089,">"&$W8) -> 4 | AO8: 4 4S | BH8: =SUMIFS(Tbl_Car_Pro!$H$4:$H$1089,Tbl_Car_Pro!$B$4:$B$1089,$C8,Tbl_Car_Pro!$G$4:$G$1089,BH$1,Tbl_Car_Pro!$D$4:$D$1089,">"&$T8)+SUMIFS(Tbl_Car_Pro!$O$4:$O$1089,Tbl_Car_Pro!$B$4:$B$1089,$C8,Tbl_Car_Pro!$N$4:$N$1089,BH$1,Tbl_Car_Pro!$D$4:$D$1089,">"&$U8)+SUMIFS(Tbl_Car_Pro!$V$4:$V$1089,Tbl_Car_Pro!$B$4:$B$1089,$C8,Tbl_Car_Pro!$U$4:$U$1089,BH$1,Tbl_Car_Pro!$D$4:$D$1089,">"&$V8)+SUMIFS(Tbl_Car_Pro!$AC$4:$AC$1089,Tbl_Car_Pro!$B$4:$B$1089,$C8,Tbl_Car_Pro!$AB$4:$AB$1089,BH$1,Tbl_Car_Pro!$D$4:$D$1089,">"&$W8) -> 4 | BN8: 247960 | BS8: 289685 | BU8: 0 | BV8: 0 | BW8: 0 | BX8: 0 | BY8: 770 | BZ8: 259.7045 | CA8: =VLOOKUP(C8,Tbl_Mastery!B$4:R$227,17,FALSE) -> 1 ET | CB8: 8 | CC8: 12 | CD8: 16 | CE8: =($CB$1*(100-(CB8-$CG$1)*100/($CH$1-$CG$1))+$CC$1*(100-(CC8-$CI$1)*100/($CJ$1-$CI$1))+$CD$1*(100-(CD8-$CK$1)*100/($CL$1-$CK$1)))*CA$2 -> 44.78935698 | CF8: 303.7 | CG8: 153.3 | CH8: 35.3 | CI8: 15.3 | CK8: 246.9 | CL8: 56.8 | CQ8: 5 | CR8: Lamborghini Estoque | CS8: 460.0152 | CV8: Suzuki GSX-R750 | CW8: =CF8 -> 303.7 | CY8: D
B9: 6 | C9: Cadillac XTS | E9: 5 | F9: 1.0.0 | H9: =IF(OR(AND(R9="",L9=""),CM9="Not Owned"),IF(K9=1,SUMIF(Tbl_Car_Max!B$6:B$1376,C9,Tbl_Car_Max!F$6:F$1376),IF(K9=2,SUMIF(Tbl_Car_Max!B$6:B$1376,C9,Tbl_Car_Max!H$6:H$1376),IF(K9=3,SUMIF(Tbl_Car_Max!B$6:B$1376,C9,Tbl_Car_Max!G$6:G$1376),SUMIF(Tbl_Car_Max!B$6:B$1376,C9,Tbl_Car_Max!E$6:E$1376)))),"") -> 10000 | M9: 0 | N9: 0 | O9: 0 | P9: 0 | Q9: =SUMIFS(Tbl_Car_Max!$J$3:$J$1376,Tbl_Car_Max!$B$3:$B$1376,$C9,Tbl_Car_Max!$D$3:$D$1376,">"&$M9)+SUMIFS(Tbl_Car_Max!$K$3:$K$1376,Tbl_Car_Max!$B$3:$B$1376,$C9,Tbl_Car_Max!$D$3:$D$1376,">"&$N9)+SUMIFS(Tbl_Car_Max!$L$3:$L$1376,Tbl_Car_Max!$B$3:$B$1376,$C9,Tbl_Car_Max!$D$3:$D$1376,">"&$O9)+SUMIFS(Tbl_Car_Max!$M$3:$M$1376,Tbl_Car_Max!$B$3:$B$1376,$C9,Tbl_Car_Max!$D$3:$D$1376,">"&$P9) -> 175750 | T9: 0 | U9: 0 | V9: 0 | W9: 0 | X9: 16 | Y9: =SUMIFS(Tbl_Car_Pro!$K$4:$K$1089,Tbl_Car_Pro!$B$4:$B$1089,$C9,Tbl_Car_Pro!$D$4:$D$1089,">"&$T9)+SUMIFS(Tbl_Car_Pro!$R$4:$R$1089,Tbl_Car_Pro!$B$4:$B$1089,$C9,Tbl_Car_Pro!$D$4:$D$1089,">"&$U9)+SUMIFS(Tbl_Car_Pro!$Y$4:$Y$1089,Tbl_Car_Pro!$B$4:$B$1089,$C9,Tbl_Car_Pro!$D$4:$D$1089,">"&$V9)+SUMIFS(Tbl_Car_Pro!$AF$4:$AF$1089,Tbl_Car_Pro!$B$4:$B$1089,$C9,Tbl_Car_Pro!$D$4:$D$1089,">"&$W9) -> 22792 | Z9: =VLOOKUP(C9,Tbl_Mastery!B$4:J$227,9,FALSE)-AB9 -> 11 | AB9: =IF(RIGHT(CM9,8)="Lic Left",VLOOKUP(C9,Tbl_Mastery!B$4:J$227,9,FALSE)-VALUE(LEFT(CM9,2)),0) -> 0 | AC9: =SUMIFS(Tbl_Car_Pro!F$4:F$1089,Tbl_Car_Pro!$B$4:$B$1089,$C9,Tbl_Car_Pro!$D$4:$D$1089,">"&T9) -> 3 | AD9: =SUMIFS(Tbl_Car_Pro!M$4:M$1089,Tbl_Car_Pro!$B$4:$B$1089,$C9,Tbl_Car_Pro!$D$4:$D$1089,">"&U9) -> 3 | AE9: =SUMIFS(Tbl_Car_Pro!T$4:T$1089,Tbl_Car_Pro!$B$4:$B$1089,$C9,Tbl_Car_Pro!$D$4:$D$1089,">"&V9) -> 3 | AF9: =SUMIFS(Tbl_Car_Pro!AA$4:AA$1089,Tbl_Car_Pro!$B$4:$B$1089,$C9,Tbl_Car_Pro!$D$4:$D$1089,">"&W9) -> 3 | AG9: 2E 2I | AH9: =SUMIFS(Tbl_Car_Pro!$J$4:$J$1089,Tbl_Car_Pro!$B$4:$B$1089,$C9,Tbl_Car_Pro!$I$4:$I$1089,AH$1,Tbl_Car_Pro!$D$4:$D$1089,">"&$T9)+SUMIFS(Tbl_Car_Pro!$Q$4:$Q$1089,Tbl_Car_Pro!$B$4:$B$1089,$C9,Tbl_Car_Pro!$P$4:$P$1089,AH$1,Tbl_Car_Pro!$D$4:$D$1089,">"&$U9)+SUMIFS(Tbl_Car_Pro!$X$4:$X$1089,Tbl_Car_Pro!$B$4:$B$1089,$C9,Tbl_Car_Pro!$W$4:$W$1089,AH$1,Tbl_Car_Pro!$D$4:$D$1089,">"&$V9)+SUMIFS(Tbl_Car_Pro!$AE$4:$AE$1089,Tbl_Car_Pro!$B$4:$B$1089,$C9,Tbl_Car_Pro!$AD$4:$AD$1089,AH$1,Tbl_Car_Pro!$D$4:$D$1089,">"&$W9) -> 2 | AI9: =SUMIFS(Tbl_Car_Pro!$J$4:$J$1089,Tbl_Car_Pro!$B$4:$B$1089,$C9,Tbl_Car_Pro!$I$4:$I$1089,AI$1,Tbl_Car_Pro!$D$4:$D$1089,">"&$T9)+SUMIFS(Tbl_Car_Pro!$Q$4:$Q$1089,Tbl_Car_Pro!$B$4:$B$1089,$C9,Tbl_Car_Pro!$P$4:$P$1089,AI$1,Tbl_Car_Pro!$D$4:$D$1089,">"&$U9)+SUMIFS(Tbl_Car_Pro!$X$4:$X$1089,Tbl_Car_Pro!$B$4:$B$1089,$C9,Tbl_Car_Pro!$W$4:$W$1089,AI$1,Tbl_Car_Pro!$D$4:$D$1089,">"&$V9)+SUMIFS(Tbl_Car_Pro!$AE$4:$AE$1089,Tbl_Car_Pro!$B$4:$B$1089,$C9,Tbl_Car_Pro!$AD$4:$AD$1089,AI$1,Tbl_Car_Pro!$D$4:$D$1089,">"&$W9) -> 2 | BN9: 175750 | BS9: 198542 | BU9: 0 | BV9: 0 | BW9: 0 | BX9: 0 | BY9: 638 | BZ9: 247.145 | CA9: =VLOOKUP(C9,Tbl_Mastery!B$4:R$227,17,FALSE) -> 2 TK 1 NS | CB9: 7 | CC9: 12 | CD9: 17 | CE9: 45.23281596 | CF9: 311.9 | CG9: 166.2 | CH9: 27.4 | CK9: 267.7 | CL9: 44.2 | CQ9: 6 | CR9: 2010 Bentley Continental Supersports | CS9: 458.8 | CV9: Cadillac XTS | CW9: =CF9 -> 311.9 | CY9: D
B10: 7 | C10: Ford F-150 | E10: 61 | F10: 1.3.0 | H10: =IF(OR(AND(R10="",L10=""),CM10="Not Owned"),IF(K10=1,SUMIF(Tbl_Car_Max!B$6:B$1376,C10,Tbl_Car_Max!F$6:F$1376),IF(K10=2,SUMIF(Tbl_Car_Max!B$6:B$1376,C10,Tbl_Car_Max!H$6:H$1376),IF(K10=3,SUMIF(Tbl_Car_Max!B$6:B$1376,C10,Tbl_Car_Max!G$6:G$1376),SUMIF(Tbl_Car_Max!B$6:B$1376,C10,Tbl_Car_Max!E$6:E$1376)))),"") -> 13000 | M10: 0 | N10: 0 | O10: 0 | P10: 0 | Q10: =SUMIFS(Tbl_Car_Max!$J$3:$J$1376,Tbl_Car_Max!$B$3:$B$1376,$C10,Tbl_Car_Max!$D$3:$D$1376,">"&$M10)+SUMIFS(Tbl_Car_Max!$K$3:$K$1376,Tbl_Car_Max!$B$3:$B$1376,$C10,Tbl_Car_Max!$D$3:$D$1376,">"&$N10)+SUMIFS(Tbl_Car_Max!$L$3:$L$1376,Tbl_Car_Max!$B$3:$B$1376,$C10,Tbl_Car_Max!$D$3:$D$1376,">"&$O10)+SUMIFS(Tbl_Car_Max!$M$3:$M$1376,Tbl_Car_Max!$B$3:$B$1376,$C10,Tbl_Car_Max!$D$3:$D$1376,">"&$P10) -> 175750 | T10: 0 | U10: 0 | V10: 0 | W10: 0 | X10: 16 | Y10: =SUMIFS(Tbl_Car_Pro!$K$4:$K$1089,Tbl_Car_Pro!$B$4:$B$1089,$C10,Tbl_Car_Pro!$D$4:$D$1089,">"&$T10)+SUMIFS(Tbl_Car_Pro!$R$4:$R$1089,Tbl_Car_Pro!$B$4:$B$1089,$C10,Tbl_Car_Pro!$D$4:$D$1089,">"&$U10)+SUMIFS(Tbl_Car_Pro!$Y$4:$Y$1089,Tbl_Car_Pro!$B$4:$B$1089,$C10,Tbl_Car_Pro!$D$4:$D$1089,">"&$V10)+SUMIFS(Tbl_Car_Pro!$AF$4:$AF$1089,Tbl_Car_Pro!$B$4:$B$1089,$C10,Tbl_Car_Pro!$D$4:$D$1089,">"&$W10) -> 22962 | Z10: =VLOOKUP(C10,Tbl_Mastery!B$4:J$227,9,FALSE)-AB10 -> 12 | AB10: =IF(RIGHT(CM10,8)="Lic Left",VLOOKUP(C10,Tbl_Mastery!B$4:J$227,9,FALSE)-VALUE(LEFT(CM10,2)),0) -> 0 | AC10: =SUMIFS(Tbl_Car_Pro!F$4:F$1089,Tbl_Car_Pro!$B$4:$B$1089,$C10,Tbl_Car_Pro!$D$4:$D$1089,">"&T10) -> 3 | AD10: =SUMIFS(Tbl_Car_Pro!M$4:M$1089,Tbl_Car_Pro!$B$4:$B$1089,$C10,Tbl_Car_Pro!$D$4:$D$1089,">"&U10) -> 3 | AE10: =SUMIFS(Tbl_Car_Pro!T$4:T$1089,Tbl_Car_Pro!$B$4:$B$1089,$C10,Tbl_Car_Pro!$D$4:$D$1089,">"&V10) -> 3 | AF10: =SUMIFS(Tbl_Car_Pro!AA$4:AA$1089,Tbl_Car_Pro!$B$4:$B$1089,$C10,Tbl_Car_Pro!$D$4:$D$1089,">"&W10) -> 3 | AG10: 2E 2I | AH10: =SUMIFS(Tbl_Car_Pro!$J$4:$J$1089,Tbl_Car_Pro!$B$4:$B$1089,$C10,Tbl_Car_Pro!$I$4:$I$1089,AH$1,Tbl_Car_Pro!$D$4:$D$1089,">"&$T10)+SUMIFS(Tbl_Car_Pro!$Q$4:$Q$1089,Tbl_Car_Pro!$B$4:$B$1089,$C10,Tbl_Car_Pro!$P$4:$P$1089,AH$1,Tbl_Car_Pro!$D$4:$D$1089,">"&$U10)+SUMIFS(Tbl_Car_Pro!$X$4:$X$1089,Tbl_Car_Pro!$B$4:$B$1089,$C10,Tbl_Car_Pro!$W$4:$W$1089,AH$1,Tbl_Car_Pro!$D$4:$D$1089,">"&$V10)+SUMIFS(Tbl_Car_Pro!$AE$4:$AE$1089,Tbl_Car_Pro!$B$4:$B$1089,$C10,Tbl_Car_Pro!$AD$4:$AD$1089,AH$1,Tbl_Car_Pro!$D$4:$D$1089,">"&$W10) -> 2 | AI10: =SUMIFS(Tbl_Car_Pro!$J$4:$J$1089,Tbl_Car_Pro!$B$4:$B$1089,$C10,Tbl_Car_Pro!$I$4:$I$1089,AI$1,Tbl_Car_Pro!$D$4:$D$1089,">"&$T10)+SUMIFS(Tbl_Car_Pro!$Q$4:$Q$1089,Tbl_Car_Pro!$B$4:$B$1089,$C10,Tbl_Car_Pro!$P$4:$P$1089,AI$1,Tbl_Car_Pro!$D$4:$D$1089,">"&$U10)+SUMIFS(Tbl_Car_Pro!$X$4:$X$1089,Tbl_Car_Pro!$B$4:$B$1089,$C10,Tbl_Car_Pro!$W$4:$W$1089,AI$1,Tbl_Car_Pro!$D$4:$D$1089,">"&$V10)+SUMIFS(Tbl_Car_Pro!$AE$4:$AE$1089,Tbl_Car_Pro!$B$4:$B$1089,$C10,Tbl_Car_Pro!$AD$4:$AD$1089,AI$1,Tbl_Car_Pro!$D$4:$D$1089,">"&$W10) -> 2 | BN10: 175750 | BS10: 198712 | BU10: 0 | BV10: 0 | BW10: 0 | BX10: 0 | BY10: 506 | BZ10: 258.932 | CA10: =VLOOKUP(C10,Tbl_Mastery!B$4:R$227,17,FALSE) -> 1 ET 2 UD | CB10: 9 | CC10: 13 | CD10: 17 | CE10: 32.37250554 | CF10: 329.1 | CG10: 128.8 | CH10: 75.6 | CK10: 207.4 | CL10: 121.7 | CQ10: 7 | CR10: TVR Sagaris | CS10: 458.7 | CV10: Ford F-150 | CW10: 329.1 | CY10: D
A11: H | B11: 8 | C11: Scion FR-S | E11: 6 | F11: 1.0.0 | G11: Hidden | H11: =IF(OR(AND(R11="",L11=""),CM11="Not Owned"),IF(K11=1,SUMIF(Tbl_Car_Max!B$6:B$1376,C11,Tbl_Car_Max!F$6:F$1376),IF(K11=2,SUMIF(Tbl_Car_Max!B$6:B$1376,C11,Tbl_Car_Max!H$6:H$1376),IF(K11=3,SUMIF(Tbl_Car_Max!B$6:B$1376,C11,Tbl_Car_Max!G$6:G$1376),SUMIF(Tbl_Car_Max!B$6:B$1376,C11,Tbl_Car_Max!E$6:E$1376)))),"") -> 12000 | M11: 0 | N11: 0 | O11: 0 | P11: 0 | Q11: =SUMIFS(Tbl_Car_Max!$J$3:$J$1376,Tbl_Car_Max!$B$3:$B$1376,$C11,Tbl_Car_Max!$D$3:$D$1376,">"&$M11)+SUMIFS(Tbl_Car_Max!$K$3:$K$1376,Tbl_Car_Max!$B$3:$B$1376,$C11,Tbl_Car_Max!$D$3:$D$1376,">"&$N11)+SUMIFS(Tbl_Car_Max!$L$3:$L$1376,Tbl_Car_Max!$B$3:$B$1376,$C11,Tbl_Car_Max!$D$3:$D$1376,">"&$O11)+SUMIFS(Tbl_Car_Max!$M$3:$M$1376,Tbl_Car_Max!$B$3:$B$1376,$C11,Tbl_Car_Max!$D$3:$D$1376,">"&$P11) -> 175750 | T11: 0 | U11: 0 | V11: 0 | W11: 0 | X11: 16 | Y11: =SUMIFS(Tbl_Car_Pro!$K$4:$K$1089,Tbl_Car_Pro!$B$4:$B$1089,$C11,Tbl_Car_Pro!$D$4:$D$1089,">"&$T11)+SUMIFS(Tbl_Car_Pro!$R$4:$R$1089,Tbl_Car_Pro!$B$4:$B$1089,$C11,Tbl_Car_Pro!$D$4:$D$1089,">"&$U11)+SUMIFS(Tbl_Car_Pro!$Y$4:$Y$1089,Tbl_Car_Pro!$B$4:$B$1089,$C11,Tbl_Car_Pro!$D$4:$D$1089,">"&$V11)+SUMIFS(Tbl_Car_Pro!$AF$4:$AF$1089,Tbl_Car_Pro!$B$4:$B$1089,$C11,Tbl_Car_Pro!$D$4:$D$1089,">"&$W11) -> 23166 | Z11: =VLOOKUP(C11,Tbl_Mastery!B$4:J$227,9,FALSE)-AB11 -> 11 | AB11: =IF(RIGHT(CM11,8)="Lic Left",VLOOKUP(C11,Tbl_Mastery!B$4:J$227,9,FALSE)-VALUE(LEFT(CM11,2)),0) -> 0 | AC11: =SUMIFS(Tbl_Car_Pro!F$4:F$1089,Tbl_Car_Pro!$B$4:$B$1089,$C11,Tbl_Car_Pro!$D$4:$D$1089,">"&T11) -> 3 | AD11: =SUMIFS(Tbl_Car_Pro!M$4:M$1089,Tbl_Car_Pro!$B$4:$B$1089,$C11,Tbl_Car_Pro!$D$4:$D$1089,">"&U11) -> 3 | AE11: =SUMIFS(Tbl_Car_Pro!T$4:T$1089,Tbl_Car_Pro!$B$4:$B$1089,$C11,Tbl_Car_Pro!$D$4:$D$1089,">"&V11) -> 3 | AF11: =SUMIFS(Tbl_Car_Pro!AA$4:AA$1089,Tbl_Car_Pro!$B$4:$B$1089,$C11,Tbl_Car_Pro!$D$4:$D$1089,">"&W11) -> 3 | AG11: 2E 2I | AH11: =SUMIFS(Tbl_Car_Pro!$J$4:$J$1089,Tbl_Car_Pro!$B$4:$B$1089,$C11,Tbl_Car_Pro!$I$4:$I$1089,AH$1,Tbl_Car_Pro!$D$4:$D$1089,">"&$T11)+SUMIFS(Tbl_Car_Pro!$Q$4:$Q$1089,Tbl_Car_Pro!$B$4:$B$1089,$C11,Tbl_Car_Pro!$P$4:$P$1089,AH$1,Tbl_Car_Pro!$D$4:$D$1089,">"&$U11)+SUMIFS(Tbl_Car_Pro!$X$4:$X$1089,Tbl_Car_Pro!$B$4:$B$1089,$C11,Tbl_Car_Pro!$W$4:$W$1089,AH$1,Tbl_Car_Pro!$D$4:$D$1089,">"&$V11)+SUMIFS(Tbl_Car_Pro!$AE$4:$AE$1089,Tbl_Car_Pro!$B$4:$B$1089,$C11,Tbl_Car_Pro!$AD$4:$AD$1089,AH$1,Tbl_Car_Pro!$D$4:$D$1089,">"&$W11) -> 2 | AI11: =SUMIFS(Tbl_Car_Pro!$J$4:$J$1089,Tbl_Car_Pro!$B$4:$B$1089,$C11,Tbl_Car_Pro!$I$4:$I$1089,AI$1,Tbl_Car_Pro!$D$4:$D$1089,">"&$T11)+SUMIFS(Tbl_Car_Pro!$Q$4:$Q$1089,Tbl_Car_Pro!$B$4:$B$1089,$C11,Tbl_Car_Pro!$P$4:$P$1089,AI$1,Tbl_Car_Pro!$D$4:$D$1089,">"&$U11)+SUMIFS(Tbl_Car_Pro!$X$4:$X$1089,Tbl_Car_Pro!$B$4:$B$1089,$C11,Tbl_Car_Pro!$W$4:$W$1089,AI$1,Tbl_Car_Pro!$D$4:$D$1089,">"&$V11)+SUMIFS(Tbl_Car_Pro!$AE$4:$AE$1089,Tbl_Car_Pro!$B$4:$B$1089,$C11,Tbl_Car_Pro!$AD$4:$AD$1089,AI$1,Tbl_Car_Pro!$D$4:$D$1089,">"&$W11) -> 2 | BN11: 175750 | BS11: 198916 | BU11: 0 | BV11: 0 | BW11: 0 | BX11: 0 | BY11: 684 | BZ11: 251.363 | CA11: =VLOOKUP(C11,Tbl_Mastery!B$4:R$227,17,FALSE) -> 3 NS 1 UD | CB11: 7 | CC11: 13 | CD11: 17 | CE11: 41.24168514 | CF11: 315 | CG11: 169.8 | CH11: 25.8 | CK11: 273.4 | CL11: 41.6 | CQ11: 8 | CR11: Falcon F7 | CS11: 455.98794 | CV11: Scion FR-S | CW11: 315 | CY11: D
B12: 9 | C12: Mini Cooper S Roadster | E12: 7 | F12: 1.0.0 | H12: =IF(OR(AND(R12="",L12=""),CM12="Not Owned"),IF(K12=1,SUMIF(Tbl_Car_Max!B$6:B$1376,C12,Tbl_Car_Max!F$6:F$1376),IF(K12=2,SUMIF(Tbl_Car_Max!B$6:B$1376,C12,Tbl_Car_Max!H$6:H$1376),IF(K12=3,SUMIF(Tbl_Car_Max!B$6:B$1376,C12,Tbl_Car_Max!G$6:G$1376),SUMIF(Tbl_Car_Max!B$6:B$1376,C12,Tbl_Car_Max!E$6:E$1376)))),"") -> 15000 | M12: 0 | N12: 0 | O12: 0 | P12: 0 | Q12: =SUMIFS(Tbl_Car_Max!$J$3:$J$1376,Tbl_Car_Max!$B$3:$B$1376,$C12,Tbl_Car_Max!$D$3:$D$1376,">"&$M12)+SUMIFS(Tbl_Car_Max!$K$3:$K$1376,Tbl_Car_Max!$B$3:$B$1376,$C12,Tbl_Car_Max!$D$3:$D$1376,">"&$N12)+SUMIFS(Tbl_Car_Max!$L$3:$L$1376,Tbl_Car_Max!$B$3:$B$1376,$C12,Tbl_Car_Max!$D$3:$D$1376,">"&$O12)+SUMIFS(Tbl_Car_Max!$M$3:$M$1376,Tbl_Car_Max!$B$3:$B$1376,$C12,Tbl_Car_Max!$D$3:$D$1376,">"&$P12) -> 175750 | T12: 0 | U12: 0 | V12: 0 | W12: 0 | X12: =SUM(AC12:BM12) -> 24 | Y12: =SUMIFS(Tbl_Car_Pro!$K$4:$K$1089,Tbl_Car_Pro!$B$4:$B$1089,$C12,Tbl_Car_Pro!$D$4:$D$1089,">"&$T12)+SUMIFS(Tbl_Car_Pro!$R$4:$R$1089,Tbl_Car_Pro!$B$4:$B$1089,$C12,Tbl_Car_Pro!$D$4:$D$1089,">"&$U12)+SUMIFS(Tbl_Car_Pro!$Y$4:$Y$1089,Tbl_Car_Pro!$B$4:$B$1089,$C12,Tbl_Car_Pro!$D$4:$D$1089,">"&$V12)+SUMIFS(Tbl_Car_Pro!$AF$4:$AF$1089,Tbl_Car_Pro!$B$4:$B$1089,$C12,Tbl_Car_Pro!$D$4:$D$1089,">"&$W12) -> 35985 | Z12: =VLOOKUP(C12,Tbl_Mastery!B$4:J$227,9,FALSE)-AB12 -> 12 | AB12: =IF(RIGHT(CM12,8)="Lic Left",VLOOKUP(C12,Tbl_Mastery!B$4:J$227,9,FALSE)-VALUE(LEFT(CM12,2)),0) -> 0 | AC12: =SUMIFS(Tbl_Car_Pro!F$4:F$1089,Tbl_Car_Pro!$B$4:$B$1089,$C12,Tbl_Car_Pro!$D$4:$D$1089,">"&T12) -> 4 | AD12: =SUMIFS(Tbl_Car_Pro!M$4:M$1089,Tbl_Car_Pro!$B$4:$B$1089,$C12,Tbl_Car_Pro!$D$4:$D$1089,">"&U12) -> 4 | AE12: =SUMIFS(Tbl_Car_Pro!T$4:T$1089,Tbl_Car_Pro!$B$4:$B$1089,$C12,Tbl_Car_Pro!$D$4:$D$1089,">"&V12) -> 4 | AF12: =SUMIFS(Tbl_Car_Pro!AA$4:AA$1089,Tbl_Car_Pro!$B$4:$B$1089,$C12,Tbl_Car_Pro!$D$4:$D$1089,">"&W12) -> 4 | AG12: 4E 4I | AH12: =SUMIFS(Tbl_Car_Pro!$J$4:$J$1089,Tbl_Car_Pro!$B$4:$B$1089,$C12,Tbl_Car_Pro!$I$4:$I$1089,AH$1,Tbl_Car_Pro!$D$4:$D$1089,">"&$T12)+SUMIFS(Tbl_Car_Pro!$Q$4:$Q$1089,Tbl_Car_Pro!$B$4:$B$1089,$C12,Tbl_Car_Pro!$P$4:$P$1089,AH$1,Tbl_Car_Pro!$D$4:$D$1089,">"&$U12)+SUMIFS(Tbl_Car_Pro!$X$4:$X$1089,Tbl_Car_Pro!$B$4:$B$1089,$C12,Tbl_Car_Pro!$W$4:$W$1089,AH$1,Tbl_Car_Pro!$D$4:$D$1089,">"&$V12)+SUMIFS(Tbl_Car_Pro!$AE$4:$AE$1089,Tbl_Car_Pro!$B$4:$B$1089,$C12,Tbl_Car_Pro!$AD$4:$AD$1089,AH$1,Tbl_Car_Pro!$D$4:$D$1089,">"&$W12) -> 4 | AI12: =SUMIFS(Tbl_Car_Pro!$J$4:$J$1089,Tbl_Car_Pro!$B$4:$B$1089,$C12,Tbl_Car_Pro!$I$4:$I$1089,AI$1,Tbl_Car_Pro!$D$4:$D$1089,">"&$T12)+SUMIFS(Tbl_Car_Pro!$Q$4:$Q$1089,Tbl_Car_Pro!$B$4:$B$1089,$C12,Tbl_Car_Pro!$P$4:$P$1089,AI$1,Tbl_Car_Pro!$D$4:$D$1089,">"&$U12)+SUMIFS(Tbl_Car_Pro!$X$4:$X$1089,Tbl_Car_Pro!$B$4:$B$1089,$C12,Tbl_Car_Pro!$W$4:$W$1089,AI$1,Tbl_Car_Pro!$D$4:$D$1089,">"&$V12)+SUMIFS(Tbl_Car_Pro!$AE$4:$AE$1089,Tbl_Car_Pro!$B$4:$B$1089,$C12,Tbl_Car_Pro!$AD$4:$AD$1089,AI$1,Tbl_Car_Pro!$D$4:$D$1089,">"&$W12) -> 4 | BN12: 175750 | BS12: 211735 | BU12: 0 | BV12: 0 | BW12: 0 | BX12: 0 | BY12: 736 | BZ12: 258.575 | CA12: =VLOOKUP(C12,Tbl_Mastery!B$4:R$227,17,FALSE) -> 2 TK 1 UC | CB12: 6 | CC12: 11 | CD12: 16 | CE12: 57.64966741 | CF12: 330.5 | CG12: 173.1 | CH12: 32.1 | CK12: 278.8 | CL12: 51.7 | CQ12: 9 | CR12: Lotus Evora Sport 410 | CS12: 454.5 | CV12: Mini Cooper S Roadster | CW12: 330.5 | CY12: D
B13: 10 | C13: Kawasaki Z800 | E13: 202 | F13: 3.3.0 | H13: =IF(OR(AND(R13="",L13=""),CM13="Not Owned"),IF(K13=1,SUMIF(Tbl_Car_Max!B$6:B$1376,C13,Tbl_Car_Max!F$6:F$1376),IF(K13=2,SUMIF(Tbl_Car_Max!B$6:B$1376,C13,Tbl_Car_Max!H$6:H$1376),IF(K13=3,SUMIF(Tbl_Car_Max!B$6:B$1376,C13,Tbl_Car_Max!G$6:G$1376),SUMIF(Tbl_Car_Max!B$6:B$1376,C13,Tbl_Car_Max!E$6:E$1376)))),"") -> 4 | I13: 1 | J13: Bike | K13: 3 | M13: =IF(L13="MAX",10,IF(L13=0,0,MID(L13,1,IF(ISERR(FIND("|",SUBSTITUTE(L13,"-","|",1))),2,FIND("|",SUBSTITUTE(L13,"-","|",1))-1)))) -> 0 | N13: =IF(L13="MAX",10,IF(L13=0,0,MID(L13,FIND("|",SUBSTITUTE(L13,"-","|",1))+1,IF(ISERR(FIND("|",SUBSTITUTE(L13,"-","|",2))),2,FIND("|",SUBSTITUTE(L13,"-","|",2))-FIND("|",SUBSTITUTE(L13,"-","|",1))-1)))) -> 0 | O13: =IF(L13="MAX",10,IF(L13=0,0,MID(L13,FIND("|",SUBSTITUTE(L13,"-","|",2))+1,IF(ISERR(FIND("|",SUBSTITUTE(L13,"-","|",3))),2,FIND("|",SUBSTITUTE(L13,"-","|",3))-FIND("|",SUBSTITUTE(L13,"-","|",2))-1)))) -> 0 | P13: =IF(L13="MAX",10,IF(L13=0,0,MID(L13,FIND("|",SUBSTITUTE(L13,"-","|",3))+1,IF(ISERR(FIND("|",SUBSTITUTE(L13,"-","|",4))),2,FIND("|",SUBSTITUTE(L13,"-","|",4))-FIND("|",SUBSTITUTE(L13,"-","|",3))-1)))) -> 0 | Q13: =SUMIFS(Tbl_Car_Max!$J$3:$J$1376,Tbl_Car_Max!$B$3:$B$1376,$C13,Tbl_Car_Max!$D$3:$D$1376,">"&$M13)+SUMIFS(Tbl_Car_Max!$K$3:$K$1376,Tbl_Car_Max!$B$3:$B$1376,$C13,Tbl_Car_Max!$D$3:$D$1376,">"&$N13)+SUMIFS(Tbl_Car_Max!$L$3:$L$1376,Tbl_Car_Max!$B$3:$B$1376,$C13,Tbl_Car_Max!$D$3:$D$1376,">"&$O13)+SUMIFS(Tbl_Car_Max!$M$3:$M$1376,Tbl_Car_Max!$B$3:$B$1376,$C13,Tbl_Car_Max!$D$3:$D$1376,">"&$P13) -> 364120 | T13: 0 | U13: 0 | V13: 0 | W13: 0 | X13: =SUM(AC13:BM13) -> 36 | Y13: =SUMIFS(Tbl_Car_Pro!$K$4:$K$1089,Tbl_Car_Pro!$B$4:$B$1089,$C13,Tbl_Car_Pro!$D$4:$D$1089,">"&$T13)+SUMIFS(Tbl_Car_Pro!$R$4:$R$1089,Tbl_Car_Pro!$B$4:$B$1089,$C13,Tbl_Car_Pro!$D$4:$D$1089,">"&$U13)+SUMIFS(Tbl_Car_Pro!$Y$4:$Y$1089,Tbl_Car_Pro!$B$4:$B$1089,$C13,Tbl_Car_Pro!$D$4:$D$1089,">"&$V13)+SUMIFS(Tbl_Car_Pro!$AF$4:$AF$1089,Tbl_Car_Pro!$B$4:$B$1089,$C13,Tbl_Car_Pro!$D$4:$D$1089,">"&$W13) -> 86550 | Z13: =VLOOKUP(C13,Tbl_Mastery!B$4:J$227,9,FALSE)-AB13 -> 16 | AA13: =IF(AND(K13=1,H13<>""),H13/Z13,"") ->  | AB13: =IF(RIGHT(CM13,8)="Lic Left",VLOOKUP(C13,Tbl_Mastery!B$4:J$227,9,FALSE)-VALUE(LEFT(CM13,2)),0) -> 0 | AC13: =SUMIFS(Tbl_Car_Pro!F$4:F$1089,Tbl_Car_Pro!$B$4:$B$1089,$C13,Tbl_Car_Pro!$D$4:$D$1089,">"&T13) -> 6 | AD13: =SUMIFS(Tbl_Car_Pro!M$4:M$1089,Tbl_Car_Pro!$B$4:$B$1089,$C13,Tbl_Car_Pro!$D$4:$D$1089,">"&U13) -> 6 | AE13: =SUMIFS(Tbl_Car_Pro!T$4:T$1089,Tbl_Car_Pro!$B$4:$B$1089,$C13,Tbl_Car_Pro!$D$4:$D$1089,">"&V13) -> 6 | AF13: =SUMIFS(Tbl_Car_Pro!AA$4:AA$1089,Tbl_Car_Pro!$B$4:$B$1089,$C13,Tbl_Car_Pro!$D$4:$D$1089,">"&W13) -> 6 | AG13: =TRIM(CONCATENATE(IF(AH13=0,"",CONCATENATE(" ",AH13,"E")),IF(AI13=0,"",CONCATENATE(" ",AI13,"I")),IF(AJ13=0,"",CONCATENATE(" ",AJ13,"C")),IF(AK13=0,"",CONCATENATE(" ",AK13,"R")),IF(AL13=0,"",CONCATENATE(" ",AL13,"M")),IF(AM13=0,"",CONCATENATE(" ",AM13,"P")),IF(AN13=0,"",CONCATENATE(" ",AN13,"A")))) -> 8C | AJ13: =SUMIFS(Tbl_Car_Pro!$J$4:$J$1089,Tbl_Car_Pro!$B$4:$B$1089,$C13,Tbl_Car_Pro!$I$4:$I$1089,AJ$1,Tbl_Car_Pro!$D$4:$D$1089,">"&$T13)+SUMIFS(Tbl_Car_Pro!$Q$4:$Q$1089,Tbl_Car_Pro!$B$4:$B$1089,$C13,Tbl_Car_Pro!$P$4:$P$1089,AJ$1,Tbl_Car_Pro!$D$4:$D$1089,">"&$U13)+SUMIFS(Tbl_Car_Pro!$X$4:$X$1089,Tbl_Car_Pro!$B$4:$B$1089,$C13,Tbl_Car_Pro!$W$4:$W$1089,AJ$1,Tbl_Car_Pro!$D$4:$D$1089,">"&$V13)+SUMIFS(Tbl_Car_Pro!$AE$4:$AE$1089,Tbl_Car_Pro!$B$4:$B$1089,$C13,Tbl_Car_Pro!$AD$4:$AD$1089,AJ$1,Tbl_Car_Pro!$D$4:$D$1089,">"&$W13) -> 8 | AO13: =IF(SUM(AP13:BM13)=0,"",CONCATENATE(SUM(AP13:BM13)," ",IF(ISNA(MATCH(SUM(AP13:BM13),AP13:BM13,0)),"",INDEX(AP$3:BM$3,,MATCH(SUM(AP13:BM13),AP13:BM13,0))))) -> 4 4S | BH13: =SUMIFS(Tbl_Car_Pro!$H$4:$H$1089,Tbl_Car_Pro!$B$4:$B$1089,$C13,Tbl_Car_Pro!$G$4:$G$1089,BH$1,Tbl_Car_Pro!$D$4:$D$1089,">"&$T13)+SUMIFS(Tbl_Car_Pro!$O$4:$O$1089,Tbl_Car_Pro!$B$4:$B$1089,$C13,Tbl_Car_Pro!$N$4:$N$1089,BH$1,Tbl_Car_Pro!$D$4:$D$1089,">"&$U13)+SUMIFS(Tbl_Car_Pro!$V$4:$V$1089,Tbl_Car_Pro!$B$4:$B$1089,$C13,Tbl_Car_Pro!$U$4:$U$1089,BH$1,Tbl_Car_Pro!$D$4:$D$1089,">"&$V13)+SUMIFS(Tbl_Car_Pro!$AC$4:$AC$1089,Tbl_Car_Pro!$B$4:$B$1089,$C13,Tbl_Car_Pro!$AB$4:$AB$1089,BH$1,Tbl_Car_Pro!$D$4:$D$1089,">"&$W13) -> 4 | BN13: 364120 | BS13: 450670 | BU13: 0 | BV13: 0 | BW13: 0 | BX13: 0 | BY13: 774 | BZ13: 260.325 | CA13: =VLOOKUP(C13,Tbl_Mastery!B$4:R$227,17,FALSE) -> 30 PC 1 TK 1 NS | CB13: 6 | CC13: 11 | CD13: 16 | CE13: 57.64966741 | CF13: 329.6 | CG13: 171.4 | CH13: 33.3 | CI13: 10.4 | CK13: 276 | CL13: 53.6 | CQ13: =IF(CQ12<MIN(CR$1,CU$2),CQ12+1,"") -> 10 | CR13: BXR Bailey Blade GT1 | CS13: 453.3 | CV13: =C13 -> Kawasaki Z800 | CW13: =CF13 -> 329.6 | CX13: =IF(OR(CS$1="",CY13=CS$1),ROUND((CK13+CL13)*IF(CJ13="",1,CJ13/100),3)*1000000000+ROUND(CE13,0)*10000+IF(CJ13="",1,CJ13/100)*CK13*10,"") ->  | CY13: D
B14: 11 | C14: Alfa Romeo MiTo GTA | E14: 8 | F14: 1.0.0 | H14: =IF(OR(AND(R14="",L14=""),CM14="Not Owned"),IF(K14=1,SUMIF(Tbl_Car_Max!B$6:B$1376,C14,Tbl_Car_Max!F$6:F$1376),IF(K14=2,SUMIF(Tbl_Car_Max!B$6:B$1376,C14,Tbl_Car_Max!H$6:H$1376),IF(K14=3,SUMIF(Tbl_Car_Max!B$6:B$1376,C14,Tbl_Car_Max!G$6:G$1376),SUMIF(Tbl_Car_Max!B$6:B$1376,C14,Tbl_Car_Max!E$6:E$1376)))),"") -> 20000 | M14: 0 | N14: 0 | O14: 0 | P14: 0 | Q14: =SUMIFS(Tbl_Car_Max!$J$3:$J$1376,Tbl_Car_Max!$B$3:$B$1376,$C14,Tbl_Car_Max!$D$3:$D$1376,">"&$M14)+SUMIFS(Tbl_Car_Max!$K$3:$K$1376,Tbl_Car_Max!$B$3:$B$1376,$C14,Tbl_Car_Max!$D$3:$D$1376,">"&$N14)+SUMIFS(Tbl_Car_Max!$L$3:$L$1376,Tbl_Car_Max!$B$3:$B$1376,$C14,Tbl_Car_Max!$D$3:$D$1376,">"&$O14)+SUMIFS(Tbl_Car_Max!$M$3:$M$1376,Tbl_Car_Max!$B$3:$B$1376,$C14,Tbl_Car_Max!$D$3:$D$1376,">"&$P14) -> 175750 | T14: 0 | U14: 0 | V14: 0 | W14: 0 | X14: 28 | Y14: =SUMIFS(Tbl_Car_Pro!$K$4:$K$1089,Tbl_Car_Pro!$B$4:$B$1089,$C14,Tbl_Car_Pro!$D$4:$D$1089,">"&$T14)+SUMIFS(Tbl_Car_Pro!$R$4:$R$1089,Tbl_Car_Pro!$B$4:$B$1089,$C14,Tbl_Car_Pro!$D$4:$D$1089,">"&$U14)+SUMIFS(Tbl_Car_Pro!$Y$4:$Y$1089,Tbl_Car_Pro!$B$4:$B$1089,$C14,Tbl_Car_Pro!$D$4:$D$1089,">"&$V14)+SUMIFS(Tbl_Car_Pro!$AF$4:$AF$1089,Tbl_Car_Pro!$B$4:$B$1089,$C14,Tbl_Car_Pro!$D$4:$D$1089,">"&$W14) -> 33546 | Z14: =VLOOKUP(C14,Tbl_Mastery!B$4:J$227,9,FALSE)-AB14 -> 11 | AB14: =IF(RIGHT(CM14,8)="Lic Left",VLOOKUP(C14,Tbl_Mastery!B$4:J$227,9,FALSE)-VALUE(LEFT(CM14,2)),0) -> 0 | AC14: =SUMIFS(Tbl_Car_Pro!F$4:F$1089,Tbl_Car_Pro!$B$4:$B$1089,$C14,Tbl_Car_Pro!$D$4:$D$1089,">"&T14) -> 5 | AD14: =SUMIFS(Tbl_Car_Pro!M$4:M$1089,Tbl_Car_Pro!$B$4:$B$1089,$C14,Tbl_Car_Pro!$D$4:$D$1089,">"&U14) -> 5 | AE14: =SUMIFS(Tbl_Car_Pro!T$4:T$1089,Tbl_Car_Pro!$B$4:$B$1089,$C14,Tbl_Car_Pro!$D$4:$D$1089,">"&V14) -> 5 | AF14: =SUMIFS(Tbl_Car_Pro!AA$4:AA$1089,Tbl_Car_Pro!$B$4:$B$1089,$C14,Tbl_Car_Pro!$D$4:$D$1089,">"&W14) -> 5 | AG14: =TRIM(CONCATENATE(IF(AH14=0,"",CONCATENATE(" ",AH14,"E")),IF(AI14=0,"",CONCATENATE(" ",AI14,"I")),IF(AJ14=0,"",CONCATENATE(" ",AJ14,"C")),IF(AK14=0,"",CONCATENATE(" ",AK14,"R")),IF(AL14=0,"",CONCATENATE(" ",AL14,"M")),IF(AM14=0,"",CONCATENATE(" ",AM14,"P")),IF(AN14=0,"",CONCATENATE(" ",AN14,"A")))) -> 4E 4I | AH14: =SUMIFS(Tbl_Car_Pro!$J$4:$J$1089,Tbl_Car_Pro!$B$4:$B$1089,$C14,Tbl_Car_Pro!$I$4:$I$1089,AH$1,Tbl_Car_Pro!$D$4:$D$1089,">"&$T14)+SUMIFS(Tbl_Car_Pro!$Q$4:$Q$1089,Tbl_Car_Pro!$B$4:$B$1089,$C14,Tbl_Car_Pro!$P$4:$P$1089,AH$1,Tbl_Car_Pro!$D$4:$D$1089,">"&$U14)+SUMIFS(Tbl_Car_Pro!$X$4:$X$1089,Tbl_Car_Pro!$B$4:$B$1089,$C14,Tbl_Car_Pro!$W$4:$W$1089,AH$1,Tbl_Car_Pro!$D$4:$D$1089,">"&$V14)+SUMIFS(Tbl_Car_Pro!$AE$4:$AE$1089,Tbl_Car_Pro!$B$4:$B$1089,$C14,Tbl_Car_Pro!$AD$4:$AD$1089,AH$1,Tbl_Car_Pro!$D$4:$D$1089,">"&$W14) -> 4 | AI14: =SUMIFS(Tbl_Car_Pro!$J$4:$J$1089,Tbl_Car_Pro!$B$4:$B$1089,$C14,Tbl_Car_Pro!$I$4:$I$1089,AI$1,Tbl_Car_Pro!$D$4:$D$1089,">"&$T14)+SUMIFS(Tbl_Car_Pro!$Q$4:$Q$1089,Tbl_Car_Pro!$B$4:$B$1089,$C14,Tbl_Car_Pro!$P$4:$P$1089,AI$1,Tbl_Car_Pro!$D$4:$D$1089,">"&$U14)+SUMIFS(Tbl_Car_Pro!$X$4:$X$1089,Tbl_Car_Pro!$B$4:$B$1089,$C14,Tbl_Car_Pro!$W$4:$W$1089,AI$1,Tbl_Car_Pro!$D$4:$D$1089,">"&$V14)+SUMIFS(Tbl_Car_Pro!$AE$4:$AE$1089,Tbl_Car_Pro!$B$4:$B$1089,$C14,Tbl_Car_Pro!$AD$4:$AD$1089,AI$1,Tbl_Car_Pro!$D$4:$D$1089,">"&$W14) -> 4 | BN14: 175750 | BS14: 209296 | BU14: 0 | BV14: 0 | BW14: 0 | BX14: 0 | BY14: 789 | BZ14: 261.363 | CA14: =VLOOKUP(C14,Tbl_Mastery!B$4:R$227,17,FALSE) -> 2 TK 1 NS | CB14: 10 | CC14: 15 | CD14: 20 | CE14: 7.982261641 | CF14: 332 | CG14: 185.9 | CH14: 20.3 | CK14: 299.4 | CL14: 32.6 | CQ14: =IF(CQ13<MIN(CR$1,CU$2),CQ13+1,"") -> 11 | CR14: McLaren MP4/8 | CS14: 448.7 | CV14: Alfa Romeo MiTo GTA | CW14: 332 | CY14: D
B15: 12 | C15: Renault CLIO R.S. 200 EDC | E15: 50 | F15: 1.1.0 | H15: =IF(OR(AND(R15="",L15=""),CM15="Not Owned"),IF(K15=1,SUMIF(Tbl_Car_Max!B$6:B$1376,C15,Tbl_Car_Max!F$6:F$1376),IF(K15=2,SUMIF(Tbl_Car_Max!B$6:B$1376,C15,Tbl_Car_Max!H$6:H$1376),IF(K15=3,SUMIF(Tbl_Car_Max!B$6:B$1376,C15,Tbl_Car_Max!G$6:G$1376),SUMIF(Tbl_Car_Max!B$6:B$1376,C15,Tbl_Car_Max!E$6:E$1376)))),"") -> 25000 | M15: 0 | N15: 0 | O15: 0 | P15: 0 | Q15: =SUMIFS(Tbl_Car_Max!$J$3:$J$1376,Tbl_Car_Max!$B$3:$B$1376,$C15,Tbl_Car_Max!$D$3:$D$1376,">"&$M15)+SUMIFS(Tbl_Car_Max!$K$3:$K$1376,Tbl_Car_Max!$B$3:$B$1376,$C15,Tbl_Car_Max!$D$3:$D$1376,">"&$N15)+SUMIFS(Tbl_Car_Max!$L$3:$L$1376,Tbl_Car_Max!$B$3:$B$1376,$C15,Tbl_Car_Max!$D$3:$D$1376,">"&$O15)+SUMIFS(Tbl_Car_Max!$M$3:$M$1376,Tbl_Car_Max!$B$3:$B$1376,$C15,Tbl_Car_Max!$D$3:$D$1376,">"&$P15) -> 175750 | T15: 0 | U15: 0 | V15: 0 | W15: 0 | X15: 44 | Y15: =SUMIFS(Tbl_Car_Pro!$K$4:$K$1089,Tbl_Car_Pro!$B$4:$B$1089,$C15,Tbl_Car_Pro!$D$4:$D$1089,">"&$T15)+SUMIFS(Tbl_Car_Pro!$R$4:$R$1089,Tbl_Car_Pro!$B$4:$B$1089,$C15,Tbl_Car_Pro!$D$4:$D$1089,">"&$U15)+SUMIFS(Tbl_Car_Pro!$Y$4:$Y$1089,Tbl_Car_Pro!$B$4:$B$1089,$C15,Tbl_Car_Pro!$D$4:$D$1089,">"&$V15)+SUMIFS(Tbl_Car_Pro!$AF$4:$AF$1089,Tbl_Car_Pro!$B$4:$B$1089,$C15,Tbl_Car_Pro!$D$4:$D$1089,">"&$W15) -> 91152 | Z15: =VLOOKUP(C15,Tbl_Mastery!B$4:J$227,9,FALSE)-AB15 -> 14 | AB15: =IF(RIGHT(CM15,8)="Lic Left",VLOOKUP(C15,Tbl_Mastery!B$4:J$227,9,FALSE)-VALUE(LEFT(CM15,2)),0) -> 0 | AC15: =SUMIFS(Tbl_Car_Pro!F$4:F$1089,Tbl_Car_Pro!$B$4:$B$1089,$C15,Tbl_Car_Pro!$D$4:$D$1089,">"&T15) -> 7 | AD15: =SUMIFS(Tbl_Car_Pro!M$4:M$1089,Tbl_Car_Pro!$B$4:$B$1089,$C15,Tbl_Car_Pro!$D$4:$D$1089,">"&U15) -> 7 | AE15: =SUMIFS(Tbl_Car_Pro!T$4:T$1089,Tbl_Car_Pro!$B$4:$B$1089,$C15,Tbl_Car_Pro!$D$4:$D$1089,">"&V15) -> 7 | AF15: =SUMIFS(Tbl_Car_Pro!AA$4:AA$1089,Tbl_Car_Pro!$B$4:$B$1089,$C15,Tbl_Car_Pro!$D$4:$D$1089,">"&W15) -> 7 | AG15: 6E 6I | AH15: =SUMIFS(Tbl_Car_Pro!$J$4:$J$1089,Tbl_Car_Pro!$B$4:$B$1089,$C15,Tbl_Car_Pro!$I$4:$I$1089,AH$1,Tbl_Car_Pro!$D$4:$D$1089,">"&$T15)+SUMIFS(Tbl_Car_Pro!$Q$4:$Q$1089,Tbl_Car_Pro!$B$4:$B$1089,$C15,Tbl_Car_Pro!$P$4:$P$1089,AH$1,Tbl_Car_Pro!$D$4:$D$1089,">"&$U15)+SUMIFS(Tbl_Car_Pro!$X$4:$X$1089,Tbl_Car_Pro!$B$4:$B$1089,$C15,Tbl_Car_Pro!$W$4:$W$1089,AH$1,Tbl_Car_Pro!$D$4:$D$1089,">"&$V15)+SUMIFS(Tbl_Car_Pro!$AE$4:$AE$1089,Tbl_Car_Pro!$B$4:$B$1089,$C15,Tbl_Car_Pro!$AD$4:$AD$1089,AH$1,Tbl_Car_Pro!$D$4:$D$1089,">"&$W15) -> 6 | AI15: =SUMIFS(Tbl_Car_Pro!$J$4:$J$1089,Tbl_Car_Pro!$B$4:$B$1089,$C15,Tbl_Car_Pro!$I$4:$I$1089,AI$1,Tbl_Car_Pro!$D$4:$D$1089,">"&$T15)+SUMIFS(Tbl_Car_Pro!$Q$4:$Q$1089,Tbl_Car_Pro!$B$4:$B$1089,$C15,Tbl_Car_Pro!$P$4:$P$1089,AI$1,Tbl_Car_Pro!$D$4:$D$1089,">"&$U15)+SUMIFS(Tbl_Car_Pro!$X$4:$X$1089,Tbl_Car_Pro!$B$4:$B$1089,$C15,Tbl_Car_Pro!$W$4:$W$1089,AI$1,Tbl_Car_Pro!$D$4:$D$1089,">"&$V15)+SUMIFS(Tbl_Car_Pro!$AE$4:$AE$1089,Tbl_Car_Pro!$B$4:$B$1089,$C15,Tbl_Car_Pro!$AD$4:$AD$1089,AI$1,Tbl_Car_Pro!$D$4:$D$1089,">"&$W15) -> 6 | AO15: 4 i4 | AP15: =SUMIFS(Tbl_Car_Pro!$H$4:$H$1089,Tbl_Car_Pro!$B$4:$B$1089,$C15,Tbl_Car_Pro!$G$4:$G$1089,AP$1,Tbl_Car_Pro!$D$4:$D$1089,">"&$T15)+SUMIFS(Tbl_Car_Pro!$O$4:$O$1089,Tbl_Car_Pro!$B$4:$B$1089,$C15,Tbl_Car_Pro!$N$4:$N$1089,AP$1,Tbl_Car_Pro!$D$4:$D$1089,">"&$U15)+SUMIFS(Tbl_Car_Pro!$V$4:$V$1089,Tbl_Car_Pro!$B$4:$B$1089,$C15,Tbl_Car_Pro!$U$4:$U$1089,AP$1,Tbl_Car_Pro!$D$4:$D$1089,">"&$V15)+SUMIFS(Tbl_Car_Pro!$AC$4:$AC$1089,Tbl_Car_Pro!$B$4:$B$1089,$C15,Tbl_Car_Pro!$AB$4:$AB$1089,AP$1,Tbl_Car_Pro!$D$4:$D$1089,">"&$W15) -> 4 | BN15: 175750 | BS15: 266902 | BU15: =IF($BT15="",0,MID(TEXT($BT15,"0000"),1,1)-4) -> 0 | BV15: =IF($BT15="",0,MID(TEXT($BT15,"0000"),2,1)-4) -> 0 | BW15: 0 | BX15: =IF($BT15="",0,MID(TEXT($BT15,"0000"),4,1)-4) -> 0 | BY15: 821 | BZ15: 270.649 | CA15: =VLOOKUP(C15,Tbl_Mastery!B$4:R$227,17,FALSE) -> 2 TK 1 UD | CB15: 9 | CC15: 14 | CD15: 19 | CE15: 20.39911308 | CF15: 335.8 | CG15: 162.4 | CH15: 46.1 | CK15: 261.5 | CL15: 74.3 | CQ15: 12 | CR15: Kepler Motion | CS15: 448.7 | CV15: Renault CLIO R.S. 200 EDC | CW15: 335.8 | CY15: D
B16: 13 | C16: Volkswagen Beetle Turbo | E16: 138 | F16: 2.3.0 | H16: =IF(OR(AND(R16="",L16=""),CM16="Not Owned"),IF(K16=1,SUMIF(Tbl_Car_Max!B$6:B$1376,C16,Tbl_Car_Max!F$6:F$1376),IF(K16=2,SUMIF(Tbl_Car_Max!B$6:B$1376,C16,Tbl_Car_Max!H$6:H$1376),IF(K16=3,SUMIF(Tbl_Car_Max!B$6:B$1376,C16,Tbl_Car_Max!G$6:G$1376),SUMIF(Tbl_Car_Max!B$6:B$1376,C16,Tbl_Car_Max!E$6:E$1376)))),"") -> 180 | K16: 1 | M16: 0 | N16: 0 | O16: 0 | P16: 0 | Q16: =SUMIFS(Tbl_Car_Max!$J$3:$J$1376,Tbl_Car_Max!$B$3:$B$1376,$C16,Tbl_Car_Max!$D$3:$D$1376,">"&$M16)+SUMIFS(Tbl_Car_Max!$K$3:$K$1376,Tbl_Car_Max!$B$3:$B$1376,$C16,Tbl_Car_Max!$D$3:$D$1376,">"&$N16)+SUMIFS(Tbl_Car_Max!$L$3:$L$1376,Tbl_Car_Max!$B$3:$B$1376,$C16,Tbl_Car_Max!$D$3:$D$1376,">"&$O16)+SUMIFS(Tbl_Car_Max!$M$3:$M$1376,Tbl_Car_Max!$B$3:$B$1376,$C16,Tbl_Car_Max!$D$3:$D$1376,">"&$P16) -> 660920 | T16: 0 | U16: 0 | V16: 0 | W16: 0 | X16: 48 | Y16: =SUMIFS(Tbl_Car_Pro!$K$4:$K$1089,Tbl_Car_Pro!$B$4:$B$1089,$C16,Tbl_Car_Pro!$D$4:$D$1089,">"&$T16)+SUMIFS(Tbl_Car_Pro!$R$4:$R$1089,Tbl_Car_Pro!$B$4:$B$1089,$C16,Tbl_Car_Pro!$D$4:$D$1089,">"&$U16)+SUMIFS(Tbl_Car_Pro!$Y$4:$Y$1089,Tbl_Car_Pro!$B$4:$B$1089,$C16,Tbl_Car_Pro!$D$4:$D$1089,">"&$V16)+SUMIFS(Tbl_Car_Pro!$AF$4:$AF$1089,Tbl_Car_Pro!$B$4:$B$1089,$C16,Tbl_Car_Pro!$D$4:$D$1089,">"&$W16) -> 204175 | Z16: =VLOOKUP(C16,Tbl_Mastery!B$4:J$227,9,FALSE)-AB16 -> 15 | AA16: 12 | AB16: =IF(RIGHT(CM16,8)="Lic Left",VLOOKUP(C16,Tbl_Mastery!B$4:J$227,9,FALSE)-VALUE(LEFT(CM16,2)),0) -> 0 | AC16: =SUMIFS(Tbl_Car_Pro!F$4:F$1089,Tbl_Car_Pro!$B$4:$B$1089,$C16,Tbl_Car_Pro!$D$4:$D$1089,">"&T16) -> 8 | AD16: =SUMIFS(Tbl_Car_Pro!M$4:M$1089,Tbl_Car_Pro!$B$4:$B$1089,$C16,Tbl_Car_Pro!$D$4:$D$1089,">"&U16) -> 8 | AE16: =SUMIFS(Tbl_Car_Pro!T$4:T$1089,Tbl_Car_Pro!$B$4:$B$1089,$C16,Tbl_Car_Pro!$D$4:$D$1089,">"&V16) -> 8 | AF16: =SUMIFS(Tbl_Car_Pro!AA$4:AA$1089,Tbl_Car_Pro!$B$4:$B$1089,$C16,Tbl_Car_Pro!$D$4:$D$1089,">"&W16) -> 8 | AG16: 6E 6I | AH16: =SUMIFS(Tbl_Car_Pro!$J$4:$J$1089,Tbl_Car_Pro!$B$4:$B$1089,$C16,Tbl_Car_Pro!$I$4:$I$1089,AH$1,Tbl_Car_Pro!$D$4:$D$1089,">"&$T16)+SUMIFS(Tbl_Car_Pro!$Q$4:$Q$1089,Tbl_Car_Pro!$B$4:$B$1089,$C16,Tbl_Car_Pro!$P$4:$P$1089,AH$1,Tbl_Car_Pro!$D$4:$D$1089,">"&$U16)+SUMIFS(Tbl_Car_Pro!$X$4:$X$1089,Tbl_Car_Pro!$B$4:$B$1089,$C16,Tbl_Car_Pro!$W$4:$W$1089,AH$1,Tbl_Car_Pro!$D$4:$D$1089,">"&$V16)+SUMIFS(Tbl_Car_Pro!$AE$4:$AE$1089,Tbl_Car_Pro!$B$4:$B$1089,$C16,Tbl_Car_Pro!$AD$4:$AD$1089,AH$1,Tbl_Car_Pro!$D$4:$D$1089,">"&$W16) -> 6 | AI16: =SUMIFS(Tbl_Car_Pro!$J$4:$J$1089,Tbl_Car_Pro!$B$4:$B$1089,$C16,Tbl_Car_Pro!$I$4:$I$1089,AI$1,Tbl_Car_Pro!$D$4:$D$1089,">"&$T16)+SUMIFS(Tbl_Car_Pro!$Q$4:$Q$1089,Tbl_Car_Pro!$B$4:$B$1089,$C16,Tbl_Car_Pro!$P$4:$P$1089,AI$1,Tbl_Car_Pro!$D$4:$D$1089,">"&$U16)+SUMIFS(Tbl_Car_Pro!$X$4:$X$1089,Tbl_Car_Pro!$B$4:$B$1089,$C16,Tbl_Car_Pro!$W$4:$W$1089,AI$1,Tbl_Car_Pro!$D$4:$D$1089,">"&$V16)+SUMIFS(Tbl_Car_Pro!$AE$4:$AE$1089,Tbl_Car_Pro!$B$4:$B$1089,$C16,Tbl_Car_Pro!$AD$4:$AD$1089,AI$1,Tbl_Car_Pro!$D$4:$D$1089,">"&$W16) -> 6 | AO16: 4 i4 | AP16: =SUMIFS(Tbl_Car_Pro!$H$4:$H$1089,Tbl_Car_Pro!$B$4:$B$1089,$C16,Tbl_Car_Pro!$G$4:$G$1089,AP$1,Tbl_Car_Pro!$D$4:$D$1089,">"&$T16)+SUMIFS(Tbl_Car_Pro!$O$4:$O$1089,Tbl_Car_Pro!$B$4:$B$1089,$C16,Tbl_Car_Pro!$N$4:$N$1089,AP$1,Tbl_Car_Pro!$D$4:$D$1089,">"&$U16)+SUMIFS(Tbl_Car_Pro!$V$4:$V$1089,Tbl_Car_Pro!$B$4:$B$1089,$C16,Tbl_Car_Pro!$U$4:$U$1089,AP$1,Tbl_Car_Pro!$D$4:$D$1089,">"&$V16)+SUMIFS(Tbl_Car_Pro!$AC$4:$AC$1089,Tbl_Car_Pro!$B$4:$B$1089,$C16,Tbl_Car_Pro!$AB$4:$AB$1089,AP$1,Tbl_Car_Pro!$D$4:$D$1089,">"&$W16) -> 4 | BN16: 660920 | BS16: 865095 | BU16: =IF($BT16="",0,MID(TEXT($BT16,"0000"),1,1)-4) -> 0 | BV16: =IF($BT16="",0,MID(TEXT($BT16,"0000"),2,1)-4) -> 0 | BW16: 0 | BX16: =IF($BT16="",0,MID(TEXT($BT16,"0000"),4,1)-4) -> 0 | BY16: 527 | BZ16: 242.72 | CA16: =VLOOKUP(C16,Tbl_Mastery!B$4:R$227,17,FALSE) -> 1 NS | CB16: 9 | CC16: 14 | CD16: 19 | CE16: 20.39911308 | CF16: 345.8 | CG16: 168.6 | CH16: 46.1 | CK16: 271.5 | CL16: 74.3 | CV16: Volkswagen Beetle Turbo | CW16: 345.8 | CY16: D
B17: 14 | C17: Renault DeZir | E17: 89 | F17: 1.7.0 | H17: =IF(OR(AND(R17="",L17=""),CM17="Not Owned"),IF(K17=1,SUMIF(Tbl_Car_Max!B$6:B$1376,C17,Tbl_Car_Max!F$6:F$1376),IF(K17=2,SUMIF(Tbl_Car_Max!B$6:B$1376,C17,Tbl_Car_Max!H$6:H$1376),IF(K17=3,SUMIF(Tbl_Car_Max!B$6:B$1376,C17,Tbl_Car_Max!G$6:G$1376),SUMIF(Tbl_Car_Max!B$6:B$1376,C17,Tbl_Car_Max!E$6:E$1376)))),"") -> 375 | K17: 1 | M17: 0 | N17: 0 | O17: 0 | P17: 0 | Q17: =SUMIFS(Tbl_Car_Max!$J$3:$J$1376,Tbl_Car_Max!$B$3:$B$1376,$C17,Tbl_Car_Max!$D$3:$D$1376,">"&$M17)+SUMIFS(Tbl_Car_Max!$K$3:$K$1376,Tbl_Car_Max!$B$3:$B$1376,$C17,Tbl_Car_Max!$D$3:$D$1376,">"&$N17)+SUMIFS(Tbl_Car_Max!$L$3:$L$1376,Tbl_Car_Max!$B$3:$B$1376,$C17,Tbl_Car_Max!$D$3:$D$1376,">"&$O17)+SUMIFS(Tbl_Car_Max!$M$3:$M$1376,Tbl_Car_Max!$B$3:$B$1376,$C17,Tbl_Car_Max!$D$3:$D$1376,">"&$P17) -> 703000 | T17: 0 | U17: 0 | V17: 0 | W17: 0 | X17: 12 | Y17: =SUMIFS(Tbl_Car_Pro!$K$4:$K$1089,Tbl_Car_Pro!$B$4:$B$1089,$C17,Tbl_Car_Pro!$D$4:$D$1089,">"&$T17)+SUMIFS(Tbl_Car_Pro!$R$4:$R$1089,Tbl_Car_Pro!$B$4:$B$1089,$C17,Tbl_Car_Pro!$D$4:$D$1089,">"&$U17)+SUMIFS(Tbl_Car_Pro!$Y$4:$Y$1089,Tbl_Car_Pro!$B$4:$B$1089,$C17,Tbl_Car_Pro!$D$4:$D$1089,">"&$V17)+SUMIFS(Tbl_Car_Pro!$AF$4:$AF$1089,Tbl_Car_Pro!$B$4:$B$1089,$C17,Tbl_Car_Pro!$D$4:$D$1089,">"&$W17) -> 44833 | Z17: =VLOOKUP(C17,Tbl_Mastery!B$4:J$227,9,FALSE)-AB17 -> 14 | AA17: 26.78571429 | AB17: =IF(RIGHT(CM17,8)="Lic Left",VLOOKUP(C17,Tbl_Mastery!B$4:J$227,9,FALSE)-VALUE(LEFT(CM17,2)),0) -> 0 | AC17: =SUMIFS(Tbl_Car_Pro!F$4:F$1089,Tbl_Car_Pro!$B$4:$B$1089,$C17,Tbl_Car_Pro!$D$4:$D$1089,">"&T17) -> 3 | AD17: =SUMIFS(Tbl_Car_Pro!M$4:M$1089,Tbl_Car_Pro!$B$4:$B$1089,$C17,Tbl_Car_Pro!$D$4:$D$1089,">"&U17) -> 3 | AE17: =SUMIFS(Tbl_Car_Pro!T$4:T$1089,Tbl_Car_Pro!$B$4:$B$1089,$C17,Tbl_Car_Pro!$D$4:$D$1089,">"&V17) -> 3 | AF17: =SUMIFS(Tbl_Car_Pro!AA$4:AA$1089,Tbl_Car_Pro!$B$4:$B$1089,$C17,Tbl_Car_Pro!$D$4:$D$1089,">"&W17) -> 3 | BN17: 703000 | BS17: 747833 | BU17: 0 | BV17: 0 | BW17: 0 | BX17: 0 | BY17: 514 | BZ17: 256.221 | CA17: =VLOOKUP(C17,Tbl_Mastery!B$4:R$227,17,FALSE) -> 1 UD | CB17: 6 | CC17: 9 | CD17: 12 | CE17: 81.59645233 | CF17: 361.5 | CG17: 150.2 | CH17: 74.3 | CK17: 241.8 | CL17: 119.7 | CV17: Renault DeZir | CW17: 361.5 | CY17: D
B18: 15 | C18: Peugeot RCZ R | E18: 197 | F18: 3.2.0 | G18: R&D | H18: =IF(OR(AND(R18="",L18=""),CM18="Not Owned"),IF(K18=1,SUMIF(Tbl_Car_Max!B$6:B$1376,C18,Tbl_Car_Max!F$6:F$1376),IF(K18=2,SUMIF(Tbl_Car_Max!B$6:B$1376,C18,Tbl_Car_Max!H$6:H$1376),IF(K18=3,SUMIF(Tbl_Car_Max!B$6:B$1376,C18,Tbl_Car_Max!G$6:G$1376),SUMIF(Tbl_Car_Max!B$6:B$1376,C18,Tbl_Car_Max!E$6:E$1376)))),"") -> 8 | I18: 1 | K18: 3 | M18: 0 | N18: 0 | O18: 0 | P18: 0 | Q18: =SUMIFS(Tbl_Car_Max!$J$3:$J$1376,Tbl_Car_Max!$B$3:$B$1376,$C18,Tbl_Car_Max!$D$3:$D$1376,">"&$M18)+SUMIFS(Tbl_Car_Max!$K$3:$K$1376,Tbl_Car_Max!$B$3:$B$1376,$C18,Tbl_Car_Max!$D$3:$D$1376,">"&$N18)+SUMIFS(Tbl_Car_Max!$L$3:$L$1376,Tbl_Car_Max!$B$3:$B$1376,$C18,Tbl_Car_Max!$D$3:$D$1376,">"&$O18)+SUMIFS(Tbl_Car_Max!$M$3:$M$1376,Tbl_Car_Max!$B$3:$B$1376,$C18,Tbl_Car_Max!$D$3:$D$1376,">"&$P18) -> 724370 | T18: 0 | U18: 0 | V18: 0 | W18: 0 | X18: 48 | Y18: =SUMIFS(Tbl_Car_Pro!$K$4:$K$1089,Tbl_Car_Pro!$B$4:$B$1089,$C18,Tbl_Car_Pro!$D$4:$D$1089,">"&$T18)+SUMIFS(Tbl_Car_Pro!$R$4:$R$1089,Tbl_Car_Pro!$B$4:$B$1089,$C18,Tbl_Car_Pro!$D$4:$D$1089,">"&$U18)+SUMIFS(Tbl_Car_Pro!$Y$4:$Y$1089,Tbl_Car_Pro!$B$4:$B$1089,$C18,Tbl_Car_Pro!$D$4:$D$1089,">"&$V18)+SUMIFS(Tbl_Car_Pro!$AF$4:$AF$1089,Tbl_Car_Pro!$B$4:$B$1089,$C18,Tbl_Car_Pro!$D$4:$D$1089,">"&$W18) -> 175050 | Z18: =VLOOKUP(C18,Tbl_Mastery!B$4:J$227,9,FALSE)-AB18 -> 16 | AA18: =IF(AND(K18=1,H18<>""),(H18-75)/Z18,"") ->  | AB18: =IF(RIGHT(CM18,8)="Lic Left",VLOOKUP(C18,Tbl_Mastery!B$4:J$227,9,FALSE)-VALUE(LEFT(CM18,2)),0) -> 0 | AC18: =SUMIFS(Tbl_Car_Pro!F$4:F$1089,Tbl_Car_Pro!$B$4:$B$1089,$C18,Tbl_Car_Pro!$D$4:$D$1089,">"&T18) -> 8 | AD18: =SUMIFS(Tbl_Car_Pro!M$4:M$1089,Tbl_Car_Pro!$B$4:$B$1089,$C18,Tbl_Car_Pro!$D$4:$D$1089,">"&U18) -> 8 | AE18: =SUMIFS(Tbl_Car_Pro!T$4:T$1089,Tbl_Car_Pro!$B$4:$B$1089,$C18,Tbl_Car_Pro!$D$4:$D$1089,">"&V18) -> 8 | AF18: =SUMIFS(Tbl_Car_Pro!AA$4:AA$1089,Tbl_Car_Pro!$B$4:$B$1089,$C18,Tbl_Car_Pro!$D$4:$D$1089,">"&W18) -> 8 | AG18: 6E 6I | AH18: =SUMIFS(Tbl_Car_Pro!$J$4:$J$1089,Tbl_Car_Pro!$B$4:$B$1089,$C18,Tbl_Car_Pro!$I$4:$I$1089,AH$1,Tbl_Car_Pro!$D$4:$D$1089,">"&$T18)+SUMIFS(Tbl_Car_Pro!$Q$4:$Q$1089,Tbl_Car_Pro!$B$4:$B$1089,$C18,Tbl_Car_Pro!$P$4:$P$1089,AH$1,Tbl_Car_Pro!$D$4:$D$1089,">"&$U18)+SUMIFS(Tbl_Car_Pro!$X$4:$X$1089,Tbl_Car_Pro!$B$4:$B$1089,$C18,Tbl_Car_Pro!$W$4:$W$1089,AH$1,Tbl_Car_Pro!$D$4:$D$1089,">"&$V18)+SUMIFS(Tbl_Car_Pro!$AE$4:$AE$1089,Tbl_Car_Pro!$B$4:$B$1089,$C18,Tbl_Car_Pro!$AD$4:$AD$1089,AH$1,Tbl_Car_Pro!$D$4:$D$1089,">"&$W18) -> 6 | AI18: =SUMIFS(Tbl_Car_Pro!$J$4:$J$1089,Tbl_Car_Pro!$B$4:$B$1089,$C18,Tbl_Car_Pro!$I$4:$I$1089,AI$1,Tbl_Car_Pro!$D$4:$D$1089,">"&$T18)+SUMIFS(Tbl_Car_Pro!$Q$4:$Q$1089,Tbl_Car_Pro!$B$4:$B$1089,$C18,Tbl_Car_Pro!$P$4:$P$1089,AI$1,Tbl_Car_Pro!$D$4:$D$1089,">"&$U18)+SUMIFS(Tbl_Car_Pro!$X$4:$X$1089,Tbl_Car_Pro!$B$4:$B$1089,$C18,Tbl_Car_Pro!$W$4:$W$1089,AI$1,Tbl_Car_Pro!$D$4:$D$1089,">"&$V18)+SUMIFS(Tbl_Car_Pro!$AE$4:$AE$1089,Tbl_Car_Pro!$B$4:$B$1089,$C18,Tbl_Car_Pro!$AD$4:$AD$1089,AI$1,Tbl_Car_Pro!$D$4:$D$1089,">"&$W18) -> 6 | AO18: 4 H | AX18: =SUMIFS(Tbl_Car_Pro!$H$4:$H$1089,Tbl_Car_Pro!$B$4:$B$1089,$C18,Tbl_Car_Pro!$G$4:$G$1089,AX$1,Tbl_Car_Pro!$D$4:$D$1089,">"&$T18)+SUMIFS(Tbl_Car_Pro!$O$4:$O$1089,Tbl_Car_Pro!$B$4:$B$1089,$C18,Tbl_Car_Pro!$N$4:$N$1089,AX$1,Tbl_Car_Pro!$D$4:$D$1089,">"&$U18)+SUMIFS(Tbl_Car_Pro!$V$4:$V$1089,Tbl_Car_Pro!$B$4:$B$1089,$C18,Tbl_Car_Pro!$U$4:$U$1089,AX$1,Tbl_Car_Pro!$D$4:$D$1089,">"&$V18)+SUMIFS(Tbl_Car_Pro!$AC$4:$AC$1089,Tbl_Car_Pro!$B$4:$B$1089,$C18,Tbl_Car_Pro!$AB$4:$AB$1089,AX$1,Tbl_Car_Pro!$D$4:$D$1089,">"&$W18) -> 4 | BN18: 724370 | BS18: 899420 | BU18: 0 | BV18: 0 | BW18: 0 | BX18: 0 | BY18: 1011 | BZ18: 295.71 | CA18: =VLOOKUP(C18,Tbl_Mastery!B$4:R$227,17,FALSE) -> 75 TO | CB18: 5 | CC18: 8 | CD18: 10 | CE18: =($CB$1*(100-(CB18-$CG$1)*100/($CH$1-$CG$1))+$CC$1*(100-(CC18-$CI$1)*100/($CJ$1-$CI$1))+$CD$1*(100-(CD18-$CK$1)*100/($CL$1-$CK$1)))*CA$2 -> 98.00443459 | CF18: 347.2 | CG18: 162.4 | CH18: 53.2 | CK18: 261.5 | CL18: 85.7 | CV18: Peugeot RCZ R | CW18: =CF18 -> 347.2 | CY18: D
B19: 16 | C19: DS 3 Racing | E19: 119 | F19: 2.2.0 | G19: Daily Bonus Sep 17 | H19: =IF(OR(AND(R19="",L19=""),CM19="Not Owned"),IF(K19=1,SUMIF(Tbl_Car_Max!B$6:B$1376,C19,Tbl_Car_Max!F$6:F$1376),IF(K19=2,SUMIF(Tbl_Car_Max!B$6:B$1376,C19,Tbl_Car_Max!H$6:H$1376),IF(K19=3,SUMIF(Tbl_Car_Max!B$6:B$1376,C19,Tbl_Car_Max!G$6:G$1376),SUMIF(Tbl_Car_Max!B$6:B$1376,C19,Tbl_Car_Max!E$6:E$1376)))),"") -> 12 | I19: 1 | K19: 3 | M19: 0 | N19: 0 | O19: 0 | P19: 0 | Q19: =SUMIFS(Tbl_Car_Max!$J$3:$J$1376,Tbl_Car_Max!$B$3:$B$1376,$C19,Tbl_Car_Max!$D$3:$D$1376,">"&$M19)+SUMIFS(Tbl_Car_Max!$K$3:$K$1376,Tbl_Car_Max!$B$3:$B$1376,$C19,Tbl_Car_Max!$D$3:$D$1376,">"&$N19)+SUMIFS(Tbl_Car_Max!$L$3:$L$1376,Tbl_Car_Max!$B$3:$B$1376,$C19,Tbl_Car_Max!$D$3:$D$1376,">"&$O19)+SUMIFS(Tbl_Car_Max!$M$3:$M$1376,Tbl_Car_Max!$B$3:$B$1376,$C19,Tbl_Car_Max!$D$3:$D$1376,">"&$P19) -> 724370 | T19: 0 | U19: 0 | V19: 0 | W19: 0 | X19: 48 | Y19: =SUMIFS(Tbl_Car_Pro!$K$4:$K$1089,Tbl_Car_Pro!$B$4:$B$1089,$C19,Tbl_Car_Pro!$D$4:$D$1089,">"&$T19)+SUMIFS(Tbl_Car_Pro!$R$4:$R$1089,Tbl_Car_Pro!$B$4:$B$1089,$C19,Tbl_Car_Pro!$D$4:$D$1089,">"&$U19)+SUMIFS(Tbl_Car_Pro!$Y$4:$Y$1089,Tbl_Car_Pro!$B$4:$B$1089,$C19,Tbl_Car_Pro!$D$4:$D$1089,">"&$V19)+SUMIFS(Tbl_Car_Pro!$AF$4:$AF$1089,Tbl_Car_Pro!$B$4:$B$1089,$C19,Tbl_Car_Pro!$D$4:$D$1089,">"&$W19) -> 194475 | Z19: =VLOOKUP(C19,Tbl_Mastery!B$4:J$227,9,FALSE)-AB19 -> 15 | AA19: =IF(AND(K19=1,H19<>""),H19/Z19,"") ->  | AB19: =IF(RIGHT(CM19,8)="Lic Left",VLOOKUP(C19,Tbl_Mastery!B$4:J$227,9,FALSE)-VALUE(LEFT(CM19,2)),0) -> 0 | AC19: =SUMIFS(Tbl_Car_Pro!F$4:F$1089,Tbl_Car_Pro!$B$4:$B$1089,$C19,Tbl_Car_Pro!$D$4:$D$1089,">"&T19) -> 8 | AD19: =SUMIFS(Tbl_Car_Pro!M$4:M$1089,Tbl_Car_Pro!$B$4:$B$1089,$C19,Tbl_Car_Pro!$D$4:$D$1089,">"&U19) -> 8 | AE19: =SUMIFS(Tbl_Car_Pro!T$4:T$1089,Tbl_Car_Pro!$B$4:$B$1089,$C19,Tbl_Car_Pro!$D$4:$D$1089,">"&V19) -> 8 | AF19: =SUMIFS(Tbl_Car_Pro!AA$4:AA$1089,Tbl_Car_Pro!$B$4:$B$1089,$C19,Tbl_Car_Pro!$D$4:$D$1089,">"&W19) -> 8 | AG19: 6E 6I | AH19: =SUMIFS(Tbl_Car_Pro!$J$4:$J$1089,Tbl_Car_Pro!$B$4:$B$1089,$C19,Tbl_Car_Pro!$I$4:$I$1089,AH$1,Tbl_Car_Pro!$D$4:$D$1089,">"&$T19)+SUMIFS(Tbl_Car_Pro!$Q$4:$Q$1089,Tbl_Car_Pro!$B$4:$B$1089,$C19,Tbl_Car_Pro!$P$4:$P$1089,AH$1,Tbl_Car_Pro!$D$4:$D$1089,">"&$U19)+SUMIFS(Tbl_Car_Pro!$X$4:$X$1089,Tbl_Car_Pro!$B$4:$B$1089,$C19,Tbl_Car_Pro!$W$4:$W$1089,AH$1,Tbl_Car_Pro!$D$4:$D$1089,">"&$V19)+SUMIFS(Tbl_Car_Pro!$AE$4:$AE$1089,Tbl_Car_Pro!$B$4:$B$1089,$C19,Tbl_Car_Pro!$AD$4:$AD$1089,AH$1,Tbl_Car_Pro!$D$4:$D$1089,">"&$W19) -> 6 | AI19: =SUMIFS(Tbl_Car_Pro!$J$4:$J$1089,Tbl_Car_Pro!$B$4:$B$1089,$C19,Tbl_Car_Pro!$I$4:$I$1089,AI$1,Tbl_Car_Pro!$D$4:$D$1089,">"&$T19)+SUMIFS(Tbl_Car_Pro!$Q$4:$Q$1089,Tbl_Car_Pro!$B$4:$B$1089,$C19,Tbl_Car_Pro!$P$4:$P$1089,AI$1,Tbl_Car_Pro!$D$4:$D$1089,">"&$U19)+SUMIFS(Tbl_Car_Pro!$X$4:$X$1089,Tbl_Car_Pro!$B$4:$B$1089,$C19,Tbl_Car_Pro!$W$4:$W$1089,AI$1,Tbl_Car_Pro!$D$4:$D$1089,">"&$V19)+SUMIFS(Tbl_Car_Pro!$AE$4:$AE$1089,Tbl_Car_Pro!$B$4:$B$1089,$C19,Tbl_Car_Pro!$AD$4:$AD$1089,AI$1,Tbl_Car_Pro!$D$4:$D$1089,">"&$W19) -> 6 | AO19: 4 i4 | AP19: =SUMIFS(Tbl_Car_Pro!$H$4:$H$1089,Tbl_Car_Pro!$B$4:$B$1089,$C19,Tbl_Car_Pro!$G$4:$G$1089,AP$1,Tbl_Car_Pro!$D$4:$D$1089,">"&$T19)+SUMIFS(Tbl_Car_Pro!$O$4:$O$1089,Tbl_Car_Pro!$B$4:$B$1089,$C19,Tbl_Car_Pro!$N$4:$N$1089,AP$1,Tbl_Car_Pro!$D$4:$D$1089,">"&$U19)+SUMIFS(Tbl_Car_Pro!$V$4:$V$1089,Tbl_Car_Pro!$B$4:$B$1089,$C19,Tbl_Car_Pro!$U$4:$U$1089,AP$1,Tbl_Car_Pro!$D$4:$D$1089,">"&$V19)+SUMIFS(Tbl_Car_Pro!$AC$4:$AC$1089,Tbl_Car_Pro!$B$4:$B$1089,$C19,Tbl_Car_Pro!$AB$4:$AB$1089,AP$1,Tbl_Car_Pro!$D$4:$D$1089,">"&$W19) -> 4 | BN19: 724370 | BS19: 918845 | BU19: 0 | BV19: 0 | BW19: 0 | BX19: 0 | BY19: 828 | BZ19: 270.157 | CA19: =VLOOKUP(C19,Tbl_Mastery!B$4:R$227,17,FALSE) -> 1 ET | CB19: 6 | CC19: 12 | CD19: 16 | CE19: 53.65853659 | CF19: 351.8 | CG19: 181.4 | CH19: 37 | CK19: 292.2 | CL19: 59.6 | CV19: DS 3 Racing | CW19: =CF19 -> 351.8 | CY19: D
B20: 17 | C20: Audi S4 | E20: 9 | F20: 1.0.0 | H20: =IF(OR(AND(R20="",L20=""),CM20="Not Owned"),IF(K20=1,SUMIF(Tbl_Car_Max!B$6:B$1376,C20,Tbl_Car_Max!F$6:F$1376),IF(K20=2,SUMIF(Tbl_Car_Max!B$6:B$1376,C20,Tbl_Car_Max!H$6:H$1376),IF(K20=3,SUMIF(Tbl_Car_Max!B$6:B$1376,C20,Tbl_Car_Max!G$6:G$1376),SUMIF(Tbl_Car_Max!B$6:B$1376,C20,Tbl_Car_Max!E$6:E$1376)))),"") -> 30000 | M20: 0 | N20: 0 | O20: 0 | P20: 0 | Q20: =SUMIFS(Tbl_Car_Max!$J$3:$J$1376,Tbl_Car_Max!$B$3:$B$1376,$C20,Tbl_Car_Max!$D$3:$D$1376,">"&$M20)+SUMIFS(Tbl_Car_Max!$K$3:$K$1376,Tbl_Car_Max!$B$3:$B$1376,$C20,Tbl_Car_Max!$D$3:$D$1376,">"&$N20)+SUMIFS(Tbl_Car_Max!$L$3:$L$1376,Tbl_Car_Max!$B$3:$B$1376,$C20,Tbl_Car_Max!$D$3:$D$1376,">"&$O20)+SUMIFS(Tbl_Car_Max!$M$3:$M$1376,Tbl_Car_Max!$B$3:$B$1376,$C20,Tbl_Car_Max!$D$3:$D$1376,">"&$P20) -> 175750 | T20: 0 | U20: 0 | V20: 0 | W20: 0 | X20: 48 | Y20: =SUMIFS(Tbl_Car_Pro!$K$4:$K$1089,Tbl_Car_Pro!$B$4:$B$1089,$C20,Tbl_Car_Pro!$D$4:$D$1089,">"&$T20)+SUMIFS(Tbl_Car_Pro!$R$4:$R$1089,Tbl_Car_Pro!$B$4:$B$1089,$C20,Tbl_Car_Pro!$D$4:$D$1089,">"&$U20)+SUMIFS(Tbl_Car_Pro!$Y$4:$Y$1089,Tbl_Car_Pro!$B$4:$B$1089,$C20,Tbl_Car_Pro!$D$4:$D$1089,">"&$V20)+SUMIFS(Tbl_Car_Pro!$AF$4:$AF$1089,Tbl_Car_Pro!$B$4:$B$1089,$C20,Tbl_Car_Pro!$D$4:$D$1089,">"&$W20) -> 83423 | Z20: =VLOOKUP(C20,Tbl_Mastery!B$4:J$227,9,FALSE)-AB20 -> 12 | AB20: =IF(RIGHT(CM20,8)="Lic Left",VLOOKUP(C20,Tbl_Mastery!B$4:J$227,9,FALSE)-VALUE(LEFT(CM20,2)),0) -> 0 | AC20: =SUMIFS(Tbl_Car_Pro!F$4:F$1089,Tbl_Car_Pro!$B$4:$B$1089,$C20,Tbl_Car_Pro!$D$4:$D$1089,">"&T20) -> 8 | AD20: =SUMIFS(Tbl_Car_Pro!M$4:M$1089,Tbl_Car_Pro!$B$4:$B$1089,$C20,Tbl_Car_Pro!$D$4:$D$1089,">"&U20) -> 8 | AE20: =SUMIFS(Tbl_Car_Pro!T$4:T$1089,Tbl_Car_Pro!$B$4:$B$1089,$C20,Tbl_Car_Pro!$D$4:$D$1089,">"&V20) -> 8 | AF20: =SUMIFS(Tbl_Car_Pro!AA$4:AA$1089,Tbl_Car_Pro!$B$4:$B$1089,$C20,Tbl_Car_Pro!$D$4:$D$1089,">"&W20) -> 8 | AG20: 6E 6I | AH20: =SUMIFS(Tbl_Car_Pro!$J$4:$J$1089,Tbl_Car_Pro!$B$4:$B$1089,$C20,Tbl_Car_Pro!$I$4:$I$1089,AH$1,Tbl_Car_Pro!$D$4:$D$1089,">"&$T20)+SUMIFS(Tbl_Car_Pro!$Q$4:$Q$1089,Tbl_Car_Pro!$B$4:$B$1089,$C20,Tbl_Car_Pro!$P$4:$P$1089,AH$1,Tbl_Car_Pro!$D$4:$D$1089,">"&$U20)+SUMIFS(Tbl_Car_Pro!$X$4:$X$1089,Tbl_Car_Pro!$B$4:$B$1089,$C20,Tbl_Car_Pro!$W$4:$W$1089,AH$1,Tbl_Car_Pro!$D$4:$D$1089,">"&$V20)+SUMIFS(Tbl_Car_Pro!$AE$4:$AE$1089,Tbl_Car_Pro!$B$4:$B$1089,$C20,Tbl_Car_Pro!$AD$4:$AD$1089,AH$1,Tbl_Car_Pro!$D$4:$D$1089,">"&$W20) -> 6 | AI20: =SUMIFS(Tbl_Car_Pro!$J$4:$J$1089,Tbl_Car_Pro!$B$4:$B$1089,$C20,Tbl_Car_Pro!$I$4:$I$1089,AI$1,Tbl_Car_Pro!$D$4:$D$1089,">"&$T20)+SUMIFS(Tbl_Car_Pro!$Q$4:$Q$1089,Tbl_Car_Pro!$B$4:$B$1089,$C20,Tbl_Car_Pro!$P$4:$P$1089,AI$1,Tbl_Car_Pro!$D$4:$D$1089,">"&$U20)+SUMIFS(Tbl_Car_Pro!$X$4:$X$1089,Tbl_Car_Pro!$B$4:$B$1089,$C20,Tbl_Car_Pro!$W$4:$W$1089,AI$1,Tbl_Car_Pro!$D$4:$D$1089,">"&$V20)+SUMIFS(Tbl_Car_Pro!$AE$4:$AE$1089,Tbl_Car_Pro!$B$4:$B$1089,$C20,Tbl_Car_Pro!$AD$4:$AD$1089,AI$1,Tbl_Car_Pro!$D$4:$D$1089,">"&$W20) -> 6 | AO20: 4 V6 | AR20: =SUMIFS(Tbl_Car_Pro!$H$4:$H$1089,Tbl_Car_Pro!$B$4:$B$1089,$C20,Tbl_Car_Pro!$G$4:$G$1089,AR$1,Tbl_Car_Pro!$D$4:$D$1089,">"&$T20)+SUMIFS(Tbl_Car_Pro!$O$4:$O$1089,Tbl_Car_Pro!$B$4:$B$1089,$C20,Tbl_Car_Pro!$N$4:$N$1089,AR$1,Tbl_Car_Pro!$D$4:$D$1089,">"&$U20)+SUMIFS(Tbl_Car_Pro!$V$4:$V$1089,Tbl_Car_Pro!$B$4:$B$1089,$C20,Tbl_Car_Pro!$U$4:$U$1089,AR$1,Tbl_Car_Pro!$D$4:$D$1089,">"&$V20)+SUMIFS(Tbl_Car_Pro!$AC$4:$AC$1089,Tbl_Car_Pro!$B$4:$B$1089,$C20,Tbl_Car_Pro!$AB$4:$AB$1089,AR$1,Tbl_Car_Pro!$D$4:$D$1089,">"&$W20) -> 4 | BN20: 175750 | BS20: 259173 | BU20: 0 | BV20: 0 | BW20: 0 | BX20: 0 | BY20: 870 | BZ20: 271.363 | CA20: =VLOOKUP(C20,Tbl_Mastery!B$4:R$227,17,FALSE) -> 1 NS 1 ET | CB20: 10 | CC20: 15 | CD20: 20 | CE20: 7.982261641 | CF20: 350.1 | CG20: 196.1 | CH20: 21.3 | CK20: 315.8 | CL20: 34.3 | CV20: Audi S4 | CW20: 350.1 | CY20: D
B21: 18 | C21: Nissan 370Z | E21: 10 | F21: 1.0.0 | H21: =IF(OR(AND(R21="",L21=""),CM21="Not Owned"),IF(K21=1,SUMIF(Tbl_Car_Max!B$6:B$1376,C21,Tbl_Car_Max!F$6:F$1376),IF(K21=2,SUMIF(Tbl_Car_Max!B$6:B$1376,C21,Tbl_Car_Max!H$6:H$1376),IF(K21=3,SUMIF(Tbl_Car_Max!B$6:B$1376,C21,Tbl_Car_Max!G$6:G$1376),SUMIF(Tbl_Car_Max!B$6:B$1376,C21,Tbl_Car_Max!E$6:E$1376)))),"") -> 50000 | M21: 0 | N21: 0 | O21: 0 | P21: 0 | Q21: =SUMIFS(Tbl_Car_Max!$J$3:$J$1376,Tbl_Car_Max!$B$3:$B$1376,$C21,Tbl_Car_Max!$D$3:$D$1376,">"&$M21)+SUMIFS(Tbl_Car_Max!$K$3:$K$1376,Tbl_Car_Max!$B$3:$B$1376,$C21,Tbl_Car_Max!$D$3:$D$1376,">"&$N21)+SUMIFS(Tbl_Car_Max!$L$3:$L$1376,Tbl_Car_Max!$B$3:$B$1376,$C21,Tbl_Car_Max!$D$3:$D$1376,">"&$O21)+SUMIFS(Tbl_Car_Max!$M$3:$M$1376,Tbl_Car_Max!$B$3:$B$1376,$C21,Tbl_Car_Max!$D$3:$D$1376,">"&$P21) -> 175750 | T21: 0 | U21: 0 | V21: 0 | W21: 0 | X21: 48 | Y21: =SUMIFS(Tbl_Car_Pro!$K$4:$K$1089,Tbl_Car_Pro!$B$4:$B$1089,$C21,Tbl_Car_Pro!$D$4:$D$1089,">"&$T21)+SUMIFS(Tbl_Car_Pro!$R$4:$R$1089,Tbl_Car_Pro!$B$4:$B$1089,$C21,Tbl_Car_Pro!$D$4:$D$1089,">"&$U21)+SUMIFS(Tbl_Car_Pro!$Y$4:$Y$1089,Tbl_Car_Pro!$B$4:$B$1089,$C21,Tbl_Car_Pro!$D$4:$D$1089,">"&$V21)+SUMIFS(Tbl_Car_Pro!$AF$4:$AF$1089,Tbl_Car_Pro!$B$4:$B$1089,$C21,Tbl_Car_Pro!$D$4:$D$1089,">"&$W21) -> 85459 | Z21: =VLOOKUP(C21,Tbl_Mastery!B$4:J$227,9,FALSE)-AB21 -> 12 | AB21: =IF(RIGHT(CM21,8)="Lic Left",VLOOKUP(C21,Tbl_Mastery!B$4:J$227,9,FALSE)-VALUE(LEFT(CM21,2)),0) -> 0 | AC21: =SUMIFS(Tbl_Car_Pro!F$4:F$1089,Tbl_Car_Pro!$B$4:$B$1089,$C21,Tbl_Car_Pro!$D$4:$D$1089,">"&T21) -> 8 | AD21: =SUMIFS(Tbl_Car_Pro!M$4:M$1089,Tbl_Car_Pro!$B$4:$B$1089,$C21,Tbl_Car_Pro!$D$4:$D$1089,">"&U21) -> 8 | AE21: =SUMIFS(Tbl_Car_Pro!T$4:T$1089,Tbl_Car_Pro!$B$4:$B$1089,$C21,Tbl_Car_Pro!$D$4:$D$1089,">"&V21) -> 8 | AF21: =SUMIFS(Tbl_Car_Pro!AA$4:AA$1089,Tbl_Car_Pro!$B$4:$B$1089,$C21,Tbl_Car_Pro!$D$4:$D$1089,">"&W21) -> 8 | AG21: 6E 6I | AH21: =SUMIFS(Tbl_Car_Pro!$J$4:$J$1089,Tbl_Car_Pro!$B$4:$B$1089,$C21,Tbl_Car_Pro!$I$4:$I$1089,AH$1,Tbl_Car_Pro!$D$4:$D$1089,">"&$T21)+SUMIFS(Tbl_Car_Pro!$Q$4:$Q$1089,Tbl_Car_Pro!$B$4:$B$1089,$C21,Tbl_Car_Pro!$P$4:$P$1089,AH$1,Tbl_Car_Pro!$D$4:$D$1089,">"&$U21)+SUMIFS(Tbl_Car_Pro!$X$4:$X$1089,Tbl_Car_Pro!$B$4:$B$1089,$C21,Tbl_Car_Pro!$W$4:$W$1089,AH$1,Tbl_Car_Pro!$D$4:$D$1089,">"&$V21)+SUMIFS(Tbl_Car_Pro!$AE$4:$AE$1089,Tbl_Car_Pro!$B$4:$B$1089,$C21,Tbl_Car_Pro!$AD$4:$AD$1089,AH$1,Tbl_Car_Pro!$D$4:$D$1089,">"&$W21) -> 6 | AI21: =SUMIFS(Tbl_Car_Pro!$J$4:$J$1089,Tbl_Car_Pro!$B$4:$B$1089,$C21,Tbl_Car_Pro!$I$4:$I$1089,AI$1,Tbl_Car_Pro!$D$4:$D$1089,">"&$T21)+SUMIFS(Tbl_Car_Pro!$Q$4:$Q$1089,Tbl_Car_Pro!$B$4:$B$1089,$C21,Tbl_Car_Pro!$P$4:$P$1089,AI$1,Tbl_Car_Pro!$D$4:$D$1089,">"&$U21)+SUMIFS(Tbl_Car_Pro!$X$4:$X$1089,Tbl_Car_Pro!$B$4:$B$1089,$C21,Tbl_Car_Pro!$W$4:$W$1089,AI$1,Tbl_Car_Pro!$D$4:$D$1089,">"&$V21)+SUMIFS(Tbl_Car_Pro!$AE$4:$AE$1089,Tbl_Car_Pro!$B$4:$B$1089,$C21,Tbl_Car_Pro!$AD$4:$AD$1089,AI$1,Tbl_Car_Pro!$D$4:$D$1089,">"&$W21) -> 6 | AO21: 4 V6 | AR21: =SUMIFS(Tbl_Car_Pro!$H$4:$H$1089,Tbl_Car_Pro!$B$4:$B$1089,$C21,Tbl_Car_Pro!$G$4:$G$1089,AR$1,Tbl_Car_Pro!$D$4:$D$1089,">"&$T21)+SUMIFS(Tbl_Car_Pro!$O$4:$O$1089,Tbl_Car_Pro!$B$4:$B$1089,$C21,Tbl_Car_Pro!$N$4:$N$1089,AR$1,Tbl_Car_Pro!$D$4:$D$1089,">"&$U21)+SUMIFS(Tbl_Car_Pro!$V$4:$V$1089,Tbl_Car_Pro!$B$4:$B$1089,$C21,Tbl_Car_Pro!$U$4:$U$1089,AR$1,Tbl_Car_Pro!$D$4:$D$1089,">"&$V21)+SUMIFS(Tbl_Car_Pro!$AC$4:$AC$1089,Tbl_Car_Pro!$B$4:$B$1089,$C21,Tbl_Car_Pro!$AB$4:$AB$1089,AR$1,Tbl_Car_Pro!$D$4:$D$1089,">"&$W21) -> 4 | BN21: 175750 | BS21: 261209 | BU21: 0 | BV21: 0 | BW21: 0 | BX21: 0 | BY21: 893 | BZ21: 275.581 | CA21: =VLOOKUP(C21,Tbl_Mastery!B$4:R$227,17,FALSE) -> 2 ET | CB21: 8 | CC21: 13 | CD21: 15 | CE21: 44.78935698 | CF21: 353 | CG21: 192.6 | CH21: 26.6 | CK21: 310.1 | CL21: 42.9 | CV21: Nissan 370Z | CW21: 353 | CY21: D
A22: H | B22: 19 | C22: Camaro Z/28 | E22: 111 | F22: 2.0.0 | G22: Mastery, Hidden | H22: =IF(OR(AND(R22="",L22=""),CM22="Not Owned"),IF(K22=1,SUMIF(Tbl_Car_Max!B$6:B$1376,C22,Tbl_Car_Max!F$6:F$1376),IF(K22=2,SUMIF(Tbl_Car_Max!B$6:B$1376,C22,Tbl_Car_Max!H$6:H$1376),IF(K22=3,SUMIF(Tbl_Car_Max!B$6:B$1376,C22,Tbl_Car_Max!G$6:G$1376),SUMIF(Tbl_Car_Max!B$6:B$1376,C22,Tbl_Car_Max!E$6:E$1376)))),"") -> 300 | I22: =IF(AND(L22="",R22=""),200,0) -> 200 | K22: 2 | M22: 0 | N22: 0 | O22: 0 | P22: 0 | Q22: =SUMIFS(Tbl_Car_Max!$J$3:$J$1376,Tbl_Car_Max!$B$3:$B$1376,$C22,Tbl_Car_Max!$D$3:$D$1376,">"&$M22)+SUMIFS(Tbl_Car_Max!$K$3:$K$1376,Tbl_Car_Max!$B$3:$B$1376,$C22,Tbl_Car_Max!$D$3:$D$1376,">"&$N22)+SUMIFS(Tbl_Car_Max!$L$3:$L$1376,Tbl_Car_Max!$B$3:$B$1376,$C22,Tbl_Car_Max!$D$3:$D$1376,">"&$O22)+SUMIFS(Tbl_Car_Max!$M$3:$M$1376,Tbl_Car_Max!$B$3:$B$1376,$C22,Tbl_Car_Max!$D$3:$D$1376,">"&$P22) -> 766450 | T22: 0 | U22: 0 | V22: 0 | W22: 0 | X22: 120 | Y22: =SUMIFS(Tbl_Car_Pro!$K$4:$K$1089,Tbl_Car_Pro!$B$4:$B$1089,$C22,Tbl_Car_Pro!$D$4:$D$1089,">"&$T22)+SUMIFS(Tbl_Car_Pro!$R$4:$R$1089,Tbl_Car_Pro!$B$4:$B$1089,$C22,Tbl_Car_Pro!$D$4:$D$1089,">"&$U22)+SUMIFS(Tbl_Car_Pro!$Y$4:$Y$1089,Tbl_Car_Pro!$B$4:$B$1089,$C22,Tbl_Car_Pro!$D$4:$D$1089,">"&$V22)+SUMIFS(Tbl_Car_Pro!$AF$4:$AF$1089,Tbl_Car_Pro!$B$4:$B$1089,$C22,Tbl_Car_Pro!$D$4:$D$1089,">"&$W22) -> 920950 | Z22: =VLOOKUP(C22,Tbl_Mastery!B$4:J$227,9,FALSE)-AB22 -> 0 | AB22: =IF(RIGHT(CM22,8)="Lic Left",VLOOKUP(C22,Tbl_Mastery!B$4:J$227,9,FALSE)-VALUE(LEFT(CM22,2)),0) -> 0 | AC22: =SUMIFS(Tbl_Car_Pro!F$4:F$1089,Tbl_Car_Pro!$B$4:$B$1089,$C22,Tbl_Car_Pro!$D$4:$D$1089,">"&T22) -> 15 | AD22: =SUMIFS(Tbl_Car_Pro!M$4:M$1089,Tbl_Car_Pro!$B$4:$B$1089,$C22,Tbl_Car_Pro!$D$4:$D$1089,">"&U22) -> 15 | AE22: =SUMIFS(Tbl_Car_Pro!T$4:T$1089,Tbl_Car_Pro!$B$4:$B$1089,$C22,Tbl_Car_Pro!$D$4:$D$1089,">"&V22) -> 15 | AF22: =SUMIFS(Tbl_Car_Pro!AA$4:AA$1089,Tbl_Car_Pro!$B$4:$B$1089,$C22,Tbl_Car_Pro!$D$4:$D$1089,">"&W22) -> 15 | AG22: 20E 20I | AH22: =SUMIFS(Tbl_Car_Pro!$J$4:$J$1089,Tbl_Car_Pro!$B$4:$B$1089,$C22,Tbl_Car_Pro!$I$4:$I$1089,AH$1,Tbl_Car_Pro!$D$4:$D$1089,">"&$T22)+SUMIFS(Tbl_Car_Pro!$Q$4:$Q$1089,Tbl_Car_Pro!$B$4:$B$1089,$C22,Tbl_Car_Pro!$P$4:$P$1089,AH$1,Tbl_Car_Pro!$D$4:$D$1089,">"&$U22)+SUMIFS(Tbl_Car_Pro!$X$4:$X$1089,Tbl_Car_Pro!$B$4:$B$1089,$C22,Tbl_Car_Pro!$W$4:$W$1089,AH$1,Tbl_Car_Pro!$D$4:$D$1089,">"&$V22)+SUMIFS(Tbl_Car_Pro!$AE$4:$AE$1089,Tbl_Car_Pro!$B$4:$B$1089,$C22,Tbl_Car_Pro!$AD$4:$AD$1089,AH$1,Tbl_Car_Pro!$D$4:$D$1089,">"&$W22) -> 20 | AI22: =SUMIFS(Tbl_Car_Pro!$J$4:$J$1089,Tbl_Car_Pro!$B$4:$B$1089,$C22,Tbl_Car_Pro!$I$4:$I$1089,AI$1,Tbl_Car_Pro!$D$4:$D$1089,">"&$T22)+SUMIFS(Tbl_Car_Pro!$Q$4:$Q$1089,Tbl_Car_Pro!$B$4:$B$1089,$C22,Tbl_Car_Pro!$P$4:$P$1089,AI$1,Tbl_Car_Pro!$D$4:$D$1089,">"&$U22)+SUMIFS(Tbl_Car_Pro!$X$4:$X$1089,Tbl_Car_Pro!$B$4:$B$1089,$C22,Tbl_Car_Pro!$W$4:$W$1089,AI$1,Tbl_Car_Pro!$D$4:$D$1089,">"&$V22)+SUMIFS(Tbl_Car_Pro!$AE$4:$AE$1089,Tbl_Car_Pro!$B$4:$B$1089,$C22,Tbl_Car_Pro!$AD$4:$AD$1089,AI$1,Tbl_Car_Pro!$D$4:$D$1089,">"&$W22) -> 20 | AO22: 20 V6 | AR22: =SUMIFS(Tbl_Car_Pro!$H$4:$H$1089,Tbl_Car_Pro!$B$4:$B$1089,$C22,Tbl_Car_Pro!$G$4:$G$1089,AR$1,Tbl_Car_Pro!$D$4:$D$1089,">"&$T22)+SUMIFS(Tbl_Car_Pro!$O$4:$O$1089,Tbl_Car_Pro!$B$4:$B$1089,$C22,Tbl_Car_Pro!$N$4:$N$1089,AR$1,Tbl_Car_Pro!$D$4:$D$1089,">"&$U22)+SUMIFS(Tbl_Car_Pro!$V$4:$V$1089,Tbl_Car_Pro!$B$4:$B$1089,$C22,Tbl_Car_Pro!$U$4:$U$1089,AR$1,Tbl_Car_Pro!$D$4:$D$1089,">"&$V22)+SUMIFS(Tbl_Car_Pro!$AC$4:$AC$1089,Tbl_Car_Pro!$B$4:$B$1089,$C22,Tbl_Car_Pro!$AB$4:$AB$1089,AR$1,Tbl_Car_Pro!$D$4:$D$1089,">"&$W22) -> 20 | BN22: 766450 | BS22: 1687400 | BU22: 0 | BV22: 0 | BW22: 0 | BX22: 0 | BY22: 543 | BZ22: 244.793 | CA22: =VLOOKUP(C22,Tbl_Mastery!B$4:R$227,17,FALSE) -> 4 TK 6 NS 3 ET | CB22: 9 | CC22: 14 | CD22: 19 | CE22: 20.39911308 | CF22: 361.5 | CG22: 178.4 | CH22: 46.1 | CK22: 287.2 | CL22: 74.3 | CV22: Camaro Z/28 | CW22: 361.5 | CY22: D
B23: 20 | C23: 1967 Chevrolet Impala | E23: 175 | F23: 2.9.0 | G23: MP rwd - Coldsnap | H23: =IF(OR(AND(R23="",L23=""),CM23="Not Owned"),IF(K23=1,SUMIF(Tbl_Car_Max!B$6:B$1376,C23,Tbl_Car_Max!F$6:F$1376),IF(K23=2,SUMIF(Tbl_Car_Max!B$6:B$1376,C23,Tbl_Car_Max!H$6:H$1376),IF(K23=3,SUMIF(Tbl_Car_Max!B$6:B$1376,C23,Tbl_Car_Max!G$6:G$1376),SUMIF(Tbl_Car_Max!B$6:B$1376,C23,Tbl_Car_Max!E$6:E$1376)))),"") -> 14 | I23: 1 | J23: TRUE | K23: 3 | M23: 0 | N23: 0 | O23: 0 | P23: 0 | Q23: =SUMIFS(Tbl_Car_Max!$J$3:$J$1376,Tbl_Car_Max!$B$3:$B$1376,$C23,Tbl_Car_Max!$D$3:$D$1376,">"&$M23)+SUMIFS(Tbl_Car_Max!$K$3:$K$1376,Tbl_Car_Max!$B$3:$B$1376,$C23,Tbl_Car_Max!$D$3:$D$1376,">"&$N23)+SUMIFS(Tbl_Car_Max!$L$3:$L$1376,Tbl_Car_Max!$B$3:$B$1376,$C23,Tbl_Car_Max!$D$3:$D$1376,">"&$O23)+SUMIFS(Tbl_Car_Max!$M$3:$M$1376,Tbl_Car_Max!$B$3:$B$1376,$C23,Tbl_Car_Max!$D$3:$D$1376,">"&$P23) -> 719600 | T23: 0 | U23: 0 | V23: 0 | W23: 0 | X23: 52 | Y23: =SUMIFS(Tbl_Car_Pro!$K$4:$K$1089,Tbl_Car_Pro!$B$4:$B$1089,$C23,Tbl_Car_Pro!$D$4:$D$1089,">"&$T23)+SUMIFS(Tbl_Car_Pro!$R$4:$R$1089,Tbl_Car_Pro!$B$4:$B$1089,$C23,Tbl_Car_Pro!$D$4:$D$1089,">"&$U23)+SUMIFS(Tbl_Car_Pro!$Y$4:$Y$1089,Tbl_Car_Pro!$B$4:$B$1089,$C23,Tbl_Car_Pro!$D$4:$D$1089,">"&$V23)+SUMIFS(Tbl_Car_Pro!$AF$4:$AF$1089,Tbl_Car_Pro!$B$4:$B$1089,$C23,Tbl_Car_Pro!$D$4:$D$1089,">"&$W23) -> 333479 | Z23: =VLOOKUP(C23,Tbl_Mastery!B$4:J$227,9,FALSE)-AB23 -> 18 | AB23: =IF(RIGHT(CM23,8)="Lic Left",VLOOKUP(C23,Tbl_Mastery!B$4:J$227,9,FALSE)-VALUE(LEFT(CM23,2)),0) -> 0 | AC23: =SUMIFS(Tbl_Car_Pro!F$4:F$1089,Tbl_Car_Pro!$B$4:$B$1089,$C23,Tbl_Car_Pro!$D$4:$D$1089,">"&T23) -> 8 | AD23: =SUMIFS(Tbl_Car_Pro!M$4:M$1089,Tbl_Car_Pro!$B$4:$B$1089,$C23,Tbl_Car_Pro!$D$4:$D$1089,">"&U23) -> 8 | AE23: =SUMIFS(Tbl_Car_Pro!T$4:T$1089,Tbl_Car_Pro!$B$4:$B$1089,$C23,Tbl_Car_Pro!$D$4:$D$1089,">"&V23) -> 8 | AF23: =SUMIFS(Tbl_Car_Pro!AA$4:AA$1089,Tbl_Car_Pro!$B$4:$B$1089,$C23,Tbl_Car_Pro!$D$4:$D$1089,">"&W23) -> 8 | AG23: 8E 8I | AH23: =SUMIFS(Tbl_Car_Pro!$J$4:$J$1089,Tbl_Car_Pro!$B$4:$B$1089,$C23,Tbl_Car_Pro!$I$4:$I$1089,AH$1,Tbl_Car_Pro!$D$4:$D$1089,">"&$T23)+SUMIFS(Tbl_Car_Pro!$Q$4:$Q$1089,Tbl_Car_Pro!$B$4:$B$1089,$C23,Tbl_Car_Pro!$P$4:$P$1089,AH$1,Tbl_Car_Pro!$D$4:$D$1089,">"&$U23)+SUMIFS(Tbl_Car_Pro!$X$4:$X$1089,Tbl_Car_Pro!$B$4:$B$1089,$C23,Tbl_Car_Pro!$W$4:$W$1089,AH$1,Tbl_Car_Pro!$D$4:$D$1089,">"&$V23)+SUMIFS(Tbl_Car_Pro!$AE$4:$AE$1089,Tbl_Car_Pro!$B$4:$B$1089,$C23,Tbl_Car_Pro!$AD$4:$AD$1089,AH$1,Tbl_Car_Pro!$D$4:$D$1089,">"&$W23) -> 8 | AI23: =SUMIFS(Tbl_Car_Pro!$J$4:$J$1089,Tbl_Car_Pro!$B$4:$B$1089,$C23,Tbl_Car_Pro!$I$4:$I$1089,AI$1,Tbl_Car_Pro!$D$4:$D$1089,">"&$T23)+SUMIFS(Tbl_Car_Pro!$Q$4:$Q$1089,Tbl_Car_Pro!$B$4:$B$1089,$C23,Tbl_Car_Pro!$P$4:$P$1089,AI$1,Tbl_Car_Pro!$D$4:$D$1089,">"&$U23)+SUMIFS(Tbl_Car_Pro!$X$4:$X$1089,Tbl_Car_Pro!$B$4:$B$1089,$C23,Tbl_Car_Pro!$W$4:$W$1089,AI$1,Tbl_Car_Pro!$D$4:$D$1089,">"&$V23)+SUMIFS(Tbl_Car_Pro!$AE$4:$AE$1089,Tbl_Car_Pro!$B$4:$B$1089,$C23,Tbl_Car_Pro!$AD$4:$AD$1089,AI$1,Tbl_Car_Pro!$D$4:$D$1089,">"&$W23) -> 8 | AO23: 4 V8 | AS23: =SUMIFS(Tbl_Car_Pro!$H$4:$H$1089,Tbl_Car_Pro!$B$4:$B$1089,$C23,Tbl_Car_Pro!$G$4:$G$1089,AS$1,Tbl_Car_Pro!$D$4:$D$1089,">"&$T23)+SUMIFS(Tbl_Car_Pro!$O$4:$O$1089,Tbl_Car_Pro!$B$4:$B$1089,$C23,Tbl_Car_Pro!$N$4:$N$1089,AS$1,Tbl_Car_Pro!$D$4:$D$1089,">"&$U23)+SUMIFS(Tbl_Car_Pro!$V$4:$V$1089,Tbl_Car_Pro!$B$4:$B$1089,$C23,Tbl_Car_Pro!$U$4:$U$1089,AS$1,Tbl_Car_Pro!$D$4:$D$1089,">"&$V23)+SUMIFS(Tbl_Car_Pro!$AC$4:$AC$1089,Tbl_Car_Pro!$B$4:$B$1089,$C23,Tbl_Car_Pro!$AB$4:$AB$1089,AS$1,Tbl_Car_Pro!$D$4:$D$1089,">"&$W23) -> 4 | BN23: 719600 | BS23: 1053079 | BU23: 0 | BV23: 0 | BW23: 0 | BX23: 0 | BY23: 784 | BZ23: 267.85 | CA23: =VLOOKUP(C23,Tbl_Mastery!B$4:R$227,17,FALSE) -> 2 TK | CB23: 9 | CC23: 14 | CD23: 19 | CE23: 20.39911308 | CF23: 370.3 | CG23: 181.4 | CH23: 48.6 | CI23: 1342 | CK23: 292.1 | CL23: 78.2 | CV23: 1967 Chevrolet Impala | CW23: 370.3 | CY23: D
B24: 21 | C24: 2015 Ford Mustang | E24: 67 | F24: 1.4.0 | G24: Trophy reward | H24: =IF(OR(AND(R24="",L24=""),CM24="Not Owned"),IF(K24=1,SUMIF(Tbl_Car_Max!B$6:B$1376,C24,Tbl_Car_Max!F$6:F$1376),IF(K24=2,SUMIF(Tbl_Car_Max!B$6:B$1376,C24,Tbl_Car_Max!H$6:H$1376),IF(K24=3,SUMIF(Tbl_Car_Max!B$6:B$1376,C24,Tbl_Car_Max!G$6:G$1376),SUMIF(Tbl_Car_Max!B$6:B$1376,C24,Tbl_Car_Max!E$6:E$1376)))),"") -> 1100 | K24: 1 | M24: 0 | N24: 0 | O24: 0 | P24: 0 | Q24: =SUMIFS(Tbl_Car_Max!$J$3:$J$1376,Tbl_Car_Max!$B$3:$B$1376,$C24,Tbl_Car_Max!$D$3:$D$1376,">"&$M24)+SUMIFS(Tbl_Car_Max!$K$3:$K$1376,Tbl_Car_Max!$B$3:$B$1376,$C24,Tbl_Car_Max!$D$3:$D$1376,">"&$N24)+SUMIFS(Tbl_Car_Max!$L$3:$L$1376,Tbl_Car_Max!$B$3:$B$1376,$C24,Tbl_Car_Max!$D$3:$D$1376,">"&$O24)+SUMIFS(Tbl_Car_Max!$M$3:$M$1376,Tbl_Car_Max!$B$3:$B$1376,$C24,Tbl_Car_Max!$D$3:$D$1376,">"&$P24) -> 300960 | T24: 0 | U24: 0 | V24: 0 | W24: 0 | X24: 52 | Y24: =SUMIFS(Tbl_Car_Pro!$K$4:$K$1089,Tbl_Car_Pro!$B$4:$B$1089,$C24,Tbl_Car_Pro!$D$4:$D$1089,">"&$T24)+SUMIFS(Tbl_Car_Pro!$R$4:$R$1089,Tbl_Car_Pro!$B$4:$B$1089,$C24,Tbl_Car_Pro!$D$4:$D$1089,">"&$U24)+SUMIFS(Tbl_Car_Pro!$Y$4:$Y$1089,Tbl_Car_Pro!$B$4:$B$1089,$C24,Tbl_Car_Pro!$D$4:$D$1089,">"&$V24)+SUMIFS(Tbl_Car_Pro!$AF$4:$AF$1089,Tbl_Car_Pro!$B$4:$B$1089,$C24,Tbl_Car_Pro!$D$4:$D$1089,">"&$W24) -> 185649 | Z24: =VLOOKUP(C24,Tbl_Mastery!B$4:J$227,9,FALSE)-AB24 -> 15 | AA24: 73.33333333 | AB24: =IF(RIGHT(CM24,8)="Lic Left",VLOOKUP(C24,Tbl_Mastery!B$4:J$227,9,FALSE)-VALUE(LEFT(CM24,2)),0) -> 0 | AC24: =SUMIFS(Tbl_Car_Pro!F$4:F$1089,Tbl_Car_Pro!$B$4:$B$1089,$C24,Tbl_Car_Pro!$D$4:$D$1089,">"&T24) -> 8 | AD24: =SUMIFS(Tbl_Car_Pro!M$4:M$1089,Tbl_Car_Pro!$B$4:$B$1089,$C24,Tbl_Car_Pro!$D$4:$D$1089,">"&U24) -> 8 | AE24: =SUMIFS(Tbl_Car_Pro!T$4:T$1089,Tbl_Car_Pro!$B$4:$B$1089,$C24,Tbl_Car_Pro!$D$4:$D$1089,">"&V24) -> 8 | AF24: =SUMIFS(Tbl_Car_Pro!AA$4:AA$1089,Tbl_Car_Pro!$B$4:$B$1089,$C24,Tbl_Car_Pro!$D$4:$D$1089,">"&W24) -> 8 | AG24: 8E 8I | AH24: =SUMIFS(Tbl_Car_Pro!$J$4:$J$1089,Tbl_Car_Pro!$B$4:$B$1089,$C24,Tbl_Car_Pro!$I$4:$I$1089,AH$1,Tbl_Car_Pro!$D$4:$D$1089,">"&$T24)+SUMIFS(Tbl_Car_Pro!$Q$4:$Q$1089,Tbl_Car_Pro!$B$4:$B$1089,$C24,Tbl_Car_Pro!$P$4:$P$1089,AH$1,Tbl_Car_Pro!$D$4:$D$1089,">"&$U24)+SUMIFS(Tbl_Car_Pro!$X$4:$X$1089,Tbl_Car_Pro!$B$4:$B$1089,$C24,Tbl_Car_Pro!$W$4:$W$1089,AH$1,Tbl_Car_Pro!$D$4:$D$1089,">"&$V24)+SUMIFS(Tbl_Car_Pro!$AE$4:$AE$1089,Tbl_Car_Pro!$B$4:$B$1089,$C24,Tbl_Car_Pro!$AD$4:$AD$1089,AH$1,Tbl_Car_Pro!$D$4:$D$1089,">"&$W24) -> 8 | AI24: =SUMIFS(Tbl_Car_Pro!$J$4:$J$1089,Tbl_Car_Pro!$B$4:$B$1089,$C24,Tbl_Car_Pro!$I$4:$I$1089,AI$1,Tbl_Car_Pro!$D$4:$D$1089,">"&$T24)+SUMIFS(Tbl_Car_Pro!$Q$4:$Q$1089,Tbl_Car_Pro!$B$4:$B$1089,$C24,Tbl_Car_Pro!$P$4:$P$1089,AI$1,Tbl_Car_Pro!$D$4:$D$1089,">"&$U24)+SUMIFS(Tbl_Car_Pro!$X$4:$X$1089,Tbl_Car_Pro!$B$4:$B$1089,$C24,Tbl_Car_Pro!$W$4:$W$1089,AI$1,Tbl_Car_Pro!$D$4:$D$1089,">"&$V24)+SUMIFS(Tbl_Car_Pro!$AE$4:$AE$1089,Tbl_Car_Pro!$B$4:$B$1089,$C24,Tbl_Car_Pro!$AD$4:$AD$1089,AI$1,Tbl_Car_Pro!$D$4:$D$1089,">"&$W24) -> 8 | AO24: 4 V8 | AS24: =SUMIFS(Tbl_Car_Pro!$H$4:$H$1089,Tbl_Car_Pro!$B$4:$B$1089,$C24,Tbl_Car_Pro!$G$4:$G$1089,AS$1,Tbl_Car_Pro!$D$4:$D$1089,">"&$T24)+SUMIFS(Tbl_Car_Pro!$O$4:$O$1089,Tbl_Car_Pro!$B$4:$B$1089,$C24,Tbl_Car_Pro!$N$4:$N$1089,AS$1,Tbl_Car_Pro!$D$4:$D$1089,">"&$U24)+SUMIFS(Tbl_Car_Pro!$V$4:$V$1089,Tbl_Car_Pro!$B$4:$B$1089,$C24,Tbl_Car_Pro!$U$4:$U$1089,AS$1,Tbl_Car_Pro!$D$4:$D$1089,">"&$V24)+SUMIFS(Tbl_Car_Pro!$AC$4:$AC$1089,Tbl_Car_Pro!$B$4:$B$1089,$C24,Tbl_Car_Pro!$AB$4:$AB$1089,AS$1,Tbl_Car_Pro!$D$4:$D$1089,">"&$W24) -> 4 | BN24: 300960 | BS24: 486609 | BU24: 0 | BV24: 0 | BW24: 0 | BX24: 0 | BY24: 924 | BZ24: 281.149 | CA24: =VLOOKUP(C24,Tbl_Mastery!B$4:R$227,17,FALSE) -> 2 UD | CB24: 6 | CC24: 11 | CD24: 16 | CE24: 57.64966741 | CF24: 355.8 | CG24: 187.2 | CH24: 33.7 | CK24: 301.5 | CL24: 54.3 | CV24: 2015 Ford Mustang | CW24: 355.8 | CY24: D
B25: 22 | C25: Nissan Juke Nismo | E25: 154 | F25: 2.5.0 | G25: Daily Bonus Feb 17 | H25: =IF(OR(AND(R25="",L25=""),CM25="Not Owned"),IF(K25=1,SUMIF(Tbl_Car_Max!B$6:B$1376,C25,Tbl_Car_Max!F$6:F$1376),IF(K25=2,SUMIF(Tbl_Car_Max!B$6:B$1376,C25,Tbl_Car_Max!H$6:H$1376),IF(K25=3,SUMIF(Tbl_Car_Max!B$6:B$1376,C25,Tbl_Car_Max!G$6:G$1376),SUMIF(Tbl_Car_Max!B$6:B$1376,C25,Tbl_Car_Max!E$6:E$1376)))),"") -> 95000 | M25: 0 | N25: 0 | O25: 0 | P25: 0 | Q25: =SUMIFS(Tbl_Car_Max!$J$3:$J$1376,Tbl_Car_Max!$B$3:$B$1376,$C25,Tbl_Car_Max!$D$3:$D$1376,">"&$M25)+SUMIFS(Tbl_Car_Max!$K$3:$K$1376,Tbl_Car_Max!$B$3:$B$1376,$C25,Tbl_Car_Max!$D$3:$D$1376,">"&$N25)+SUMIFS(Tbl_Car_Max!$L$3:$L$1376,Tbl_Car_Max!$B$3:$B$1376,$C25,Tbl_Car_Max!$D$3:$D$1376,">"&$O25)+SUMIFS(Tbl_Car_Max!$M$3:$M$1376,Tbl_Car_Max!$B$3:$B$1376,$C25,Tbl_Car_Max!$D$3:$D$1376,">"&$P25) -> 731390 | T25: 0 | U25: 0 | V25: 0 | W25: 0 | X25: 56 | Y25: =SUMIFS(Tbl_Car_Pro!$K$4:$K$1089,Tbl_Car_Pro!$B$4:$B$1089,$C25,Tbl_Car_Pro!$D$4:$D$1089,">"&$T25)+SUMIFS(Tbl_Car_Pro!$R$4:$R$1089,Tbl_Car_Pro!$B$4:$B$1089,$C25,Tbl_Car_Pro!$D$4:$D$1089,">"&$U25)+SUMIFS(Tbl_Car_Pro!$Y$4:$Y$1089,Tbl_Car_Pro!$B$4:$B$1089,$C25,Tbl_Car_Pro!$D$4:$D$1089,">"&$V25)+SUMIFS(Tbl_Car_Pro!$AF$4:$AF$1089,Tbl_Car_Pro!$B$4:$B$1089,$C25,Tbl_Car_Pro!$D$4:$D$1089,">"&$W25) -> 448725 | Z25: =VLOOKUP(C25,Tbl_Mastery!B$4:J$227,9,FALSE)-AB25 -> 16 | AB25: =IF(RIGHT(CM25,8)="Lic Left",VLOOKUP(C25,Tbl_Mastery!B$4:J$227,9,FALSE)-VALUE(LEFT(CM25,2)),0) -> 0 | AC25: =SUMIFS(Tbl_Car_Pro!F$4:F$1089,Tbl_Car_Pro!$B$4:$B$1089,$C25,Tbl_Car_Pro!$D$4:$D$1089,">"&T25) -> 9 | AD25: =SUMIFS(Tbl_Car_Pro!M$4:M$1089,Tbl_Car_Pro!$B$4:$B$1089,$C25,Tbl_Car_Pro!$D$4:$D$1089,">"&U25) -> 9 | AE25: =SUMIFS(Tbl_Car_Pro!T$4:T$1089,Tbl_Car_Pro!$B$4:$B$1089,$C25,Tbl_Car_Pro!$D$4:$D$1089,">"&V25) -> 9 | AF25: =SUMIFS(Tbl_Car_Pro!AA$4:AA$1089,Tbl_Car_Pro!$B$4:$B$1089,$C25,Tbl_Car_Pro!$D$4:$D$1089,">"&W25) -> 9 | AG25: 8E 8I | AH25: =SUMIFS(Tbl_Car_Pro!$J$4:$J$1089,Tbl_Car_Pro!$B$4:$B$1089,$C25,Tbl_Car_Pro!$I$4:$I$1089,AH$1,Tbl_Car_Pro!$D$4:$D$1089,">"&$T25)+SUMIFS(Tbl_Car_Pro!$Q$4:$Q$1089,Tbl_Car_Pro!$B$4:$B$1089,$C25,Tbl_Car_Pro!$P$4:$P$1089,AH$1,Tbl_Car_Pro!$D$4:$D$1089,">"&$U25)+SUMIFS(Tbl_Car_Pro!$X$4:$X$1089,Tbl_Car_Pro!$B$4:$B$1089,$C25,Tbl_Car_Pro!$W$4:$W$1089,AH$1,Tbl_Car_Pro!$D$4:$D$1089,">"&$V25)+SUMIFS(Tbl_Car_Pro!$AE$4:$AE$1089,Tbl_Car_Pro!$B$4:$B$1089,$C25,Tbl_Car_Pro!$AD$4:$AD$1089,AH$1,Tbl_Car_Pro!$D$4:$D$1089,">"&$W25) -> 8 | AI25: =SUMIFS(Tbl_Car_Pro!$J$4:$J$1089,Tbl_Car_Pro!$B$4:$B$1089,$C25,Tbl_Car_Pro!$I$4:$I$1089,AI$1,Tbl_Car_Pro!$D$4:$D$1089,">"&$T25)+SUMIFS(Tbl_Car_Pro!$Q$4:$Q$1089,Tbl_Car_Pro!$B$4:$B$1089,$C25,Tbl_Car_Pro!$P$4:$P$1089,AI$1,Tbl_Car_Pro!$D$4:$D$1089,">"&$U25)+SUMIFS(Tbl_Car_Pro!$X$4:$X$1089,Tbl_Car_Pro!$B$4:$B$1089,$C25,Tbl_Car_Pro!$W$4:$W$1089,AI$1,Tbl_Car_Pro!$D$4:$D$1089,">"&$V25)+SUMIFS(Tbl_Car_Pro!$AE$4:$AE$1089,Tbl_Car_Pro!$B$4:$B$1089,$C25,Tbl_Car_Pro!$AD$4:$AD$1089,AI$1,Tbl_Car_Pro!$D$4:$D$1089,">"&$W25) -> 8 | AO25: 4 i4 | AP25: =SUMIFS(Tbl_Car_Pro!$H$4:$H$1089,Tbl_Car_Pro!$B$4:$B$1089,$C25,Tbl_Car_Pro!$G$4:$G$1089,AP$1,Tbl_Car_Pro!$D$4:$D$1089,">"&$T25)+SUMIFS(Tbl_Car_Pro!$O$4:$O$1089,Tbl_Car_Pro!$B$4:$B$1089,$C25,Tbl_Car_Pro!$N$4:$N$1089,AP$1,Tbl_Car_Pro!$D$4:$D$1089,">"&$U25)+SUMIFS(Tbl_Car_Pro!$V$4:$V$1089,Tbl_Car_Pro!$B$4:$B$1089,$C25,Tbl_Car_Pro!$U$4:$U$1089,AP$1,Tbl_Car_Pro!$D$4:$D$1089,">"&$V25)+SUMIFS(Tbl_Car_Pro!$AC$4:$AC$1089,Tbl_Car_Pro!$B$4:$B$1089,$C25,Tbl_Car_Pro!$AB$4:$AB$1089,AP$1,Tbl_Car_Pro!$D$4:$D$1089,">"&$W25) -> 4 | BN25: 731390 | BS25: 1180115 | BU25: 0 | BV25: 0 | BW25: 0 | BX25: 0 | BY25: 821 | BZ25: 272 | CA25: =VLOOKUP(C25,Tbl_Mastery!B$4:R$227,17,FALSE) -> 1 NS | CB25: 7 | CC25: 12 | CD25: 14 | CE25: 57.20620843 | CF25: 359.7 | CG25: 177.7 | CH25: 45.7 | CK25: 286.1 | CL25: 73.6 | CV25: Nissan Juke Nismo | CW25: 359.7 | CY25: D
B26: 23 | C26: Alfa Romeo Giulietta 2016 Veloce | E26: 169 | F26: 2.7.0 | G26: Daily Bonus Aug 17 | H26: =IF(OR(AND(R26="",L26=""),CM26="Not Owned"),IF(K26=1,SUMIF(Tbl_Car_Max!B$6:B$1376,C26,Tbl_Car_Max!F$6:F$1376),IF(K26=2,SUMIF(Tbl_Car_Max!B$6:B$1376,C26,Tbl_Car_Max!H$6:H$1376),IF(K26=3,SUMIF(Tbl_Car_Max!B$6:B$1376,C26,Tbl_Car_Max!G$6:G$1376),SUMIF(Tbl_Car_Max!B$6:B$1376,C26,Tbl_Car_Max!E$6:E$1376)))),"") -> 16 | I26: 1 | K26: 3 | M26: 0 | N26: 0 | O26: 0 | P26: 0 | Q26: =SUMIFS(Tbl_Car_Max!$J$3:$J$1376,Tbl_Car_Max!$B$3:$B$1376,$C26,Tbl_Car_Max!$D$3:$D$1376,">"&$M26)+SUMIFS(Tbl_Car_Max!$K$3:$K$1376,Tbl_Car_Max!$B$3:$B$1376,$C26,Tbl_Car_Max!$D$3:$D$1376,">"&$N26)+SUMIFS(Tbl_Car_Max!$L$3:$L$1376,Tbl_Car_Max!$B$3:$B$1376,$C26,Tbl_Car_Max!$D$3:$D$1376,">"&$O26)+SUMIFS(Tbl_Car_Max!$M$3:$M$1376,Tbl_Car_Max!$B$3:$B$1376,$C26,Tbl_Car_Max!$D$3:$D$1376,">"&$P26) -> 816820 | T26: 0 | U26: 0 | V26: 0 | W26: 0 | X26: 60 | Y26: =SUMIFS(Tbl_Car_Pro!$K$4:$K$1089,Tbl_Car_Pro!$B$4:$B$1089,$C26,Tbl_Car_Pro!$D$4:$D$1089,">"&$T26)+SUMIFS(Tbl_Car_Pro!$R$4:$R$1089,Tbl_Car_Pro!$B$4:$B$1089,$C26,Tbl_Car_Pro!$D$4:$D$1089,">"&$U26)+SUMIFS(Tbl_Car_Pro!$Y$4:$Y$1089,Tbl_Car_Pro!$B$4:$B$1089,$C26,Tbl_Car_Pro!$D$4:$D$1089,">"&$V26)+SUMIFS(Tbl_Car_Pro!$AF$4:$AF$1089,Tbl_Car_Pro!$B$4:$B$1089,$C26,Tbl_Car_Pro!$D$4:$D$1089,">"&$W26) -> 471200 | Z26: =VLOOKUP(C26,Tbl_Mastery!B$4:J$227,9,FALSE)-AB26 -> 16 | AB26: =IF(RIGHT(CM26,8)="Lic Left",VLOOKUP(C26,Tbl_Mastery!B$4:J$227,9,FALSE)-VALUE(LEFT(CM26,2)),0) -> 0 | AC26: =SUMIFS(Tbl_Car_Pro!F$4:F$1089,Tbl_Car_Pro!$B$4:$B$1089,$C26,Tbl_Car_Pro!$D$4:$D$1089,">"&T26) -> 10 | AD26: =SUMIFS(Tbl_Car_Pro!M$4:M$1089,Tbl_Car_Pro!$B$4:$B$1089,$C26,Tbl_Car_Pro!$D$4:$D$1089,">"&U26) -> 10 | AE26: =SUMIFS(Tbl_Car_Pro!T$4:T$1089,Tbl_Car_Pro!$B$4:$B$1089,$C26,Tbl_Car_Pro!$D$4:$D$1089,">"&V26) -> 10 | AF26: =SUMIFS(Tbl_Car_Pro!AA$4:AA$1089,Tbl_Car_Pro!$B$4:$B$1089,$C26,Tbl_Car_Pro!$D$4:$D$1089,">"&W26) -> 10 | AG26: 8E 8I | AH26: =SUMIFS(Tbl_Car_Pro!$J$4:$J$1089,Tbl_Car_Pro!$B$4:$B$1089,$C26,Tbl_Car_Pro!$I$4:$I$1089,AH$1,Tbl_Car_Pro!$D$4:$D$1089,">"&$T26)+SUMIFS(Tbl_Car_Pro!$Q$4:$Q$1089,Tbl_Car_Pro!$B$4:$B$1089,$C26,Tbl_Car_Pro!$P$4:$P$1089,AH$1,Tbl_Car_Pro!$D$4:$D$1089,">"&$U26)+SUMIFS(Tbl_Car_Pro!$X$4:$X$1089,Tbl_Car_Pro!$B$4:$B$1089,$C26,Tbl_Car_Pro!$W$4:$W$1089,AH$1,Tbl_Car_Pro!$D$4:$D$1089,">"&$V26)+SUMIFS(Tbl_Car_Pro!$AE$4:$AE$1089,Tbl_Car_Pro!$B$4:$B$1089,$C26,Tbl_Car_Pro!$AD$4:$AD$1089,AH$1,Tbl_Car_Pro!$D$4:$D$1089,">"&$W26) -> 8 | AI26: =SUMIFS(Tbl_Car_Pro!$J$4:$J$1089,Tbl_Car_Pro!$B$4:$B$1089,$C26,Tbl_Car_Pro!$I$4:$I$1089,AI$1,Tbl_Car_Pro!$D$4:$D$1089,">"&$T26)+SUMIFS(Tbl_Car_Pro!$Q$4:$Q$1089,Tbl_Car_Pro!$B$4:$B$1089,$C26,Tbl_Car_Pro!$P$4:$P$1089,AI$1,Tbl_Car_Pro!$D$4:$D$1089,">"&$U26)+SUMIFS(Tbl_Car_Pro!$X$4:$X$1089,Tbl_Car_Pro!$B$4:$B$1089,$C26,Tbl_Car_Pro!$W$4:$W$1089,AI$1,Tbl_Car_Pro!$D$4:$D$1089,">"&$V26)+SUMIFS(Tbl_Car_Pro!$AE$4:$AE$1089,Tbl_Car_Pro!$B$4:$B$1089,$C26,Tbl_Car_Pro!$AD$4:$AD$1089,AI$1,Tbl_Car_Pro!$D$4:$D$1089,">"&$W26) -> 8 | AO26: 4 V6 | AR26: =SUMIFS(Tbl_Car_Pro!$H$4:$H$1089,Tbl_Car_Pro!$B$4:$B$1089,$C26,Tbl_Car_Pro!$G$4:$G$1089,AR$1,Tbl_Car_Pro!$D$4:$D$1089,">"&$T26)+SUMIFS(Tbl_Car_Pro!$O$4:$O$1089,Tbl_Car_Pro!$B$4:$B$1089,$C26,Tbl_Car_Pro!$N$4:$N$1089,AR$1,Tbl_Car_Pro!$D$4:$D$1089,">"&$U26)+SUMIFS(Tbl_Car_Pro!$V$4:$V$1089,Tbl_Car_Pro!$B$4:$B$1089,$C26,Tbl_Car_Pro!$U$4:$U$1089,AR$1,Tbl_Car_Pro!$D$4:$D$1089,">"&$V26)+SUMIFS(Tbl_Car_Pro!$AC$4:$AC$1089,Tbl_Car_Pro!$B$4:$B$1089,$C26,Tbl_Car_Pro!$AB$4:$AB$1089,AR$1,Tbl_Car_Pro!$D$4:$D$1089,">"&$W26) -> 4 | BN26: 816820 | BS26: 1288020 | BU26: 0 | BV26: 0 | BW26: 0 | BX26: 0 | BY26: 1003 | BZ26: 294.8904175 | CA26: =VLOOKUP(C26,Tbl_Mastery!B$4:R$227,17,FALSE) -> 75 TO 1 NS 1 UC | CB26: 7 | CC26: 12 | CD26: 16 | CE26: 49.22394678 | CF26: 357.54102 | CG26: 167.1 | CH26: 49.8 | CJ26: 102.33 | CK26: 269.1 | CL26: 80.3 | CV26: Alfa Romeo Giulietta 2016 Veloce | CW26: 357.54102 | CY26: D
B27: 24 | C27: Hot Wheels Rip Rod™ | E27: 212 | F27: 3.4.0 | G27: Champs | H27: =IF(OR(AND(R27="",L27=""),CM27="Not Owned"),IF(K27=1,SUMIF(Tbl_Car_Max!B$6:B$1376,C27,Tbl_Car_Max!F$6:F$1376),IF(K27=2,SUMIF(Tbl_Car_Max!B$6:B$1376,C27,Tbl_Car_Max!H$6:H$1376),IF(K27=3,SUMIF(Tbl_Car_Max!B$6:B$1376,C27,Tbl_Car_Max!G$6:G$1376),SUMIF(Tbl_Car_Max!B$6:B$1376,C27,Tbl_Car_Max!E$6:E$1376)))),"") -> 2100 | I27: 1 | K27: 1 | M27: 0 | N27: 0 | O27: 0 | P27: 0 | Q27: =SUMIFS(Tbl_Car_Max!$J$3:$J$1376,Tbl_Car_Max!$B$3:$B$1376,$C27,Tbl_Car_Max!$D$3:$D$1376,">"&$M27)+SUMIFS(Tbl_Car_Max!$K$3:$K$1376,Tbl_Car_Max!$B$3:$B$1376,$C27,Tbl_Car_Max!$D$3:$D$1376,">"&$N27)+SUMIFS(Tbl_Car_Max!$L$3:$L$1376,Tbl_Car_Max!$B$3:$B$1376,$C27,Tbl_Car_Max!$D$3:$D$1376,">"&$O27)+SUMIFS(Tbl_Car_Max!$M$3:$M$1376,Tbl_Car_Max!$B$3:$B$1376,$C27,Tbl_Car_Max!$D$3:$D$1376,">"&$P27) -> 828680 | T27: 0 | U27: 0 | V27: 0 | W27: 0 | X27: =SUM(AC27:BM27) -> 72 | Y27: =SUMIFS(Tbl_Car_Pro!$K$4:$K$1089,Tbl_Car_Pro!$B$4:$B$1089,$C27,Tbl_Car_Pro!$D$4:$D$1089,">"&$T27)+SUMIFS(Tbl_Car_Pro!$R$4:$R$1089,Tbl_Car_Pro!$B$4:$B$1089,$C27,Tbl_Car_Pro!$D$4:$D$1089,">"&$U27)+SUMIFS(Tbl_Car_Pro!$Y$4:$Y$1089,Tbl_Car_Pro!$B$4:$B$1089,$C27,Tbl_Car_Pro!$D$4:$D$1089,">"&$V27)+SUMIFS(Tbl_Car_Pro!$AF$4:$AF$1089,Tbl_Car_Pro!$B$4:$B$1089,$C27,Tbl_Car_Pro!$D$4:$D$1089,">"&$W27) -> 411975 | Z27: =VLOOKUP(C27,Tbl_Mastery!B$4:J$227,9,FALSE)-AB27 -> 0 | AB27: =IF(RIGHT(CM27,8)="Lic Left",VLOOKUP(C27,Tbl_Mastery!B$4:J$227,9,FALSE)-VALUE(LEFT(CM27,2)),0) -> 0 | AC27: =SUMIFS(Tbl_Car_Pro!F$4:F$1089,Tbl_Car_Pro!$B$4:$B$1089,$C27,Tbl_Car_Pro!$D$4:$D$1089,">"&T27) -> 10 | AD27: =SUMIFS(Tbl_Car_Pro!M$4:M$1089,Tbl_Car_Pro!$B$4:$B$1089,$C27,Tbl_Car_Pro!$D$4:$D$1089,">"&U27) -> 10 | AE27: =SUMIFS(Tbl_Car_Pro!T$4:T$1089,Tbl_Car_Pro!$B$4:$B$1089,$C27,Tbl_Car_Pro!$D$4:$D$1089,">"&V27) -> 10 | AF27: =SUMIFS(Tbl_Car_Pro!AA$4:AA$1089,Tbl_Car_Pro!$B$4:$B$1089,$C27,Tbl_Car_Pro!$D$4:$D$1089,">"&W27) -> 10 | AG27: =TRIM(CONCATENATE(IF(AH27=0,"",CONCATENATE(" ",AH27,"E")),IF(AI27=0,"",CONCATENATE(" ",AI27,"I")),IF(AJ27=0,"",CONCATENATE(" ",AJ27,"C")),IF(AK27=0,"",CONCATENATE(" ",AK27,"R")),IF(AL27=0,"",CONCATENATE(" ",AL27,"M")),IF(AM27=0,"",CONCATENATE(" ",AM27,"P")),IF(AN27=0,"",CONCATENATE(" ",AN27,"A")))) -> 10E 10I | AH27: =SUMIFS(Tbl_Car_Pro!$J$4:$J$1089,Tbl_Car_Pro!$B$4:$B$1089,$C27,Tbl_Car_Pro!$I$4:$I$1089,AH$1,Tbl_Car_Pro!$D$4:$D$1089,">"&$T27)+SUMIFS(Tbl_Car_Pro!$Q$4:$Q$1089,Tbl_Car_Pro!$B$4:$B$1089,$C27,Tbl_Car_Pro!$P$4:$P$1089,AH$1,Tbl_Car_Pro!$D$4:$D$1089,">"&$U27)+SUMIFS(Tbl_Car_Pro!$X$4:$X$1089,Tbl_Car_Pro!$B$4:$B$1089,$C27,Tbl_Car_Pro!$W$4:$W$1089,AH$1,Tbl_Car_Pro!$D$4:$D$1089,">"&$V27)+SUMIFS(Tbl_Car_Pro!$AE$4:$AE$1089,Tbl_Car_Pro!$B$4:$B$1089,$C27,Tbl_Car_Pro!$AD$4:$AD$1089,AH$1,Tbl_Car_Pro!$D$4:$D$1089,">"&$W27) -> 10 | AI27: =SUMIFS(Tbl_Car_Pro!$J$4:$J$1089,Tbl_Car_Pro!$B$4:$B$1089,$C27,Tbl_Car_Pro!$I$4:$I$1089,AI$1,Tbl_Car_Pro!$D$4:$D$1089,">"&$T27)+SUMIFS(Tbl_Car_Pro!$Q$4:$Q$1089,Tbl_Car_Pro!$B$4:$B$1089,$C27,Tbl_Car_Pro!$P$4:$P$1089,AI$1,Tbl_Car_Pro!$D$4:$D$1089,">"&$U27)+SUMIFS(Tbl_Car_Pro!$X$4:$X$1089,Tbl_Car_Pro!$B$4:$B$1089,$C27,Tbl_Car_Pro!$W$4:$W$1089,AI$1,Tbl_Car_Pro!$D$4:$D$1089,">"&$V27)+SUMIFS(Tbl_Car_Pro!$AE$4:$AE$1089,Tbl_Car_Pro!$B$4:$B$1089,$C27,Tbl_Car_Pro!$AD$4:$AD$1089,AI$1,Tbl_Car_Pro!$D$4:$D$1089,">"&$W27) -> 10 | AO27: =IF(SUM(AP27:BM27)=0,"",CONCATENATE(SUM(AP27:BM27)," ",IF(ISNA(MATCH(SUM(AP27:BM27),AP27:BM27,0)),"",INDEX(AP$3:BM$3,,MATCH(SUM(AP27:BM27),AP27:BM27,0))))) -> 12 HW | BL27: =SUMIFS(Tbl_Car_Pro!$H$4:$H$1089,Tbl_Car_Pro!$B$4:$B$1089,$C27,Tbl_Car_Pro!$G$4:$G$1089,BL$1,Tbl_Car_Pro!$D$4:$D$1089,">"&$T27)+SUMIFS(Tbl_Car_Pro!$O$4:$O$1089,Tbl_Car_Pro!$B$4:$B$1089,$C27,Tbl_Car_Pro!$N$4:$N$1089,BL$1,Tbl_Car_Pro!$D$4:$D$1089,">"&$U27)+SUMIFS(Tbl_Car_Pro!$V$4:$V$1089,Tbl_Car_Pro!$B$4:$B$1089,$C27,Tbl_Car_Pro!$U$4:$U$1089,BL$1,Tbl_Car_Pro!$D$4:$D$1089,">"&$V27)+SUMIFS(Tbl_Car_Pro!$AC$4:$AC$1089,Tbl_Car_Pro!$B$4:$B$1089,$C27,Tbl_Car_Pro!$AB$4:$AB$1089,BL$1,Tbl_Car_Pro!$D$4:$D$1089,">"&$W27) -> 12 | BN27: 828680 | BS27: 1240655 | BU27: 0 | BV27: 0 | BW27: 0 | BX27: 0 | BY27: 804 | BZ27: 269.1924868 | CA27: =VLOOKUP(C27,Tbl_Mastery!B$4:R$227,17,FALSE) -> Unavailable | CB27: 7 | CC27: 12 | CD27: 16 | CE27: 49.22394678 | CF27: =IF(CF$2="kph",CK27+CL27,CG27+CH27)*IF(CJ27="",1,CJ27/100) -> 361.3632 | CG27: 190 | CH27: 44.5 | CJ27: 95.7 | CK27: 306 | CL27: 71.6 | CQ27: =IF(CQ26<MIN(CR$1,CU$2),CQ26+1,"") ->  | CV27: =C27 -> Hot Wheels Rip Rod™ | CW27: =CF27 -> 361.3632 | CX27: =IF(OR(CS$1="",CY27=CS$1),ROUND((CK27+CL27)*IF(CJ27="",1,CJ27/100),3)*1000000000+ROUND(CE27,0)*10000+IF(CJ27="",1,CJ27/100)*CK27*10,"") ->  | CY27: D
